Workbook

Sheet Resumo
A1: Ministério da Integração e do Desenvolvimento Regional
A2: Companhia de Desenvolvimento dos Vales do São Francisco e do Parnaíba
A4: PLANILHA RESUMO
A5: OBRA: | B5: Execução de manutenção e recuperação nas barragens de Macaúbas, Rio da Caixa e Baixão do Cecílio, localizadas no estado da Bahia. | E5: BDI (serv.): | F5: ='BDI serv'!D23 -> 0.2321 | G5: Bancos de dados:
A6: LOCAL: | B6: Barragens da Bahia | E6: BDI (forn.): | F6: ='BDI forn'!D23 -> 0.1469 | G6: JUL/25 - SINAPI
A7: DATA BASE: | B7: 2025-09-01 | C7: Encargos sociais - Horistas: | F7: ='Encargos Sociais'!E49 -> 1.1557 | G7: MAI/25 - ORSE
A8: PRAZO: | B8: 90 dias | C8: Encargos sociais - Mensalista: | F8: ='Encargos Sociais'!F49 -> 0.7129 | G8: AGO/25 - SBC
E9: Desconto: | F9: 0 | G9: ABR/2025 - SICRO
G10: JUN/25 - EMBASA
A11: ITEM | B11: DESCRIÇÃO | C11: UNID. | D11: QUANT. | E11: CUSTO UNITÁRIO | F11: PREÇO UNITÁRIO | G11: PREÇO TOTAL
A13: 1 | B13: BARRAGENS PERNAMBUCO | G13: =SUM(G14:G16) -> 1406280.66
A14: 1.1 | B14: Macaúbas | C14: unid. | D14: 1 | E14: =MACAÚBAS!I70 -> 634431.71 | F14: =MACAÚBAS!I72 -> 781417.58 | G14: =TRUNC(D14*F14,2) -> 781417.58
A15: 1.2 | B15: Rio da Caixa | C15: unid. | D15: 1 | E15: ='RIO DA CAIXA'!I65 -> 278300.34 | F15: ='RIO DA CAIXA'!I67 -> 342863.5 | G15: =TRUNC(D15*F15,2) -> 342863.5
A16: 1.3 | B16: Baixão do Cecílio | C16: unid. | D16: 1 | E16: ='BAIXÃO DO CECÍLIO'!I82 -> 228907.37 | F16: ='BAIXÃO DO CECÍLIO'!I84 -> 281999.58 | G16: =TRUNC(D16*F16,2) -> 281999.58
B18: TOTAL (Custo): | G18: =SUMPRODUCT(D13:D17,E13:E17) -> 1141639.42
B19: BDI e Encargos Sociais: | G19: =G20-G18 -> 264641.24
B20: TOTAL GERAL COM BDI: | G20: =SUMPRODUCT(D13:D17,F13:F17) -> 1406280.66

Sheet MACAÚBAS
A1: Ministério da Integração e do Desenvolvimento Regional
A2: Companhia de Desenvolvimento dos Vales do São Francisco e do Parnaíba
A4: PLANILHA ORÇAMENTÁRIA - ORÇAMENTO NÃO DESONERADO
A5: OBRA: | B5: =Resumo!B5 -> Execução de manutenção e recuperação nas barragens de Macaúbas, Rio da Caixa e Baixão do Cecílio, localizadas no estado da Bahia. | G5: BDI (serv.): | H5: ='BDI serv'!D23 -> 0.2321 | I5: Bancos de dados:
A6: LOCAL: | B6: Macaúbas - BA | G6: BDI (forn.): | H6: ='BDI forn'!D23 -> 0.1469 | I6: =Resumo!G6 -> JUL/25 - SINAPI
A7: DATA BASE: | B7: =Resumo!B7 -> 2025-09-01 | E7: Encargos sociais - Horistas: | H7: ='Encargos Sociais'!E49 -> 1.1557 | I7: =Resumo!G7 -> MAI/25 - ORSE
A8: PRAZO: | B8: 90 dias | E8: Encargos sociais - Mensalista: | H8: ='Encargos Sociais'!F49 -> 0.7129 | I8: =Resumo!G8 -> AGO/25 - SBC
B9: Macaúbas | G9: Desconto: | H9: 0 | I9: =Resumo!G9 -> ABR/2025 - SICRO
I10: =Resumo!G10 -> JUN/25 - EMBASA
A11: ITEM | B11: REFERÊNCIA | D11: DESCRIÇÃO | E11: UNID. | F11: QUANT. | G11: CUSTO UNITÁRIO | H11: PREÇO UNITÁRIO | I11: PREÇO TOTAL
B12: FONTE | C12: CÓDIGO
A13: 1 | D13: ADMINISTRAÇÃO DA OBRA | I13: =SUM(I14) -> 109766.52
A14: 1.1 | D14: Administração da Obra | I14: =SUM(I15:I15) -> 109766.52
A15: 1.1.1 | B15: PRÓPRIA | C15: CPU.01 | D15: =(VLOOKUP(C15,CPU!B1:C317,2,0)) -> Administração Local | E15: =(VLOOKUP(C15,CPU!B2:D$432,3,0)) -> mês | F15: 3 | G15: =TRUNC((1-$H$9)*(SUMIFS(CPU!$G:$G,CPU!$A:$A,MACAÚBAS!$C15,CPU!$H:$H,"ss")+SUMIFS(CPU!$G:$G,CPU!$A:$A,MACAÚBAS!$C15,CPU!$H:$H,"mdo")+SUMIF('Comp SINAPI BA 07-2025 Onerado'!B:B,MACAÚBAS!C15,'Comp SINAPI BA 07-2025 Onerado'!E:E)+SUMIF('Ins SINAPI BA 07-2025 Onerado'!B:B,MACAÚBAS!C15,'Ins SINAPI BA 07-2025 Onerado'!F:F)),2) -> 29696.33 | H15: =TRUNC(G15*(1+$H$5),2) -> 36588.84 | I15: =TRUNC(F15*H15,2) -> 109766.52
A17: 2 | D17: SERVIÇOS PRELIMINARES | I17: =SUM(I18,I20,I22) -> 26422.19
A18: 2.1 | D18: Mobilização e desmobilização | I18: =SUM(I19) -> 912.78
A19: 2.1.1 | B19: PRÓPRIA | C19: CPU.02 | D19: =(VLOOKUP(C19,CPU!B5:C321,2,0)) -> Mobilização e desmobilização de instalação do canteiro | E19: =(VLOOKUP(C19,CPU!B2:D$432,3,0)) -> un | F19: 1 | G19: =TRUNC((1-$H$9)*(SUMIFS(CPU!$G:$G,CPU!$A:$A,MACAÚBAS!$C19,CPU!$H:$H,"ss")+SUMIFS(CPU!$G:$G,CPU!$A:$A,MACAÚBAS!$C19,CPU!$H:$H,"mdo")+SUMIF('Comp SINAPI BA 07-2025 Onerado'!B:B,MACAÚBAS!C19,'Comp SINAPI BA 07-2025 Onerado'!E:E)+SUMIF('Ins SINAPI BA 07-2025 Onerado'!B:B,MACAÚBAS!C19,'Ins SINAPI BA 07-2025 Onerado'!F:F)),2) -> 740.84 | H19: =TRUNC(G19*(1+$H$5),2) -> 912.78 | I19: =TRUNC(F19*H19,2) -> 912.78
A20: 2.2 | D20: Canteiro de obras | I20: =SUM(I21) -> 24409.11
A21: 2.2.1 | B21: PRÓPRIA | C21: CPU.03 | D21: =(VLOOKUP(C21,CPU!B7:C323,2,0)) -> Execução de canteiro de obras, inclusive, limpeza, refeitório, sanitários e central de formas | E21: =(VLOOKUP(C21,CPU!B2:D$432,3,0)) -> m2 | F21: 28.5 | G21: =TRUNC((1-$H$9)*(SUMIFS(CPU!$G:$G,CPU!$A:$A,MACAÚBAS!$C21,CPU!$H:$H,"ss")+SUMIFS(CPU!$G:$G,CPU!$A:$A,MACAÚBAS!$C21,CPU!$H:$H,"mdo")+SUMIF('Comp SINAPI BA 07-2025 Onerado'!B:B,MACAÚBAS!C21,'Comp SINAPI BA 07-2025 Onerado'!E:E)+SUMIF('Ins SINAPI BA 07-2025 Onerado'!B:B,MACAÚBAS!C21,'Ins SINAPI BA 07-2025 Onerado'!F:F)),2) -> 695.13 | H21: =TRUNC(G21*(1+$H$5),2) -> 856.46 | I21: =TRUNC(F21*H21,2) -> 24409.11
A22: 2.3 | D22: Sinalização | I22: =SUM(I23:I23) -> 1100.3
A23: 2.3.1 | B23: SINAPI | C23: 103689 | D23: =IF(J23="ca",VLOOKUP(C23,'Comp SINAPI BA 07-2025 Onerado'!$B$11:$C$9004,2,0),VLOOKUP(C23,'Ins SINAPI BA 07-2025 Onerado'!$B$10:$C$9004,2,0)) -> FORNECIMENTO E INSTALAÇÃO DE PLACA DE OBRA COM CHAPA GALVANIZADA E ESTRUTURA DE MADEIRA. AF_03/2022_PS | E23: =IF(J23="ca",VLOOKUP(C23,'Comp SINAPI BA 07-2025 Onerado'!$B$11:$D$9004,3,0),VLOOKUP(C23,'Ins SINAPI BA 07-2025 Onerado'!$B$11:$D$9004,3,0)) -> M2 | F23: 2 | G23: =TRUNC((1-$H$9)*(SUMIFS(CPU!$G:$G,CPU!$A:$A,MACAÚBAS!$C23,CPU!$H:$H,"ss")+SUMIFS(CPU!$G:$G,CPU!$A:$A,MACAÚBAS!$C23,CPU!$H:$H,"mdo")+SUMIF('Comp SINAPI BA 07-2025 Onerado'!B:B,MACAÚBAS!C23,'Comp SINAPI BA 07-2025 Onerado'!E:E)+SUMIF('Ins SINAPI BA 07-2025 Onerado'!B:B,MACAÚBAS!C23,'Ins SINAPI BA 07-2025 Onerado'!F:F)),2) -> 446.52 | H23: =TRUNC(G23*(1+$H$5),2) -> 550.15 | I23: =TRUNC(F23*H23,2) -> 1100.3 | J23: ca
A25: 3 | D25: CORTE DA VEGETAÇÃO E REMOÇÃO DAS RAIZES | I25: =SUM(I26) -> 73851.6
A26: 3.1 | D26: Remoção da vegetação | I26: =SUM(I27:I28) -> 73851.6
A27: 3.1.1 | B27: PRÓPRIA | C27: CPU.04 | D27: =(VLOOKUP(C27,CPU!B13:C329,2,0)) -> Limpeza de vegetação | E27: =(VLOOKUP(C27,CPU!B2:D$432,3,0)) -> m2 | F27: 35894 | G27: =TRUNC((1-$H$9)*(SUMIFS(CPU!$G:$G,CPU!$A:$A,MACAÚBAS!$C27,CPU!$H:$H,"ss")+SUMIFS(CPU!$G:$G,CPU!$A:$A,MACAÚBAS!$C27,CPU!$H:$H,"mdo")+SUMIF('Comp SINAPI BA 07-2025 Onerado'!B:B,MACAÚBAS!C27,'Comp SINAPI BA 07-2025 Onerado'!E:E)+SUMIF('Ins SINAPI BA 07-2025 Onerado'!B:B,MACAÚBAS!C27,'Ins SINAPI BA 07-2025 Onerado'!F:F)),2) -> 1.3 | H27: =TRUNC(G27*(1+$H$5),2) -> 1.6 | I27: =TRUNC(F27*H27,2) -> 57430.4
A28: 3.1.2 | B28: PRÓPRIA | C28: CPU.05 | D28: =(VLOOKUP(C28,CPU!B14:C330,2,0)) -> Corte de tronco e remoção de raiz | E28: =(VLOOKUP(C28,CPU!B3:D$432,3,0)) -> un | F28: 40 | G28: =TRUNC((1-$H$9)*(SUMIFS(CPU!$G:$G,CPU!$A:$A,MACAÚBAS!$C28,CPU!$H:$H,"ss")+SUMIFS(CPU!$G:$G,CPU!$A:$A,MACAÚBAS!$C28,CPU!$H:$H,"mdo")+SUMIF('Comp SINAPI BA 07-2025 Onerado'!B:B,MACAÚBAS!C28,'Comp SINAPI BA 07-2025 Onerado'!E:E)+SUMIF('Ins SINAPI BA 07-2025 Onerado'!B:B,MACAÚBAS!C28,'Ins SINAPI BA 07-2025 Onerado'!F:F)),2) -> 333.2 | H28: =TRUNC(G28*(1+$H$5),2) -> 410.53 | I28: =TRUNC(F28*H28,2) -> 16421.2
A30: 4 | D30: RECUPERAÇÃO DO MACIÇO | I30: =SUM(I31,I33) -> 5536.2
A31: 4.1 | D31: Recomposição das Erosões (erosões e buracos nas ombreiras e taludes) | I31: =I32 -> 5414
A32: 4.1.1 | B32: PRÓPRIA | C32: CPU.09 | D32: =(VLOOKUP(C32,CPU!B18:C334,2,0)) -> Recomposição das erosões, inclusive, regularização da superfície e reaterro | E32: =(VLOOKUP(C32,CPU!B4:D$432,3,0)) -> m3 | F32: 20 | G32: =TRUNC((1-$H$9)*(SUMIFS(CPU!$G:$G,CPU!$A:$A,MACAÚBAS!$C32,CPU!$H:$H,"ss")+SUMIFS(CPU!$G:$G,CPU!$A:$A,MACAÚBAS!$C32,CPU!$H:$H,"mdo")+SUMIF('Comp SINAPI BA 07-2025 Onerado'!B:B,MACAÚBAS!C32,'Comp SINAPI BA 07-2025 Onerado'!E:E)+SUMIF('Ins SINAPI BA 07-2025 Onerado'!B:B,MACAÚBAS!C32,'Ins SINAPI BA 07-2025 Onerado'!F:F)),2) -> 219.71 | H32: =TRUNC(G32*(1+$H$5),2) -> 270.7 | I32: =TRUNC(F32*H32,2) -> 5414
A33: 4.2 | D33: Fechamento de tocas de animais | I33: =I34 -> 122.2
A34: 4.2.1 | B34: PRÓPRIA | C34: CPU.17 | D34: =(VLOOKUP(C34,CPU!B20:C336,2,0)) -> Injeção de nata de cimento em buracos | E34: =(VLOOKUP(C34,CPU!B6:D$432,3,0)) -> m3 | F34: 0.1 | G34: =TRUNC((1-$H$9)*(SUMIFS(CPU!$G:$G,CPU!$A:$A,MACAÚBAS!$C34,CPU!$H:$H,"ss")+SUMIFS(CPU!$G:$G,CPU!$A:$A,MACAÚBAS!$C34,CPU!$H:$H,"mdo")+SUMIF('Comp SINAPI BA 07-2025 Onerado'!B:B,MACAÚBAS!C34,'Comp SINAPI BA 07-2025 Onerado'!E:E)+SUMIF('Ins SINAPI BA 07-2025 Onerado'!B:B,MACAÚBAS!C34,'Ins SINAPI BA 07-2025 Onerado'!F:F)),2) -> 991.88 | H34: =TRUNC(G34*(1+$H$5),2) -> 1222.09 | I34: =TRUNC(F34*H34,2) -> 122.2
A36: 5 | D36: REGULARIZAÇÃO E PAVIMENTAÇÃO DA CRISTA | I36: =SUM(I37,I39,I43) -> 387273.46
A37: 5.1 | D37: Limpeza e Regularização da Crista | I37: =SUM(I38:I38) -> 17755.2
A38: 5.1.1 | B38: PRÓPRIA | C38: CPU.10 | D38: =(VLOOKUP(C38,CPU!B10:C326,2,0)) -> Regularização e compactação da crista | E38: =(VLOOKUP(C38,CPU!B10:D326,3,0)) -> m2 | F38: 4320 | G38: =TRUNC((1-$H$9)*(SUMIFS(CPU!$G:$G,CPU!$A:$A,MACAÚBAS!$C38,CPU!$H:$H,"ss")+SUMIFS(CPU!$G:$G,CPU!$A:$A,MACAÚBAS!$C38,CPU!$H:$H,"mdo")+SUMIF('Comp SINAPI BA 07-2025 Onerado'!B:B,MACAÚBAS!C38,'Comp SINAPI BA 07-2025 Onerado'!E:E)+SUMIF('Ins SINAPI BA 07-2025 Onerado'!B:B,MACAÚBAS!C38,'Ins SINAPI BA 07-2025 Onerado'!F:F)),2) -> 3.34 | H38: =TRUNC(G38*(1+$H$5),2) -> 4.11 | I38: =TRUNC(F38*H38,2) -> 17755.2
A39: 5.2 | D39: Instalação de meio-fio em ambos os lados da crista | I39: =SUM(I40:I42) -> 160577.14
A40: 5.2.1 | B40: PRÓPRIA | C40: CPU.13 | D40: =(VLOOKUP(C40,CPU!B13:C329,2,0)) -> Fornecimento e Assentamento de Guia (meio-fio) Pré-fabricado, dimensões 100X15X13X30 Cm (Comprimento X Base Inferior X Base Superior X Altura) | E40: =(VLOOKUP(C40,CPU!B13:D329,3,0)) -> m | F40: 2160 | G40: =TRUNC((1-$H$9)*(SUMIFS(CPU!$G:$G,CPU!$A:$A,MACAÚBAS!$C40,CPU!$H:$H,"ss")+SUMIFS(CPU!$G:$G,CPU!$A:$A,MACAÚBAS!$C40,CPU!$H:$H,"mdo")+SUMIF('Comp SINAPI BA 07-2025 Onerado'!B:B,MACAÚBAS!C40,'Comp SINAPI BA 07-2025 Onerado'!E:E)+SUMIF('Ins SINAPI BA 07-2025 Onerado'!B:B,MACAÚBAS!C40,'Ins SINAPI BA 07-2025 Onerado'!F:F)),2) -> 54.32 | H40: =TRUNC(G40*(1+$H$5),2) -> 66.92 | I40: =TRUNC(F40*H40,2) -> 144547.2
A41: 5.2.2 | B41: PRÓPRIA | C41: CPU.07 | D41: =(VLOOKUP(C41,CPU!B13:C329,2,0)) -> Entrada para descida d’água tipo EDA 01 B | E41: =(VLOOKUP(C41,CPU!B13:D329,3,0)) -> un | F41: 22 | G41: =TRUNC((1-$H$9)*(SUMIFS(CPU!$G:$G,CPU!$A:$A,MACAÚBAS!$C41,CPU!$H:$H,"ss")+SUMIFS(CPU!$G:$G,CPU!$A:$A,MACAÚBAS!$C41,CPU!$H:$H,"mdo")+SUMIF('Comp SINAPI BA 07-2025 Onerado'!B:B,MACAÚBAS!C41,'Comp SINAPI BA 07-2025 Onerado'!E:E)+SUMIF('Ins SINAPI BA 07-2025 Onerado'!B:B,MACAÚBAS!C41,'Ins SINAPI BA 07-2025 Onerado'!F:F)),2) -> 309.29 | H41: =TRUNC(G41*(1+$H$5),2) -> 381.07 | I41: =TRUNC(F41*H41,2) -> 8383.54
A42: 5.2.3 | B42: PRÓPRIA | C42: CPU.20 | D42: =(VLOOKUP(C42,CPU!B14:C330,2,0)) -> Pintura do meio-fio | E42: =(VLOOKUP(C42,CPU!B14:D330,3,0)) -> m | F42: =F40 -> 2160 | G42: =TRUNC((1-$H$9)*(SUMIFS(CPU!$G:$G,CPU!$A:$A,MACAÚBAS!$C42,CPU!$H:$H,"ss")+SUMIFS(CPU!$G:$G,CPU!$A:$A,MACAÚBAS!$C42,CPU!$H:$H,"mdo")+SUMIF('Comp SINAPI BA 07-2025 Onerado'!B:B,MACAÚBAS!C42,'Comp SINAPI BA 07-2025 Onerado'!E:E)+SUMIF('Ins SINAPI BA 07-2025 Onerado'!B:B,MACAÚBAS!C42,'Ins SINAPI BA 07-2025 Onerado'!F:F)),2) -> 2.88 | H42: =TRUNC(G42*(1+$H$5),2) -> 3.54 | I42: =TRUNC(F42*H42,2) -> 7646.4
A43: 5.3 | D43: Pavimentação da Crista | I43: =SUM(I44:I44) -> 208941.12
A44: 5.3.1 | B44: PRÓPRIA | C44: CPU.11 | D44: =(VLOOKUP(C44,CPU!B14:C330,2,0)) -> Execução de Revestimento com BGTC | E44: =(VLOOKUP(C44,CPU!B14:D330,3,0)) -> m3 | F44: 432 | G44: =TRUNC((1-$H$9)*(SUMIFS(CPU!$G:$G,CPU!$A:$A,MACAÚBAS!$C44,CPU!$H:$H,"ss")+SUMIFS(CPU!$G:$G,CPU!$A:$A,MACAÚBAS!$C44,CPU!$H:$H,"mdo")+SUMIF('Comp SINAPI BA 07-2025 Onerado'!B:B,MACAÚBAS!C44,'Comp SINAPI BA 07-2025 Onerado'!E:E)+SUMIF('Ins SINAPI BA 07-2025 Onerado'!B:B,MACAÚBAS!C44,'Ins SINAPI BA 07-2025 Onerado'!F:F)),2) -> 392.55 | H44: =TRUNC(G44*(1+$H$5),2) -> 483.66 | I44: =TRUNC(F44*H44,2) -> 208941.12
A46: 6 | D46: MANUTENÇÃO NO TALUDE DE MONTANTE | I46: =SUM(I47) -> 14501.27
A47: 6.1 | D47: Recuperação com uso de argamassa | I47: =SUM(I48:I48) -> 14501.27
A48: 6.1.1 | B48: PRÓPRIA | C48: CPU.18 | D48: =(VLOOKUP(C48,CPU!B24:C340,2,0)) -> Recuperação com uso de argamassa | E48: =(VLOOKUP(C48,CPU!B24:D432,3,0)) -> m3 | F48: 7 | G48: =TRUNC((1-$H$9)*(SUMIFS(CPU!$G:$G,CPU!$A:$A,MACAÚBAS!$C48,CPU!$H:$H,"ss")+SUMIFS(CPU!$G:$G,CPU!$A:$A,MACAÚBAS!$C48,CPU!$H:$H,"mdo")+SUMIF('Comp SINAPI BA 07-2025 Onerado'!B:B,MACAÚBAS!C48,'Comp SINAPI BA 07-2025 Onerado'!E:E)+SUMIF('Ins SINAPI BA 07-2025 Onerado'!B:B,MACAÚBAS!C48,'Ins SINAPI BA 07-2025 Onerado'!F:F)),2) -> 1681.37 | H48: =TRUNC(G48*(1+$H$5),2) -> 2071.61 | I48: =TRUNC(F48*H48,2) -> 14501.27
A50: 7 | D50: PROTEÇÃO SUPERFICIAL DO TALUDE DE JUSANTE | I50: =SUM(I51,I53) -> 132200.86
A51: 7.1 | D51: Proteção vegetal | I51: =SUM(I52) -> 110901.86
A52: 7.1.1 | B52: PRÓPRIA | C52: CPU.08 | D52: =(VLOOKUP(C52,CPU!B25:C343,2,0)) -> Plantio de vegetação tipo gramínea para proteção de talude com hidrossemeadura, inclusive adubação e transporte | E52: =(VLOOKUP(C52,CPU!B25:D431,3,0)) -> m2 | F52: 12689 | G52: =TRUNC((1-$H$9)*(SUMIFS(CPU!$G:$G,CPU!$A:$A,MACAÚBAS!$C52,CPU!$H:$H,"ss")+SUMIFS(CPU!$G:$G,CPU!$A:$A,MACAÚBAS!$C52,CPU!$H:$H,"mdo")+SUMIF('Comp SINAPI BA 07-2025 Onerado'!B:B,MACAÚBAS!C52,'Comp SINAPI BA 07-2025 Onerado'!E:E)+SUMIF('Ins SINAPI BA 07-2025 Onerado'!B:B,MACAÚBAS!C52,'Ins SINAPI BA 07-2025 Onerado'!F:F)),2) -> 7.1 | H52: =TRUNC(G52*(1+$H$5),2) -> 8.74 | I52: =TRUNC(F52*H52,2) -> 110901.86
A53: 7.2 | D53: Irrigação da área de hidrossemeadura | I53: =SUM(I54:I54) -> 21299
A54: 7.2.1 | B54: PRÓPRIA | C54: CPU.16 | D54: =(VLOOKUP(C54,CPU!B30:C348,2,0)) -> Irrigação - inclusive transporte | E54: =(VLOOKUP(C54,CPU!B29:D443,3,0)) -> m3 | F54: 100 | G54: =TRUNC((1-$H$9)*(SUMIFS(CPU!$G:$G,CPU!$A:$A,MACAÚBAS!$C54,CPU!$H:$H,"ss")+SUMIFS(CPU!$G:$G,CPU!$A:$A,MACAÚBAS!$C54,CPU!$H:$H,"mdo")+SUMIF('Comp SINAPI BA 07-2025 Onerado'!B:B,MACAÚBAS!C54,'Comp SINAPI BA 07-2025 Onerado'!E:E)+SUMIF('Ins SINAPI BA 07-2025 Onerado'!B:B,MACAÚBAS!C54,'Ins SINAPI BA 07-2025 Onerado'!F:F)),2) -> 172.87 | H54: =TRUNC(G54*(1+$H$5),2) -> 212.99 | I54: =TRUNC(F54*H54,2) -> 21299
A56: 8 | D56: SERVIÇOS COMPLEMENTARES | I56: =SUM(I57) -> 4550.8
A57: 8.1 | D57: Instalação de placas de aviso | I57: =SUM(I58:I59) -> 4550.8
A58: 8.1.1 | B58: SINAPI | C58: 103689 | D58: =IF(J58="ca",VLOOKUP(C58,'Comp SINAPI BA 07-2025 Onerado'!$B$11:$C$9004,2,0),VLOOKUP(C58,'Ins SINAPI BA 07-2025 Onerado'!$B$10:$C$9004,2,0)) -> FORNECIMENTO E INSTALAÇÃO DE PLACA DE OBRA COM CHAPA GALVANIZADA E ESTRUTURA DE MADEIRA. AF_03/2022_PS | E58: =IF(J58="ca",VLOOKUP(C58,'Comp SINAPI BA 07-2025 Onerado'!$B$11:$D$9004,3,0),VLOOKUP(C58,'Ins SINAPI BA 07-2025 Onerado'!$B$11:$D$9004,3,0)) -> M2 | F58: 4 | G58: =TRUNC((1-$H$9)*(SUMIFS(CPU!$G:$G,CPU!$A:$A,MACAÚBAS!$C58,CPU!$H:$H,"ss")+SUMIFS(CPU!$G:$G,CPU!$A:$A,MACAÚBAS!$C58,CPU!$H:$H,"mdo")+SUMIF('Comp SINAPI BA 07-2025 Onerado'!B:B,MACAÚBAS!C58,'Comp SINAPI BA 07-2025 Onerado'!E:E)+SUMIF('Ins SINAPI BA 07-2025 Onerado'!B:B,MACAÚBAS!C58,'Ins SINAPI BA 07-2025 Onerado'!F:F)),2) -> 446.52 | H58: =TRUNC(G58*(1+$H$5),2) -> 550.15 | I58: =TRUNC(F58*H58,2) -> 2200.6 | J58: ca
A59: 8.1.2 | B59: PRÓPRIA | C59: CPU.19 | D59: =(VLOOKUP(C59,CPU!B34:C352,2,0)) -> Régua Linimétrica Padrão “ANA”, Aço Carbono - 2 X 70 X 1000 mm (Fornecimento e Instalação) | E59: =(VLOOKUP(C59,CPU!B35:D449,3,0)) -> un | F59: 5 | G59: =TRUNC((1-$H$9)*(SUMIFS(CPU!$G:$G,CPU!$A:$A,MACAÚBAS!$C59,CPU!$H:$H,"ss")+SUMIFS(CPU!$G:$G,CPU!$A:$A,MACAÚBAS!$C59,CPU!$H:$H,"mdo")+SUMIF('Comp SINAPI BA 07-2025 Onerado'!B:B,MACAÚBAS!C59,'Comp SINAPI BA 07-2025 Onerado'!E:E)+SUMIF('Ins SINAPI BA 07-2025 Onerado'!B:B,MACAÚBAS!C59,'Ins SINAPI BA 07-2025 Onerado'!F:F)),2) -> 381.5 | H59: =TRUNC(G59*(1+$H$5),2) -> 470.04 | I59: =TRUNC(F59*H59,2) -> 2350.2
A61: 9 | D61: PROJETO "AS IS" | I61: =SUM(I62) -> 26243.63
A62: 9.1 | D62: Levantamento topográfico e "AS IS" | I62: =SUM(I63:I64) -> 26243.63
A63: 9.1.1 | B63: ORSE | C63: 9346 | D63: Levantamento topográfico planimétrico cadastral | E63: m2 | F63: =F27 -> 35894 | G63: =TRUNC((1-$H$9)*0.35,2) -> 0.35 | H63: =TRUNC(G63*(1+$H$5),2) -> 0.43 | I63: =TRUNC(F63*H63,2) -> 15434.42
A64: 9.1.2 | B64: PRÓPRIA | C64: CPU.12 | D64: =(VLOOKUP(C64,CPU!B43:C360,2,0)) -> Projeto geométrico | E64: =(VLOOKUP(C64,CPU!B41:D455,3,0)) -> un | F64: 1 | G64: =TRUNC((1-$H$9)*(SUMIFS(CPU!$G:$G,CPU!$A:$A,MACAÚBAS!$C64,CPU!$H:$H,"ss")+SUMIFS(CPU!$G:$G,CPU!$A:$A,MACAÚBAS!$C64,CPU!$H:$H,"mdo")+SUMIF('Comp SINAPI BA 07-2025 Onerado'!B:B,MACAÚBAS!C64,'Comp SINAPI BA 07-2025 Onerado'!E:E)+SUMIF('Ins SINAPI BA 07-2025 Onerado'!B:B,MACAÚBAS!C64,'Ins SINAPI BA 07-2025 Onerado'!F:F)),2) -> 8773 | H64: =TRUNC(G64*(1+$H$5),2) -> 10809.21 | I64: =TRUNC(F64*H64,2) -> 10809.21
A66: 10 | D66: FISCALIZAÇÃO E ACOMPANHAMENTO | I66: =SUM(I67) -> 1071.05
A67: 10.1 | D67: Disponibilidade de veículo para apoio a fiscalização | I67: =SUM(I68) -> 1071.05
A68: 10.1.1 | B68: PRÓPRIA | C68: CPU.14 | D68: =(VLOOKUP(C68,CPU!B47:C364,2,0)) -> Disponibilidade de veículo para apoio a fiscalização, inclusive combustível | E68: =(VLOOKUP(C68,CPU!B46:D459,3,0)) -> un | F68: =F15+2 -> 5 | G68: =TRUNC((1-$H$9)*(SUMIFS(CPU!$G:$G,CPU!$A:$A,MACAÚBAS!$C68,CPU!$H:$H,"ss")+SUMIFS(CPU!$G:$G,CPU!$A:$A,MACAÚBAS!$C68,CPU!$H:$H,"mdo")+SUMIF('Comp SINAPI BA 07-2025 Onerado'!B:B,MACAÚBAS!C68,'Comp SINAPI BA 07-2025 Onerado'!E:E)+SUMIF('Ins SINAPI BA 07-2025 Onerado'!B:B,MACAÚBAS!C68,'Ins SINAPI BA 07-2025 Onerado'!F:F)),2) -> 173.86 | H68: =TRUNC(G68*(1+$H$5),2) -> 214.21 | I68: =TRUNC(F68*H68,2) -> 1071.05
D70: TOTAL (Custo): | I70: =TRUNC(SUMPRODUCT(F14:F68,G14:G68),2) -> 634431.71
D71: BDI e Encargos Sociais: | I71: =I72-I70 -> 146985.87
D72: TOTAL GERAL COM BDI: | I72: =SUM(I13,I17,I25,I30,I36,I46,I50,I56,I61,I66) -> 781417.58 | L72: =TRUNC(SUMPRODUCT(F14:F68,H14:H68),2) -> 781417.58

Sheet RIO DA CAIXA
A1: Ministério da Integração e do Desenvolvimento Regional
A2: Companhia de Desenvolvimento dos Vales do São Francisco e do Parnaíba
A4: PLANILHA ORÇAMENTÁRIA - ORÇAMENTO NÃO DESONERADO
A5: OBRA: | B5: =Resumo!B5 -> Execução de manutenção e recuperação nas barragens de Macaúbas, Rio da Caixa e Baixão do Cecílio, localizadas no estado da Bahia. | G5: BDI (serv.): | H5: ='BDI serv'!D23 -> 0.2321 | I5: Bancos de dados:
A6: LOCAL: | B6: Rio do Pires - BA | G6: BDI (forn.): | H6: ='BDI forn'!D23 -> 0.1469 | I6: =Resumo!G6 -> JUL/25 - SINAPI
A7: DATA BASE: | B7: =Resumo!B7 -> 2025-09-01 | E7: Encargos sociais - Horistas: | H7: ='Encargos Sociais'!E49 -> 1.1557 | I7: =Resumo!G7 -> MAI/25 - ORSE
A8: PRAZO: | B8: 90 dias | E8: Encargos sociais - Mensalista: | H8: ='Encargos Sociais'!F49 -> 0.7129 | I8: =Resumo!G8 -> AGO/25 - SBC
B9: Rio da Caixa | G9: Desconto: | H9: 0 | I9: =Resumo!G9 -> ABR/2025 - SICRO
I10: =Resumo!G10 -> JUN/25 - EMBASA
A11: ITEM | B11: REFERÊNCIA | D11: DESCRIÇÃO | E11: UNID. | F11: QUANT. | G11: CUSTO UNITÁRIO | H11: PREÇO UNITÁRIO | I11: PREÇO TOTAL
B12: FONTE | C12: CÓDIGO
A13: 1 | D13: ADMINISTRAÇÃO DA OBRA | I13: =SUM(I14) -> 109766.52
A14: 1.1 | D14: Administração da Obra | I14: =SUM(I15:I15) -> 109766.52
A15: 1.1.1 | B15: PRÓPRIA | C15: CPU.01 | D15: =(VLOOKUP(C15,CPU!B1:C317,2,0)) -> Administração Local | E15: =(VLOOKUP(C15,CPU!B2:D$432,3,0)) -> mês | F15: 3 | G15: =TRUNC((1-$H$9)*(SUMIFS(CPU!$G:$G,CPU!$A:$A,'RIO DA CAIXA'!$C15,CPU!$H:$H,"ss")+SUMIFS(CPU!$G:$G,CPU!$A:$A,'RIO DA CAIXA'!$C15,CPU!$H:$H,"mdo")+SUMIF('Comp SINAPI BA 07-2025 Onerado'!B:B,'RIO DA CAIXA'!C15,'Comp SINAPI BA 07-2025 Onerado'!E:E)+SUMIF('Ins SINAPI BA 07-2025 Onerado'!B:B,'RIO DA CAIXA'!C15,'Ins SINAPI BA 07-2025 Onerado'!F:F)),2) -> 29696.33 | H15: =TRUNC(G15*(1+$H$5),2) -> 36588.84 | I15: =TRUNC(F15*H15,2) -> 109766.52
A17: 2 | D17: SERVIÇOS PRELIMINARES | I17: =SUM(I18,I20,I22) -> 26422.19
A18: 2.1 | D18: Mobilização e desmobilização | I18: =SUM(I19) -> 912.78
A19: 2.1.1 | B19: PRÓPRIA | C19: CPU.02 | D19: =(VLOOKUP(C19,CPU!B5:C321,2,0)) -> Mobilização e desmobilização de instalação do canteiro | E19: =(VLOOKUP(C19,CPU!B2:D$432,3,0)) -> un | F19: 1 | G19: =TRUNC((1-$H$9)*(SUMIFS(CPU!$G:$G,CPU!$A:$A,'RIO DA CAIXA'!$C19,CPU!$H:$H,"ss")+SUMIFS(CPU!$G:$G,CPU!$A:$A,'RIO DA CAIXA'!$C19,CPU!$H:$H,"mdo")+SUMIF('Comp SINAPI BA 07-2025 Onerado'!B:B,'RIO DA CAIXA'!C19,'Comp SINAPI BA 07-2025 Onerado'!E:E)+SUMIF('Ins SINAPI BA 07-2025 Onerado'!B:B,'RIO DA CAIXA'!C19,'Ins SINAPI BA 07-2025 Onerado'!F:F)),2) -> 740.84 | H19: =TRUNC(G19*(1+$H$5),2) -> 912.78 | I19: =TRUNC(F19*H19,2) -> 912.78
A20: 2.2 | D20: Canteiro de obras | I20: =SUM(I21) -> 24409.11
A21: 2.2.1 | B21: PRÓPRIA | C21: CPU.03 | D21: =(VLOOKUP(C21,CPU!B7:C323,2,0)) -> Execução de canteiro de obras, inclusive, limpeza, refeitório, sanitários e central de formas | E21: =(VLOOKUP(C21,CPU!B2:D$432,3,0)) -> m2 | F21: 28.5 | G21: =TRUNC((1-$H$9)*(SUMIFS(CPU!$G:$G,CPU!$A:$A,'RIO DA CAIXA'!$C21,CPU!$H:$H,"ss")+SUMIFS(CPU!$G:$G,CPU!$A:$A,'RIO DA CAIXA'!$C21,CPU!$H:$H,"mdo")+SUMIF('Comp SINAPI BA 07-2025 Onerado'!B:B,'RIO DA CAIXA'!C21,'Comp SINAPI BA 07-2025 Onerado'!E:E)+SUMIF('Ins SINAPI BA 07-2025 Onerado'!B:B,'RIO DA CAIXA'!C21,'Ins SINAPI BA 07-2025 Onerado'!F:F)),2) -> 695.13 | H21: =TRUNC(G21*(1+$H$5),2) -> 856.46 | I21: =TRUNC(F21*H21,2) -> 24409.11
A22: 2.3 | D22: Sinalização | I22: =SUM(I23:I23) -> 1100.3
A23: 2.3.1 | B23: SINAPI | C23: 103689 | D23: =IF(J23="ca",VLOOKUP(C23,'Comp SINAPI BA 07-2025 Onerado'!$B$11:$C$9004,2,0),VLOOKUP(C23,'Ins SINAPI BA 07-2025 Onerado'!$B$10:$C$9004,2,0)) -> FORNECIMENTO E INSTALAÇÃO DE PLACA DE OBRA COM CHAPA GALVANIZADA E ESTRUTURA DE MADEIRA. AF_03/2022_PS | E23: =IF(J23="ca",VLOOKUP(C23,'Comp SINAPI BA 07-2025 Onerado'!$B$11:$D$9004,3,0),VLOOKUP(C23,'Ins SINAPI BA 07-2025 Onerado'!$B$11:$D$9004,3,0)) -> M2 | F23: 2 | G23: =TRUNC((1-$H$9)*(SUMIFS(CPU!$G:$G,CPU!$A:$A,'RIO DA CAIXA'!$C23,CPU!$H:$H,"ss")+SUMIFS(CPU!$G:$G,CPU!$A:$A,'RIO DA CAIXA'!$C23,CPU!$H:$H,"mdo")+SUMIF('Comp SINAPI BA 07-2025 Onerado'!B:B,'RIO DA CAIXA'!C23,'Comp SINAPI BA 07-2025 Onerado'!E:E)+SUMIF('Ins SINAPI BA 07-2025 Onerado'!B:B,'RIO DA CAIXA'!C23,'Ins SINAPI BA 07-2025 Onerado'!F:F)),2) -> 446.52 | H23: =TRUNC(G23*(1+$H$5),2) -> 550.15 | I23: =TRUNC(F23*H23,2) -> 1100.3 | J23: ca
A25: 3 | D25: CORTE DA VEGETAÇÃO E REMOÇÃO DAS RAIZES | I25: =SUM(I26) -> 21115.9
A26: 3.1 | D26: Remoção da vegetação | I26: =SUM(I27:I28) -> 21115.9
A27: 3.1.1 | B27: PRÓPRIA | C27: CPU.04 | D27: =(VLOOKUP(C27,CPU!B13:C329,2,0)) -> Limpeza de vegetação | E27: =(VLOOKUP(C27,CPU!B2:D$432,3,0)) -> m2 | F27: 5500 | G27: =TRUNC((1-$H$9)*(SUMIFS(CPU!$G:$G,CPU!$A:$A,'RIO DA CAIXA'!$C27,CPU!$H:$H,"ss")+SUMIFS(CPU!$G:$G,CPU!$A:$A,'RIO DA CAIXA'!$C27,CPU!$H:$H,"mdo")+SUMIF('Comp SINAPI BA 07-2025 Onerado'!B:B,'RIO DA CAIXA'!C27,'Comp SINAPI BA 07-2025 Onerado'!E:E)+SUMIF('Ins SINAPI BA 07-2025 Onerado'!B:B,'RIO DA CAIXA'!C27,'Ins SINAPI BA 07-2025 Onerado'!F:F)),2) -> 1.3 | H27: =TRUNC(G27*(1+$H$5),2) -> 1.6 | I27: =TRUNC(F27*H27,2) -> 8800
A28: 3.1.2 | B28: PRÓPRIA | C28: CPU.05 | D28: =(VLOOKUP(C28,CPU!B14:C330,2,0)) -> Corte de tronco e remoção de raiz | E28: =(VLOOKUP(C28,CPU!B3:D$432,3,0)) -> un | F28: 30 | G28: =TRUNC((1-$H$9)*(SUMIFS(CPU!$G:$G,CPU!$A:$A,'RIO DA CAIXA'!$C28,CPU!$H:$H,"ss")+SUMIFS(CPU!$G:$G,CPU!$A:$A,'RIO DA CAIXA'!$C28,CPU!$H:$H,"mdo")+SUMIF('Comp SINAPI BA 07-2025 Onerado'!B:B,'RIO DA CAIXA'!C28,'Comp SINAPI BA 07-2025 Onerado'!E:E)+SUMIF('Ins SINAPI BA 07-2025 Onerado'!B:B,'RIO DA CAIXA'!C28,'Ins SINAPI BA 07-2025 Onerado'!F:F)),2) -> 333.2 | H28: =TRUNC(G28*(1+$H$5),2) -> 410.53 | I28: =TRUNC(F28*H28,2) -> 12315.9
A30: 4 | D30: RECUPERAÇÃO DA ESTRUTURA DE PEDRA ARGAMASSADA | I30: =SUM(I31,I36,I39) -> 159521.22
A31: 4.1 | D31: Recuperação da Crista | I31: =SUM(I32:I35) -> 26174.03
A32: 4.1.1 | B32: PRÓPRIA | C32: CPU.21 | D32: =(VLOOKUP(C32,CPU!B15:C331,2,0)) -> Apicoamento da superfície | E32: =(VLOOKUP(C32,CPU!B1:D$432,3,0)) -> m2 | F32: 177 | G32: =TRUNC((1-$H$9)*(SUMIFS(CPU!$G:$G,CPU!$A:$A,'RIO DA CAIXA'!$C32,CPU!$H:$H,"ss")+SUMIFS(CPU!$G:$G,CPU!$A:$A,'RIO DA CAIXA'!$C32,CPU!$H:$H,"mdo")+SUMIF('Comp SINAPI BA 07-2025 Onerado'!B:B,'RIO DA CAIXA'!C32,'Comp SINAPI BA 07-2025 Onerado'!E:E)+SUMIF('Ins SINAPI BA 07-2025 Onerado'!B:B,'RIO DA CAIXA'!C32,'Ins SINAPI BA 07-2025 Onerado'!F:F)),2) -> 21.24 | H32: =TRUNC(G32*(1+$H$5),2) -> 26.16 | I32: =TRUNC(F32*H32,2) -> 4630.32
A33: 4.1.2 | B33: PRÓPRIA | C33: CPU.22 | D33: =(VLOOKUP(C33,CPU!B16:C332,2,0)) -> Limpeza da superfície | E33: =(VLOOKUP(C33,CPU!B2:D$432,3,0)) -> m2 | F33: 177 | G33: =TRUNC((1-$H$9)*(SUMIFS(CPU!$G:$G,CPU!$A:$A,'RIO DA CAIXA'!$C33,CPU!$H:$H,"ss")+SUMIFS(CPU!$G:$G,CPU!$A:$A,'RIO DA CAIXA'!$C33,CPU!$H:$H,"mdo")+SUMIF('Comp SINAPI BA 07-2025 Onerado'!B:B,'RIO DA CAIXA'!C33,'Comp SINAPI BA 07-2025 Onerado'!E:E)+SUMIF('Ins SINAPI BA 07-2025 Onerado'!B:B,'RIO DA CAIXA'!C33,'Ins SINAPI BA 07-2025 Onerado'!F:F)),2) -> 3.85 | H33: =TRUNC(G33*(1+$H$5),2) -> 4.74 | I33: =TRUNC(F33*H33,2) -> 838.98
A34: 4.1.3 | B34: PRÓPRIA | C34: CPU.15 | D34: =(VLOOKUP(C34,CPU!B17:C333,2,0)) -> Selagem de fissuras com resina epóxi | E34: =(VLOOKUP(C34,CPU!B3:D$432,3,0)) -> m | F34: 50 | G34: =TRUNC((1-$H$9)*(SUMIFS(CPU!$G:$G,CPU!$A:$A,'RIO DA CAIXA'!$C34,CPU!$H:$H,"ss")+SUMIFS(CPU!$G:$G,CPU!$A:$A,'RIO DA CAIXA'!$C34,CPU!$H:$H,"mdo")+SUMIF('Comp SINAPI BA 07-2025 Onerado'!B:B,'RIO DA CAIXA'!C34,'Comp SINAPI BA 07-2025 Onerado'!E:E)+SUMIF('Ins SINAPI BA 07-2025 Onerado'!B:B,'RIO DA CAIXA'!C34,'Ins SINAPI BA 07-2025 Onerado'!F:F)),2) -> 25.82 | H34: =TRUNC(G34*(1+$H$5),2) -> 31.81 | I34: =TRUNC(F34*H34,2) -> 1590.5
A35: 4.1.4 | B35: PRÓPRIA | C35: CPU.23 | D35: =(VLOOKUP(C35,CPU!B18:C334,2,0)) -> Revestimento com argamassa | E35: =(VLOOKUP(C35,CPU!B4:D$432,3,0)) -> m2 | F35: 177 | G35: =TRUNC((1-$H$9)*(SUMIFS(CPU!$G:$G,CPU!$A:$A,'RIO DA CAIXA'!$C35,CPU!$H:$H,"ss")+SUMIFS(CPU!$G:$G,CPU!$A:$A,'RIO DA CAIXA'!$C35,CPU!$H:$H,"mdo")+SUMIF('Comp SINAPI BA 07-2025 Onerado'!B:B,'RIO DA CAIXA'!C35,'Comp SINAPI BA 07-2025 Onerado'!E:E)+SUMIF('Ins SINAPI BA 07-2025 Onerado'!B:B,'RIO DA CAIXA'!C35,'Ins SINAPI BA 07-2025 Onerado'!F:F)),2) -> 87.65 | H35: =TRUNC(G35*(1+$H$5),2) -> 107.99 | I35: =TRUNC(F35*H35,2) -> 19114.23
A36: 4.2 | D36: Recuperação do Paramento de Montante | I36: =SUM(I37:I38) -> 34111.5
A37: 4.2.1 | B37: PRÓPRIA | C37: CPU.22 | D37: =(VLOOKUP(C37,CPU!B10:C326,2,0)) -> Limpeza da superfície | E37: =(VLOOKUP(C37,CPU!B10:D326,3,0)) -> m2 | F37: 531 | G37: =TRUNC((1-$H$9)*(SUMIFS(CPU!$G:$G,CPU!$A:$A,'RIO DA CAIXA'!$C37,CPU!$H:$H,"ss")+SUMIFS(CPU!$G:$G,CPU!$A:$A,'RIO DA CAIXA'!$C37,CPU!$H:$H,"mdo")+SUMIF('Comp SINAPI BA 07-2025 Onerado'!B:B,'RIO DA CAIXA'!C37,'Comp SINAPI BA 07-2025 Onerado'!E:E)+SUMIF('Ins SINAPI BA 07-2025 Onerado'!B:B,'RIO DA CAIXA'!C37,'Ins SINAPI BA 07-2025 Onerado'!F:F)),2) -> 3.85 | H37: =TRUNC(G37*(1+$H$5),2) -> 4.74 | I37: =TRUNC(F37*H37,2) -> 2516.94
A38: 4.2.2 | B38: PRÓPRIA | C38: CPU.24 | D38: =(VLOOKUP(C38,CPU!B14:C330,2,0)) -> Concreto projetado c/ aditivo impermeabilizante | E38: =(VLOOKUP(C38,CPU!B14:D330,3,0)) -> m3 | F38: 16 | G38: =TRUNC((1-$H$9)*(SUMIFS(CPU!$G:$G,CPU!$A:$A,'RIO DA CAIXA'!$C38,CPU!$H:$H,"ss")+SUMIFS(CPU!$G:$G,CPU!$A:$A,'RIO DA CAIXA'!$C38,CPU!$H:$H,"mdo")+SUMIF('Comp SINAPI BA 07-2025 Onerado'!B:B,'RIO DA CAIXA'!C38,'Comp SINAPI BA 07-2025 Onerado'!E:E)+SUMIF('Ins SINAPI BA 07-2025 Onerado'!B:B,'RIO DA CAIXA'!C38,'Ins SINAPI BA 07-2025 Onerado'!F:F)),2) -> 1602.68 | H38: =TRUNC(G38*(1+$H$5),2) -> 1974.66 | I38: =TRUNC(F38*H38,2) -> 31594.56
A39: 4.3 | D39: Recuperação do Paramento de Jusante | I39: =SUM(I40:I42) -> 99235.69
A40: 4.3.1 | B40: PRÓPRIA | C40: CPU.21 | D40: =(VLOOKUP(C40,CPU!B23:C339,2,0)) -> Apicoamento da superfície | E40: =(VLOOKUP(C40,CPU!B23:D431,3,0)) -> m2 | F40: 246.9 | G40: =TRUNC((1-$H$9)*(SUMIFS(CPU!$G:$G,CPU!$A:$A,'RIO DA CAIXA'!$C40,CPU!$H:$H,"ss")+SUMIFS(CPU!$G:$G,CPU!$A:$A,'RIO DA CAIXA'!$C40,CPU!$H:$H,"mdo")+SUMIF('Comp SINAPI BA 07-2025 Onerado'!B:B,'RIO DA CAIXA'!C40,'Comp SINAPI BA 07-2025 Onerado'!E:E)+SUMIF('Ins SINAPI BA 07-2025 Onerado'!B:B,'RIO DA CAIXA'!C40,'Ins SINAPI BA 07-2025 Onerado'!F:F)),2) -> 21.24 | H40: =TRUNC(G40*(1+$H$5),2) -> 26.16 | I40: =TRUNC(F40*H40,2) -> 6458.9
A41: 4.3.2 | B41: PRÓPRIA | C41: CPU.22 | D41: =(VLOOKUP(C41,CPU!B23:C339,2,0)) -> Limpeza da superfície | E41: =(VLOOKUP(C41,CPU!B23:D431,3,0)) -> m2 | F41: 823 | G41: =TRUNC((1-$H$9)*(SUMIFS(CPU!$G:$G,CPU!$A:$A,'RIO DA CAIXA'!$C41,CPU!$H:$H,"ss")+SUMIFS(CPU!$G:$G,CPU!$A:$A,'RIO DA CAIXA'!$C41,CPU!$H:$H,"mdo")+SUMIF('Comp SINAPI BA 07-2025 Onerado'!B:B,'RIO DA CAIXA'!C41,'Comp SINAPI BA 07-2025 Onerado'!E:E)+SUMIF('Ins SINAPI BA 07-2025 Onerado'!B:B,'RIO DA CAIXA'!C41,'Ins SINAPI BA 07-2025 Onerado'!F:F)),2) -> 3.85 | H41: =TRUNC(G41*(1+$H$5),2) -> 4.74 | I41: =TRUNC(F41*H41,2) -> 3901.02
A42: 4.3.3 | B42: PRÓPRIA | C42: CPU.23 | D42: =(VLOOKUP(C42,CPU!B24:C340,2,0)) -> Revestimento com argamassa | E42: =(VLOOKUP(C42,CPU!B24:D432,3,0)) -> m2 | F42: 823 | G42: =TRUNC((1-$H$9)*(SUMIFS(CPU!$G:$G,CPU!$A:$A,'RIO DA CAIXA'!$C42,CPU!$H:$H,"ss")+SUMIFS(CPU!$G:$G,CPU!$A:$A,'RIO DA CAIXA'!$C42,CPU!$H:$H,"mdo")+SUMIF('Comp SINAPI BA 07-2025 Onerado'!B:B,'RIO DA CAIXA'!C42,'Comp SINAPI BA 07-2025 Onerado'!E:E)+SUMIF('Ins SINAPI BA 07-2025 Onerado'!B:B,'RIO DA CAIXA'!C42,'Ins SINAPI BA 07-2025 Onerado'!F:F)),2) -> 87.65 | H42: =TRUNC(G42*(1+$H$5),2) -> 107.99 | I42: =TRUNC(F42*H42,2) -> 88875.77
A44: 5 | D44: PROTEÇÃO DE DESCALÇAMENTO DO PÉ DO VERTEDOURO | I44: =SUM(I45,I47) -> 5831.49
A45: 5.1 | D45: Bombeamento do acúmulo d'água na ombreira | I45: =SUM(I46:I46) -> 510.05
A46: 5.1.1 | B46: PRÓPRIA | C46: CPU.26 | D46: =(VLOOKUP(C46,CPU!B24:C342,2,0)) -> Bombeamento do acúmulo d'água | E46: =(VLOOKUP(C46,CPU!B24:D430,3,0)) -> dia | F46: 1 | G46: =TRUNC((1-$H$9)*(SUMIFS(CPU!$G:$G,CPU!$A:$A,'RIO DA CAIXA'!$C46,CPU!$H:$H,"ss")+SUMIFS(CPU!$G:$G,CPU!$A:$A,'RIO DA CAIXA'!$C46,CPU!$H:$H,"mdo")+SUMIF('Comp SINAPI BA 07-2025 Onerado'!B:B,'RIO DA CAIXA'!C46,'Comp SINAPI BA 07-2025 Onerado'!E:E)+SUMIF('Ins SINAPI BA 07-2025 Onerado'!B:B,'RIO DA CAIXA'!C46,'Ins SINAPI BA 07-2025 Onerado'!F:F)),2) -> 413.97 | H46: =TRUNC(G46*(1+$H$5),2) -> 510.05 | I46: =TRUNC(F46*H46,2) -> 510.05
A47: 5.2 | D47: Recuperação com Pedra argamassada | I47: =SUM(I48:I49) -> 5321.44
A48: 5.2.1 | B48: PRÓPRIA | C48: CPU.22 | D48: =(VLOOKUP(C48,CPU!B26:C344,2,0)) -> Limpeza da superfície | E48: =(VLOOKUP(C48,CPU!B26:D432,3,0)) -> m2 | F48: 6 | G48: =TRUNC((1-$H$9)*(SUMIFS(CPU!$G:$G,CPU!$A:$A,'RIO DA CAIXA'!$C48,CPU!$H:$H,"ss")+SUMIFS(CPU!$G:$G,CPU!$A:$A,'RIO DA CAIXA'!$C48,CPU!$H:$H,"mdo")+SUMIF('Comp SINAPI BA 07-2025 Onerado'!B:B,'RIO DA CAIXA'!C48,'Comp SINAPI BA 07-2025 Onerado'!E:E)+SUMIF('Ins SINAPI BA 07-2025 Onerado'!B:B,'RIO DA CAIXA'!C48,'Ins SINAPI BA 07-2025 Onerado'!F:F)),2) -> 3.85 | H48: =TRUNC(G48*(1+$H$5),2) -> 4.74 | I48: =TRUNC(F48*H48,2) -> 28.44
A49: 5.2.2 | B49: PRÓPRIA | C49: CPU.25 | D49: =(VLOOKUP(C49,CPU!B25:C343,2,0)) -> Preenchimento com uso de Pedra Argamassada | E49: =(VLOOKUP(C49,CPU!B25:D431,3,0)) -> m3 | F49: 5 | G49: =TRUNC((1-$H$9)*(SUMIFS(CPU!$G:$G,CPU!$A:$A,'RIO DA CAIXA'!$C49,CPU!$H:$H,"ss")+SUMIFS(CPU!$G:$G,CPU!$A:$A,'RIO DA CAIXA'!$C49,CPU!$H:$H,"mdo")+SUMIF('Comp SINAPI BA 07-2025 Onerado'!B:B,'RIO DA CAIXA'!C49,'Comp SINAPI BA 07-2025 Onerado'!E:E)+SUMIF('Ins SINAPI BA 07-2025 Onerado'!B:B,'RIO DA CAIXA'!C49,'Ins SINAPI BA 07-2025 Onerado'!F:F)),2) -> 859.19 | H49: =TRUNC(G49*(1+$H$5),2) -> 1058.6 | I49: =TRUNC(F49*H49,2) -> 5293
A51: 6 | D51: SERVIÇOS COMPLEMENTARES | I51: =SUM(I52) -> 5960.92
A52: 6.1 | D52: Instalação de placas de aviso | I52: =SUM(I53:I54) -> 5960.92
A53: 6.1.1 | B53: SINAPI | C53: 103689 | D53: =IF(J53="ca",VLOOKUP(C53,'Comp SINAPI BA 07-2025 Onerado'!$B$11:$C$9004,2,0),VLOOKUP(C53,'Ins SINAPI BA 07-2025 Onerado'!$B$10:$C$9004,2,0)) -> FORNECIMENTO E INSTALAÇÃO DE PLACA DE OBRA COM CHAPA GALVANIZADA E ESTRUTURA DE MADEIRA. AF_03/2022_PS | E53: =IF(J53="ca",VLOOKUP(C53,'Comp SINAPI BA 07-2025 Onerado'!$B$11:$D$9004,3,0),VLOOKUP(C53,'Ins SINAPI BA 07-2025 Onerado'!$B$11:$D$9004,3,0)) -> M2 | F53: 4 | G53: =TRUNC((1-$H$9)*(SUMIFS(CPU!$G:$G,CPU!$A:$A,'RIO DA CAIXA'!$C53,CPU!$H:$H,"ss")+SUMIFS(CPU!$G:$G,CPU!$A:$A,'RIO DA CAIXA'!$C53,CPU!$H:$H,"mdo")+SUMIF('Comp SINAPI BA 07-2025 Onerado'!B:B,'RIO DA CAIXA'!C53,'Comp SINAPI BA 07-2025 Onerado'!E:E)+SUMIF('Ins SINAPI BA 07-2025 Onerado'!B:B,'RIO DA CAIXA'!C53,'Ins SINAPI BA 07-2025 Onerado'!F:F)),2) -> 446.52 | H53: =TRUNC(G53*(1+$H$5),2) -> 550.15 | I53: =TRUNC(F53*H53,2) -> 2200.6 | J53: ca
A54: 6.1.2 | B54: PRÓPRIA | C54: CPU.19 | D54: =(VLOOKUP(C54,CPU!B34:C352,2,0)) -> Régua Linimétrica Padrão “ANA”, Aço Carbono - 2 X 70 X 1000 mm (Fornecimento e Instalação) | E54: =(VLOOKUP(C54,CPU!B35:D449,3,0)) -> un | F54: 8 | G54: =TRUNC((1-$H$9)*(SUMIFS(CPU!$G:$G,CPU!$A:$A,'RIO DA CAIXA'!$C54,CPU!$H:$H,"ss")+SUMIFS(CPU!$G:$G,CPU!$A:$A,'RIO DA CAIXA'!$C54,CPU!$H:$H,"mdo")+SUMIF('Comp SINAPI BA 07-2025 Onerado'!B:B,'RIO DA CAIXA'!C54,'Comp SINAPI BA 07-2025 Onerado'!E:E)+SUMIF('Ins SINAPI BA 07-2025 Onerado'!B:B,'RIO DA CAIXA'!C54,'Ins SINAPI BA 07-2025 Onerado'!F:F)),2) -> 381.5 | H54: =TRUNC(G54*(1+$H$5),2) -> 470.04 | I54: =TRUNC(F54*H54,2) -> 3760.32
A56: 7 | D56: PROJETO "AS IS" | I56: =SUM(I57) -> 13174.21
A57: 7.1 | D57: Levantamento topográfico e "AS IS" | I57: =SUM(I58:I59) -> 13174.21
A58: 7.1.1 | B58: ORSE | C58: 9346 | D58: Levantamento topográfico planimétrico cadastral | E58: m2 | F58: =F27 -> 5500 | G58: =TRUNC((1-$H$9)*0.35,2) -> 0.35 | H58: =TRUNC(G58*(1+$H$5),2) -> 0.43 | I58: =TRUNC(F58*H58,2) -> 2365
A59: 7.1.2 | B59: PRÓPRIA | C59: CPU.12 | D59: =(VLOOKUP(C59,CPU!B43:C360,2,0)) -> Projeto geométrico | E59: =(VLOOKUP(C59,CPU!B41:D455,3,0)) -> un | F59: 1 | G59: =TRUNC((1-$H$9)*(SUMIFS(CPU!$G:$G,CPU!$A:$A,'RIO DA CAIXA'!$C59,CPU!$H:$H,"ss")+SUMIFS(CPU!$G:$G,CPU!$A:$A,'RIO DA CAIXA'!$C59,CPU!$H:$H,"mdo")+SUMIF('Comp SINAPI BA 07-2025 Onerado'!B:B,'RIO DA CAIXA'!C59,'Comp SINAPI BA 07-2025 Onerado'!E:E)+SUMIF('Ins SINAPI BA 07-2025 Onerado'!B:B,'RIO DA CAIXA'!C59,'Ins SINAPI BA 07-2025 Onerado'!F:F)),2) -> 8773 | H59: =TRUNC(G59*(1+$H$5),2) -> 10809.21 | I59: =TRUNC(F59*H59,2) -> 10809.21
A61: 8 | D61: FISCALIZAÇÃO E ACOMPANHAMENTO | I61: =SUM(I62) -> 1071.05
A62: 8.1 | D62: Disponibilidade de veículo para apoio a fiscalização | I62: =SUM(I63) -> 1071.05
A63: 8.1.1 | B63: PRÓPRIA | C63: CPU.14 | D63: =(VLOOKUP(C63,CPU!B47:C364,2,0)) -> Disponibilidade de veículo para apoio a fiscalização, inclusive combustível | E63: =(VLOOKUP(C63,CPU!B46:D459,3,0)) -> un | F63: =F15+2 -> 5 | G63: =TRUNC((1-$H$9)*(SUMIFS(CPU!$G:$G,CPU!$A:$A,'RIO DA CAIXA'!$C63,CPU!$H:$H,"ss")+SUMIFS(CPU!$G:$G,CPU!$A:$A,'RIO DA CAIXA'!$C63,CPU!$H:$H,"mdo")+SUMIF('Comp SINAPI BA 07-2025 Onerado'!B:B,'RIO DA CAIXA'!C63,'Comp SINAPI BA 07-2025 Onerado'!E:E)+SUMIF('Ins SINAPI BA 07-2025 Onerado'!B:B,'RIO DA CAIXA'!C63,'Ins SINAPI BA 07-2025 Onerado'!F:F)),2) -> 173.86 | H63: =TRUNC(G63*(1+$H$5),2) -> 214.21 | I63: =TRUNC(F63*H63,2) -> 1071.05
D65: TOTAL (Custo): | I65: =TRUNC(SUMPRODUCT(F14:F63,G14:G63),2) -> 278300.34
D66: BDI e Encargos Sociais: | I66: =I67-I65 -> 64563.16
D67: TOTAL GERAL COM BDI: | I67: =SUM(I13,I17,I25,I30,I44,I51,I56,I61) -> 342863.5 | L67: =TRUNC(SUMPRODUCT(F14:F63,H14:H63),2) -> 342863.5

Sheet BAIXÃO DO CECÍLIO
A1: Ministério da Integração e do Desenvolvimento Regional
A2: Companhia de Desenvolvimento dos Vales do São Francisco e do Parnaíba
A4: PLANILHA ORÇAMENTÁRIA - ORÇAMENTO NÃO DESONERADO
A5: OBRA: | B5: Execução de manutenção e recuperação nas barragens de Macaúbas, Rio da Caixa e Baixão do Cecílio, localizadas no estado da Bahia. | G5: BDI (serv.): | H5: ='BDI serv'!D23 -> 0.2321 | I5: Bancos de dados:
A6: LOCAL: | B6: Buritirama - BA | G6: BDI (forn.): | H6: ='BDI forn'!D23 -> 0.1469 | I6: =Resumo!G6 -> JUL/25 - SINAPI
A7: DATA BASE: | B7: =Resumo!B7 -> 2025-09-01 | E7: Encargos sociais - Horistas: | H7: ='Encargos Sociais'!E49 -> 1.1557 | I7: =Resumo!G7 -> MAI/25 - ORSE
A8: PRAZO: | B8: 90 dias | E8: Encargos sociais - Mensalista: | H8: ='Encargos Sociais'!F49 -> 0.7129 | I8: =Resumo!G8 -> AGO/25 - SBC
B9: Baixão do Cecílio | G9: Desconto: | H9: 0 | I9: =Resumo!G9 -> ABR/2025 - SICRO
I10: =Resumo!G10 -> JUN/25 - EMBASA
A11: ITEM | B11: REFERÊNCIA | D11: DESCRIÇÃO | E11: UNID. | F11: QUANT. | G11: CUSTO UNITÁRIO | H11: PREÇO UNITÁRIO | I11: PREÇO TOTAL
B12: FONTE | C12: CÓDIGO
A13: 1 | D13: ADMINISTRAÇÃO DA OBRA | I13: =SUM(I14) -> 109766.52
A14: 1.1 | D14: Administração da Obra | I14: =SUM(I15:I15) -> 109766.52
A15: 1.1.1 | B15: PRÓPRIA | C15: CPU.01 | D15: =(VLOOKUP(C15,CPU!B1:C317,2,0)) -> Administração Local | E15: =(VLOOKUP(C15,CPU!B2:D$432,3,0)) -> mês | F15: 3 | G15: =TRUNC((1-$H$9)*(SUMIFS(CPU!$G:$G,CPU!$A:$A,'BAIXÃO DO CECÍLIO'!$C15,CPU!$H:$H,"ss")+SUMIFS(CPU!$G:$G,CPU!$A:$A,'BAIXÃO DO CECÍLIO'!$C15,CPU!$H:$H,"mdo")+SUMIF('Comp SINAPI BA 07-2025 Onerado'!B:B,'BAIXÃO DO CECÍLIO'!C15,'Comp SINAPI BA 07-2025 Onerado'!E:E)+SUMIF('Ins SINAPI BA 07-2025 Onerado'!B:B,'BAIXÃO DO CECÍLIO'!C15,'Ins SINAPI BA 07-2025 Onerado'!F:F)),2) -> 29696.33 | H15: =TRUNC(G15*(1+$H$5),2) -> 36588.84 | I15: =TRUNC(F15*H15,2) -> 109766.52
A17: 2 | D17: SERVIÇOS PRELIMINARES | I17: =SUM(I18,I20,I22) -> 26422.19
A18: 2.1 | D18: Mobilização e desmobilização | I18: =SUM(I19) -> 912.78
A19: 2.1.1 | B19: PRÓPRIA | C19: CPU.02 | D19: =(VLOOKUP(C19,CPU!B5:C321,2,0)) -> Mobilização e desmobilização de instalação do canteiro | E19: =(VLOOKUP(C19,CPU!B2:D$432,3,0)) -> un | F19: 1 | G19: =TRUNC((1-$H$9)*(SUMIFS(CPU!$G:$G,CPU!$A:$A,'BAIXÃO DO CECÍLIO'!$C19,CPU!$H:$H,"ss")+SUMIFS(CPU!$G:$G,CPU!$A:$A,'BAIXÃO DO CECÍLIO'!$C19,CPU!$H:$H,"mdo")+SUMIF('Comp SINAPI BA 07-2025 Onerado'!B:B,'BAIXÃO DO CECÍLIO'!C19,'Comp SINAPI BA 07-2025 Onerado'!E:E)+SUMIF('Ins SINAPI BA 07-2025 Onerado'!B:B,'BAIXÃO DO CECÍLIO'!C19,'Ins SINAPI BA 07-2025 Onerado'!F:F)),2) -> 740.84 | H19: =TRUNC(G19*(1+$H$5),2) -> 912.78 | I19: =TRUNC(F19*H19,2) -> 912.78
A20: 2.2 | D20: Canteiro de obras | I20: =SUM(I21) -> 24409.11
A21: 2.2.1 | B21: PRÓPRIA | C21: CPU.03 | D21: =(VLOOKUP(C21,CPU!B7:C323,2,0)) -> Execução de canteiro de obras, inclusive, limpeza, refeitório, sanitários e central de formas | E21: =(VLOOKUP(C21,CPU!B2:D$432,3,0)) -> m2 | F21: 28.5 | G21: =TRUNC((1-$H$9)*(SUMIFS(CPU!$G:$G,CPU!$A:$A,'BAIXÃO DO CECÍLIO'!$C21,CPU!$H:$H,"ss")+SUMIFS(CPU!$G:$G,CPU!$A:$A,'BAIXÃO DO CECÍLIO'!$C21,CPU!$H:$H,"mdo")+SUMIF('Comp SINAPI BA 07-2025 Onerado'!B:B,'BAIXÃO DO CECÍLIO'!C21,'Comp SINAPI BA 07-2025 Onerado'!E:E)+SUMIF('Ins SINAPI BA 07-2025 Onerado'!B:B,'BAIXÃO DO CECÍLIO'!C21,'Ins SINAPI BA 07-2025 Onerado'!F:F)),2) -> 695.13 | H21: =TRUNC(G21*(1+$H$5),2) -> 856.46 | I21: =TRUNC(F21*H21,2) -> 24409.11
A22: 2.3 | D22: Sinalização | I22: =SUM(I23:I23) -> 1100.3
A23: 2.3.1 | B23: SINAPI | C23: 103689 | D23: =IF(J23="ca",VLOOKUP(C23,'Comp SINAPI BA 07-2025 Onerado'!$B$11:$C$9004,2,0),VLOOKUP(C23,'Ins SINAPI BA 07-2025 Onerado'!$B$10:$C$9004,2,0)) -> FORNECIMENTO E INSTALAÇÃO DE PLACA DE OBRA COM CHAPA GALVANIZADA E ESTRUTURA DE MADEIRA. AF_03/2022_PS | E23: =IF(J23="ca",VLOOKUP(C23,'Comp SINAPI BA 07-2025 Onerado'!$B$11:$D$9004,3,0),VLOOKUP(C23,'Ins SINAPI BA 07-2025 Onerado'!$B$11:$D$9004,3,0)) -> M2 | F23: 2 | G23: =TRUNC((1-$H$9)*(SUMIFS(CPU!$G:$G,CPU!$A:$A,'BAIXÃO DO CECÍLIO'!$C23,CPU!$H:$H,"ss")+SUMIFS(CPU!$G:$G,CPU!$A:$A,'BAIXÃO DO CECÍLIO'!$C23,CPU!$H:$H,"mdo")+SUMIF('Comp SINAPI BA 07-2025 Onerado'!B:B,'BAIXÃO DO CECÍLIO'!C23,'Comp SINAPI BA 07-2025 Onerado'!E:E)+SUMIF('Ins SINAPI BA 07-2025 Onerado'!B:B,'BAIXÃO DO CECÍLIO'!C23,'Ins SINAPI BA 07-2025 Onerado'!F:F)),2) -> 446.52 | H23: =TRUNC(G23*(1+$H$5),2) -> 550.15 | I23: =TRUNC(F23*H23,2) -> 1100.3 | J23: ca
A25: 3 | D25: CORTE DA VEGETAÇÃO E REMOÇÃO DAS RAIZES | I25: =SUM(I26) -> 34542.2
A26: 3.1 | D26: Remoção da vegetação | I26: =SUM(I27:I28) -> 34542.2
A27: 3.1.1 | B27: PRÓPRIA | C27: CPU.04 | D27: =(VLOOKUP(C27,CPU!B13:C329,2,0)) -> Limpeza de vegetação | E27: =(VLOOKUP(C27,CPU!B2:D$432,3,0)) -> m2 | F27: 6194 | G27: =TRUNC((1-$H$9)*(SUMIFS(CPU!$G:$G,CPU!$A:$A,'BAIXÃO DO CECÍLIO'!$C27,CPU!$H:$H,"ss")+SUMIFS(CPU!$G:$G,CPU!$A:$A,'BAIXÃO DO CECÍLIO'!$C27,CPU!$H:$H,"mdo")+SUMIF('Comp SINAPI BA 07-2025 Onerado'!B:B,'BAIXÃO DO CECÍLIO'!C27,'Comp SINAPI BA 07-2025 Onerado'!E:E)+SUMIF('Ins SINAPI BA 07-2025 Onerado'!B:B,'BAIXÃO DO CECÍLIO'!C27,'Ins SINAPI BA 07-2025 Onerado'!F:F)),2) -> 1.3 | H27: =TRUNC(G27*(1+$H$5),2) -> 1.6 | I27: =TRUNC(F27*H27,2) -> 9910.4
A28: 3.1.2 | B28: PRÓPRIA | C28: CPU.05 | D28: =(VLOOKUP(C28,CPU!B14:C330,2,0)) -> Corte de tronco e remoção de raiz | E28: =(VLOOKUP(C28,CPU!B3:D$432,3,0)) -> un | F28: 60 | G28: =TRUNC((1-$H$9)*(SUMIFS(CPU!$G:$G,CPU!$A:$A,'BAIXÃO DO CECÍLIO'!$C28,CPU!$H:$H,"ss")+SUMIFS(CPU!$G:$G,CPU!$A:$A,'BAIXÃO DO CECÍLIO'!$C28,CPU!$H:$H,"mdo")+SUMIF('Comp SINAPI BA 07-2025 Onerado'!B:B,'BAIXÃO DO CECÍLIO'!C28,'Comp SINAPI BA 07-2025 Onerado'!E:E)+SUMIF('Ins SINAPI BA 07-2025 Onerado'!B:B,'BAIXÃO DO CECÍLIO'!C28,'Ins SINAPI BA 07-2025 Onerado'!F:F)),2) -> 333.2 | H28: =TRUNC(G28*(1+$H$5),2) -> 410.53 | I28: =TRUNC(F28*H28,2) -> 24631.8
A30: 4 | D30: RECUPERAÇÃO DO MACIÇO | I30: =SUM(I31,I33,I35) -> 6263.77
A31: 4.1 | D31: Recomposição das Erosões (erosões e buracos nas ombreiras e taludes) | I31: =SUM(I32:I32) -> 4331.2
A32: 4.1.1 | B32: PRÓPRIA | C32: CPU.09 | D32: =(VLOOKUP(C32,CPU!B15:C331,2,0)) -> Recomposição das erosões, inclusive, regularização da superfície e reaterro | E32: =(VLOOKUP(C32,CPU!B1:D$432,3,0)) -> m3 | F32: 16 | G32: =TRUNC((1-$H$9)*(SUMIFS(CPU!$G:$G,CPU!$A:$A,'BAIXÃO DO CECÍLIO'!$C32,CPU!$H:$H,"ss")+SUMIFS(CPU!$G:$G,CPU!$A:$A,'BAIXÃO DO CECÍLIO'!$C32,CPU!$H:$H,"mdo")+SUMIF('Comp SINAPI BA 07-2025 Onerado'!B:B,'BAIXÃO DO CECÍLIO'!C32,'Comp SINAPI BA 07-2025 Onerado'!E:E)+SUMIF('Ins SINAPI BA 07-2025 Onerado'!B:B,'BAIXÃO DO CECÍLIO'!C32,'Ins SINAPI BA 07-2025 Onerado'!F:F)),2) -> 219.71 | H32: =TRUNC(G32*(1+$H$5),2) -> 270.7 | I32: =TRUNC(F32*H32,2) -> 4331.2
A33: 4.2 | D33: Fechamento de tocas de animais | I33: =SUM(I34:I34) -> 244.41
A34: 4.2.1 | B34: PRÓPRIA | C34: CPU.17 | D34: =(VLOOKUP(C34,CPU!B17:C333,2,0)) -> Injeção de nata de cimento em buracos | E34: =(VLOOKUP(C34,CPU!B3:D$432,3,0)) -> m3 | F34: 0.2 | G34: =TRUNC((1-$H$9)*(SUMIFS(CPU!$G:$G,CPU!$A:$A,'BAIXÃO DO CECÍLIO'!$C34,CPU!$H:$H,"ss")+SUMIFS(CPU!$G:$G,CPU!$A:$A,'BAIXÃO DO CECÍLIO'!$C34,CPU!$H:$H,"mdo")+SUMIF('Comp SINAPI BA 07-2025 Onerado'!B:B,'BAIXÃO DO CECÍLIO'!C34,'Comp SINAPI BA 07-2025 Onerado'!E:E)+SUMIF('Ins SINAPI BA 07-2025 Onerado'!B:B,'BAIXÃO DO CECÍLIO'!C34,'Ins SINAPI BA 07-2025 Onerado'!F:F)),2) -> 991.88 | H34: =TRUNC(G34*(1+$H$5),2) -> 1222.09 | I34: =TRUNC(F34*H34,2) -> 244.41
A35: 4.3 | D35: Recuparação da crista | I35: =SUM(I36:I36) -> 1688.16
A36: 4.3.1 | B36: PRÓPRIA | C36: CPU.27 | D36: =(VLOOKUP(C36,CPU!B19:C335,2,0)) -> Recuperação com escavação e reaterro de aberturas na crista (Rachaduras, trincas e burcacos (Sinkholes)) | E36: =(VLOOKUP(C36,CPU!B5:D$432,3,0)) -> m3 | F36: 4 | G36: =TRUNC((1-$H$9)*(SUMIFS(CPU!$G:$G,CPU!$A:$A,'BAIXÃO DO CECÍLIO'!$C36,CPU!$H:$H,"ss")+SUMIFS(CPU!$G:$G,CPU!$A:$A,'BAIXÃO DO CECÍLIO'!$C36,CPU!$H:$H,"mdo")+SUMIF('Comp SINAPI BA 07-2025 Onerado'!B:B,'BAIXÃO DO CECÍLIO'!C36,'Comp SINAPI BA 07-2025 Onerado'!E:E)+SUMIF('Ins SINAPI BA 07-2025 Onerado'!B:B,'BAIXÃO DO CECÍLIO'!C36,'Ins SINAPI BA 07-2025 Onerado'!F:F)),2) -> 342.54 | H36: =TRUNC(G36*(1+$H$5),2) -> 422.04 | I36: =TRUNC(F36*H36,2) -> 1688.16
A38: 5 | D38: REGULARIZAÇÃO E PAVIMENTAÇÃO DA CRISTA | I38: =SUM(I39,I41,I45) -> 39212.86
A39: 5.1 | D39: Limpeza e Regularização da Crista | I39: =SUM(I40) -> 1553.58
A40: 5.1.1 | B40: PRÓPRIA | C40: CPU.10 | D40: =(VLOOKUP(C40,CPU!B22:C338,2,0)) -> Regularização e compactação da crista | E40: =(VLOOKUP(C40,CPU!B8:D$432,3,0)) -> m2 | F40: 378 | G40: =TRUNC((1-$H$9)*(SUMIFS(CPU!$G:$G,CPU!$A:$A,'BAIXÃO DO CECÍLIO'!$C40,CPU!$H:$H,"ss")+SUMIFS(CPU!$G:$G,CPU!$A:$A,'BAIXÃO DO CECÍLIO'!$C40,CPU!$H:$H,"mdo")+SUMIF('Comp SINAPI BA 07-2025 Onerado'!B:B,'BAIXÃO DO CECÍLIO'!C40,'Comp SINAPI BA 07-2025 Onerado'!E:E)+SUMIF('Ins SINAPI BA 07-2025 Onerado'!B:B,'BAIXÃO DO CECÍLIO'!C40,'Ins SINAPI BA 07-2025 Onerado'!F:F)),2) -> 3.34 | H40: =TRUNC(G40*(1+$H$5),2) -> 4.11 | I40: =TRUNC(F40*H40,2) -> 1553.58
A41: 5.2 | D41: Instalação de meio-fio em ambos os lados da crista | I41: =SUM(I42:I44) -> 19280.2
A42: 5.2.1 | B42: PRÓPRIA | C42: CPU.13 | D42: =(VLOOKUP(C42,CPU!B23:C339,2,0)) -> Fornecimento e Assentamento de Guia (meio-fio) Pré-fabricado, dimensões 100X15X13X30 Cm (Comprimento X Base Inferior X Base Superior X Altura) | E42: =(VLOOKUP(C42,CPU!B9:D$432,3,0)) -> m | F42: 252 | G42: =TRUNC((1-$H$9)*(SUMIFS(CPU!$G:$G,CPU!$A:$A,'BAIXÃO DO CECÍLIO'!$C42,CPU!$H:$H,"ss")+SUMIFS(CPU!$G:$G,CPU!$A:$A,'BAIXÃO DO CECÍLIO'!$C42,CPU!$H:$H,"mdo")+SUMIF('Comp SINAPI BA 07-2025 Onerado'!B:B,'BAIXÃO DO CECÍLIO'!C42,'Comp SINAPI BA 07-2025 Onerado'!E:E)+SUMIF('Ins SINAPI BA 07-2025 Onerado'!B:B,'BAIXÃO DO CECÍLIO'!C42,'Ins SINAPI BA 07-2025 Onerado'!F:F)),2) -> 54.32 | H42: =TRUNC(G42*(1+$H$5),2) -> 66.92 | I42: =TRUNC(F42*H42,2) -> 16863.84
A43: 5.2.2 | B43: PRÓPRIA | C43: CPU.07 | D43: =(VLOOKUP(C43,CPU!B24:C340,2,0)) -> Entrada para descida d’água tipo EDA 01 B | E43: =(VLOOKUP(C43,CPU!B10:D$432,3,0)) -> un | F43: 4 | G43: =TRUNC((1-$H$9)*(SUMIFS(CPU!$G:$G,CPU!$A:$A,'BAIXÃO DO CECÍLIO'!$C43,CPU!$H:$H,"ss")+SUMIFS(CPU!$G:$G,CPU!$A:$A,'BAIXÃO DO CECÍLIO'!$C43,CPU!$H:$H,"mdo")+SUMIF('Comp SINAPI BA 07-2025 Onerado'!B:B,'BAIXÃO DO CECÍLIO'!C43,'Comp SINAPI BA 07-2025 Onerado'!E:E)+SUMIF('Ins SINAPI BA 07-2025 Onerado'!B:B,'BAIXÃO DO CECÍLIO'!C43,'Ins SINAPI BA 07-2025 Onerado'!F:F)),2) -> 309.29 | H43: =TRUNC(G43*(1+$H$5),2) -> 381.07 | I43: =TRUNC(F43*H43,2) -> 1524.28
A44: 5.2.3 | B44: PRÓPRIA | C44: CPU.20 | D44: =(VLOOKUP(C44,CPU!B25:C341,2,0)) -> Pintura do meio-fio | E44: =(VLOOKUP(C44,CPU!B11:D$432,3,0)) -> m | F44: =F42 -> 252 | G44: =TRUNC((1-$H$9)*(SUMIFS(CPU!$G:$G,CPU!$A:$A,'BAIXÃO DO CECÍLIO'!$C44,CPU!$H:$H,"ss")+SUMIFS(CPU!$G:$G,CPU!$A:$A,'BAIXÃO DO CECÍLIO'!$C44,CPU!$H:$H,"mdo")+SUMIF('Comp SINAPI BA 07-2025 Onerado'!B:B,'BAIXÃO DO CECÍLIO'!C44,'Comp SINAPI BA 07-2025 Onerado'!E:E)+SUMIF('Ins SINAPI BA 07-2025 Onerado'!B:B,'BAIXÃO DO CECÍLIO'!C44,'Ins SINAPI BA 07-2025 Onerado'!F:F)),2) -> 2.88 | H44: =TRUNC(G44*(1+$H$5),2) -> 3.54 | I44: =TRUNC(F44*H44,2) -> 892.08
A45: 5.3 | D45: Pavimentação da Crista | I45: =SUM(I46:I46) -> 18379.08
A46: 5.3.1 | B46: PRÓPRIA | C46: CPU.11 | D46: =(VLOOKUP(C46,CPU!B27:C343,2,0)) -> Execução de Revestimento com BGTC | E46: =(VLOOKUP(C46,CPU!B13:D$432,3,0)) -> m3 | F46: 38 | G46: =TRUNC((1-$H$9)*(SUMIFS(CPU!$G:$G,CPU!$A:$A,'BAIXÃO DO CECÍLIO'!$C46,CPU!$H:$H,"ss")+SUMIFS(CPU!$G:$G,CPU!$A:$A,'BAIXÃO DO CECÍLIO'!$C46,CPU!$H:$H,"mdo")+SUMIF('Comp SINAPI BA 07-2025 Onerado'!B:B,'BAIXÃO DO CECÍLIO'!C46,'Comp SINAPI BA 07-2025 Onerado'!E:E)+SUMIF('Ins SINAPI BA 07-2025 Onerado'!B:B,'BAIXÃO DO CECÍLIO'!C46,'Ins SINAPI BA 07-2025 Onerado'!F:F)),2) -> 392.55 | H46: =TRUNC(G46*(1+$H$5),2) -> 483.66 | I46: =TRUNC(F46*H46,2) -> 18379.08
A48: 6 | D48: MANUTENÇÃO DO TALUDE DE MONTANTE | I48: =SUM(I49) -> 25213.74
A49: 6.1 | D49: Talude de Montante | I49: =SUM(I50:I50) -> 25213.74
A50: 6.1.1 | B50: PRÓPRIA | C50: CPU.06 | D50: =(VLOOKUP(C50,CPU!B10:C326,2,0)) -> Enrocamento c/ pedra de mão c/ fornecimento e assentamento | E50: =(VLOOKUP(C50,CPU!B10:D326,3,0)) -> m3 | F50: 83 | G50: =TRUNC((1-$H$9)*(SUMIFS(CPU!$G:$G,CPU!$A:$A,'BAIXÃO DO CECÍLIO'!$C50,CPU!$H:$H,"ss")+SUMIFS(CPU!$G:$G,CPU!$A:$A,'BAIXÃO DO CECÍLIO'!$C50,CPU!$H:$H,"mdo")+SUMIF('Comp SINAPI BA 07-2025 Onerado'!B:B,'BAIXÃO DO CECÍLIO'!C50,'Comp SINAPI BA 07-2025 Onerado'!E:E)+SUMIF('Ins SINAPI BA 07-2025 Onerado'!B:B,'BAIXÃO DO CECÍLIO'!C50,'Ins SINAPI BA 07-2025 Onerado'!F:F)),2) -> 246.56 | H50: =TRUNC(G50*(1+$H$5),2) -> 303.78 | I50: =TRUNC(F50*H50,2) -> 25213.74
A52: 7 | D52: DRENAGEM SUPERFICIAL DO TALUDE DE JUSANTE | I52: =SUM(I53) -> 5554.08
A53: 7.1 | D53: Implantação da Drenagem Superficial no talude de jusante | I53: =SUM(I54:I54) -> 5554.08
A54: 7.1.1 | B54: PRÓPRIA | C54: CPU.28 | D54: =(VLOOKUP(C54,CPU!B17:C333,2,0)) -> Canaleta meia cana de concreto (D=30cm) - Fornecimento e instalação | E54: =(VLOOKUP(C54,CPU!B17:D425,3,0)) -> m | F54: 42 | G54: =TRUNC((1-$H$9)*(SUMIFS(CPU!$G:$G,CPU!$A:$A,'BAIXÃO DO CECÍLIO'!$C54,CPU!$H:$H,"ss")+SUMIFS(CPU!$G:$G,CPU!$A:$A,'BAIXÃO DO CECÍLIO'!$C54,CPU!$H:$H,"mdo")+SUMIF('Comp SINAPI BA 07-2025 Onerado'!B:B,'BAIXÃO DO CECÍLIO'!C54,'Comp SINAPI BA 07-2025 Onerado'!E:E)+SUMIF('Ins SINAPI BA 07-2025 Onerado'!B:B,'BAIXÃO DO CECÍLIO'!C54,'Ins SINAPI BA 07-2025 Onerado'!F:F)),2) -> 107.33 | H54: =TRUNC(G54*(1+$H$5),2) -> 132.24 | I54: =TRUNC(F54*H54,2) -> 5554.08
A56: 8 | D56: PROTEÇÃO SUPERFICIAL DO TALUDE DE JUSANTE | I56: =SUM(I57,I59) -> 14138.66
A57: 8.1 | D57: Proteção vegetal | I57: =SUM(I58) -> 12008.76
A58: 8.1.1 | B58: PRÓPRIA | C58: CPU.08 | D58: =(VLOOKUP(C58,CPU!B23:C339,2,0)) -> Plantio de vegetação tipo gramínea para proteção de talude com hidrossemeadura, inclusive adubação e transporte | E58: =(VLOOKUP(C58,CPU!B23:D431,3,0)) -> m2 | F58: 1374 | G58: =TRUNC((1-$H$9)*(SUMIFS(CPU!$G:$G,CPU!$A:$A,'BAIXÃO DO CECÍLIO'!$C58,CPU!$H:$H,"ss")+SUMIFS(CPU!$G:$G,CPU!$A:$A,'BAIXÃO DO CECÍLIO'!$C58,CPU!$H:$H,"mdo")+SUMIF('Comp SINAPI BA 07-2025 Onerado'!B:B,'BAIXÃO DO CECÍLIO'!C58,'Comp SINAPI BA 07-2025 Onerado'!E:E)+SUMIF('Ins SINAPI BA 07-2025 Onerado'!B:B,'BAIXÃO DO CECÍLIO'!C58,'Ins SINAPI BA 07-2025 Onerado'!F:F)),2) -> 7.1 | H58: =TRUNC(G58*(1+$H$5),2) -> 8.74 | I58: =TRUNC(F58*H58,2) -> 12008.76
A59: 8.2 | D59: Irrigação da área de hidrossemeadura | I59: =SUM(I60) -> 2129.9
A60: 8.2.1 | B60: PRÓPRIA | C60: CPU.16 | D60: =(VLOOKUP(C60,CPU!B23:C339,2,0)) -> Irrigação - inclusive transporte | E60: =(VLOOKUP(C60,CPU!B23:D431,3,0)) -> m3 | F60: 10 | G60: =TRUNC((1-$H$9)*(SUMIFS(CPU!$G:$G,CPU!$A:$A,'BAIXÃO DO CECÍLIO'!$C60,CPU!$H:$H,"ss")+SUMIFS(CPU!$G:$G,CPU!$A:$A,'BAIXÃO DO CECÍLIO'!$C60,CPU!$H:$H,"mdo")+SUMIF('Comp SINAPI BA 07-2025 Onerado'!B:B,'BAIXÃO DO CECÍLIO'!C60,'Comp SINAPI BA 07-2025 Onerado'!E:E)+SUMIF('Ins SINAPI BA 07-2025 Onerado'!B:B,'BAIXÃO DO CECÍLIO'!C60,'Ins SINAPI BA 07-2025 Onerado'!F:F)),2) -> 172.87 | H60: =TRUNC(G60*(1+$H$5),2) -> 212.99 | I60: =TRUNC(F60*H60,2) -> 2129.9
A62: 9 | D62: RECUPERAÇÃO DO VERTEDOURO | I62: =SUM(I63) -> 1791.08
A63: 9.1 | D63: Recuperação do vertedouro | I63: =SUM(I64:I66) -> 1791.08
A64: 9.1.1 | B64: PRÓPRIA | C64: CPU.21 | D64: =(VLOOKUP(C64,CPU!B24:C342,2,0)) -> Apicoamento da superfície | E64: =(VLOOKUP(C64,CPU!B24:D430,3,0)) -> m2 | F64: 18 | G64: =TRUNC((1-$H$9)*(SUMIFS(CPU!$G:$G,CPU!$A:$A,'BAIXÃO DO CECÍLIO'!$C64,CPU!$H:$H,"ss")+SUMIFS(CPU!$G:$G,CPU!$A:$A,'BAIXÃO DO CECÍLIO'!$C64,CPU!$H:$H,"mdo")+SUMIF('Comp SINAPI BA 07-2025 Onerado'!B:B,'BAIXÃO DO CECÍLIO'!C64,'Comp SINAPI BA 07-2025 Onerado'!E:E)+SUMIF('Ins SINAPI BA 07-2025 Onerado'!B:B,'BAIXÃO DO CECÍLIO'!C64,'Ins SINAPI BA 07-2025 Onerado'!F:F)),2) -> 21.24 | H64: =TRUNC(G64*(1+$H$5),2) -> 26.16 | I64: =TRUNC(F64*H64,2) -> 470.88
A65: 9.1.2 | B65: PRÓPRIA | C65: CPU.22 | D65: =(VLOOKUP(C65,CPU!B26:C344,2,0)) -> Limpeza da superfície | E65: =(VLOOKUP(C65,CPU!B26:D432,3,0)) -> m2 | F65: 60 | G65: =TRUNC((1-$H$9)*(SUMIFS(CPU!$G:$G,CPU!$A:$A,'BAIXÃO DO CECÍLIO'!$C65,CPU!$H:$H,"ss")+SUMIFS(CPU!$G:$G,CPU!$A:$A,'BAIXÃO DO CECÍLIO'!$C65,CPU!$H:$H,"mdo")+SUMIF('Comp SINAPI BA 07-2025 Onerado'!B:B,'BAIXÃO DO CECÍLIO'!C65,'Comp SINAPI BA 07-2025 Onerado'!E:E)+SUMIF('Ins SINAPI BA 07-2025 Onerado'!B:B,'BAIXÃO DO CECÍLIO'!C65,'Ins SINAPI BA 07-2025 Onerado'!F:F)),2) -> 3.85 | H65: =TRUNC(G65*(1+$H$5),2) -> 4.74 | I65: =TRUNC(F65*H65,2) -> 284.4
A66: 9.1.3 | B66: PRÓPRIA | C66: CPU.18 | D66: =(VLOOKUP(C66,CPU!B25:C343,2,0)) -> Recuperação com uso de argamassa | E66: =(VLOOKUP(C66,CPU!B25:D431,3,0)) -> m3 | F66: 0.5 | G66: =TRUNC((1-$H$9)*(SUMIFS(CPU!$G:$G,CPU!$A:$A,'BAIXÃO DO CECÍLIO'!$C66,CPU!$H:$H,"ss")+SUMIFS(CPU!$G:$G,CPU!$A:$A,'BAIXÃO DO CECÍLIO'!$C66,CPU!$H:$H,"mdo")+SUMIF('Comp SINAPI BA 07-2025 Onerado'!B:B,'BAIXÃO DO CECÍLIO'!C66,'Comp SINAPI BA 07-2025 Onerado'!E:E)+SUMIF('Ins SINAPI BA 07-2025 Onerado'!B:B,'BAIXÃO DO CECÍLIO'!C66,'Ins SINAPI BA 07-2025 Onerado'!F:F)),2) -> 1681.37 | H66: =TRUNC(G66*(1+$H$5),2) -> 2071.61 | I66: =TRUNC(F66*H66,2) -> 1035.8
A68: 10 | D68: SERVIÇOS COMPLEMENTARES | I68: =SUM(I69) -> 4550.8
A69: 10.1 | D69: Instalação de placas de aviso | I69: =SUM(I70:I71) -> 4550.8
A70: 10.1.1 | B70: SINAPI | C70: 103689 | D70: =IF(J70="ca",VLOOKUP(C70,'Comp SINAPI BA 07-2025 Onerado'!$B$11:$C$9004,2,0),VLOOKUP(C70,'Ins SINAPI BA 07-2025 Onerado'!$B$10:$C$9004,2,0)) -> FORNECIMENTO E INSTALAÇÃO DE PLACA DE OBRA COM CHAPA GALVANIZADA E ESTRUTURA DE MADEIRA. AF_03/2022_PS | E70: =IF(J70="ca",VLOOKUP(C70,'Comp SINAPI BA 07-2025 Onerado'!$B$11:$D$9004,3,0),VLOOKUP(C70,'Ins SINAPI BA 07-2025 Onerado'!$B$11:$D$9004,3,0)) -> M2 | F70: 4 | G70: =TRUNC((1-$H$9)*(SUMIFS(CPU!$G:$G,CPU!$A:$A,'BAIXÃO DO CECÍLIO'!$C70,CPU!$H:$H,"ss")+SUMIFS(CPU!$G:$G,CPU!$A:$A,'BAIXÃO DO CECÍLIO'!$C70,CPU!$H:$H,"mdo")+SUMIF('Comp SINAPI BA 07-2025 Onerado'!B:B,'BAIXÃO DO CECÍLIO'!C70,'Comp SINAPI BA 07-2025 Onerado'!E:E)+SUMIF('Ins SINAPI BA 07-2025 Onerado'!B:B,'BAIXÃO DO CECÍLIO'!C70,'Ins SINAPI BA 07-2025 Onerado'!F:F)),2) -> 446.52 | H70: =TRUNC(G70*(1+$H$5),2) -> 550.15 | I70: =TRUNC(F70*H70,2) -> 2200.6 | J70: ca
A71: 10.1.2 | B71: PRÓPRIA | C71: CPU.19 | D71: =(VLOOKUP(C71,CPU!B34:C352,2,0)) -> Régua Linimétrica Padrão “ANA”, Aço Carbono - 2 X 70 X 1000 mm (Fornecimento e Instalação) | E71: =(VLOOKUP(C71,CPU!B35:D449,3,0)) -> un | F71: 5 | G71: =TRUNC((1-$H$9)*(SUMIFS(CPU!$G:$G,CPU!$A:$A,'BAIXÃO DO CECÍLIO'!$C71,CPU!$H:$H,"ss")+SUMIFS(CPU!$G:$G,CPU!$A:$A,'BAIXÃO DO CECÍLIO'!$C71,CPU!$H:$H,"mdo")+SUMIF('Comp SINAPI BA 07-2025 Onerado'!B:B,'BAIXÃO DO CECÍLIO'!C71,'Comp SINAPI BA 07-2025 Onerado'!E:E)+SUMIF('Ins SINAPI BA 07-2025 Onerado'!B:B,'BAIXÃO DO CECÍLIO'!C71,'Ins SINAPI BA 07-2025 Onerado'!F:F)),2) -> 381.5 | H71: =TRUNC(G71*(1+$H$5),2) -> 470.04 | I71: =TRUNC(F71*H71,2) -> 2350.2
A73: 11 | D73: PROJETO "AS IS" | I73: =SUM(I74) -> 13472.63
A74: 11.1 | D74: Levantamento topográfico e "AS IS" | I74: =SUM(I75:I76) -> 13472.63
A75: 11.1.1 | B75: ORSE | C75: 9346 | D75: Levantamento topográfico planimétrico cadastral | E75: m2 | F75: =F27 -> 6194 | G75: =TRUNC((1-$H$9)*0.35,2) -> 0.35 | H75: =TRUNC(G75*(1+$H$5),2) -> 0.43 | I75: =TRUNC(F75*H75,2) -> 2663.42
A76: 11.1.2 | B76: PRÓPRIA | C76: CPU.12 | D76: =(VLOOKUP(C76,CPU!B43:C360,2,0)) -> Projeto geométrico | E76: =(VLOOKUP(C76,CPU!B41:D455,3,0)) -> un | F76: 1 | G76: =TRUNC((1-$H$9)*(SUMIFS(CPU!$G:$G,CPU!$A:$A,'BAIXÃO DO CECÍLIO'!$C76,CPU!$H:$H,"ss")+SUMIFS(CPU!$G:$G,CPU!$A:$A,'BAIXÃO DO CECÍLIO'!$C76,CPU!$H:$H,"mdo")+SUMIF('Comp SINAPI BA 07-2025 Onerado'!B:B,'BAIXÃO DO CECÍLIO'!C76,'Comp SINAPI BA 07-2025 Onerado'!E:E)+SUMIF('Ins SINAPI BA 07-2025 Onerado'!B:B,'BAIXÃO DO CECÍLIO'!C76,'Ins SINAPI BA 07-2025 Onerado'!F:F)),2) -> 8773 | H76: =TRUNC(G76*(1+$H$5),2) -> 10809.21 | I76: =TRUNC(F76*H76,2) -> 10809.21
A78: 12 | D78: FISCALIZAÇÃO E ACOMPANHAMENTO | I78: =SUM(I79) -> 1071.05
A79: 12.1 | D79: Disponibilidade de veículo para apoio a fiscalização | I79: =SUM(I80) -> 1071.05
A80: 12.1.1 | B80: PRÓPRIA | C80: CPU.14 | D80: =(VLOOKUP(C80,CPU!B47:C364,2,0)) -> Disponibilidade de veículo para apoio a fiscalização, inclusive combustível | E80: =(VLOOKUP(C80,CPU!B46:D459,3,0)) -> un | F80: =F15+2 -> 5 | G80: =TRUNC((1-$H$9)*(SUMIFS(CPU!$G:$G,CPU!$A:$A,'BAIXÃO DO CECÍLIO'!$C80,CPU!$H:$H,"ss")+SUMIFS(CPU!$G:$G,CPU!$A:$A,'BAIXÃO DO CECÍLIO'!$C80,CPU!$H:$H,"mdo")+SUMIF('Comp SINAPI BA 07-2025 Onerado'!B:B,'BAIXÃO DO CECÍLIO'!C80,'Comp SINAPI BA 07-2025 Onerado'!E:E)+SUMIF('Ins SINAPI BA 07-2025 Onerado'!B:B,'BAIXÃO DO CECÍLIO'!C80,'Ins SINAPI BA 07-2025 Onerado'!F:F)),2) -> 173.86 | H80: =TRUNC(G80*(1+$H$5),2) -> 214.21 | I80: =TRUNC(F80*H80,2) -> 1071.05
D82: TOTAL (Custo): | I82: =TRUNC(SUMPRODUCT(F14:F80,G14:G80),2) -> 228907.37
D83: BDI e Encargos Sociais: | I83: =I84-I82 -> 53092.21
D84: TOTAL GERAL COM BDI: | I84: =SUM(I13,I17,I25,I30,I38,I48,I52,I56,I62,I68,I73,I78) -> 281999.58 | L84: =TRUNC(SUMPRODUCT(F14:F80,H14:H80),2) -> 281999.59

Sheet CPU
A1: Ministério da Integração e do Desenvolvimento Regional
A2: Companhia de Desenvolvimento dos Vales do São Francisco e do Parnaíba
A4: COMPOSIÇÕES DE PREÇOS UNITÁRIOS - ORÇAMENTO NÃO DESONERADO
A5: =MACAÚBAS!A5 -> OBRA: | B5: =Resumo!B5 -> Execução de manutenção e recuperação nas barragens de Macaúbas, Rio da Caixa e Baixão do Cecílio, localizadas no estado da Bahia.
A6: =MACAÚBAS!A6 -> LOCAL: | B6: =Resumo!B6 -> Barragens da Bahia
A7: =MACAÚBAS!A7 -> DATA BASE: | B7: =Resumo!B7 -> 2025-09-01
A8: =MACAÚBAS!A8 -> PRAZO: | B8: =Resumo!B8 -> 90 dias
A9: REFERÊNCIA | B9: CÓDIGO | C9: DESCRIÇÃO | D9: UNIDADE | E9: ÍNDICE | F9: CUSTO UNITÁRIO | G9: CUSTO TOTAL
B10: CPU.01 | C10: Administração Local | D10: mês | E10: 1 | G10: =SUM(G14,G13,G12,G11) -> 29696.33 | H10: S | I10: COMENTÁRIOS
A11: =B10 -> CPU.01 | C11: MATERIAL | G11: 0 | H11: ss
A12: =B10 -> CPU.01 | C12: EQUIPAMENTOS | G12: 0 | H12: ss
A13: =B10 -> CPU.01 | C13: SERVIÇOS | G13: 0 | H13: ss
A14: =B10 -> CPU.01 | C14: MÃO DE OBRA | G14: =SUM(G15:G17) -> 29696.33 | H14: mdo
A15: SINAPI | B15: 90778 | C15: =PROPER(IF(H15="i",VLOOKUP(B15,'Ins SINAPI BA 07-2025 Onerado'!$B$11:$F$50003,2,0),VLOOKUP(B15,'Comp SINAPI BA 07-2025 Onerado'!$B$11:$C$50004,2,0))) -> Engenheiro Civil De Obra Pleno Com Encargos Complementares | D15: =IF(H15="i",VLOOKUP(B15,'Ins SINAPI BA 07-2025 Onerado'!$B$11:$F$50003,2,0),VLOOKUP(B15,'Comp SINAPI BA 07-2025 Onerado'!$B$11:$G$50004,3,0)) -> H | E15: =1.5*5*4 -> 30 | F15: =IF(H15="i",VLOOKUP(B15,'Ins SINAPI BA 07-2025 Onerado'!$B$11:$F$50003,5,0),VLOOKUP(B15,'Comp SINAPI BA 07-2025 Onerado'!$B$11:$E$50004,4,0)) -> 135.07 | G15: =TRUNC(E15*F15,2) -> 4052.1 | H15: ca
A16: SINAPI | B16: 93572 | C16: =PROPER(IF(H16="i",VLOOKUP(B16,'Ins SINAPI BA 07-2025 Onerado'!$B$11:$F$50003,2,0),VLOOKUP(B16,'Comp SINAPI BA 07-2025 Onerado'!$B$11:$C$50004,2,0))) -> Encarregado Geral De Obras Com Encargos Complementares | D16: =IF(H16="i",VLOOKUP(B16,'Ins SINAPI BA 07-2025 Onerado'!$B$11:$F$50003,2,0),VLOOKUP(B16,'Comp SINAPI BA 07-2025 Onerado'!$B$11:$G$50004,3,0)) -> MES | E16: 0.8 | F16: =IF(H16="i",VLOOKUP(B16,'Ins SINAPI BA 07-2025 Onerado'!$B$11:$F$50003,5,0),VLOOKUP(B16,'Comp SINAPI BA 07-2025 Onerado'!$B$11:$E$50004,4,0)) -> 7155.34 | G16: =TRUNC(E16*F16,2) -> 5724.27 | H16: ca
A17: EMBASA | B17: 74.13.43 | C17: VIGIA - AN | D17: MES | E17: 4 | F17: 4979.99 | G17: 19919.96 | H17: ca | I17: considerando 4 vigias intercalando em dupla na jornada de 12/36
B19: CPU.02 | C19: Mobilização e desmobilização de instalação do canteiro | D19: un | E19: 1 | G19: =SUM(G25,G24,G21,G20) -> 740.84 | H19: S | I19: mobilização e desmobilização da SR a barragem | M19: 2 dias
A20: =B19 -> CPU.02 | C20: MATERIAL | G20: 0 | H20: ss
A21: =B19 -> CPU.02 | C21: EQUIPAMENTOS | G21: =SUM(G22:G23) -> 740.84 | H21: ss
A22: PRÓPRIA | B22: CODE | C22: Veículo para serviço tipo pick-up, cabine dupla - 2.0 16V 4x4 diesel Aut. | D22: dia | E22: 2 | F22: ='CPU-VEICULO_Serviços'!$C$11 -> 216.8748526 | G22: =TRUNC(E22*F22,2) -> 433.74 | H22: ca
A23: SINAPI | B23: 100946 | C23: =PROPER(IF(H23="i",VLOOKUP(B23,'Ins SINAPI BA 07-2025 Onerado'!$B$11:$F$50003,2,0),VLOOKUP(B23,'Comp SINAPI BA 07-2025 Onerado'!$B$11:$C$50004,2,0))) -> Transporte Com Caminhão Carroceria 9T, Em Via Urbana Em Revestimento Primário (Unidade: Txkm). Af_07/2020 | D23: =IF(H23="i",VLOOKUP(B23,'Ins SINAPI BA 07-2025 Onerado'!$B$11:$F$50003,2,0),VLOOKUP(B23,'Comp SINAPI BA 07-2025 Onerado'!$B$11:$G$50004,3,0)) -> TXKM | E23: ='Memorial de cálculo'!H18 -> 123.3333333 | F23: =IF(H23="i",VLOOKUP(B23,'Ins SINAPI BA 07-2025 Onerado'!$B$11:$F$50003,5,0),VLOOKUP(B23,'Comp SINAPI BA 07-2025 Onerado'!$B$11:$E$50004,4,0)) -> 2.49 | G23: =TRUNC(E23*F23,2) -> 307.1 | H23: ca | I23: considerando 5 toneladas de carga
A24: =B19 -> CPU.02 | C24: SERVIÇOS | G24: 0 | H24: ss
A25: =B19 -> CPU.02 | C25: MÃO DE OBRA | G25: 0 | H25: mdo
B27: CPU.03 | C27: Execução de canteiro de obras, inclusive, limpeza, refeitório, sanitários e central de formas | D27: m2 | E27: 1 | G27: =SUM(G36,G30,G29,G28) -> 695.13 | H27: S
A28: =B27 -> CPU.03 | C28: MATERIAL | G28: 0 | H28: ss
A29: =B27 -> CPU.03 | C29: EQUIPAMENTOS | G29: 0 | H29: ss
A30: =B27 -> CPU.03 | C30: SERVIÇOS | G30: =SUM(G31:G35) -> 695.13 | H30: ss
A31: SINAPI | B31: 98524 | C31: =PROPER(IF(H31="i",VLOOKUP(B31,'Ins SINAPI BA 07-2025 Onerado'!$B$11:$F$50003,2,0),VLOOKUP(B31,'Comp SINAPI BA 07-2025 Onerado'!$B$11:$C$50004,2,0))) -> Limpeza Manual De Vegetação Em Terreno Com Enxada. Af_03/2024 | D31: =IF(H31="i",VLOOKUP(B31,'Ins SINAPI BA 07-2025 Onerado'!$B$11:$F$50003,2,0),VLOOKUP(B31,'Comp SINAPI BA 07-2025 Onerado'!$B$11:$G$50004,3,0)) -> M2 | E31: 1 | F31: =IF(H31="i",VLOOKUP(B31,'Ins SINAPI BA 07-2025 Onerado'!$B$11:$F$50003,5,0),VLOOKUP(B31,'Comp SINAPI BA 07-2025 Onerado'!$B$11:$E$50004,4,0)) -> 5.19 | G31: =TRUNC(E31*F31,2) -> 5.19 | H31: ca
A32: PRÓPRIA | B32: 93210-ADAPTADO | C32: ='COMPOSICÕES MODIFICADAS'!D149 -> EXECUÇÃO DE REFEITÓRIO EM CANTEIRO DE OBRA EM CHAPA DE MADEIRA COMPENSADA, NÃO INCLUSO MOBILIÁRIO E EQUIPAMENTOS. AF_02/2016 | D32: m2 | E32: ='Memorial de cálculo'!H23/'Memorial de cálculo'!H22 -> 0.2631578947 | F32: ='COMPOSICÕES MODIFICADAS'!D154 -> 593.4355726 | G32: 156.16 | H32: ca
A33: PRÓPRIA | B33: 93212-ADAPTADO | C33: EXECUÇÃO DE SANITÁRIO E VESTIÁRIO EM CANTEIRO DE OBRA EM CHAPA DE MADEIRA COMPENSADA, NÃO INCLUSO MOBILIÁRIO. AF_02/2016 | D33: m2 | E33: ='Memorial de cálculo'!H24/'Memorial de cálculo'!H22 -> 0.3157894737 | F33: ='COMPOSICÕES MODIFICADAS'!D9 -> 980.07 | G33: 309.49 | H33: ca
A34: PRÓPRIA | B34: 93583-ADAPTADO | C34: ='COMPOSICÕES MODIFICADAS'!D109 -> EXECUÇÃO DE CENTRAL DE FÔRMAS, PRODUÇÃO DE ARGAMASSA OU CONCRETO EM CANTEIRO DE OBRA, NÃO INCLUSO MOBILIÁRIO E EQUIPAMENTOS. AF_04/2016 | D34: m2 | E34: ='Memorial de cálculo'!H25/'Memorial de cálculo'!H22 -> 0.4210526316 | F34: ='COMPOSICÕES MODIFICADAS'!D114 -> 502.313164 | G34: 211.5 | H34: ca
A35: PRÓPRIA | B35: CODE | C35: Hospedagem | D35: un | E35: ='Memorial de cálculo'!D27*'Memorial de cálculo'!H27 -> 0.1394375 | F35: ='CPU HOSPEDAGEM'!$C$19 -> 91.76450758 | G35: 12.79 | H35: ca
A36: =B27 -> CPU.03 | C36: MÃO DE OBRA | G36: 0 | H36: mdo
B38: CPU.04 | C38: Limpeza de vegetação | D38: m2 | E38: 1 | G38: =SUM(G47,G41,G40,G39) -> 1.3 | H38: S
A39: =B38 -> CPU.04 | C39: MATERIAL | G39: 0 | H39: ss
A40: =B38 -> CPU.04 | C40: EQUIPAMENTOS | G40: 0 | H40: ss
A41: =B38 -> CPU.04 | C41: SERVIÇOS | G41: =SUM(G42:G46) -> 1.3 | H41: ss
A42: SINAPI | B42: 98524 | C42: =PROPER(IF(H42="i",VLOOKUP(B42,'Ins SINAPI BA 07-2025 Onerado'!$B$11:$F$50003,2,0),VLOOKUP(B42,'Comp SINAPI BA 07-2025 Onerado'!$B$11:$C$50004,2,0))) -> Limpeza Manual De Vegetação Em Terreno Com Enxada. Af_03/2024 | D42: =IF(H42="i",VLOOKUP(B42,'Ins SINAPI BA 07-2025 Onerado'!$B$11:$F$50003,2,0),VLOOKUP(B42,'Comp SINAPI BA 07-2025 Onerado'!$B$11:$G$50004,3,0)) -> M2 | E42: =1*0.1 -> 0.1 | F42: =IF(H42="i",VLOOKUP(B42,'Ins SINAPI BA 07-2025 Onerado'!$B$11:$F$50003,5,0),VLOOKUP(B42,'Comp SINAPI BA 07-2025 Onerado'!$B$11:$E$50004,4,0)) -> 5.19 | G42: =TRUNC(E42*F42,2) -> 0.51 | H42: ca | I42: 10% de roçada com enxada
A43: SICRO | B43: 4915776 | C43: Roçada com roçadeira costal | D43: ha | E43: =0.0001*0.9 -> 9e-05 | F43: 803.7 | G43: =TRUNC(E43*F43,2) -> 0.07 | H43: ca | I43: 90% de roçada com roçadeira
A44: PRÓPRIA | B44: CODE | C44: Hospedagem | D44: un | E44: ='Memorial de cálculo'!D31*'Memorial de cálculo'!H31+'Memorial de cálculo'!D32*'Memorial de cálculo'!H32 -> 0.002833333333 | F44: ='CPU HOSPEDAGEM'!C19 -> 91.76450758 | G44: 0.25 | H44: ca
A45: PRÓPRIA | B45: CODE | C45: Veículo para serviço tipo pick-up, cabine dupla - 2.0 16V 4x4 diesel Aut. | D45: dia | E45: =LARGE('Memorial de cálculo'!H31:H32,1) -> 0.00125 | F45: ='CPU-VEICULO_Serviços'!$C$11 -> 216.8748526 | G45: 0.27 | H45: ca
A46: SINAPI | B46: 93589 | C46: =PROPER(IF(H46="i",VLOOKUP(B46,'Ins SINAPI BA 07-2025 Onerado'!$B$11:$F$50003,2,0),VLOOKUP(B46,'Comp SINAPI BA 07-2025 Onerado'!$B$11:$C$50004,2,0))) -> Transporte Com Caminhão Basculante De 10 M³, Em Via Urbana Em Revestimento Primário (Unidade: M3Xkm). Af_07/2020 | D46: =IF(H46="i",VLOOKUP(B46,'Ins SINAPI BA 07-2025 Onerado'!$B$11:$F$50003,2,0),VLOOKUP(B46,'Comp SINAPI BA 07-2025 Onerado'!$B$11:$G$50004,3,0)) -> M3XKM | E46: =15*0.005 -> 0.075 | F46: =IF(H46="i",VLOOKUP(B46,'Ins SINAPI BA 07-2025 Onerado'!$B$11:$F$50003,5,0),VLOOKUP(B46,'Comp SINAPI BA 07-2025 Onerado'!$B$11:$E$50004,4,0)) -> 2.71 | G46: 0.2 | H46: ca | I46: considerando 5 mm de altura da vegetação e 15 km para bota-fora
A47: =B38 -> CPU.04 | C47: MÃO DE OBRA | G47: 0 | H47: mdo
B49: CPU.05 | C49: Corte de tronco e remoção de raiz | D49: un | E49: 1 | G49: =SUM(G60,G52,G51,G50) -> 333.2 | H49: S
A50: =B49 -> CPU.05 | C50: MATERIAL | G50: 0 | H50: ss
A51: =B49 -> CPU.05 | C51: EQUIPAMENTOS | G51: 0 | H51: ss
A52: =B49 -> CPU.05 | C52: SERVIÇOS | G52: =SUM(G53:G59) -> 333.2 | H52: ss
A53: SINAPI | B53: 98529 | C53: =PROPER(IF(H53="i",VLOOKUP(B53,'Ins SINAPI BA 07-2025 Onerado'!$B$11:$F$50003,2,0),VLOOKUP(B53,'Comp SINAPI BA 07-2025 Onerado'!$B$11:$C$50004,2,0))) -> Corte Raso E Recorte De Árvore Com Diâmetro De Tronco Maior Ou Igual A 0,20 M E Menor Que 0,40 M. Af_03/2024 | D53: =IF(H53="i",VLOOKUP(B53,'Ins SINAPI BA 07-2025 Onerado'!$B$11:$F$50003,2,0),VLOOKUP(B53,'Comp SINAPI BA 07-2025 Onerado'!$B$11:$G$50004,3,0)) -> UN | E53: 1 | F53: =IF(H53="i",VLOOKUP(B53,'Ins SINAPI BA 07-2025 Onerado'!$B$11:$F$50003,5,0),VLOOKUP(B53,'Comp SINAPI BA 07-2025 Onerado'!$B$11:$E$50004,4,0)) -> 82.02 | G53: =TRUNC(E53*F53,2) -> 82.02 | H53: ca
A54: SINAPI | B54: 98526 | C54: =PROPER(IF(H54="i",VLOOKUP(B54,'Ins SINAPI BA 07-2025 Onerado'!$B$11:$F$50003,2,0),VLOOKUP(B54,'Comp SINAPI BA 07-2025 Onerado'!$B$11:$C$50004,2,0))) -> Remoção De Raízes Remanescentes De Tronco De Árvore Com Diâmetro Maior Ou Igual A 0,20 M E Menor Que 0,40 M. Af_03/2024 | D54: =IF(H54="i",VLOOKUP(B54,'Ins SINAPI BA 07-2025 Onerado'!$B$11:$F$50003,2,0),VLOOKUP(B54,'Comp SINAPI BA 07-2025 Onerado'!$B$11:$G$50004,3,0)) -> UN | E54: 1 | F54: =IF(H54="i",VLOOKUP(B54,'Ins SINAPI BA 07-2025 Onerado'!$B$11:$F$50003,5,0),VLOOKUP(B54,'Comp SINAPI BA 07-2025 Onerado'!$B$11:$E$50004,4,0)) -> 150.46 | G54: 150.46 | H54: ca
A55: SINAPI | B55: 6081 | C55: =PROPER(IF(H55="i",VLOOKUP(B55,'Ins SINAPI BA 07-2025 Onerado'!$B$11:$F$50003,2,0),VLOOKUP(B55,'Comp SINAPI BA 07-2025 Onerado'!$G$11:$G$50004,2,0))) -> Argila Ou Barro Para Aterro/Reaterro (Com Transporte Ate 10 Km) | D55: =IF(H55="i",VLOOKUP(B55,'Ins SINAPI BA 07-2025 Onerado'!$B$11:$F$50003,3,0),VLOOKUP(B55,'Comp SINAPI BA 07-2025 Onerado'!$G$11:$G$50004,3,0)) -> M3 | E55: =0.5*0.5*1 -> 0.25 | F55: 54.26 | G55: 13.56 | H55: i | I55: considerando 0,25 m3 por árvore
A56: SINAPI | B56: 93382 | C56: =PROPER(IF(H56="i",VLOOKUP(B56,'Ins SINAPI BA 07-2025 Onerado'!$B$11:$F$50003,2,0),VLOOKUP(B56,'Comp SINAPI BA 07-2025 Onerado'!$B$11:$C$50004,2,0))) -> Reaterro Manual De Valas, Com Compactador De Solos De Percussão. Af_08/2023 | D56: =IF(H56="i",VLOOKUP(B56,'Ins SINAPI BA 07-2025 Onerado'!$B$11:$F$50003,2,0),VLOOKUP(B56,'Comp SINAPI BA 07-2025 Onerado'!$B$11:$G$50004,3,0)) -> M3 | E56: 0.25 | F56: =IF(H56="i",VLOOKUP(B56,'Ins SINAPI BA 07-2025 Onerado'!$B$11:$F$50003,5,0),VLOOKUP(B56,'Comp SINAPI BA 07-2025 Onerado'!$B$11:$E$50004,4,0)) -> 30.54 | G56: 7.63 | H56: ca
A57: PRÓPRIA | B57: CODE | C57: Hospedagem | D57: un | E57: ='Memorial de cálculo'!D36*'Memorial de cálculo'!H36+'Memorial de cálculo'!D37*'Memorial de cálculo'!H37 -> 0.41525 | F57: ='CPU HOSPEDAGEM'!$C$19 -> 91.76450758 | G57: 38.1 | H57: ca
A58: PRÓPRIA | B58: CODE | C58: Veículo para serviço tipo pick-up, cabine dupla - 2.0 16V 4x4 diesel Aut. | D58: dia | E58: =LARGE('Memorial de cálculo'!H36:H37,1) -> 0.1441875 | F58: ='CPU-VEICULO_Serviços'!$C$11 -> 216.8748526 | G58: 31.27 | H58: ca
A59: SINAPI | B59: 93589 | C59: =PROPER(IF(H59="i",VLOOKUP(B59,'Ins SINAPI BA 07-2025 Onerado'!$B$11:$F$50003,2,0),VLOOKUP(B59,'Comp SINAPI BA 07-2025 Onerado'!$B$11:$C$50004,2,0))) -> Transporte Com Caminhão Basculante De 10 M³, Em Via Urbana Em Revestimento Primário (Unidade: M3Xkm). Af_07/2020 | D59: =IF(H59="i",VLOOKUP(B59,'Ins SINAPI BA 07-2025 Onerado'!$B$11:$F$50003,2,0),VLOOKUP(B59,'Comp SINAPI BA 07-2025 Onerado'!$B$11:$G$50004,3,0)) -> M3XKM | E59: =15*0.25 -> 3.75 | F59: =IF(H59="i",VLOOKUP(B59,'Ins SINAPI BA 07-2025 Onerado'!$B$11:$F$50003,5,0),VLOOKUP(B59,'Comp SINAPI BA 07-2025 Onerado'!$B$11:$E$50004,4,0)) -> 2.71 | G59: 10.16 | H59: ca | I59: considerando 0,25 m3 por árvore e 15 km para bota-fora
A60: =B49 -> CPU.05 | C60: MÃO DE OBRA | G60: 0 | H60: mdo
B63: CPU.06 | C63: Enrocamento c/ pedra de mão c/ fornecimento e assentamento | D63: m3 | E63: 1 | G63: =SUM(G74,G67,G66,G64) -> 246.56 | H63: S
A64: =B63 -> CPU.06 | C64: MATERIAL | G64: =SUM(G65) -> 109.11 | H64: ss
A65: SINAPI | B65: 4730 | C65: =PROPER(IF(H65="i",VLOOKUP(B65,'Ins SINAPI BA 07-2025 Onerado'!$B$11:$F$50003,2,0),VLOOKUP(B65,'Comp SINAPI BA 07-2025 Onerado'!$G$11:$G$50004,2,0))) -> Pedra De Mao Ou Pedra Rachao Para Arrimo/Fundacao (Posto Pedreira/Fornecedor, Sem Frete) | D65: =IF(H65="i",VLOOKUP(B65,'Ins SINAPI BA 07-2025 Onerado'!$B$11:$F$50003,3,0),VLOOKUP(B65,'Comp SINAPI BA 07-2025 Onerado'!$G$11:$G$50004,3,0)) -> M3 | E65: 1 | F65: =IF(H65="i",VLOOKUP(B65,'Ins SINAPI BA 07-2025 Onerado'!$B$11:$F$50003,5,0),VLOOKUP(B65,'Comp SINAPI BA 07-2025 Onerado'!$G$11:$G$50004,5,0)) -> 109.11 | G65: =TRUNC(E65*F65,2) -> 109.11 | H65: i
A66: =B63 -> CPU.06 | C66: EQUIPAMENTOS | G66: 0 | H66: ss
A67: =B63 -> CPU.06 | C67: SERVIÇOS | G67: =SUM(G68:G73) -> 125.88 | H67: ss
A68: SINAPI | B68: 93592 | C68: =PROPER(IF(H68="i",VLOOKUP(B68,'Ins SINAPI BA 07-2025 Onerado'!$B$11:$F$50003,2,0),VLOOKUP(B68,'Comp SINAPI BA 07-2025 Onerado'!$B$11:$C$50004,2,0))) -> Transporte Com Caminhão Basculante De 14 M³, Em Via Urbana Em Revestimento Primário (Unidade: M3Xkm). Af_07/2020 | D68: =IF(H68="i",VLOOKUP(B68,'Ins SINAPI BA 07-2025 Onerado'!$B$11:$F$50003,2,0),VLOOKUP(B68,'Comp SINAPI BA 07-2025 Onerado'!$B$11:$G$50004,3,0)) -> M3XKM | E68: ='Memorial de cálculo'!H8 -> 12.33333333 | F68: =IF(H68="i",VLOOKUP(B68,'Ins SINAPI BA 07-2025 Onerado'!$B$11:$F$50003,5,0),VLOOKUP(B68,'Comp SINAPI BA 07-2025 Onerado'!$B$11:$E$50004,4,0)) -> 2.32 | G68: =TRUNC(E68*F68,2) -> 28.61 | H68: ca
A69: SINAPI | B69: 95876 | C69: =PROPER(IF(H69="i",VLOOKUP(B69,'Ins SINAPI BA 07-2025 Onerado'!$B$11:$F$50003,2,0),VLOOKUP(B69,'Comp SINAPI BA 07-2025 Onerado'!$B$11:$C$50004,2,0))) -> Transporte Com Caminhão Basculante De 14 M³, Em Via Urbana Pavimentada, Dmt Até 30 Km (Unidade: M3Xkm). Af_07/2020 | D69: =IF(H69="i",VLOOKUP(B69,'Ins SINAPI BA 07-2025 Onerado'!$B$11:$F$50003,2,0),VLOOKUP(B69,'Comp SINAPI BA 07-2025 Onerado'!$B$11:$G$50004,3,0)) -> M3XKM | E69: 30 | F69: =IF(H69="i",VLOOKUP(B69,'Ins SINAPI BA 07-2025 Onerado'!$B$11:$F$50003,5,0),VLOOKUP(B69,'Comp SINAPI BA 07-2025 Onerado'!$B$11:$E$50004,4,0)) -> 2.1 | G69: 63 | H69: ca
A70: SINAPI | B70: 93593 | C70: =PROPER(IF(H70="i",VLOOKUP(B70,'Ins SINAPI BA 07-2025 Onerado'!$B$11:$F$50003,2,0),VLOOKUP(B70,'Comp SINAPI BA 07-2025 Onerado'!$B$11:$C$50004,2,0))) -> Transporte Com Caminhão Basculante De 14 M³, Em Via Urbana Pavimentada, Adicional Para Dmt Excedente A 30 Km (Unidade: M3Xkm). Af_07/2020 | D70: =IF(H70="i",VLOOKUP(B70,'Ins SINAPI BA 07-2025 Onerado'!$B$11:$F$50003,2,0),VLOOKUP(B70,'Comp SINAPI BA 07-2025 Onerado'!$B$11:$G$50004,3,0)) -> M3XKM | E70: ='Memorial de cálculo'!H7-30 -> 20.63333333 | F70: =IF(H70="i",VLOOKUP(B70,'Ins SINAPI BA 07-2025 Onerado'!$B$11:$F$50003,5,0),VLOOKUP(B70,'Comp SINAPI BA 07-2025 Onerado'!$B$11:$E$50004,4,0)) -> 0.85 | G70: =TRUNC(E70*F70,2) -> 17.53 | H70: ca
A71: SINAPI | B71: 100979 | C71: =PROPER(IF(H71="i",VLOOKUP(B71,'Ins SINAPI BA 07-2025 Onerado'!$B$11:$F$50003,2,0),VLOOKUP(B71,'Comp SINAPI BA 07-2025 Onerado'!$B$11:$C$50004,2,0))) -> Carga, Manobra E Descarga De Solos E Materiais Granulares Em Caminhão Basculante 14 M³ - Carga Com Escavadeira Hidráulica (Caçamba De 1,20 M³ / 155 Hp) E Descarga Livre (Unidade: M3). Af_07/2020 | D71: =IF(H71="i",VLOOKUP(B71,'Ins SINAPI BA 07-2025 Onerado'!$B$11:$F$50003,2,0),VLOOKUP(B71,'Comp SINAPI BA 07-2025 Onerado'!$B$11:$G$50004,3,0)) -> M3 | E71: 1 | F71: =IF(H71="i",VLOOKUP(B71,'Ins SINAPI BA 07-2025 Onerado'!$B$11:$F$50003,5,0),VLOOKUP(B71,'Comp SINAPI BA 07-2025 Onerado'!$B$11:$E$50004,4,0)) -> 6.74 | G71: 6.74 | H71: ca
A72: PRÓPRIA | B72: CODE | C72: Hospedagem | D72: un | E72: ='Memorial de cálculo'!D41*'Memorial de cálculo'!H41+'Memorial de cálculo'!D42*'Memorial de cálculo'!H42 -> 0.05 | F72: ='CPU HOSPEDAGEM'!C19 -> 91.76450758 | G72: 4.58 | H72: ca
A73: PRÓPRIA | B73: CODE | C73: Veículo para serviço tipo pick-up, cabine dupla - 2.0 16V 4x4 diesel Aut. | D73: dia | E73: =LARGE('Memorial de cálculo'!H41:H42,1) -> 0.025 | F73: ='CPU-VEICULO_Serviços'!$C$11 -> 216.8748526 | G73: 5.42 | H73: ca
A74: =B63 -> CPU.06 | C74: MÃO DE OBRA | G74: =SUM(G75:G76) -> 11.57 | H74: mdo
A75: SINAPI | B75: 88309 | C75: =PROPER(IF(H75="i",VLOOKUP(B75,'Ins SINAPI BA 07-2025 Onerado'!$B$11:$F$50003,2,0),VLOOKUP(B75,'Comp SINAPI BA 07-2025 Onerado'!$B$11:$C$50004,2,0))) -> Pedreiro Com Encargos Complementares | D75: =IF(H75="i",VLOOKUP(B75,'Ins SINAPI BA 07-2025 Onerado'!$B$11:$F$50003,2,0),VLOOKUP(B75,'Comp SINAPI BA 07-2025 Onerado'!$B$11:$G$50004,3,0)) -> H | E75: 0.2 | F75: =IF(H75="i",VLOOKUP(B75,'Ins SINAPI BA 07-2025 Onerado'!$B$11:$F$50003,5,0),VLOOKUP(B75,'Comp SINAPI BA 07-2025 Onerado'!$B$11:$E$50004,4,0)) -> 33.52 | G75: 6.7 | H75: ca
A76: SINAPI | B76: 88316 | C76: =PROPER(IF(H76="i",VLOOKUP(B76,'Ins SINAPI BA 07-2025 Onerado'!$B$11:$F$50003,2,0),VLOOKUP(B76,'Comp SINAPI BA 07-2025 Onerado'!$B$11:$C$50004,2,0))) -> Servente Com Encargos Complementares | D76: =IF(H76="i",VLOOKUP(B76,'Ins SINAPI BA 07-2025 Onerado'!$B$11:$F$50003,2,0),VLOOKUP(B76,'Comp SINAPI BA 07-2025 Onerado'!$B$11:$G$50004,3,0)) -> H | E76: 0.2 | F76: =IF(H76="i",VLOOKUP(B76,'Ins SINAPI BA 07-2025 Onerado'!$B$11:$F$50003,5,0),VLOOKUP(B76,'Comp SINAPI BA 07-2025 Onerado'!$B$11:$E$50004,4,0)) -> 24.37 | G76: 4.87 | H76: ca
B78: CPU.07 | C78: Entrada para descida d’água tipo EDA 01 B | D78: un | E78: 1 | G78: =SUM(G83,G81,G80,G79) -> 309.29 | H78: S
A79: =B110 | C79: MATERIAL | G79: 0 | H79: ss
A80: =B78 -> CPU.07 | C80: EQUIPAMENTOS | G80: 0 | H80: ss
A81: =B78 -> CPU.07 | C81: SERVIÇOS | G81: =SUM(G82:G82) -> 309.29 | H81: ss
A82: SICRO | B82: 2003115 | C82: Entrada para descida d'água - EDA 01 B - areia e brita comerciais | D82: un | E82: 1 | F82: 309.29 | G82: =TRUNC(E82*F82,2) -> 309.29 | H82: ca
A83: =B78 -> CPU.07 | C83: MÃO DE OBRA | G83: 0 | H83: mdo
B85: CPU.08 | C85: Plantio de vegetação tipo gramínea para proteção de talude com hidrossemeadura, inclusive adubação e transporte | D85: m2 | E85: 1 | G85: =SUM(G92,G88,G87,G86) -> 7.1 | H85: S
A86: =B120 | C86: MATERIAL | G86: 0 | H86: ss
A87: =B85 -> CPU.08 | C87: EQUIPAMENTOS | G87: 0 | H87: ss
A88: =B85 -> CPU.08 | C88: SERVIÇOS | G88: =SUM(G89:G91) -> 7.1 | H88: ss
A89: SICRO | B89: 4413905 | C89: Hidrossemeadura | D89: M2 | E89: 1 | F89: 6.71 | G89: =TRUNC(E89*F89,2) -> 6.71 | H89: ca
A90: PRÓPRIA | B90: CODE | C90: Hospedagem | D90: un | E90: ='Memorial de cálculo'!D55*'Memorial de cálculo'!H55 -> 0.002409638554 | F90: ='CPU HOSPEDAGEM'!C19 -> 91.76450758 | G90: 0.22 | H90: ca
A91: PRÓPRIA | B91: CODE | C91: Veículo para serviço tipo pick-up, cabine dupla - 2.0 16V 4x4 diesel Aut. | D91: dia | E91: =LARGE('Memorial de cálculo'!H55:H55,1) -> 0.0008032128514 | F91: ='CPU-VEICULO_Serviços'!$C$11 -> 216.8748526 | G91: 0.17 | H91: ca
A92: =B85 -> CPU.08 | C92: MÃO DE OBRA | G92: 0 | H92: mdo
B94: CPU.09 | C94: Recomposição das erosões, inclusive, regularização da superfície e reaterro | D94: m3 | E94: 1 | G94: =SUM(G110,G98,G97,G95) -> 219.71 | H94: S
A95: =B94 -> CPU.09 | C95: MATERIAL | G95: =SUM(G96) -> 54.26 | H95: ss
A96: SINAPI | B96: 6081 | C96: =PROPER(IF(H96="i",VLOOKUP(B96,'Ins SINAPI BA 07-2025 Onerado'!$B$11:$F$50003,2,0),VLOOKUP(B96,'Comp SINAPI BA 07-2025 Onerado'!$G$11:$G$50004,2,0))) -> Argila Ou Barro Para Aterro/Reaterro (Com Transporte Ate 10 Km) | D96: =IF(H96="i",VLOOKUP(B96,'Ins SINAPI BA 07-2025 Onerado'!$B$11:$F$50003,3,0),VLOOKUP(B96,'Comp SINAPI BA 07-2025 Onerado'!$G$11:$G$50004,3,0)) -> M3 | E96: 1 | F96: 54.26 | G96: =TRUNC(E96*F96,2) -> 54.26 | H96: i
A97: =B94 -> CPU.09 | C97: EQUIPAMENTOS | G97: 0 | H97: ss
A98: =B94 -> CPU.09 | C98: SERVIÇOS | G98: =SUM(G99:G109) -> 165.45 | H98: ss
A99: SINAPI | B99: 101230 | C99: =PROPER(IF(H99="i",VLOOKUP(B99,'Ins SINAPI BA 07-2025 Onerado'!$B$11:$F$50003,2,0),VLOOKUP(B99,'Comp SINAPI BA 07-2025 Onerado'!$B$11:$C$50004,2,0))) -> Escavação Vertical Para Infraestrutura, Com Carga, Descarga E Transporte De Solo De 1ª Categoria, Com Escavadeira Hidráulica (Caçamba: 0,8 M³ / 111 Hp), Frota De 3 Caminhões Basculantes De 14 M³, Dmt Até 1 Km E Velocidade Média14 Km/H. Af_05/2020 | D99: =IF(H99="i",VLOOKUP(B99,'Ins SINAPI BA 07-2025 Onerado'!$B$11:$F$50003,2,0),VLOOKUP(B99,'Comp SINAPI BA 07-2025 Onerado'!$B$11:$G$50004,3,0)) -> M3 | E99: 0.1 | F99: =IF(H99="i",VLOOKUP(B99,'Ins SINAPI BA 07-2025 Onerado'!$B$11:$F$50003,5,0),VLOOKUP(B99,'Comp SINAPI BA 07-2025 Onerado'!$B$11:$E$50004,4,0)) -> 11.15 | G99: =TRUNC(E99*F99,2) -> 1.11 | H99: ca | I99: Preparação da superfície 10%
A100: SINAPI | B100: 100976 | C100: =PROPER(IF(H100="i",VLOOKUP(B100,'Ins SINAPI BA 07-2025 Onerado'!$B$11:$F$50003,2,0),VLOOKUP(B100,'Comp SINAPI BA 07-2025 Onerado'!$B$11:$C$50004,2,0))) -> Carga, Manobra E Descarga De Solos E Materiais Granulares Em Caminhão Basculante 18 M³ - Carga Com Pá Carregadeira (Caçamba De 1,7 A 2,8 M³ / 128 Hp) E Descarga Livre (Unidade: M3). Af_07/2020 | D100: =IF(H100="i",VLOOKUP(B100,'Ins SINAPI BA 07-2025 Onerado'!$B$11:$F$50003,2,0),VLOOKUP(B100,'Comp SINAPI BA 07-2025 Onerado'!$B$11:$G$50004,3,0)) -> M3 | E100: 1 | F100: =IF(H100="i",VLOOKUP(B100,'Ins SINAPI BA 07-2025 Onerado'!$B$11:$F$50003,5,0),VLOOKUP(B100,'Comp SINAPI BA 07-2025 Onerado'!$B$11:$E$50004,4,0)) -> 8.57 | G100: 8.57 | H100: ca
A101: SINAPI | B101: 93589 | C101: =PROPER(IF(H101="i",VLOOKUP(B101,'Ins SINAPI BA 07-2025 Onerado'!$B$11:$F$50003,2,0),VLOOKUP(B101,'Comp SINAPI BA 07-2025 Onerado'!$B$11:$C$50004,2,0))) -> Transporte Com Caminhão Basculante De 10 M³, Em Via Urbana Em Revestimento Primário (Unidade: M3Xkm). Af_07/2020 | D101: =IF(H101="i",VLOOKUP(B101,'Ins SINAPI BA 07-2025 Onerado'!$B$11:$F$50003,2,0),VLOOKUP(B101,'Comp SINAPI BA 07-2025 Onerado'!$B$11:$G$50004,3,0)) -> M3XKM | E101: ='Memorial de cálculo'!$H$8-10 -> 2.333333333 | F101: =IF(H101="i",VLOOKUP(B101,'Ins SINAPI BA 07-2025 Onerado'!$B$11:$F$50003,5,0),VLOOKUP(B101,'Comp SINAPI BA 07-2025 Onerado'!$B$11:$E$50004,4,0)) -> 2.71 | G101: =TRUNC(E101*F101,2) -> 6.32 | H101: ca | I101: Transporte da argila
A102: SINAPI | B102: 95875 | C102: =PROPER(IF(H102="i",VLOOKUP(B102,'Ins SINAPI BA 07-2025 Onerado'!$B$11:$F$50003,2,0),VLOOKUP(B102,'Comp SINAPI BA 07-2025 Onerado'!$B$11:$C$50004,2,0))) -> Transporte Com Caminhão Basculante De 10 M³, Em Via Urbana Pavimentada, Dmt Até 30 Km (Unidade: M3Xkm). Af_07/2020 | D102: =IF(H102="i",VLOOKUP(B102,'Ins SINAPI BA 07-2025 Onerado'!$B$11:$F$50003,2,0),VLOOKUP(B102,'Comp SINAPI BA 07-2025 Onerado'!$B$11:$G$50004,3,0)) -> M3XKM | E102: 30 | F102: =IF(H102="i",VLOOKUP(B102,'Ins SINAPI BA 07-2025 Onerado'!$B$11:$F$50003,5,0),VLOOKUP(B102,'Comp SINAPI BA 07-2025 Onerado'!$B$11:$E$50004,4,0)) -> 2.51 | G102: 75.3 | H102: ca | I102: Transporte da argila
A103: SINAPI | B103: 93590 | C103: =PROPER(IF(H103="i",VLOOKUP(B103,'Ins SINAPI BA 07-2025 Onerado'!$B$11:$F$50003,2,0),VLOOKUP(B103,'Comp SINAPI BA 07-2025 Onerado'!$B$11:$C$50004,2,0))) -> Transporte Com Caminhão Basculante De 10 M³, Em Via Urbana Pavimentada, Adicional Para Dmt Excedente A 30 Km (Unidade: M3Xkm). Af_07/2020 | D103: =IF(H103="i",VLOOKUP(B103,'Ins SINAPI BA 07-2025 Onerado'!$B$11:$F$50003,2,0),VLOOKUP(B103,'Comp SINAPI BA 07-2025 Onerado'!$B$11:$G$50004,3,0)) -> M3XKM | E103: ='Memorial de cálculo'!$H$7-30 -> 20.63333333 | F103: =IF(H103="i",VLOOKUP(B103,'Ins SINAPI BA 07-2025 Onerado'!$B$11:$F$50003,5,0),VLOOKUP(B103,'Comp SINAPI BA 07-2025 Onerado'!$B$11:$E$50004,4,0)) -> 0.98 | G103: 20.22 | H103: ca | I103: Transporte da argila
A104: SINAPI | B104: 100951 | C104: =PROPER(IF(H104="i",VLOOKUP(B104,'Ins SINAPI BA 07-2025 Onerado'!$B$11:$F$50003,2,0),VLOOKUP(B104,'Comp SINAPI BA 07-2025 Onerado'!$B$11:$C$50004,2,0))) -> Transporte Com Caminhão Carroceria Com Guindauto (Munck), Momento Máximo De Carga 11,7 Tm, Em Via Urbana Em Revestimento Primário (Unidade: Txkm). Af_07/2020 | D104: =IF(H104="i",VLOOKUP(B104,'Ins SINAPI BA 07-2025 Onerado'!$B$11:$F$50003,2,0),VLOOKUP(B104,'Comp SINAPI BA 07-2025 Onerado'!$B$11:$G$50004,3,0)) -> TXKM | E104: =2*(1.5*'Memorial de cálculo'!$H$8)/AVERAGE('Memorial de cálculo'!I57:K57) -> 3.083333333 | F104: =IF(H104="i",VLOOKUP(B104,'Ins SINAPI BA 07-2025 Onerado'!$B$11:$F$50003,5,0),VLOOKUP(B104,'Comp SINAPI BA 07-2025 Onerado'!$B$11:$E$50004,4,0)) -> 3.17 | G104: 9.77 | H104: ca | I104: Tonelada da máquina | K104: 1.5 | M104: (Ida e volta)
A105: SINAPI | B105: 100952 | C105: =PROPER(IF(H105="i",VLOOKUP(B105,'Ins SINAPI BA 07-2025 Onerado'!$B$11:$F$50003,2,0),VLOOKUP(B105,'Comp SINAPI BA 07-2025 Onerado'!$B$11:$C$50004,2,0))) -> Transporte Com Caminhão Carroceria Com Guindauto (Munck), Momento Máximo De Carga 11,7 Tm, Em Via Urbana Pavimentada, Dmt Até 30Km (Unidade: Txkm). Af_07/2020 | D105: =IF(H105="i",VLOOKUP(B105,'Ins SINAPI BA 07-2025 Onerado'!$B$11:$F$50003,2,0),VLOOKUP(B105,'Comp SINAPI BA 07-2025 Onerado'!$B$11:$G$50004,3,0)) -> TXKM | E105: =2*(1.5*30)/AVERAGE('Memorial de cálculo'!I57:K57) -> 7.5 | F105: =IF(H105="i",VLOOKUP(B105,'Ins SINAPI BA 07-2025 Onerado'!$B$11:$F$50003,5,0),VLOOKUP(B105,'Comp SINAPI BA 07-2025 Onerado'!$B$11:$E$50004,4,0)) -> 2.92 | G105: =TRUNC(E105*F105,2) -> 21.9 | H105: ca | I105: Tonelada da máquina | K105: 1.5 | M105: (Ida e volta)
A106: SINAPI | B106: 100953 | C106: =PROPER(IF(H106="i",VLOOKUP(B106,'Ins SINAPI BA 07-2025 Onerado'!$B$11:$F$50003,2,0),VLOOKUP(B106,'Comp SINAPI BA 07-2025 Onerado'!$B$11:$C$50004,2,0))) -> Transporte Com Caminhão Carroceria Com Guindauto (Munck), Momento Máximo De Carga 11,7 Tm, Em Via Urbana Pavimentada, Adicional Para Dmt Excedente A 30 Km (Unidade: Txkm). Af_07/2020 | D106: =IF(H106="i",VLOOKUP(B106,'Ins SINAPI BA 07-2025 Onerado'!$B$11:$F$50003,2,0),VLOOKUP(B106,'Comp SINAPI BA 07-2025 Onerado'!$B$11:$G$50004,3,0)) -> TXKM | E106: =2*(1.5*('Memorial de cálculo'!$H$7-30))/AVERAGE('Memorial de cálculo'!I57:K57) -> 5.158333333 | F106: =IF(H106="i",VLOOKUP(B106,'Ins SINAPI BA 07-2025 Onerado'!$B$11:$F$50003,5,0),VLOOKUP(B106,'Comp SINAPI BA 07-2025 Onerado'!$B$11:$E$50004,4,0)) -> 1.16 | G106: 5.98 | H106: ca | I106: Tonelada da máquina | K106: 1.5 | M106: (Ida e volta)
A107: SINAPI | B107: 96385 | C107: =PROPER(IF(H107="i",VLOOKUP(B107,'Ins SINAPI BA 07-2025 Onerado'!$B$11:$F$50003,2,0),VLOOKUP(B107,'Comp SINAPI BA 07-2025 Onerado'!$B$11:$C$50004,2,0))) -> Execução E Compactação De Corpo De Aterro De Aterro (95% De Energia Do Proctor Normal) Com Solo Predominantemente Argiloso Espessura 15 Cm - Exclusive Material, Escavação, Carga E Transporte. Af_09/2024 | D107: =IF(H107="i",VLOOKUP(B107,'Ins SINAPI BA 07-2025 Onerado'!$B$11:$F$50003,2,0),VLOOKUP(B107,'Comp SINAPI BA 07-2025 Onerado'!$B$11:$G$50004,3,0)) -> M3 | E107: 1 | F107: =IF(H107="i",VLOOKUP(B107,'Ins SINAPI BA 07-2025 Onerado'!$B$11:$F$50003,5,0),VLOOKUP(B107,'Comp SINAPI BA 07-2025 Onerado'!$B$11:$E$50004,4,0)) -> 13.59 | G107: 13.59 | H107: ca
A108: PRÓPRIA | B108: CODE | C108: Hospedagem | D108: un | E108: ='Memorial de cálculo'!D59*'Memorial de cálculo'!H59+'Memorial de cálculo'!D60*'Memorial de cálculo'!H60+'Memorial de cálculo'!D61*'Memorial de cálculo'!H61 -> 0.0153585375 | F108: ='CPU HOSPEDAGEM'!C19 -> 91.76450758 | G108: 1.4 | H108: ca
A109: PRÓPRIA | B109: CODE | C109: Veículo para serviço tipo pick-up, cabine dupla - 2.0 16V 4x4 diesel Aut. | D109: dia | E109: =LARGE('Memorial de cálculo'!H59:H61,1) -> 0.0059586125 | F109: ='CPU-VEICULO_Serviços'!$C$11 -> 216.8748526 | G109: 1.29 | H109: ca
A110: =B94 -> CPU.09 | C110: MÃO DE OBRA | G110: 0 | H110: mdo
B112: CPU.10 | C112: Regularização e compactação da crista | D112: m2 | E112: 1 | G112: =SUM(G119,G115,G114,G113) -> 3.34 | H112: S
A113: =B112 -> CPU.10 | C113: MATERIAL | G113: 0 | H113: ss
A114: =B112 -> CPU.10 | C114: EQUIPAMENTOS | G114: 0 | H114: ss
A115: =B112 -> CPU.10 | C115: SERVIÇOS | G115: =SUM(G116:G118) -> 3.34 | H115: ss
A116: SINAPI | B116: 100576 | C116: =PROPER(IF(H116="i",VLOOKUP(B116,'Ins SINAPI BA 07-2025 Onerado'!$B$11:$F$50003,2,0),VLOOKUP(B116,'Comp SINAPI BA 07-2025 Onerado'!$B$11:$C$50004,2,0))) -> Regularização E Compactação De Subleito De Solo Predominantemente Argiloso, Para Obras De Construção De Pavimentos. Af_09/2024 | D116: =IF(H116="i",VLOOKUP(B116,'Ins SINAPI BA 07-2025 Onerado'!$B$11:$F$50003,2,0),VLOOKUP(B116,'Comp SINAPI BA 07-2025 Onerado'!$B$11:$G$50004,3,0)) -> M2 | E116: 1 | F116: =IF(H116="i",VLOOKUP(B116,'Ins SINAPI BA 07-2025 Onerado'!$B$11:$F$50003,5,0),VLOOKUP(B116,'Comp SINAPI BA 07-2025 Onerado'!$B$11:$E$50004,4,0)) -> 3.14 | G116: =TRUNC(E116*F116,2) -> 3.14 | H116: ca
A117: PRÓPRIA | B117: CODE | C117: Hospedagem | D117: un | E117: ='Memorial de cálculo'!D65*'Memorial de cálculo'!H65 -> 0.0010769 | F117: ='CPU HOSPEDAGEM'!C19 -> 91.76450758 | G117: 0.09 | H117: ca
A118: PRÓPRIA | B118: CODE | C118: Veículo para serviço tipo pick-up, cabine dupla - 2.0 16V 4x4 diesel Aut. | D118: dia | E118: =LARGE('Memorial de cálculo'!H65,1) -> 0.00053845 | F118: ='CPU-VEICULO_Serviços'!$C$11 -> 216.8748526 | G118: 0.11 | H118: ca
A119: =B112 -> CPU.10 | C119: MÃO DE OBRA | G119: 0 | H119: mdo
B121: CPU.11 | C121: Execução de Revestimento com BGTC | D121: m3 | E121: 1 | G121: =SUM(G132,G124,G123,G122) -> 392.55 | H121: S
A122: =B121 -> CPU.11 | C122: MATERIAL | G122: 0 | H122: ss
A123: =B121 -> CPU.11 | C123: EQUIPAMENTOS | G123: 0 | H123: ss
A124: =B121 -> CPU.11 | C124: SERVIÇOS | G124: =SUM(G125:G131) -> 392.55 | H124: ss
A125: SINAPI | B125: 105732 | C125: =PROPER(IF(H125="i",VLOOKUP(B125,'Ins SINAPI BA 07-2025 Onerado'!$B$11:$F$50003,2,0),VLOOKUP(B125,'Comp SINAPI BA 07-2025 Onerado'!$B$11:$C$50004,2,0))) -> Construção De Base E Sub-Base Para Pavimentação De Brita Graduada Simples Tratada Com Cimento, Com Espessura De 10 Cm - Exclusive Carga E Transporte. Af_09/2024 | D125: =IF(H125="i",VLOOKUP(B125,'Ins SINAPI BA 07-2025 Onerado'!$B$11:$F$50003,2,0),VLOOKUP(B125,'Comp SINAPI BA 07-2025 Onerado'!$B$11:$G$50004,3,0)) -> M3 | E125: 1 | F125: =IF(H125="i",VLOOKUP(B125,'Ins SINAPI BA 07-2025 Onerado'!$B$11:$F$50003,5,0),VLOOKUP(B125,'Comp SINAPI BA 07-2025 Onerado'!$B$11:$E$50004,4,0)) -> 273.44 | G125: =TRUNC(E125*F125,2) -> 273.44 | H125: ca
A126: SINAPI | B126: 93592 | C126: =PROPER(IF(H126="i",VLOOKUP(B126,'Ins SINAPI BA 07-2025 Onerado'!$B$11:$F$50003,2,0),VLOOKUP(B126,'Comp SINAPI BA 07-2025 Onerado'!$B$11:$C$50004,2,0))) -> Transporte Com Caminhão Basculante De 14 M³, Em Via Urbana Em Revestimento Primário (Unidade: M3Xkm). Af_07/2020 | D126: =IF(H126="i",VLOOKUP(B126,'Ins SINAPI BA 07-2025 Onerado'!$B$11:$F$50003,2,0),VLOOKUP(B126,'Comp SINAPI BA 07-2025 Onerado'!$B$11:$G$50004,3,0)) -> M3XKM | E126: ='Memorial de cálculo'!$H$8 -> 12.33333333 | F126: =IF(H126="i",VLOOKUP(B126,'Ins SINAPI BA 07-2025 Onerado'!$B$11:$F$50003,5,0),VLOOKUP(B126,'Comp SINAPI BA 07-2025 Onerado'!$B$11:$E$50004,4,0)) -> 2.32 | G126: 28.61 | H126: ca
A127: SINAPI | B127: 95876 | C127: =PROPER(IF(H127="i",VLOOKUP(B127,'Ins SINAPI BA 07-2025 Onerado'!$B$11:$F$50003,2,0),VLOOKUP(B127,'Comp SINAPI BA 07-2025 Onerado'!$B$11:$C$50004,2,0))) -> Transporte Com Caminhão Basculante De 14 M³, Em Via Urbana Pavimentada, Dmt Até 30 Km (Unidade: M3Xkm). Af_07/2020 | D127: =IF(H127="i",VLOOKUP(B127,'Ins SINAPI BA 07-2025 Onerado'!$B$11:$F$50003,2,0),VLOOKUP(B127,'Comp SINAPI BA 07-2025 Onerado'!$B$11:$G$50004,3,0)) -> M3XKM | E127: 30 | F127: =IF(H127="i",VLOOKUP(B127,'Ins SINAPI BA 07-2025 Onerado'!$B$11:$F$50003,5,0),VLOOKUP(B127,'Comp SINAPI BA 07-2025 Onerado'!$B$11:$E$50004,4,0)) -> 2.1 | G127: =TRUNC(E127*F127,2) -> 63 | H127: ca
A128: SINAPI | B128: 93593 | C128: =PROPER(IF(H128="i",VLOOKUP(B128,'Ins SINAPI BA 07-2025 Onerado'!$B$11:$F$50003,2,0),VLOOKUP(B128,'Comp SINAPI BA 07-2025 Onerado'!$B$11:$C$50004,2,0))) -> Transporte Com Caminhão Basculante De 14 M³, Em Via Urbana Pavimentada, Adicional Para Dmt Excedente A 30 Km (Unidade: M3Xkm). Af_07/2020 | D128: =IF(H128="i",VLOOKUP(B128,'Ins SINAPI BA 07-2025 Onerado'!$B$11:$F$50003,2,0),VLOOKUP(B128,'Comp SINAPI BA 07-2025 Onerado'!$B$11:$G$50004,3,0)) -> M3XKM | E128: ='Memorial de cálculo'!$H$7-30 -> 20.63333333 | F128: =IF(H128="i",VLOOKUP(B128,'Ins SINAPI BA 07-2025 Onerado'!$B$11:$F$50003,5,0),VLOOKUP(B128,'Comp SINAPI BA 07-2025 Onerado'!$B$11:$E$50004,4,0)) -> 0.85 | G128: 17.53 | H128: ca
A129: SINAPI | B129: 100976 | C129: =PROPER(IF(H129="i",VLOOKUP(B129,'Ins SINAPI BA 07-2025 Onerado'!$B$11:$F$50003,2,0),VLOOKUP(B129,'Comp SINAPI BA 07-2025 Onerado'!$B$11:$C$50004,2,0))) -> Carga, Manobra E Descarga De Solos E Materiais Granulares Em Caminhão Basculante 18 M³ - Carga Com Pá Carregadeira (Caçamba De 1,7 A 2,8 M³ / 128 Hp) E Descarga Livre (Unidade: M3). Af_07/2020 | D129: =IF(H129="i",VLOOKUP(B129,'Ins SINAPI BA 07-2025 Onerado'!$B$11:$F$50003,2,0),VLOOKUP(B129,'Comp SINAPI BA 07-2025 Onerado'!$B$11:$G$50004,3,0)) -> M3 | E129: 1 | F129: =IF(H129="i",VLOOKUP(B129,'Ins SINAPI BA 07-2025 Onerado'!$B$11:$F$50003,5,0),VLOOKUP(B129,'Comp SINAPI BA 07-2025 Onerado'!$B$11:$E$50004,4,0)) -> 8.57 | G129: 8.57 | H129: ca
A130: PRÓPRIA | B130: CODE | C130: Hospedagem | D130: un | E130: ='Memorial de cálculo'!D69*'Memorial de cálculo'!H69 -> 0.004568675 | F130: ='CPU HOSPEDAGEM'!C19 -> 91.76450758 | G130: 0.41 | H130: ca
A131: PRÓPRIA | B131: CODE | C131: Veículo para serviço tipo pick-up, cabine dupla - 2.0 16V 4x4 diesel Aut. | D131: dia | E131: =LARGE('Memorial de cálculo'!H69,1) -> 0.004568675 | F131: ='CPU-VEICULO_Serviços'!$C$11 -> 216.8748526 | G131: 0.99 | H131: ca
A132: =B121 -> CPU.11 | C132: MÃO DE OBRA | G132: 0 | H132: mdo
B134: CPU.12 | C134: Projeto geométrico | D134: un | E134: 1 | G134: =SUM(G138,G137,G136,G135) -> 8773 | H134: S
A135: =B134 -> CPU.12 | C135: MATERIAL | G135: 0 | H135: ss
A136: =B134 -> CPU.12 | C136: EQUIPAMENTOS | G136: 0 | H136: ss
A137: =B134 -> CPU.12 | C137: SERVIÇOS | G137: 0 | H137: ss
A138: =B134 -> CPU.12 | C138: MÃO DE OBRA | G138: =SUM(G139:G141) -> 8773 | H138: mdo
A139: SINAPI | B139: 90777 | C139: =PROPER(IF(H139="i",VLOOKUP(B139,'Ins SINAPI BA 07-2025 Onerado'!$B$11:$F$50003,2,0),VLOOKUP(B139,'Comp SINAPI BA 07-2025 Onerado'!$B$11:$C$50004,2,0))) -> Engenheiro Civil De Obra Junior Com Encargos Complementares | D139: =IF(H139="i",VLOOKUP(B139,'Ins SINAPI BA 07-2025 Onerado'!$B$11:$F$50003,2,0),VLOOKUP(B139,'Comp SINAPI BA 07-2025 Onerado'!$B$11:$G$50004,3,0)) -> H | E139: 30 | F139: =IF(H139="i",VLOOKUP(B139,'Ins SINAPI BA 07-2025 Onerado'!$B$11:$F$50003,5,0),VLOOKUP(B139,'Comp SINAPI BA 07-2025 Onerado'!$B$11:$E$50004,4,0)) -> 130.58 | G139: =TRUNC(E139*F139,2) -> 3917.4 | H139: ca
A140: SINAPI | B140: 90779 | C140: =PROPER(IF(H140="i",VLOOKUP(B140,'Ins SINAPI BA 07-2025 Onerado'!$B$11:$F$50003,2,0),VLOOKUP(B140,'Comp SINAPI BA 07-2025 Onerado'!$B$11:$C$50004,2,0))) -> Engenheiro Civil De Obra Senior Com Encargos Complementares | D140: =IF(H140="i",VLOOKUP(B140,'Ins SINAPI BA 07-2025 Onerado'!$B$11:$F$50003,2,0),VLOOKUP(B140,'Comp SINAPI BA 07-2025 Onerado'!$B$11:$G$50004,3,0)) -> H | E140: 20 | F140: =IF(H140="i",VLOOKUP(B140,'Ins SINAPI BA 07-2025 Onerado'!$B$11:$F$50003,5,0),VLOOKUP(B140,'Comp SINAPI BA 07-2025 Onerado'!$B$11:$E$50004,4,0)) -> 149.06 | G140: 2981.2 | H140: ca
A141: SINAPI | B141: 90775 | C141: =PROPER(IF(H141="i",VLOOKUP(B141,'Ins SINAPI BA 07-2025 Onerado'!$B$11:$F$50003,2,0),VLOOKUP(B141,'Comp SINAPI BA 07-2025 Onerado'!$B$11:$C$50004,2,0))) -> Desenhista Projetista Com Encargos Complementares | D141: =IF(H141="i",VLOOKUP(B141,'Ins SINAPI BA 07-2025 Onerado'!$B$11:$F$50003,2,0),VLOOKUP(B141,'Comp SINAPI BA 07-2025 Onerado'!$B$11:$G$50004,3,0)) -> H | E141: 60 | F141: =IF(H141="i",VLOOKUP(B141,'Ins SINAPI BA 07-2025 Onerado'!$B$11:$F$50003,5,0),VLOOKUP(B141,'Comp SINAPI BA 07-2025 Onerado'!$B$11:$E$50004,4,0)) -> 31.24 | G141: 1874.4 | H141: ca
B143: CPU.13 | C143: Fornecimento e Assentamento de Guia (meio-fio) Pré-fabricado, dimensões 100X15X13X30 Cm (Comprimento X Base Inferior X Base Superior X Altura) | D143: m | E143: 1 | G143: =SUM(G153,G146,G145,G144) -> 54.32 | H143: S
A144: =B143 -> CPU.13 | C144: MATERIAL | G144: 0 | H144: ss
A145: =B143 -> CPU.13 | C145: EQUIPAMENTOS | G145: 0 | H145: ss
A146: =B143 -> CPU.13 | C146: SERVIÇOS | G146: =SUM(G147:G152) -> 54.32 | H146: ss
A147: SINAPI | B147: 94273 | C147: =PROPER(IF(H147="i",VLOOKUP(B147,'Ins SINAPI BA 07-2025 Onerado'!$B$11:$F$50003,2,0),VLOOKUP(B147,'Comp SINAPI BA 07-2025 Onerado'!$B$11:$C$50004,2,0))) -> Assentamento De Guia (Meio-Fio) Em Trecho Reto, Confeccionada Em Concreto Pré-Fabricado, Dimensões 100X15X13X30 Cm (Comprimento X Base Inferior X Base Superior X Altura). Af_01/2024 | D147: =IF(H147="i",VLOOKUP(B147,'Ins SINAPI BA 07-2025 Onerado'!$B$11:$F$50003,2,0),VLOOKUP(B147,'Comp SINAPI BA 07-2025 Onerado'!$B$11:$G$50004,3,0)) -> M | E147: 1 | F147: =IF(H147="i",VLOOKUP(B147,'Ins SINAPI BA 07-2025 Onerado'!$B$11:$F$50003,5,0),VLOOKUP(B147,'Comp SINAPI BA 07-2025 Onerado'!$B$11:$E$50004,4,0)) -> 41.2 | G147: =TRUNC(E147*F147,2) -> 41.2 | H147: ca
A148: SINAPI | B148: 93595 | C148: =PROPER(IF(H148="i",VLOOKUP(B148,'Ins SINAPI BA 07-2025 Onerado'!$B$11:$F$50003,2,0),VLOOKUP(B148,'Comp SINAPI BA 07-2025 Onerado'!$B$11:$C$50004,2,0))) -> Transporte Com Caminhão Basculante De 10 M³, Em Via Urbana Em Revestimento Primário (Unidade: Txkm). Af_07/2020 | D148: =IF(H148="i",VLOOKUP(B148,'Ins SINAPI BA 07-2025 Onerado'!$B$11:$F$50003,2,0),VLOOKUP(B148,'Comp SINAPI BA 07-2025 Onerado'!$B$11:$G$50004,3,0)) -> TXKM | E148: =('Memorial de cálculo'!$H$8)*0.067 -> 0.8263333333 | F148: =IF(H148="i",VLOOKUP(B148,'Ins SINAPI BA 07-2025 Onerado'!$B$11:$F$50003,5,0),VLOOKUP(B148,'Comp SINAPI BA 07-2025 Onerado'!$B$11:$E$50004,4,0)) -> 1.83 | G148: =TRUNC(E148*F148,2) -> 1.51 | H148: ca | I148: Transporte do meio-fio pré fabricado (PESO = 67 KG)
A149: SINAPI | B149: 95878 | C149: =PROPER(IF(H149="i",VLOOKUP(B149,'Ins SINAPI BA 07-2025 Onerado'!$B$11:$F$50003,2,0),VLOOKUP(B149,'Comp SINAPI BA 07-2025 Onerado'!$B$11:$C$50004,2,0))) -> Transporte Com Caminhão Basculante De 10 M³, Em Via Urbana Pavimentada, Dmt Até 30 Km (Unidade: Txkm). Af_07/2020 | D149: =IF(H149="i",VLOOKUP(B149,'Ins SINAPI BA 07-2025 Onerado'!$B$11:$F$50003,2,0),VLOOKUP(B149,'Comp SINAPI BA 07-2025 Onerado'!$B$11:$G$50004,3,0)) -> TXKM | E149: =30*0.067 -> 2.01 | F149: =IF(H149="i",VLOOKUP(B149,'Ins SINAPI BA 07-2025 Onerado'!$B$11:$F$50003,5,0),VLOOKUP(B149,'Comp SINAPI BA 07-2025 Onerado'!$B$11:$E$50004,4,0)) -> 1.68 | G149: =TRUNC(E149*F149,2) -> 3.37 | H149: ca | I149: Transporte do meio-fio pré fabricado (PESO = 67 KG)
A150: SINAPI | B150: 93596 | C150: =PROPER(IF(H150="i",VLOOKUP(B150,'Ins SINAPI BA 07-2025 Onerado'!$B$11:$F$50003,2,0),VLOOKUP(B150,'Comp SINAPI BA 07-2025 Onerado'!$B$11:$C$50004,2,0))) -> Transporte Com Caminhão Basculante De 10 M³, Em Via Urbana Pavimentada, Adicional Para Dmt Excedente A 30 Km (Unidade: Txkm). Af_07/2020 | D150: =IF(H150="i",VLOOKUP(B150,'Ins SINAPI BA 07-2025 Onerado'!$B$11:$F$50003,2,0),VLOOKUP(B150,'Comp SINAPI BA 07-2025 Onerado'!$B$11:$G$50004,3,0)) -> TXKM | E150: =('Memorial de cálculo'!$H$7-30)*0.067 -> 1.382433333 | F150: =IF(H150="i",VLOOKUP(B150,'Ins SINAPI BA 07-2025 Onerado'!$B$11:$F$50003,5,0),VLOOKUP(B150,'Comp SINAPI BA 07-2025 Onerado'!$B$11:$E$50004,4,0)) -> 0.66 | G150: =TRUNC(E150*F150,2) -> 0.91 | H150: ca | I150: Transporte do meio-fio pré fabricado (PESO = 67 KG)
A151: PRÓPRIA | B151: CODE | C151: Hospedagem | D151: un | E151: ='Memorial de cálculo'!D79*'Memorial de cálculo'!H79+'Memorial de cálculo'!D80*'Memorial de cálculo'!H80 -> 0.0574 | F151: ='CPU HOSPEDAGEM'!C19 -> 91.76450758 | G151: =TRUNC(E151*F151,2) -> 5.26 | H151: ca
A152: PRÓPRIA | B152: CODE | C152: Veículo para serviço tipo pick-up, cabine dupla - 2.0 16V 4x4 diesel Aut. | D152: dia | E152: =LARGE('Memorial de cálculo'!H79:H80,1) -> 0.009566666667 | F152: ='CPU-VEICULO_Serviços'!$C$11 -> 216.8748526 | G152: =TRUNC(E152*F152,2) -> 2.07 | H152: ca
A153: =B143 -> CPU.13 | C153: MÃO DE OBRA | G153: 0 | H153: mdo
B155: CPU.14 | C155: Disponibilidade de veículo para apoio a fiscalização, inclusive combustível | D155: un | E155: 1 | G155: =SUM(G160,G158,G157,G156) -> 173.86 | H155: S
A156: =B155 -> CPU.14 | C156: MATERIAL | G156: 0 | H156: ss
A157: =B155 -> CPU.14 | C157: EQUIPAMENTOS | G157: 0 | H157: ss
A158: =B155 -> CPU.14 | C158: SERVIÇOS | G158: =SUM(G159) -> 173.86 | H158: ss
A159: PRÓPRIA | B159: CODE | C159: Veículo para fiscalização tipo pick-up, cabine dupla - 2.0 16V 4x4 diesel Aut. | D159: dia | E159: 1 | F159: ='CPU-VEICULO_Fiscalização'!$C$11 -> 173.8610059 | G159: =TRUNC(E159*F159,2) -> 173.86 | H159: ca
A160: =B155 -> CPU.14 | C160: MÃO DE OBRA | G160: 0 | H160: mdo
B162: CPU.15 | C162: Selagem de fissuras com resina epóxi | D162: m | E162: 1 | G162: =SUM(G167,G165,G164,G163) -> 25.82 | H162: S
A163: =B162 -> CPU.15 | C163: MATERIAL | G163: 0 | H163: ss
A164: =B162 -> CPU.15 | C164: EQUIPAMENTOS | G164: 0 | H164: ss
A165: =B162 -> CPU.15 | C165: SERVIÇOS | G165: =SUM(G166) -> 22.17 | H165: ss
A166: SICRO | B166: 4915653 | C166: Selagem superficial de fissuras com adesivo estrutural à base de resina epóxi de alta viscosidade, inclusive limpeza superficial - fornecimento e aplicação | D166: kg | E166: 0.3 | F166: 73.91 | G166: 22.17 | H166: ca
A167: =B162 -> CPU.15 | C167: MÃO DE OBRA | G167: =SUM(G168:G169) -> 3.65 | H167: mdo
A168: PRÓPRIA | B168: CODE | C168: Hospedagem | D168: un | E168: ='Memorial de cálculo'!D84*'Memorial de cálculo'!H84 -> 0.01187287476 | F168: ='CPU HOSPEDAGEM'!$C$19 -> 91.76450758 | G168: =TRUNC(E168*F168,2) -> 1.08 | H168: ca
A169: PRÓPRIA | B169: CODE | C169: Veículo para serviço tipo pick-up, cabine dupla - 2.0 16V 4x4 diesel Aut. | D169: dia | E169: =LARGE('Memorial de cálculo'!H84:H84,1) -> 0.01187287476 | F169: ='CPU-VEICULO_Serviços'!$C$11 -> 216.8748526 | G169: =TRUNC(E169*F169,2) -> 2.57 | H169: ca
B171: CPU.16 | C171: Irrigação - inclusive transporte | D171: m3 | E171: 1 | G171: =SUM(G179,G174,G173,G172) -> 172.87 | H171: S
A172: =B171 -> CPU.16 | C172: MATERIAL | G172: 0 | H172: ss
A173: =B171 -> CPU.16 | C173: EQUIPAMENTOS | G173: 0 | H173: ss
A174: =B171 -> CPU.16 | C174: SERVIÇOS | G174: =SUM(G175:G178) -> 172.87 | H174: ss
A175: SINAPI | B175: 101006 | C175: =PROPER(IF(H175="i",VLOOKUP(B175,'Ins SINAPI BA 07-2025 Onerado'!$B$11:$F$50003,2,0),VLOOKUP(B175,'Comp SINAPI BA 07-2025 Onerado'!$B$11:$C$50004,2,0))) -> Carga, Manobra E Descarga De Água Em Caminhão Pipa 10 M³. Af_07/2020 | D175: =IF(H175="i",VLOOKUP(B175,'Ins SINAPI BA 07-2025 Onerado'!$B$11:$F$50003,2,0),VLOOKUP(B175,'Comp SINAPI BA 07-2025 Onerado'!$B$11:$G$50004,3,0)) -> M3 | E175: 1 | F175: =IF(H175="i",VLOOKUP(B175,'Ins SINAPI BA 07-2025 Onerado'!$B$11:$F$50003,5,0),VLOOKUP(B175,'Comp SINAPI BA 07-2025 Onerado'!$B$11:$E$50004,4,0)) -> 21.15 | G175: =TRUNC(E175*F175,2) -> 21.15 | H175: ca
A176: SINAPI | B176: 100961 | C176: =PROPER(IF(H176="i",VLOOKUP(B176,'Ins SINAPI BA 07-2025 Onerado'!$B$11:$F$50003,2,0),VLOOKUP(B176,'Comp SINAPI BA 07-2025 Onerado'!$B$11:$C$50004,2,0))) -> Transporte Com Caminhão Pipa De 10 M³, Em Via Urbana Em Revestimento Primário (Unidade: M3Xkm). Af_07/2020 | D176: =IF(H176="i",VLOOKUP(B176,'Ins SINAPI BA 07-2025 Onerado'!$B$11:$F$50003,2,0),VLOOKUP(B176,'Comp SINAPI BA 07-2025 Onerado'!$B$11:$G$50004,3,0)) -> M3XKM | E176: ='Memorial de cálculo'!H8 -> 12.33333333 | F176: =IF(H176="i",VLOOKUP(B176,'Ins SINAPI BA 07-2025 Onerado'!$B$11:$F$50003,5,0),VLOOKUP(B176,'Comp SINAPI BA 07-2025 Onerado'!$B$11:$E$50004,4,0)) -> 3.21 | G176: =TRUNC(E176*F176,2) -> 39.59 | H176: ca
A177: SINAPI | B177: 100962 | C177: =PROPER(IF(H177="i",VLOOKUP(B177,'Ins SINAPI BA 07-2025 Onerado'!$B$11:$F$50003,2,0),VLOOKUP(B177,'Comp SINAPI BA 07-2025 Onerado'!$B$11:$C$50004,2,0))) -> Transporte Com Caminhão Pipa De 10 M³, Em Via Urbana Pavimentada, Dmt Até 30Km (Unidade: M3Xkm). Af_07/2020 | D177: =IF(H177="i",VLOOKUP(B177,'Ins SINAPI BA 07-2025 Onerado'!$B$11:$F$50003,2,0),VLOOKUP(B177,'Comp SINAPI BA 07-2025 Onerado'!$B$11:$G$50004,3,0)) -> M3XKM | E177: 30 | F177: =IF(H177="i",VLOOKUP(B177,'Ins SINAPI BA 07-2025 Onerado'!$B$11:$F$50003,5,0),VLOOKUP(B177,'Comp SINAPI BA 07-2025 Onerado'!$B$11:$E$50004,4,0)) -> 2.94 | G177: 88.2 | H177: ca
A178: SINAPI | B178: 100963 | C178: =PROPER(IF(H178="i",VLOOKUP(B178,'Ins SINAPI BA 07-2025 Onerado'!$B$11:$F$50003,2,0),VLOOKUP(B178,'Comp SINAPI BA 07-2025 Onerado'!$B$11:$C$50004,2,0))) -> Transporte Com Caminhão Pipa De 10 M³, Em Via Urbana Pavimentada, Adicional Para Dmt Excedente A 30 Km (Unidade: M3Xkm). Af_07/2020 | D178: =IF(H178="i",VLOOKUP(B178,'Ins SINAPI BA 07-2025 Onerado'!$B$11:$F$50003,2,0),VLOOKUP(B178,'Comp SINAPI BA 07-2025 Onerado'!$B$11:$G$50004,3,0)) -> M3XKM | E178: ='Memorial de cálculo'!H7-30 -> 20.63333333 | F178: =IF(H178="i",VLOOKUP(B178,'Ins SINAPI BA 07-2025 Onerado'!$B$11:$F$50003,5,0),VLOOKUP(B178,'Comp SINAPI BA 07-2025 Onerado'!$B$11:$E$50004,4,0)) -> 1.16 | G178: =TRUNC(E178*F178,2) -> 23.93 | H178: ca
A179: =B171 -> CPU.16 | C179: MÃO DE OBRA | G179: 0 | H179: mdo
B181: CPU.17 | C181: Injeção de nata de cimento em buracos | D181: m3 | E181: 1 | G181: =SUM(G188,G184,G183,G182) -> 991.88 | H181: S
A182: =B181 -> CPU.17 | C182: MATERIAL | G182: 0 | H182: ss
A183: =B181 -> CPU.17 | C183: EQUIPAMENTOS | G183: 0 | H183: ss
A184: =B181 -> CPU.17 | C184: SERVIÇOS | G184: =SUM(G185:G187) -> 991.88 | H184: ss
A185: SICRO | B185: 3816196 | C185: Injeção de nata de cimento | D185: m3 | E185: 1 | F185: 953.31 | G185: =TRUNC(E185*F185,2) -> 953.31 | H185: ca
A186: PRÓPRIA | B186: CODE | C186: Hospedagem | D186: un | E186: ='Memorial de cálculo'!D88*'Memorial de cálculo'!H88 -> 0.125 | F186: ='CPU HOSPEDAGEM'!$C$19 -> 91.76450758 | G186: =TRUNC(E186*F186,2) -> 11.47 | H186: ca
A187: PRÓPRIA | B187: CODE | C187: Veículo para serviço tipo pick-up, cabine dupla - 2.0 16V 4x4 diesel Aut. | D187: dia | E187: =LARGE('Memorial de cálculo'!H88:H88,1) -> 0.125 | F187: ='CPU-VEICULO_Serviços'!$C$11 -> 216.8748526 | G187: =TRUNC(E187*F187,2) -> 27.1 | H187: ca
A188: =B181 -> CPU.17 | C188: MÃO DE OBRA | G188: 0 | H188: mdo
B190: CPU.18 | C190: Recuperação com uso de argamassa | D190: m3 | E190: 1 | G190: =SUM(G197,G193,G192,G191) -> 1681.37 | H190: S
A191: =B190 -> CPU.18 | C191: MATERIAL | G191: 0 | H191: ss
A192: =B190 -> CPU.18 | C192: EQUIPAMENTOS | G192: 0 | H192: ss
A193: =B190 -> CPU.18 | C193: SERVIÇOS | G193: =SUM(G194:G196) -> 1291.45 | H193: ss
A194: SINAPI | B194: 100480 | C194: =PROPER(IF(H194="i",VLOOKUP(B194,'Ins SINAPI BA 07-2025 Onerado'!$B$11:$F$50003,2,0),VLOOKUP(B194,'Comp SINAPI BA 07-2025 Onerado'!$B$11:$C$50004,2,0))) -> Argamassa Traço 1:3 (Em Volume De Cimento E Areia Média Úmida) Com Adição De Impermeabilizante, Preparo Manual. Af_08/2019 | D194: =IF(H194="i",VLOOKUP(B194,'Ins SINAPI BA 07-2025 Onerado'!$B$11:$F$50003,2,0),VLOOKUP(B194,'Comp SINAPI BA 07-2025 Onerado'!$B$11:$G$50004,3,0)) -> M3 | E194: 1 | F194: =IF(H194="i",VLOOKUP(B194,'Ins SINAPI BA 07-2025 Onerado'!$B$11:$F$10003,5,0),VLOOKUP(B194,'Comp SINAPI BA 07-2025 Onerado'!$B$11:$E$10004,4,0)) -> 891.06 | G194: =TRUNC(E194*F194,2) -> 891.06 | H194: ca
A195: PRÓPRIA | B195: CODE | C195: Hospedagem | D195: un | E195: ='Memorial de cálculo'!D93*'Memorial de cálculo'!H93 -> 2 | F195: ='CPU HOSPEDAGEM'!$C$19 -> 91.76450758 | G195: =TRUNC(E195*F195,2) -> 183.52 | H195: ca
A196: PRÓPRIA | B196: CODE | C196: Veículo para serviço tipo pick-up, cabine dupla - 2.0 16V 4x4 diesel Aut. | D196: dia | E196: =LARGE('Memorial de cálculo'!H93:H93,1) -> 1 | F196: ='CPU-VEICULO_Serviços'!$C$11 -> 216.8748526 | G196: =TRUNC(E196*F196,2) -> 216.87 | H196: ca
A197: =B190 -> CPU.18 | C197: MÃO DE OBRA | G197: =SUM(G198) -> 389.92 | H197: mdo
A198: SINAPI | B198: 88316 | C198: =PROPER(IF(H198="i",VLOOKUP(B198,'Ins SINAPI BA 07-2025 Onerado'!$B$11:$F$50003,2,0),VLOOKUP(B198,'Comp SINAPI BA 07-2025 Onerado'!$B$11:$C$50004,2,0))) -> Servente Com Encargos Complementares | D198: =IF(H198="i",VLOOKUP(B198,'Ins SINAPI BA 07-2025 Onerado'!$B$11:$F$50003,2,0),VLOOKUP(B198,'Comp SINAPI BA 07-2025 Onerado'!$B$11:$G$50004,3,0)) -> H | E198: 16 | F198: =IF(H198="i",VLOOKUP(B198,'Ins SINAPI BA 07-2025 Onerado'!$B$11:$F$10003,5,0),VLOOKUP(B198,'Comp SINAPI BA 07-2025 Onerado'!$B$11:$E$10004,4,0)) -> 24.37 | G198: =TRUNC(E198*F198,2) -> 389.92 | H198: ca
B200: CPU.19 | C200: Régua Linimétrica Padrão “ANA”, Aço Carbono - 2 X 70 X 1000 mm (Fornecimento e Instalação) | D200: un | E200: 1 | G200: =SUM(G209,G205,G204,G201) -> 381.5 | H200: S
A201: =B200 -> CPU.19 | C201: MATERIAL | G201: =SUM(G202:G203) -> 233.59 | H201: ss
A202: 2025-05-16 | B202: cotação | C202: RÉGUA LINIMÉTRICA PADRÃO “ANA”, AÇO CARBONO - 2 X 70 X 1000MM | D202: un | E202: 1 | F202: =Cotação!O11 -> 176.62 | G202: =TRUNC(E202*F202,2) -> 176.62 | H202: ca
A203: SINAPI | B203: 2747 | C203: =PROPER(IF(H203="i",VLOOKUP(B203,'Ins SINAPI BA 07-2025 Onerado'!$B$11:$F$50003,2,0),VLOOKUP(B203,'Comp SINAPI BA 07-2025 Onerado'!$B$11:$C$50004,2,0))) -> Mourao Rolico De Madeira Tratada, D = 16 A 20 Cm, H = 2,20 M, Em Eucalipto Ou Equivalente Da Regiao (Para Cerca) | D203: =IF(H203="i",VLOOKUP(B203,'Ins SINAPI BA 07-2025 Onerado'!$B$11:$F$50003,3,0),VLOOKUP(B203,'Comp SINAPI BA 07-2025 Onerado'!$B$11:$G$50004,3,0)) -> M | E203: 1.5 | F203: =IF(H203="i",VLOOKUP(B203,'Ins SINAPI BA 07-2025 Onerado'!$B$11:$F$10003,5,0),VLOOKUP(B203,'Comp SINAPI BA 07-2025 Onerado'!$B$11:$E$10004,4,0)) -> 37.98 | G203: =TRUNC(E203*F203,2) -> 56.97 | H203: i
A204: =B200 -> CPU.19 | C204: EQUIPAMENTOS | G204: 0 | H204: ss
A205: =B200 -> CPU.19 | C205: SERVIÇOS | G205: =SUM(G206:G208) -> 76.45 | H205: ss
A206: SINAPI | B206: 94975 | C206: =PROPER(IF(H206="i",VLOOKUP(B206,'Ins SINAPI BA 07-2025 Onerado'!$B$11:$F$50003,2,0),VLOOKUP(B206,'Comp SINAPI BA 07-2025 Onerado'!$B$11:$C$50004,2,0))) -> Concreto Fck = 15Mpa, Traço 1:3,4:3,5 (Em Massa Seca De Cimento/ Areia Média/ Brita 1) - Preparo Manual. Af_05/2021 | D206: =IF(H206="i",VLOOKUP(B206,'Ins SINAPI BA 07-2025 Onerado'!$B$11:$F$50003,2,0),VLOOKUP(B206,'Comp SINAPI BA 07-2025 Onerado'!$B$11:$G$50004,3,0)) -> M3 | E206: 0.01 | F206: =IF(H206="i",VLOOKUP(B206,'Ins SINAPI BA 07-2025 Onerado'!$B$11:$F$10003,5,0),VLOOKUP(B206,'Comp SINAPI BA 07-2025 Onerado'!$B$11:$E$10004,4,0)) -> 556.48 | G206: =TRUNC(E206*F206,2) -> 5.56 | H206: ca
A207: PRÓPRIA | B207: CODE | C207: Hospedagem | D207: un | E207: ='Memorial de cálculo'!D97*'Memorial de cálculo'!H97+'Memorial de cálculo'!D98*'Memorial de cálculo'!H98 -> 0.3 | F207: ='CPU HOSPEDAGEM'!$C$19 -> 91.76450758 | G207: =TRUNC(E207*F207,2) -> 27.52 | H207: ca
A208: PRÓPRIA | B208: CODE | C208: Veículo para serviço tipo pick-up, cabine dupla - 2.0 16V 4x4 diesel Aut. | D208: dia | E208: =LARGE('Memorial de cálculo'!H97:H98,1) -> 0.2 | F208: ='CPU-VEICULO_Serviços'!$C$11 -> 216.8748526 | G208: =TRUNC(E208*F208,2) -> 43.37 | H208: ca
A209: =B200 -> CPU.19 | C209: MÃO DE OBRA | G209: =SUM(G210:G211) -> 71.46 | H209: mdo
A210: SINAPI | B210: 90781 | C210: =PROPER(IF(H210="i",VLOOKUP(B210,'Ins SINAPI BA 07-2025 Onerado'!$B$11:$F$50003,2,0),VLOOKUP(B210,'Comp SINAPI BA 07-2025 Onerado'!$B$11:$C$50004,2,0))) -> Topografo Com Encargos Complementares | D210: =IF(H210="i",VLOOKUP(B210,'Ins SINAPI BA 07-2025 Onerado'!$B$11:$F$50003,2,0),VLOOKUP(B210,'Comp SINAPI BA 07-2025 Onerado'!$B$11:$G$50004,3,0)) -> H | E210: 0.8 | F210: =IF(H210="i",VLOOKUP(B210,'Ins SINAPI BA 07-2025 Onerado'!$B$11:$F$10003,5,0),VLOOKUP(B210,'Comp SINAPI BA 07-2025 Onerado'!$B$11:$E$10004,4,0)) -> 40.59 | G210: =TRUNC(E210*F210,2) -> 32.47 | H210: ca
A211: SINAPI | B211: 88316 | C211: =PROPER(IF(H211="i",VLOOKUP(B211,'Ins SINAPI BA 07-2025 Onerado'!$B$11:$F$50003,2,0),VLOOKUP(B211,'Comp SINAPI BA 07-2025 Onerado'!$B$11:$C$50004,2,0))) -> Servente Com Encargos Complementares | D211: =IF(H211="i",VLOOKUP(B211,'Ins SINAPI BA 07-2025 Onerado'!$B$11:$F$50003,2,0),VLOOKUP(B211,'Comp SINAPI BA 07-2025 Onerado'!$B$11:$G$50004,3,0)) -> H | E211: 1.6 | F211: =IF(H211="i",VLOOKUP(B211,'Ins SINAPI BA 07-2025 Onerado'!$B$11:$F$10003,5,0),VLOOKUP(B211,'Comp SINAPI BA 07-2025 Onerado'!$B$11:$E$10004,4,0)) -> 24.37 | G211: =TRUNC(E211*F211,2) -> 38.99 | H211: ca
B213: CPU.20 | C213: Pintura do meio-fio | D213: m | E213: 1 | G213: =SUM(G220,G216,G215,G214) -> 2.88 | H213: S
A214: =B213 -> CPU.20 | C214: MATERIAL | G214: 0 | H214: ss
A215: =B213 -> CPU.20 | C215: EQUIPAMENTOS | G215: 0 | H215: ss
A216: =B213 -> CPU.20 | C216: SERVIÇOS | G216: =SUM(G217:G219) -> 2.88 | H216: ss
A217: SINAPI | B217: 102498 | C217: =PROPER(IF(H217="i",VLOOKUP(B217,'Ins SINAPI BA 07-2025 Onerado'!$B$11:$F$50003,2,0),VLOOKUP(B217,'Comp SINAPI BA 07-2025 Onerado'!$B$11:$C$50004,2,0))) -> Pintura De Meio-Fio Com Tinta Branca A Base De Cal (Caiação). Af_05/2021 | D217: =IF(H217="i",VLOOKUP(B217,'Ins SINAPI BA 07-2025 Onerado'!$B$11:$F$50003,2,0),VLOOKUP(B217,'Comp SINAPI BA 07-2025 Onerado'!$B$11:$G$50004,3,0)) -> M | E217: 1 | F217: =IF(H217="i",VLOOKUP(B217,'Ins SINAPI BA 07-2025 Onerado'!$B$11:$F$10003,5,0),VLOOKUP(B217,'Comp SINAPI BA 07-2025 Onerado'!$B$11:$E$10004,4,0)) -> 1.95 | G217: =TRUNC(E217*F217,2) -> 1.95 | H217: ca
A218: PRÓPRIA | B218: CODE | C218: Hospedagem | D218: un | E218: ='Memorial de cálculo'!D102*'Memorial de cálculo'!H102+'Memorial de cálculo'!D103*'Memorial de cálculo'!H103 -> 0.006625 | F218: ='CPU HOSPEDAGEM'!$C$19 -> 91.76450758 | G218: =TRUNC(E218*F218,2) -> 0.6 | H218: ca
A219: PRÓPRIA | B219: CODE | C219: Veículo para serviço tipo pick-up, cabine dupla - 2.0 16V 4x4 diesel Aut. | D219: dia | E219: =LARGE('Memorial de cálculo'!H102:H103,1) -> 0.001541666667 | F219: ='CPU-VEICULO_Serviços'!$C$11 -> 216.8748526 | G219: =TRUNC(E219*F219,2) -> 0.33 | H219: ca
A220: =B213 -> CPU.20 | C220: MÃO DE OBRA | G220: 0 | H220: mdo
B222: CPU.21 | C222: Apicoamento da superfície | D222: m2 | E222: 1 | G222: =SUM(G230,G225,G224,G223) -> 21.24 | H222: S
... 82 more rows

Sheet Cronograma Macaúbas
A1: Ministério da Integração e do Desenvolvimento Regional
A2: Companhia de Desenvolvimento dos Vales do São Francisco e do Parnaíba
A4: CRONOGRAMA FÍSICO-FINANCEIRO NÃO DESONERADO
A5: =MACAÚBAS!A5 -> OBRA: | B5: =MACAÚBAS!B5:F5 -> Execução de manutenção e recuperação nas barragens de Macaúbas, Rio da Caixa e Baixão do Cecílio, localizadas no estado da Bahia.
A6: =MACAÚBAS!A6 -> LOCAL: | B6: =MACAÚBAS!B6 -> Macaúbas - BA
A7: =MACAÚBAS!A7 -> DATA BASE: | B7: =MACAÚBAS!B7 -> 2025-09-01
A8: =MACAÚBAS!A8 -> PRAZO: | B8: =MACAÚBAS!B8 -> 90 dias
B9: =MACAÚBAS!B9 -> Macaúbas
A10: ITEM | B10: DESCRIÇÃO | C10: TOTAL POR ETAPA | D10: MESES | G10: TOTAL
D11: 1 | E11: 2 | F11: 3
A12: 1 | B12: =VLOOKUP(A12,MACAÚBAS!A:I,4) -> ADMINISTRAÇÃO DA OBRA | C12: =VLOOKUP(A12,MACAÚBAS!A$11:I$1022,9) -> 109766.52 | D12: =$C12*D13 -> 42123.76506 | E12: =$C12*E13 -> 50040.92537 | F12: =$C12*F13 -> 17601.82958 | G12: =SUM(D12:F12) -> 109766.52 | H12: R$
C13: =C12/C12 -> 1 | D13: =SUMIF($H$14:$H$31,"R$",D$14:D$31)/$C$32 -> 0.3837578622 | E13: =SUMIF($H$14:$H$31,"R$",E$14:E$31)/$C$32+D34-D13 -> 0.4558851403 | F13: =1-SUM(D13:E13) -> 0.1603569975 | G13: 1 | H13: %
A14: 2 | B14: =VLOOKUP(A14,MACAÚBAS!A:I,4) -> SERVIÇOS PRELIMINARES | C14: =VLOOKUP(A14,MACAÚBAS!A$11:I$1022,9) -> 26422.19 | D14: =$C14*D15 -> 26422.19 | G14: 26422.19 | H14: R$
C15: =C14/C14 -> 1 | D15: 1 | G15: 1 | H15: %
A16: 3 | B16: =VLOOKUP(A16,MACAÚBAS!A:I,4) -> CORTE DA VEGETAÇÃO E REMOÇÃO DAS RAIZES | C16: =VLOOKUP(A16,MACAÚBAS!A$11:I$1022,9) -> 73851.6 | D16: =$C16*D17 -> 73851.6 | G16: 73851.6 | H16: R$
C17: =C16/C16 -> 1 | D17: 1 | G17: 1 | H17: %
A18: 4 | B18: =VLOOKUP(A18,MACAÚBAS!A:I,4) -> RECUPERAÇÃO DO MACIÇO | C18: =VLOOKUP(A18,MACAÚBAS!A$11:I$1022,9) -> 5536.2 | D18: =$C18*D19 -> 5536.2 | G18: 5536.2 | H18: R$
C19: =C18/C18 -> 1 | D19: 1 | G19: 1 | H19: %
A20: 5 | B20: =VLOOKUP(A20,MACAÚBAS!A:I,4) -> REGULARIZAÇÃO E PAVIMENTAÇÃO DA CRISTA | C20: =VLOOKUP(A20,MACAÚBAS!A$11:I$1022,9) -> 387273.46 | D20: =$C20*D21 -> 193636.73 | E20: =$C20*E21 -> 193636.73 | G20: 387273.46 | H20: R$
C21: =C20/C20 -> 1 | D21: 0.5 | E21: 0.5 | G21: 1 | H21: %
A22: 6 | B22: =VLOOKUP(A22,MACAÚBAS!A:I,4) -> MANUTENÇÃO NO TALUDE DE MONTANTE | C22: =VLOOKUP(A22,MACAÚBAS!A$11:I$1022,9) -> 14501.27 | E22: =$C22*E23 -> 14501.27 | G22: 14501.27 | H22: R$
C23: =C22/C22 -> 1 | E23: 1 | G23: 1 | H23: %
A24: 7 | B24: =VLOOKUP(A24,MACAÚBAS!A:I,4) -> PROTEÇÃO SUPERFICIAL DO TALUDE DE JUSANTE | C24: =VLOOKUP(A24,MACAÚBAS!A$11:I$1022,9) -> 132200.86 | E24: =$C24*E25 -> 105760.688 | F24: =$C24*F25 -> 26440.172 | G24: 132200.86 | H24: R$
C25: =C24/C24 -> 1 | E25: 0.8 | F25: 0.2 | G25: 1 | H25: %
A26: 8 | B26: =VLOOKUP(A26,MACAÚBAS!A:I,4) -> SERVIÇOS COMPLEMENTARES | C26: =VLOOKUP(A26,MACAÚBAS!A$11:I$1022,9) -> 4550.8 | F26: =$C26*F27 -> 4550.8 | G26: 4550.8 | H26: R$
C27: =C26/C26 -> 1 | F27: 1 | G27: 1 | H27: %
A28: 9 | B28: =VLOOKUP(A28,MACAÚBAS!A:I,4) -> PROJETO "AS IS" | C28: =VLOOKUP(A28,MACAÚBAS!A$11:I$1022,9) -> 26243.63 | F28: =$C28*F29 -> 26243.63 | G28: 26243.63 | H28: R$
C29: =C28/C28 -> 1 | F29: 1 | G29: 1 | H29: %
A30: 10 | B30: =VLOOKUP(A30,MACAÚBAS!A:I,4) -> FISCALIZAÇÃO E ACOMPANHAMENTO | C30: =VLOOKUP(A30,MACAÚBAS!A$11:I$1022,9) -> 1071.05 | D30: =$C30*D31 -> 428.42 | E30: =$C30*E31 -> 214.21 | F30: =$C30*F31 -> 428.42 | G30: 1071.05 | H30: R$
C31: 1 | D31: =2/5 -> 0.4 | E31: =1/5 -> 0.2 | F31: =2/5 -> 0.4 | G31: 1 | H31: %
B32: VALOR TOTAL: | C32: =SUMIF($H$12:$H$31,"R$",C$12:C$31) -> 781417.58 | D32: =SUMIF($H$12:$H$31,"R$",D$12:D$31) -> 341998.9051 | E32: =SUMIF($H$12:$H$31,"R$",E$12:E$31) -> 364153.8234 | F32: =SUMIF($H$12:$H$31,"R$",F$12:F$31) -> 75264.85158 | G32: =SUMIF($H$12:$H$31,"R$",G$12:G$31) -> 781417.58
B33: VALOR ACUMULADO: | D33: =D32 -> 341998.9051 | E33: =E32+D33 -> 706152.7284 | F33: =F32+E33 -> 781417.58 | G33: =G32 -> 781417.58 | L33: =IF(G33=MACAÚBAS!I72,"ok","verificar") -> ok
B34: FÍSICO PARCIAL: | D34: =SUMIF($H$12:$H$31,"R$",D$12:D$31)/$C$32 -> 0.4376647183 | E34: =SUMIF($H$12:$H$31,"R$",E$12:E$31)/$C$32 -> 0.4660169322 | F34: =SUMIF($H$12:$H$31,"R$",F$12:F$31)/$C$32 -> 0.0963183495 | G34: =SUMIF($H$12:$H$31,"R$",G$12:G$31)/$C$32 -> 1
B35: AVANÇO FÍSICO: | D35: =D34 -> 0.4376647183 | E35: =E34+D35 -> 0.9036816505 | F35: =F34+E35 -> 1

Sheet Cronograma Rio da Caixa
A1: Ministério da Integração e do Desenvolvimento Regional
A2: Companhia de Desenvolvimento dos Vales do São Francisco e do Parnaíba
A4: CRONOGRAMA FÍSICO-FINANCEIRO NÃO DESONERADO
A5: =MACAÚBAS!A5 -> OBRA: | B5: ='RIO DA CAIXA'!B5:F5 -> Execução de manutenção e recuperação nas barragens de Macaúbas, Rio da Caixa e Baixão do Cecílio, localizadas no estado da Bahia.
A6: =MACAÚBAS!A6 -> LOCAL: | B6: ='RIO DA CAIXA'!B6 -> Rio do Pires - BA
A7: =MACAÚBAS!A7 -> DATA BASE: | B7: ='RIO DA CAIXA'!B7 -> 2025-09-01
A8: =MACAÚBAS!A8 -> PRAZO: | B8: ='RIO DA CAIXA'!B8 -> 90 dias
B9: ='RIO DA CAIXA'!B9 -> Rio da Caixa
A10: ITEM | B10: DESCRIÇÃO | C10: TOTAL POR ETAPA | D10: MESES | G10: TOTAL
D11: 1 | E11: 2 | F11: 3
A12: 1 | B12: =VLOOKUP(A12,'RIO DA CAIXA'!A:I,4) -> ADMINISTRAÇÃO DA OBRA | C12: =VLOOKUP(A12,'RIO DA CAIXA'!A$11:I$1018,9) -> 109766.52 | D12: =$C12*D13 -> 34656.50241 | E12: =$C12*E13 -> 44800.61443 | F12: =$C12*F13 -> 30309.40316 | G12: =SUM(D12:F12) -> 109766.52 | H12: R$
C13: =C12/C12 -> 1 | D13: =SUMIF($H$14:$H$31,"R$",D$14:D$31)/$C$32 -> 0.3157292625 | E13: =SUMIF($H$14:$H$31,"R$",E$14:E$31)/$C$32+D34-D13 -> 0.4081446185 | F13: =1-SUM(D13:E13) -> 0.276126119 | G13: =SUM(D13:F13) -> 1 | H13: %
A14: 2 | B14: =VLOOKUP(A14,'RIO DA CAIXA'!A:I,4) -> SERVIÇOS PRELIMINARES | C14: =VLOOKUP(A14,'RIO DA CAIXA'!A$11:I$1018,9) -> 26422.19 | D14: =$C14*D15 -> 26422.19 | G14: 26422.19 | H14: R$
C15: =C14/C14 -> 1 | D15: 1 | G15: 1 | H15: %
A16: 3 | B16: =VLOOKUP(A16,'RIO DA CAIXA'!A:I,4) -> CORTE DA VEGETAÇÃO E REMOÇÃO DAS RAIZES | C16: =VLOOKUP(A16,'RIO DA CAIXA'!A$11:I$1018,9) -> 21115.9 | D16: =$C16*D17 -> 21115.9 | G16: 21115.9 | H16: R$
C17: =C16/C16 -> 1 | D17: 1 | G17: 1 | H17: %
A18: 4.1 | B18: =VLOOKUP(A18,'RIO DA CAIXA'!A:I,4) -> Recuperação da Crista | C18: =VLOOKUP(A18,'RIO DA CAIXA'!A$11:I$1018,9) -> 26174.03 | D18: =$C18*D19 -> 26174.03 | G18: 26174.03 | H18: R$
C19: =C18/C18 -> 1 | D19: 1 | G19: 1 | H19: %
A20: 4.2 | B20: =VLOOKUP(A20,'RIO DA CAIXA'!A:I,4) -> Recuperação do Paramento de Montante | C20: =VLOOKUP(A20,'RIO DA CAIXA'!A$11:I$1018,9) -> 34111.5 | D20: =$C20*D21 -> 34111.5 | G20: =SUM(D20:F20) -> 34111.5 | H20: R$
C21: 1 | D21: 1 | G21: 1 | H21: %
A22: 4.3 | B22: =VLOOKUP(A22,'RIO DA CAIXA'!A:I,4) -> Recuperação do Paramento de Jusante | C22: =VLOOKUP(A22,'RIO DA CAIXA'!A$11:I$1018,9) -> 99235.69 | E22: =$C22*E23 -> 99235.69 | G22: =SUM(D22:F22) -> 99235.69 | H22: R$
C23: 1 | E23: 1 | G23: 1 | H23: %
A24: 5 | B24: =VLOOKUP(A24,'RIO DA CAIXA'!A:I,4) -> PROTEÇÃO DE DESCALÇAMENTO DO PÉ DO VERTEDOURO | C24: =VLOOKUP(A24,'RIO DA CAIXA'!A$11:I$1018,9) -> 5831.49 | E24: =$C24*E25 -> 5831.49 | G24: 5831.49 | H24: R$
C25: =C24/C24 -> 1 | E25: 1 | G25: 1 | H25: %
A26: 6 | B26: =VLOOKUP(A26,'RIO DA CAIXA'!A:I,4) -> SERVIÇOS COMPLEMENTARES | C26: =VLOOKUP(A26,'RIO DA CAIXA'!A$11:I$1018,9) -> 5960.92 | F26: =$C26*F27 -> 5960.92 | G26: 5960.92 | H26: R$
C27: =C26/C26 -> 1 | F27: 1 | G27: 1 | H27: %
A28: 7 | B28: =VLOOKUP(A28,'RIO DA CAIXA'!A:I,4) -> PROJETO "AS IS" | C28: =VLOOKUP(A28,'RIO DA CAIXA'!A$11:I$1018,9) -> 13174.21 | F28: =$C28*F29 -> 13174.21 | G28: 13174.21 | H28: R$
C29: =C28/C28 -> 1 | F29: 1 | G29: 1 | H29: %
A30: 8 | B30: =VLOOKUP(A30,'RIO DA CAIXA'!A:I,4) -> FISCALIZAÇÃO E ACOMPANHAMENTO | C30: =VLOOKUP(A30,'RIO DA CAIXA'!A$11:I$1018,9) -> 1071.05 | D30: =$C30*D31 -> 428.42 | E30: =$C30*E31 -> 214.21 | F30: =$C30*F31 -> 428.42 | G30: 1071.05 | H30: R$
C31: =C30/C30 -> 1 | D31: =2/5 -> 0.4 | E31: =1/5 -> 0.2 | F31: =2/5 -> 0.4 | G31: 1 | H31: %
B32: VALOR TOTAL: | C32: =SUMIF($H$12:$H$31,"R$",C$12:C$31) -> 342863.5 | D32: =SUMIF($H$12:$H$31,"R$",D$12:D$31) -> 142908.5424 | E32: =SUMIF($H$12:$H$31,"R$",E$12:E$31) -> 150082.0044 | F32: =SUMIF($H$12:$H$31,"R$",F$12:F$31) -> 49872.95316 | G32: =SUMIF($H$12:$H$31,"R$",G$12:G$31) -> 342863.5
B33: VALOR ACUMULADO: | D33: =D32 -> 142908.5424 | E33: =E32+D33 -> 292990.5468 | F33: =F32+E33 -> 342863.5 | G33: =G32 -> 342863.5 | L33: =IF(G33='RIO DA CAIXA'!I67,"ok","verificar") -> ok
B34: FÍSICO PARCIAL: | D34: =SUMIF($H$12:$H$31,"R$",D$12:D$31)/$C$32 -> 0.4168088537 | E34: =SUMIF($H$12:$H$31,"R$",E$12:E$31)/$C$32 -> 0.4377310633 | F34: =SUMIF($H$12:$H$31,"R$",F$12:F$31)/$C$32 -> 0.145460083 | G34: =SUMIF($H$12:$H$31,"R$",G$12:G$31)/$C$32 -> 1
B35: AVANÇO FÍSICO: | D35: =D34 -> 0.4168088537 | E35: =E34+D35 -> 0.854539917 | F35: =F34+E35 -> 1

Sheet Cronograma Baixão do Cecílio
A1: Ministério da Integração e do Desenvolvimento Regional
A2: Companhia de Desenvolvimento dos Vales do São Francisco e do Parnaíba
A4: CRONOGRAMA FÍSICO-FINANCEIRO NÃO DESONERADO
A5: =MACAÚBAS!A5 -> OBRA: | B5: ='BAIXÃO DO CECÍLIO'!B5:F5 -> Execução de manutenção e recuperação nas barragens de Macaúbas, Rio da Caixa e Baixão do Cecílio, localizadas no estado da Bahia.
A6: =MACAÚBAS!A6 -> LOCAL: | B6: ='BAIXÃO DO CECÍLIO'!B6 -> Buritirama - BA
A7: =MACAÚBAS!A7 -> DATA BASE: | B7: ='BAIXÃO DO CECÍLIO'!B7 -> 2025-09-01
A8: =MACAÚBAS!A8 -> PRAZO: | B8: ='BAIXÃO DO CECÍLIO'!B8 -> 90 dias
B9: ='BAIXÃO DO CECÍLIO'!B9 -> Baixão do Cecílio
A10: ITEM | B10: DESCRIÇÃO | C10: TOTAL POR ETAPA | D10: MESES | G10: TOTAL
D11: 1 | E11: 2 | F11: 3
A12: 1 | B12: =VLOOKUP(A12,'BAIXÃO DO CECÍLIO'!A:I,4) -> ADMINISTRAÇÃO DA OBRA | C12: =VLOOKUP(A12,'BAIXÃO DO CECÍLIO'!A$11:I$1022,9) -> 109766.52 | D12: =$C12*D13 -> 26334.88795 | E12: =$C12*E13 -> 43774.14295 | F12: =$C12*F13 -> 39657.4891 | G12: =SUM(D12:F12) -> 109766.52 | H12: R$
C13: =C12/C12 -> 1 | D13: =SUMIF($H$14:$H$35,"R$",D$14:D$35)/$C$36 -> 0.2399173077 | E13: =SUMIF($H$14:$H$35,"R$",E$14:E$35)/$C$36+D38-D13 -> 0.3987932108 | F13: =1-SUM(D13:E13) -> 0.3612894815 | G13: 1 | H13: %
A14: 2 | B14: =VLOOKUP(A14,'BAIXÃO DO CECÍLIO'!A:I,4) -> SERVIÇOS PRELIMINARES | C14: =VLOOKUP(A14,'BAIXÃO DO CECÍLIO'!A$11:I$1022,9) -> 26422.19 | D14: =$C14*D15 -> 26422.19 | G14: 26422.19 | H14: R$
C15: =C14/C14 -> 1 | D15: 1 | G15: 1 | H15: %
A16: 3 | B16: =VLOOKUP(A16,'BAIXÃO DO CECÍLIO'!A:I,4) -> CORTE DA VEGETAÇÃO E REMOÇÃO DAS RAIZES | C16: =VLOOKUP(A16,'BAIXÃO DO CECÍLIO'!A$11:I$1022,9) -> 34542.2 | D16: =$C16*D17 -> 34542.2 | G16: 34542.2 | H16: R$
C17: =C16/C16 -> 1 | D17: 1 | G17: 1 | H17: %
A18: 4 | B18: =VLOOKUP(A18,'BAIXÃO DO CECÍLIO'!A:I,4) -> RECUPERAÇÃO DO MACIÇO | C18: =VLOOKUP(A18,'BAIXÃO DO CECÍLIO'!A$11:I$1022,9) -> 6263.77 | D18: =$C18*D19 -> 6263.77 | G18: 6263.77 | H18: R$
C19: =C18/C18 -> 1 | D19: 1 | G19: 1 | H19: %
A20: 5 | B20: =VLOOKUP(A20,'BAIXÃO DO CECÍLIO'!A:I,4) -> REGULARIZAÇÃO E PAVIMENTAÇÃO DA CRISTA | C20: =VLOOKUP(A20,'BAIXÃO DO CECÍLIO'!A$11:I$1022,9) -> 39212.86 | E20: =$C20*E21 -> 39212.86 | G20: 39212.86 | H20: R$
C21: =C20/C20 -> 1 | E21: 1 | G21: 1 | H21: %
A22: 6 | B22: =VLOOKUP(A22,'BAIXÃO DO CECÍLIO'!A:I,4) -> MANUTENÇÃO DO TALUDE DE MONTANTE | C22: =VLOOKUP(A22,'BAIXÃO DO CECÍLIO'!A$11:I$1022,9) -> 25213.74 | E22: =$C22*E23 -> 25213.74 | G22: 25213.74 | H22: R$
C23: =C22/C22 -> 1 | E23: 1 | G23: 1 | H23: %
A24: 7 | B24: =VLOOKUP(A24,'BAIXÃO DO CECÍLIO'!A:I,4) -> DRENAGEM SUPERFICIAL DO TALUDE DE JUSANTE | C24: =VLOOKUP(A24,'BAIXÃO DO CECÍLIO'!A$11:I$1022,9) -> 5554.08 | E24: =$C24*E25 -> 5554.08 | G24: 5554.08 | H24: R$
C25: =C24/C24 -> 1 | E25: 1 | G25: 1 | H25: %
A26: 8 | B26: =VLOOKUP(A26,'BAIXÃO DO CECÍLIO'!A:I,4) -> PROTEÇÃO SUPERFICIAL DO TALUDE DE JUSANTE | C26: =VLOOKUP(A26,'BAIXÃO DO CECÍLIO'!A$11:I$1022,9) -> 14138.66 | E26: =$C26*E27 -> 14138.66 | G26: 14138.66 | H26: R$
C27: =C26/C26 -> 1 | E27: 1 | G27: 1 | H27: %
A28: 9 | B28: =VLOOKUP(A28,'BAIXÃO DO CECÍLIO'!A:I,4) -> RECUPERAÇÃO DO VERTEDOURO | C28: =VLOOKUP(A28,'BAIXÃO DO CECÍLIO'!A$11:I$1022,9) -> 1791.08 | E28: =$C28*E29 -> 1791.08 | G28: 1791.08 | H28: R$
C29: =C28/C28 -> 1 | E29: 1 | G29: 1 | H29: %
A30: 10 | B30: =VLOOKUP(A30,'BAIXÃO DO CECÍLIO'!A:I,4) -> SERVIÇOS COMPLEMENTARES | C30: =VLOOKUP(A30,'BAIXÃO DO CECÍLIO'!A$11:I$1022,9) -> 4550.8 | F30: =$C30*F31 -> 4550.8 | G30: 4550.8 | H30: R$
C31: =C30/C30 -> 1 | F31: 1 | G31: 1 | H31: %
A32: 11 | B32: =VLOOKUP(A32,'BAIXÃO DO CECÍLIO'!A:I,4) -> PROJETO "AS IS" | C32: =VLOOKUP(A32,'BAIXÃO DO CECÍLIO'!A$11:I$1022,9) -> 13472.63 | F32: =$C32*F33 -> 13472.63 | G32: 13472.63 | H32: R$
C33: =C32/C32 -> 1 | F33: 1 | G33: 1 | H33: %
A34: 12 | B34: =VLOOKUP(A34,'BAIXÃO DO CECÍLIO'!A:I,4) -> FISCALIZAÇÃO E ACOMPANHAMENTO | C34: =VLOOKUP(A34,'BAIXÃO DO CECÍLIO'!A$11:I$1022,9) -> 1071.05 | D34: =$C34*D35 -> 428.42 | E34: =$C34*E35 -> 214.21 | F34: =$C34*F35 -> 428.42 | G34: 1071.05 | H34: R$
C35: =C34/C34 -> 1 | D35: =2/5 -> 0.4 | E35: =1/5 -> 0.2 | F35: =2/5 -> 0.4 | G35: 1 | H35: %
B36: VALOR TOTAL: | C36: =SUMIF($H$12:$H$35,"R$",C$12:C$35) -> 281999.58 | D36: =SUMIF($H$12:$H$35,"R$",D$12:D$35) -> 93991.46795 | E36: =SUMIF($H$12:$H$35,"R$",E$12:E$35) -> 129898.7729 | F36: =SUMIF($H$12:$H$35,"R$",F$12:F$35) -> 58109.3391 | G36: =SUMIF($H$12:$H$35,"R$",G$12:G$35) -> 281999.58
B37: VALOR ACUMULADO: | D37: =D36 -> 93991.46795 | E37: =E36+D37 -> 223890.2409 | F37: =F36+E37 -> 281999.58 | G37: =G36 -> 281999.58 | L37: =IF(G37='BAIXÃO DO CECÍLIO'!I84,"ok","verificar") -> ok
B38: FÍSICO PARCIAL: | D38: =SUMIF($H$12:$H$35,"R$",D$12:D$35)/$C$36 -> 0.3333035743 | E38: =SUMIF($H$12:$H$35,"R$",E$12:E$35)/$C$36 -> 0.4606346327 | F38: =SUMIF($H$12:$H$35,"R$",F$12:F$35)/$C$36 -> 0.2060617931 | G38: =SUMIF($H$12:$H$35,"R$",G$12:G$35)/$C$36 -> 1
B39: AVANÇO FÍSICO: | D39: =D38 -> 0.3333035743 | E39: =E38+D39 -> 0.7939382069 | F39: =F38+E39 -> 1

Sheet Cronograma Geral
A1: Ministério da Integração e do Desenvolvimento Regional
A2: Companhia de Desenvolvimento dos Vales do São Francisco e do Parnaíba
A4: CRONOGRAMA FÍSICO-FINANCEIRO NÃO DESONERADO
A5: OBRA: | B5: =Resumo!B5 -> Execução de manutenção e recuperação nas barragens de Macaúbas, Rio da Caixa e Baixão do Cecílio, localizadas no estado da Bahia.
A6: LOCAL: | B6: =Resumo!B6 -> Barragens da Bahia
A7: DATA BASE: | B7: =Resumo!B7 -> 2025-09-01
A8: PRAZO | B8: =Resumo!B8 -> 90 dias
A9: ITEM | B9: DESCRIÇÃO | C9: TOTAL POR ETAPA | D9: MESES | G9: TOTAL
D10: 1 | E10: 2 | F10: 3
A11: 1.1 | B11: =VLOOKUP(A11,Resumo!A$13:I$1010,2) -> Macaúbas | C11: =VLOOKUP(A11,Resumo!A$13:I$1010,7) -> 781417.58 | D11: =$C11*D12 -> 341998.9051 | E11: =$C11*E12 -> 364153.8234 | F11: =$C11*F12 -> 75264.85158 | G11: =SUM(D11:F11) -> 781417.58 | H11: R$
C12: =C11/C11 -> 1 | D12: ='Cronograma Macaúbas'!D34 -> 0.4376647183 | E12: ='Cronograma Macaúbas'!E34 -> 0.4660169322 | F12: ='Cronograma Macaúbas'!F34 -> 0.0963183495 | G12: 1 | H12: %
A13: 1.2 | B13: =VLOOKUP(A13,Resumo!A$13:I$1010,2) -> Rio da Caixa | C13: =VLOOKUP(A13,Resumo!A$13:I$1010,7) -> 342863.5 | D13: =$C13*D14 -> 142908.5424 | E13: =$C13*E14 -> 150082.0044 | F13: =$C13*F14 -> 49872.95316 | G13: 342863.5 | H13: R$
C14: =C13/C13 -> 1 | D14: ='Cronograma Rio da Caixa'!D34 -> 0.4168088537 | E14: ='Cronograma Rio da Caixa'!E34 -> 0.4377310633 | F14: ='Cronograma Rio da Caixa'!F34 -> 0.145460083 | G14: 1 | H14: %
A15: 1.3 | B15: =VLOOKUP(A15,Resumo!A$13:I$1010,2) -> Baixão do Cecílio | C15: =VLOOKUP(A15,Resumo!A$13:I$1010,7) -> 281999.58 | D15: =$C15*D16 -> 93991.46795 | E15: =$C15*E16 -> 129898.7729 | F15: =$C15*F16 -> 58109.3391 | G15: 281999.58 | H15: R$
C16: =C15/C15 -> 1 | D16: ='Cronograma Baixão do Cecílio'!D38:F38 -> 0.3333035743 | E16: ='Cronograma Baixão do Cecílio'!E38:G38 -> 0.4606346327 | F16: ='Cronograma Baixão do Cecílio'!F38:H38 -> 0.2060617931 | G16: 1 | H16: %
B17: VALOR TOTAL: | C17: =SUMIF($H$11:$H$16,"R$",C$11:C$16) -> 1406280.66 | D17: =SUMIF($H$11:$H$16,"R$",D$11:D$16) -> 578898.9154 | E17: =SUMIF($H$11:$H$16,"R$",E$11:E$16) -> 644134.6007 | F17: =SUMIF($H$11:$H$16,"R$",F$11:F$16) -> 183247.1438 | G17: =SUMIF($H$11:$H$16,"R$",G$11:G$16) -> 1406280.66
B18: VALOR ACUMULADO: | D18: =D17 -> 578898.9154 | E18: =E17+D18 -> 1223033.516 | F18: =F17+E18 -> 1406280.66 | G18: =F18 -> 1406280.66 | J18: =IF(G18=Resumo!G20,"ok","ERRO") -> ok
B19: FÍSICO PARCIAL: | D19: =SUMIF($H$11:$H$16,"R$",D$11:D$16)/$C$17 -> 0.4116524758 | E19: =SUMIF($H$11:$H$16,"R$",E$11:E$16)/$C$17 -> 0.4580412851 | F19: =SUMIF($H$11:$H$16,"R$",F$11:F$16)/$C$17 -> 0.130306239 | G19: =SUMIF($H$11:$H$16,"R$",G$11:G$16)/$C$17 -> 1
B20: AVANÇO FÍSICO: | D20: =D19 -> 0.4116524758 | E20: =E19+D20 -> 0.869693761 | F20: =F19+E20 -> 1

Sheet Memorial de cálculo
A1: Ministério da Integração e do Desenvolvimento Regional
A2: Companhia de desenvolvimento dos Vales do São Francisco e do Parnaíba | I2: Quantitativos por Barragem
I3: Macaúbas | J3: Rio da Caixa | K3: Baixão do Cecílio
A4: MEMORIAL DE CÁLCULO | I4: Macaúbas - Ba | J4: Macaúbas - Ba | K4: Santa Rita de Cássia - Ba | L4: Município polo mais próximo da barragem
A5: =MACAÚBAS!A5 -> OBRA: | B5: =Resumo!B5 -> Execução de manutenção e recuperação nas barragens de Macaúbas, Rio da Caixa e Baixão do Cecílio, localizadas no estado da Bahia. | D5: DESLOCAMENTO -SR para Barragem (km): | H5: =AVERAGE(I5:K5) -> 286.6666667 | I5: 244 | J5: 234 | K5: 382
A6: =MACAÚBAS!A6 -> LOCAL: | B6: =Resumo!B6 -> Barragens da Bahia | D6: DESLOCAMENTO - Cidade mais próxima para Barragem (km): | H6: =AVERAGE(I6:K6) -> 62.96666667 | I6: 18.2 | J6: 72.7 | K6: 98
A7: =MACAÚBAS!A7 -> DATA BASE: | B7: =Resumo!B7 -> 2025-09-01 | D7: VIA URBANA PAVIMENTADA - Cidade mais próxima para Barragem (km): | H7: =AVERAGE(I7:K7) -> 50.63333333 | I7: =I6-I8 -> 18.2 | J7: =J6-J8 -> 61.7 | K7: =K6-K8 -> 72
A8: =MACAÚBAS!A8 -> PRAZO: | B8: =Resumo!B8 -> 90 dias | D8: REVESTIMENTO PRIMÁRIO - Cidade mais próxima para Barragem (km): | H8: =AVERAGE(I8:K8) -> 12.33333333 | I8: =G8 -> 0 | J8: 11 | K8: 26
A9: ITEM | B9: DESCRIÇÃO | C9: UNID. | D9: PARÂMETRO 1 | E9: PARÂMETRO 2 | F9: PARÂMETRO 3 | G9: PARÂMETRO 4 | H9: TOTAL
A11: =CPU!B10 -> CPU.01 | B11: =VLOOKUP(A11,CPU!$B$10:$G$5129,2,0) -> Administração Local | C11: =VLOOKUP(A11,CPU!$B$10:$G$5129,3,0) -> mês | D11: QUANT.PESSOAS | E11: HORAS DIÁRIA | F11: DIAS TRABALHADOS NO MÊS | G11: MESES | H11: 3
B12: =CPU!C15 -> Engenheiro Civil De Obra Pleno Com Encargos Complementares | C12: h | D12: 1 | E12: 1.5 | F12: =4*5 -> 20 | H12: =D12*E12*F12 -> 30
B13: =CPU!C16 -> Encarregado Geral De Obras Com Encargos Complementares | C13: mês | D13: 1 | G13: 0.8 | H13: =D13*G13 -> 0.8
B14: =CPU!C17 -> VIGIA - AN | C14: h | D14: 4 | E14: 12 | F14: 15 | H14: =D14*E14*F14 -> 720
B15: A escala de trabalho 12x36 para vigias noturnos consiste em trabalhar 12 horas seguidas e folgar 36 horas
A17: =CPU!B19 -> CPU.02 | B17: =VLOOKUP(A17,CPU!$B$10:$G$5129,2,0) -> Mobilização e desmobilização de instalação do canteiro | C17: =VLOOKUP(A17,CPU!$B$10:$G$5129,3,0) -> un | H17: 1
A18: 100946 | B18: =IF(K18="ca",VLOOKUP(A18,'Comp SINAPI BA 07-2025 Onerado'!B:C,2,0),VLOOKUP(A18,'Ins SINAPI BA 07-2025 Onerado'!B:C,2,0)) -> TRANSPORTE COM CAMINHÃO CARROCERIA 9T, EM VIA URBANA EM REVESTIMENTO PRIMÁRIO (UNIDADE: TXKM). AF_07/2020 | C18: =IF(K18="ca",VLOOKUP(A18,'Comp SINAPI BA 07-2025 Onerado'!B:D,3,0),VLOOKUP(A18,'Ins SINAPI BA 07-2025 Onerado'!B:D,3,0)) -> TXKM | H18: =$C$20*$D$20*$E$20 -> 123.3333333 | I18: ca | J18: ca | K18: ca
C19: T | D19: km | E19: N. viagens
C20: 5 | D20: =H8 -> 12.33333333 | E20: 2
A22: =CPU!B27 -> CPU.03 | B22: =VLOOKUP(A22,CPU!$B$10:$G$5129,2,0) -> Execução de canteiro de obras, inclusive, limpeza, refeitório, sanitários e central de formas | C22: =VLOOKUP(A22,CPU!$B$10:$G$5129,3,0) -> m2 | H22: =SUM(H23:H25) -> 28.5
B23: Área do Refeitório Em Canteiro De Obra | C23: m2 | D23: 1 | E23: 3 | F23: 2.5 | H23: =D23*E23*F23 -> 7.5
B24: Área do Sanitário Em Canteiro De Obra | C24: m2 | D24: 1 | E24: 4.5 | F24: 2 | H24: =D24*E24*F24 -> 9
B25: Área da Central de Fôrmas Em Canteiro De Obra | C25: m2 | D25: 1 | E25: 4 | F25: 3 | H25: =D25*E25*F25 -> 12
B26: Mao de obra | C26: m2 | D26: QUANT.PESSOAS | E26: RENDIMENTO (H/M2) | F26: m2 | G26: HORAS | H26: DIAS | I26: DIAS | J26: DIAS | K26: DIAS
B27: Carpinteiro | C27: h | D27: 2 | E27: =1.1155/D27 -> 0.55775 | F27: 1 | G27: =F27*(E27) -> 0.55775 | H27: =G27/8 -> 0.06971875 | I27: =$H$22*$E$27/8 -> 1.986984375 | J27: =$H$22*$E$27/8 -> 1.986984375 | K27: =$H$22*$E$27/8 -> 1.986984375
A29: =CPU!B38 -> CPU.04 | B29: =VLOOKUP(A29,CPU!$B$10:$G$5129,2,0) -> Limpeza de vegetação | C29: =VLOOKUP(A29,CPU!$B$10:$G$5129,3,0) -> m2 | I29: =MACAÚBAS!F27 -> 35894 | J29: ='RIO DA CAIXA'!F27 -> 5500 | K29: ='BAIXÃO DO CECÍLIO'!F27 -> 6194
B30: Mao de obra | C30: m2 | D30: QUANT.PESSOAS | E30: RENDIMENTO (H/M2) | F30: m2 | G30: HORAS | H30: DIAS | I30: DIAS | J30: DIAS | K30: DIAS
A31: Enxada | B31: Servente | C31: h | D31: 2 | E31: =20/1000/D31 -> 0.01 | F31: 1 | G31: =F31*(E31) -> 0.01 | H31: =G31/8 -> 0.00125 | I31: =0.1*I29*$E$31/8 -> 4.48675 | J31: =0.1*J29*$E$31/8 -> 0.6875 | K31: =0.1*K29*$E$31/8 -> 0.77425
A32: Roçadeira | B32: Servente | C32: h | D32: 2 | E32: =(8/(0.3*10000))/D32 -> 0.001333333333 | F32: 1 | G32: =F32*(E32) -> 0.001333333333 | H32: =G32/8 -> 0.0001666666667 | I32: =0.9*I29*$E$32/8 -> 5.3841 | J32: =0.9*J29*$E$32/8 -> 0.825 | K32: =0.9*K29*$E$32/8 -> 0.9291
B33: Rendimento 400 m² por dia por servente para roçada com enaxada e 3000 m² com roçadeira
A34: =CPU!B49 -> CPU.05 | B34: =VLOOKUP(A34,CPU!$B$10:$G$5129,2,0) -> Corte de tronco e remoção de raiz | C34: =VLOOKUP(A34,CPU!$B$10:$G$5129,3,0) -> un | I34: =MACAÚBAS!F28 -> 40 | J34: ='RIO DA CAIXA'!F28 -> 30 | K34: ='BAIXÃO DO CECÍLIO'!F28 -> 60
B35: Mão de obra | D35: QUANT.PESSOAS | E35: RENDIMENTO (H/un) | F35: un | G35: HORAS | H35: DIAS | I35: DIAS | J35: DIAS | K35: DIAS
B36: Servente | C36: h | D36: 2 | E36: =2.1685/D36 -> 1.08425 | F36: 1 | G36: =F36*(E36) -> 1.08425 | H36: =G36/8 -> 0.13553125 | I36: =I34*$E$36/8 -> 5.42125 | J36: =J34*$E$36/8 -> 4.0659375 | K36: =K34*$E$36/8 -> 8.131875
B37: Jardineiro | C37: h | D37: 1 | E37: =1.1535/D37 -> 1.1535 | F37: 1 | G37: =F37*(E37) -> 1.1535 | H37: =G37/8 -> 0.1441875 | I37: =I34*$E$37/8 -> 5.7675 | J37: =J34*$E$37/8 -> 4.325625 | K37: =K34*$E$37/8 -> 8.65125
A39: =CPU!B63 -> CPU.06 | B39: =VLOOKUP(A39,CPU!$B$10:$G$5129,2,0) -> Enrocamento c/ pedra de mão c/ fornecimento e assentamento | C39: =VLOOKUP(A39,CPU!$B$10:$G$5129,3,0) -> m3 | I39: 0 | J39: 0 | K39: ='BAIXÃO DO CECÍLIO'!F50 -> 83
B40: Mao de obra | D40: QUANT.PESSOAS | E40: RENDIMENTO (H/M3) | F40: m3 | G40: HORAS | H40: DIAS | I40: DIAS | J40: DIAS | K40: DIAS
B41: Pedreiro | D41: 1 | E41: =0.2/D41 -> 0.2 | F41: 1 | G41: =F41*(E41) -> 0.2 | H41: =G41/8 -> 0.025 | I41: =I39*$E$41/8 -> 0 | J41: =J39*$E$41/8 -> 0 | K41: =K39*$E$41/8 -> 2.075
B42: Servente | D42: 1 | E42: =0.2/D42 -> 0.2 | F42: 1 | G42: =F42*(E42) -> 0.2 | H42: =G42/8 -> 0.025 | I42: =I39*$E$42/8 -> 0 | J42: =J39*$E$42/8 -> 0 | K42: =K39*$E$42/8 -> 2.075
A44: =CPU!B78 -> CPU.07 | B44: =VLOOKUP(A44,CPU!$B$10:$G$5129,2,0) -> Entrada para descida d’água tipo EDA 01 B | C44: =VLOOKUP(A44,CPU!$B$10:$G$5129,3,0) -> un | I44: =MACAÚBAS!F41 -> 22 | J44: 0 | K44: ='BAIXÃO DO CECÍLIO'!F43 -> 4
B45: Mao de obra | D45: QUANT.PESSOAS | E45: RENDIMENTO (H/m3) | F45: m3 | G45: HORAS | H45: DIAS | I45: DIAS | J45: DIAS | K45: DIAS
A46: escavação | B46: Servente | D46: 3 | E46: =(1/0.5)/D46 -> 0.6666666667 | F46: 0.1939 | G46: =F46*(E46) -> 0.1292666667 | H46: =G46/8 -> 0.01615833333 | I46: =$I$44*E46/8 -> 1.833333333 | J46: =$J$44*E46/8 -> 0 | K46: =$K$44*E46/8 -> 0.3333333333
A47: apiloamento | B47: Servente | D47: 1 | E47: =(1/4.44444)/D47 -> 0.225000225 | F47: 1.9387 | G47: =F47*(E47) -> 0.4362079362 | H47: =G47/8 -> 0.05452599203 | I47: =$I$44*E47/8 -> 0.6187506188 | J47: =$J$44*E47/8 -> 0 | K47: =$K$44*E47/8 -> 0.1125001125
A48: forma | B48: Ajudante de carpinteiro | D48: 1 | E48: =(0.9/1)/D48 -> 0.9 | G48: =F48*(E48) ->  | H48: =G48/8 ->  | I48: 2.475 | J48: =$J$44*E48/8 -> 0 | K48: 0.45
A49: forma | B49: Carpinteiro | D49: 1 | E49: =(0.9/1)/D49 -> 0.9 | F49: 1.8172 | G49: =F49*(E49) -> 1.63548 | H49: =G49/8 -> 0.204435 | I49: =$I$44*E49/8 -> 2.475 | J49: =$J$44*E49/8 -> 0 | K49: 0.45
A50: concreto | B50: Pedreiro | D50: 1 | E50: =(1/3.9289)/D50 -> 0.2545241671 | F50: 0.2746 | G50: =F50*(E50) -> 0.06989233628 | H50: =G50/8 -> 0.008736542035 | I50: =$I$44*E50/8 -> 0.6999414594 | J50: =$J$44*E50/8 -> 0 | K50: =$K$44*E50/8 -> 0.1272620835
A51: concreto | B51: Servente | D51: 3 | E51: =(9/3.9289)/D51 -> 0.7635725012 | F51: 0.2746 | G51: =F51*(E51) -> 0.2096770088 | H51: =G51/8 -> 0.0262096261 | I51: =$I$44*E51/8 -> 2.099824378 | J51: 0 | K51: =$K$44*E51/8 -> 0.3817862506
A53: =CPU!B85 -> CPU.08 | B53: =VLOOKUP(A53,CPU!$B$10:$G$5129,2,0) -> Plantio de vegetação tipo gramínea para proteção de talude com hidrossemeadura, inclusive adubação e transporte | C53: =VLOOKUP(A53,CPU!$B$10:$G$5129,3,0) -> m2 | I53: =MACAÚBAS!F52 -> 12689 | J53: 0 | K53: ='BAIXÃO DO CECÍLIO'!F58 -> 1374
B54: Mao de obra | D54: QUANT.PESSOAS | E54: RENDIMENTO (H/m2) | F54: m2 | G54: HORAS | H54: DIAS | I54: DIAS | J54: DIAS | K54: DIAS
B55: Servente | D55: 3 | E55: =(8/415)/D55 -> 0.006425702811 | F55: 1 | G55: =F55*(E55) -> 0.006425702811 | H55: =G55/8 -> 0.0008032128514 | I55: =I53*$E$55/8 -> 10.19196787 | J55: =J53*$E$55/8 -> 0 | K55: =K53*$E$55/8 -> 1.103614458
A57: =CPU!B94 -> CPU.09 | B57: =VLOOKUP(A57,CPU!$B$10:$G$5129,2,0) -> Recomposição das erosões, inclusive, regularização da superfície e reaterro | C57: =VLOOKUP(A57,CPU!$B$10:$G$5129,3,0) -> m3 | I57: =MACAÚBAS!F32 -> 20 | J57: 0 | K57: ='BAIXÃO DO CECÍLIO'!F32 -> 16
B58: Mao de obra | D58: QUANT.PESSOAS | E58: RENDIMENTO (H/M3) | F58: m3 | G58: HORAS | H58: DIAS | I58: DIAS | J58: DIAS | K58: DIAS
B59: Servente | D59: 1 | E59: =(0.012+0.0356689)/D59 -> 0.0476689 | F59: 1 | G59: =F59*(E59) -> 0.0476689 | H59: =G59/8 -> 0.0059586125 | I59: =I57*$E$59/8 -> 0.11917225 | J59: =J57*$E$59/8 -> 0 | K59: =K57*$E$59/8 -> 0.0953378
B60: Motorista | D60: 1 | E60: =(0.0228+0.0153+0.004257)/D60 -> 0.042357 | F60: 1 | G60: =F60*(E60) -> 0.042357 | H60: =G60/8 -> 0.005294625 | I60: =I57*$E$60/8 -> 0.1058925 | J60: =J57*$E$60/8 -> 0 | K60: =K57*$E$60/8 -> 0.084714
B61: Operador de máquina | D61: 1 | E61: =(0.0096+0.0083+0.0045112+0.0104312)/D61 -> 0.0328424 | F61: 1 | G61: =F61*(E61) -> 0.0328424 | H61: =G61/8 -> 0.0041053 | I61: =I57*$E$61/8 -> 0.082106 | J61: =J57*$E$61/8 -> 0 | K61: =K57*$E$61/8 -> 0.0656848
B62: rolo compactador + motoniveladora
A63: =CPU!B112 -> CPU.10 | B63: =VLOOKUP(A63,CPU!$B$10:$G$5129,2,0) -> Regularização e compactação da crista | C63: =VLOOKUP(A63,CPU!$B$10:$G$5129,3,0) -> m2 | I63: =MACAÚBAS!F38 -> 4320 | J63: 0 | K63: ='BAIXÃO DO CECÍLIO'!F40 -> 378
B64: Mao de obra | C64: m2 | D64: QUANT.PESSOAS | E64: RENDIMENTO (H/M2) | F64: m2 | G64: HORAS | H64: DIAS | I64: DIAS | J64: DIAS | K64: DIAS
B65: Servente | C65: h | D65: 2 | E65: =0.0086152/D65 -> 0.0043076 | F65: 1 | G65: =F65*(E65) -> 0.0043076 | H65: =G65/8 -> 0.00053845 | I65: =I63*$E$65/8 -> 2.326104 | J65: =J63*$E$65/8 -> 0 | K65: =K63*$E$65/8 -> 0.2035341
A67: =CPU!B121 -> CPU.11 | B67: =VLOOKUP(A67,CPU!$B$10:$G$5129,2,0) -> Execução de Revestimento com BGTC | C67: =VLOOKUP(A67,CPU!$B$10:$G$5129,3,0) -> m3 | I67: =MACAÚBAS!F44 -> 432 | J67: 0 | K67: ='BAIXÃO DO CECÍLIO'!F46 -> 38
B68: Mao de obra | C68: m3 | D68: QUANT.PESSOAS | E68: RENDIMENTO (H/M3) | F68: m3 | G68: HORAS | H68: DIAS | I68: DIAS | J68: DIAS | K68: DIAS
B69: Servente | C69: h | D69: 1 | E69: =0.0365494/D69 -> 0.0365494 | F69: 1 | G69: =F69*(E69) -> 0.0365494 | H69: =G69/8 -> 0.004568675 | I69: =I67*$E$69/8 -> 1.9736676 | J69: =J67*$E$69/8 -> 0 | K69: =K67*$E$69/8 -> 0.17360965
A71: =CPU!B134 -> CPU.12 | B71: =VLOOKUP(A71,CPU!$B$10:$G$5129,2,0) -> Projeto geométrico | C71: =VLOOKUP(A71,CPU!$B$10:$G$5129,3,0) -> un | I71: =MACAÚBAS!F64 -> 1 | J71: ='RIO DA CAIXA'!F59 -> 1 | K71: ='BAIXÃO DO CECÍLIO'!F76 -> 1
B72: Mao de obra | D72: QUANT.PESSOAS | E72: RENDIMENTO (H/un) | F72: un | G72: HORAS | H72: DIAS
B73: Engenheiro Civil De Obra Junior Com Encargos Complementares | D73: 1 | E73: =CPU!E139/D73 -> 30 | F73: 1 | G73: =F73*(E73) -> 30 | H73: =G73/8 -> 3.75 | I73: =I71*$E$73/8 -> 3.75 | J73: =J71*$E$73/8 -> 3.75 | K73: =K71*$E$73/8 -> 3.75
B74: Engenheiro Civil De Obra Senior Com Encargos Complementares | D74: 1 | E74: =CPU!E140/D74 -> 20 | F74: 1 | G74: =F74*(E74) -> 20 | H74: =G74/8 -> 2.5 | I74: =I71*$E$74/8 -> 2.5 | J74: =J71*$E$74/8 -> 2.5 | K74: =K71*$E$74/8 -> 2.5
B75: Desenhista Projetista Com Encargos Complementares | D75: 1 | E75: =CPU!E141/D75 -> 60 | F75: 1 | G75: =F75*(E75) -> 60 | H75: =G75/8 -> 7.5 | I75: =I71*$E$75/8 -> 7.5 | J75: =J71*$E$75/8 -> 7.5 | K75: =K71*$E$75/8 -> 7.5
A77: =CPU!B143 -> CPU.13 | B77: =VLOOKUP(A77,CPU!$B$10:$G$5129,2,0) -> Fornecimento e Assentamento de Guia (meio-fio) Pré-fabricado, dimensões 100X15X13X30 Cm (Comprimento X Base Inferior X Base Superior X Altura) | C77: =VLOOKUP(A77,CPU!$B$10:$G$5129,3,0) -> m | I77: =MACAÚBAS!F40 -> 2160 | J77: 0 | K77: ='BAIXÃO DO CECÍLIO'!F42 -> 252
B78: Mao de obra | D78: QUANT.PESSOAS | E78: RENDIMENTO (H/M) | F78: m | G78: HORAS | H78: DIAS | I78: DIAS | J78: DIAS | K78: DIAS
B79: Servente | D79: 3 | E79: =(0.2296)/D79 -> 0.07653333333 | F79: 1 | G79: =F79*(E79) -> 0.07653333333 | H79: =G79/8 -> 0.009566666667 | I79: =$I$77*E79/8 -> 20.664 | J79: =$J$77*E79/8 -> 0 | K79: =$K$77*E79/8 -> 2.4108
B80: Pedreiro | D80: 3 | E80: =(0.2296)/D80 -> 0.07653333333 | F80: 1 | G80: =F80*(E80) -> 0.07653333333 | H80: =G80/8 -> 0.009566666667 | I80: =$I$77*E80/8 -> 20.664 | J80: =$J$77*E80/8 -> 0 | K80: =$K$77*E80/8 -> 2.4108
A82: =CPU!B162 -> CPU.15 | B82: =VLOOKUP(A82,CPU!$B$10:$G$5129,2,0) -> Selagem de fissuras com resina epóxi | C82: =VLOOKUP(A82,CPU!$B$10:$G$5129,3,0) -> m | I82: 0 | J82: ='RIO DA CAIXA'!F34 -> 50 | K82: 0
B83: Mao de obra | D83: QUANT.PESSOAS | E83: RENDIMENTO (H/M) | F83: m | G83: HORAS | H83: DIAS | I83: DIAS | J83: DIAS | K83: DIAS
B84: Servente | D84: 1 | E84: =(1/3.15846)/D84*0.3 -> 0.09498299804 | F84: 1 | G84: =F84*(E84) -> 0.09498299804 | H84: =G84/8 -> 0.01187287476 | I84: =I82*E84/8 -> 0 | J84: =J82*$E$84/8 -> 0.5936437378 | K84: =K82*$E$84/8 -> 0
A86: =CPU!B181 -> CPU.17 | B86: =VLOOKUP(A86,CPU!$B$10:$G$5129,2,0) -> Injeção de nata de cimento em buracos | C86: =VLOOKUP(A86,CPU!$B$10:$G$5129,3,0) -> m3 | I86: =MACAÚBAS!F34 -> 0.1 | J86: 0 | K86: ='BAIXÃO DO CECÍLIO'!F34 -> 0.2
B87: Mao de obra | D87: QUANT.PESSOAS | E87: RENDIMENTO (H/m3) | F87: m3 | G87: HORAS | H87: DIAS
B88: Servente | D88: 1 | E88: =1/D88 -> 1 | F88: 1 | G88: =F88*(E88) -> 1 | H88: =G88/8 -> 0.125 | I88: =$I$86*E88/8 -> 0.0125 | J88: =$K$86*E88/8 -> 0.025 | K88: =$K$86*E88/8 -> 0.025
A90: =CPU!B190 -> CPU.18 | B90: =VLOOKUP(A90,CPU!$B$10:$G$5129,2,0) -> Recuperação com uso de argamassa | C90: =VLOOKUP(A90,CPU!$B$10:$G$5129,3,0) -> m3 | I90: =MACAÚBAS!F48 -> 7 | J90: 0 | K90: ='BAIXÃO DO CECÍLIO'!F66 -> 0.5
B91: Mao de obra | D91: QUANT.PESSOAS | E91: RENDIMENTO (H/m3) | F91: m3 | G91: HORAS | H91: DIAS
B92: Servente | D92: 1 | E92: =8.9/D92 -> 8.9 | F92: 1 | G92: =F92*(E92) -> 8.9 | H92: =G92/8 -> 1.1125 | I92: =$I$90*E92/8 -> 7.7875 | J92: =$J$90*E92/8 -> 0 | K92: =$K$90*E92/8 -> 0.55625
B93: Servente | D93: 2 | E93: =16/D93 -> 8 | F93: 1 | G93: =F93*(E93) -> 8 | H93: =G93/8 -> 1 | I93: =$I$90*E93/8 -> 7 | J93: =$J$90*E93/8 -> 0 | K93: =$K$90*E93/8 -> 0.5
A95: =CPU!B200 -> CPU.19 | B95: =VLOOKUP(A95,CPU!$B$10:$G$5129,2,0) -> Régua Linimétrica Padrão “ANA”, Aço Carbono - 2 X 70 X 1000 mm (Fornecimento e Instalação) | C95: =VLOOKUP(A95,CPU!$B$10:$G$5129,3,0) -> un | I95: =MACAÚBAS!F59 -> 5 | J95: ='RIO DA CAIXA'!F54 -> 8 | K95: ='BAIXÃO DO CECÍLIO'!F71 -> 5
B96: Mao de obra | D96: QUANT.PESSOAS | E96: RENDIMENTO (H/m) | F96: m | G96: HORAS | H96: DIAS
B97: Topógrafo | D97: 1 | E97: =0.8/D97 -> 0.8 | F97: 1 | G97: =F97*(E97) -> 0.8 | H97: =G97/8 -> 0.1 | I97: =$I$95*E97/8 -> 0.5 | J97: =$J$95*E97/8 -> 0.8 | K97: =$K$95*E97/8 -> 0.5
B98: Servente | D98: 1 | E98: =1.6/D98 -> 1.6 | F98: 1 | G98: =F98*(E98) -> 1.6 | H98: =G98/8 -> 0.2 | I98: =$I$95*E98/8 -> 1 | J98: =$J$95*E98/8 -> 1.6 | K98: =$K$95*E98/8 -> 1
A100: =CPU!B213 -> CPU.20 | B100: =VLOOKUP(A100,CPU!$B$10:$G$5129,2,0) -> Pintura do meio-fio | C100: =VLOOKUP(A100,CPU!$B$10:$G$5129,3,0) -> m | I100: =MACAÚBAS!F42 -> 2160 | J100: 0 | K100: ='BAIXÃO DO CECÍLIO'!F44 -> 252
B101: Mao de obra | D101: QUANT.PESSOAS | E101: RENDIMENTO (H/m) | F101: m | G101: HORAS | H101: DIAS
B102: PINTOR | D102: 3 | E102: =0.037/D102 -> 0.01233333333 | F102: 1 | G102: =F102*(E102) -> 0.01233333333 | H102: =G102/8 -> 0.001541666667 | I102: =$I$100*E102/8 -> 3.33 | J102: =$J$100*E102/8 -> 0 | K102: =$K$100*E102/8 -> 0.3885
B103: SERVENTE | D103: 2 | E103: =0.016 /D103 -> 0.008 | F103: 1 | G103: =F103*(E103) -> 0.008 | H103: =G103/8 -> 0.001 | I103: =$I$100*E103/8 -> 2.16 | J103: =$J$100*E103/8 -> 0 | K103: =$K$100*E103/8 -> 0.252
A105: =CPU!B222 -> CPU.21 | B105: =VLOOKUP(A105,CPU!$B$10:$G$5129,2,0) -> Apicoamento da superfície | C105: =VLOOKUP(A105,CPU!$B$10:$G$5129,3,0) -> m2 | I105: 0 | J105: ='RIO DA CAIXA'!F32+'RIO DA CAIXA'!F40 -> 423.9 | K105: ='BAIXÃO DO CECÍLIO'!F64 -> 18
B106: Mao de obra | D106: QUANT.PESSOAS | E106: RENDIMENTO (H/m2) | F106: m | G106: HORAS | H106: DIAS
B107: PEDREIRO | D107: 1 | E107: =0.1151/D107 -> 0.1151 | F107: 1 | G107: =F107*(E107) -> 0.1151 | H107: =G107/8 -> 0.0143875 | I107: =$I$105*E107/8 -> 0 | J107: =$J$105*E107/8 -> 6.09886125 | K107: =$K$105*E107/8 -> 0.258975
B108: SERVENTE | D108: 3 | E108: =0.3872/D108 -> 0.1290666667 | F108: 1 | G108: =F108*(E108) -> 0.1290666667 | H108: =G108/8 -> 0.01613333333 | I108: =$I$105*E108/8 -> 0 | J108: =$J$105*E108/8 -> 6.83892 | K108: =$K$105*E108/8 -> 0.2904
A110: =CPU!B232 -> CPU.22 | B110: =VLOOKUP(A110,CPU!$B$10:$G$5129,2,0) -> Limpeza da superfície | C110: =VLOOKUP(A110,CPU!$B$10:$G$5129,3,0) -> m2 | I110: 0 | J110: ='RIO DA CAIXA'!F33+'RIO DA CAIXA'!F37+'RIO DA CAIXA'!F41+'RIO DA CAIXA'!F48 -> 1537 | K110: ='BAIXÃO DO CECÍLIO'!F65 -> 60
B111: Mao de obra | D111: QUANT.PESSOAS | E111: RENDIMENTO (H/m2) | F111: m | G111: HORAS | H111: DIAS
B112: SERVENTE | D112: 4 | E112: =0.089/D112 -> 0.02225 | F112: 1 | G112: =F112*(E112) -> 0.02225 | H112: =G112/8 -> 0.00278125 | I112: =$I$110*E112/8 -> 0 | J112: =$J$110*E112/8 -> 4.27478125 | K112: =$K$110*E112/8 -> 0.166875
A114: =CPU!B241 -> CPU.23 | B114: =VLOOKUP(A114,CPU!$B$10:$G$5129,2,0) -> Revestimento com argamassa | C114: =VLOOKUP(A114,CPU!$B$10:$G$5129,3,0) -> m2 | I114: 0 | J114: ='RIO DA CAIXA'!F35+'RIO DA CAIXA'!F42 -> 1000 | K114: 0
B115: Mao de obra | D115: QUANT.PESSOAS | E115: RENDIMENTO (H/m2) | F115: m2 | G115: HORAS | H115: DIAS
B116: PEDREIRO | D116: 4 | E116: =0.545/D116 -> 0.13625 | F116: 1 | G116: =F116*(E116) -> 0.13625 | H116: =G116/8 -> 0.01703125 | I116: =$I$114*E116/8 -> 0 | J116: =$J$114*E116/8 -> 17.03125 | K116: =$K$114*E116/8 -> 0
B117: SERVENTE | D117: 4 | E117: =0.545/D117 -> 0.13625 | F117: 1 | G117: =F117*(E117) -> 0.13625 | H117: =G117/8 -> 0.01703125 | I117: =$I$114*E117/8 -> 0 | J117: =$J$114*E117/8 -> 17.03125 | K117: =$K$114*E117/8 -> 0
A119: =CPU!B250 -> CPU.24 | B119: =VLOOKUP(A119,CPU!$B$10:$G$5129,2,0) -> Concreto projetado c/ aditivo impermeabilizante | C119: =VLOOKUP(A119,CPU!$B$10:$G$5129,3,0) -> m3 | I119: 0 | J119: ='RIO DA CAIXA'!F38 -> 16 | K119: 0
B120: Mao de obra | D120: QUANT.PESSOAS | E120: RENDIMENTO (H/m3) | F120: m3 | G120: HORAS | H120: DIAS
B121: Ajudante especializado | D121: 1 | E121: =(1/2.50992)/D121 -> 0.3984190731 | F121: 1 | G121: =F121*(E121) -> 0.3984190731 | H121: =G121/8 -> 0.04980238414 | I121: =$I$119*E121/8 -> 0 | J121: =$J$119*E121/8 -> 0.7968381462 | K121: =$K$119*E121/8 -> 0
B122: Servente | D122: 1 | E122: =(4/2.50992)/D122 -> 1.593676292 | F122: 1 | G122: =F122*(E122) -> 1.593676292 | H122: =G122/8 -> 0.1992095366 | I122: =$I$119*E122/8 -> 0 | J122: =$J$119*E122/8 -> 3.187352585 | K122: =$K$119*E122/8 -> 0
B124: Utilização do aditivo: 4% massa de cimento | C124: 290.83789 | D124: Cimento (kg/m3) | E124: =0.04*C124 -> 11.6335156 | F124: Aditivo (kg/m3)
A126: =CPU!B260 -> CPU.25 | B126: =VLOOKUP(A126,CPU!$B$10:$G$5129,2,0) -> Preenchimento com uso de Pedra Argamassada | C126: =VLOOKUP(A126,CPU!$B$10:$G$5129,3,0) -> m3 | I126: 0 | J126: ='RIO DA CAIXA'!F49 -> 5 | K126: 0
B127: Mao de obra | D127: QUANT.PESSOAS | E127: RENDIMENTO (H/m3) | F127: m3 | G127: HORAS | H127: DIAS
B128: Pedreiro | D128: 1 | E128: =2.2158/D128 -> 2.2158 | F128: 1 | G128: =F128*(E128) -> 2.2158 | H128: =G128/8 -> 0.276975 | I128: =$I$126*E128/8 -> 0 | J128: =$J$126*E128/8 -> 1.384875 | K128: =$K$126*E128/8 -> 0
B129: Servente | D129: 2 | E129: =3.1021/D129 -> 1.55105 | F129: 1 | G129: =F129*(E129) -> 1.55105 | H129: =G129/8 -> 0.19388125 | I129: =$I$126*E129/8 -> 0 | J129: =$J$126*E129/8 -> 0.96940625 | K129: =$K$126*E129/8 -> 0
A131: =CPU!B272 -> CPU.26 | B131: =VLOOKUP(A131,CPU!$B$10:$G$5129,2,0) -> Bombeamento do acúmulo d'água | C131: =VLOOKUP(A131,CPU!$B$10:$G$5129,3,0) -> dia | I131: 0 | J131: ='RIO DA CAIXA'!F46 -> 1 | K131: 0
B132: Mao de obra | D132: QUANT.PESSOAS | E132: RENDIMENTO (H/dia) | F132: dia | G132: HORAS | H132: DIAS
B133: Encanador | D133: 1 | E133: - | F133: - | G133: - | H133: - | I133: - | J133: - | K133: -
A135: =CPU!B281 -> CPU.27 | B135: =VLOOKUP(A135,CPU!$B$10:$G$5129,2,0) -> Recuperação com escavação e reaterro de aberturas na crista (Rachaduras, trincas e burcacos (Sinkholes)) | C135: =VLOOKUP(A135,CPU!$B$10:$G$5129,3,0) -> m3 | I135: 0 | J135: 0 | K135: ='BAIXÃO DO CECÍLIO'!F36 -> 4
B136: Mao de obra | D136: QUANT.PESSOAS | E136: RENDIMENTO (H/M3) | F136: m3 | G136: HORAS | H136: DIAS | I136: DIAS | J136: DIAS | K136: DIAS
B137: Servente | D137: 1 | E137: =(0.012+0.0356689)/D137 -> 0.0476689 | F137: 1 | G137: =F137*(E137) -> 0.0476689 | H137: =G137/8 -> 0.0059586125 | I137: =I135*$E$137/8 -> 0 | J137: =J135*$E$137/8 -> 0 | K137: =K135*$E$137/8 -> 0.02383445
B138: Motorista | D138: 1 | E138: =(0.0228+0.0153+0.004257)/D138 -> 0.042357 | F138: 1 | G138: =F138*(E138) -> 0.042357 | H138: =G138/8 -> 0.005294625 | I138: =I135*$E$138/8 -> 0 | J138: =J135*$E$138/8 -> 0 | K138: =K135*$E$138/8 -> 0.0211785
B139: Operador de máquina | D139: 1 | E139: =(0.0096+0.0083+0.0045112+0.0104312)/D139 -> 0.0328424 | F139: 1 | G139: =F139*(E139) -> 0.0328424 | H139: =G139/8 -> 0.0041053 | I139: =I135*$E$139/8 -> 0 | J139: =J135*$E$139/8 -> 0 | K139: =K135*$E$139/8 -> 0.0164212
B140: rolo compactador + motoniveladora
A142: =CPU!B299 -> CPU.28 | B142: =VLOOKUP(A142,CPU!$B$10:$G$5129,2,0) -> Canaleta meia cana de concreto (D=30cm) - Fornecimento e instalação | C142: =VLOOKUP(A142,CPU!$B$10:$G$5129,3,0) -> m | I142: 0 | J142: 0 | K142: ='BAIXÃO DO CECÍLIO'!F54 -> 42
B143: Mao de obra | D143: QUANT.PESSOAS | E143: RENDIMENTO (H/M) | F143: m | G143: HORAS | H143: DIAS | I143: DIAS | J143: DIAS | K143: DIAS
B144: Pedreiro | D144: 1 | E144: =0.3192/D144 -> 0.3192 | F144: 1 | G144: =F144*(E144) -> 0.3192 | H144: =G144/8 -> 0.0399 | I144: =I142*$E$144/8 -> 0 | J144: =J142*$E$144/8 -> 0 | K144: =K142*$E$144/8 -> 1.6758
B145: Servente | D145: 1 | E145: =0.3192/D145 -> 0.3192 | F145: 1 | G145: =F145*(E145) -> 0.3192 | H145: =G145/8 -> 0.0399 | I145: =I142*$E$145/8 -> 0 | J145: =J142*$E$145/8 -> 0 | K145: =K142*$E$145/8 -> 1.6758

Sheet COMPOSICÕES MODIFICADAS
A3: Código | D3: 93212 ADAPTADO
A4: Descrição | D4: EXECUÇÃO DE SANITÁRIO E VESTIÁRIO EM CANTEIRO DE OBRA EM CHAPA DE MADEIRA COMPENSADA, NÃO INCLUSO MOBILIÁRIO. AF_02/2016
A5: Data | D5: 2025-06-01
A6: Estado | D6: Bahia
A7: Tipo | D7: CANT - CANTEIRO DE OBRAS
A8: Unidade | D8: m²
A9: Valor sem Desoneração | D9: =SUM(I12,I16,I20:I54,I58:I61,I65:I78,I85:I105) -> 980.07
A11: Natureza | B11: Fonte | C11: codigo | D11: Descrição | E11: Tipo | F11: Unidade | G11: Valor sem Desoneração | H11: Coeficiente | I11: Preço sem Desoneração
A12: C | B12: SINAPI | C12: 89173 | D12: (COMPOSIÇÃO REPRESENTATIVA) DO SERVIÇO DE EMBOÇO/MASSA ÚNICA, APLICADO MANUALMENTE, TRAÇO 1:2:8, EM BETONEIRA DE 400L, PAREDES INTERNAS, COM EXECUÇÃO DE TALISCAS, EDIFICAÇÃO HABITACIONAL UNIFAMILIAR (CASAS) E EDIFICAÇÃO PÚBLICA PADRÃO. AF_12/2014 - ADAPTADO | E12: REVE - REVESTIMENTO E TRATAMENTO DE SUPERFÍCIES | F12: m² | G12: =SUM(I13:I15) -> 45.22 | H12: 0.7679 | I12: =ROUND(G12*H12,2) -> 34.72
A13: C | B13: SINAPI | C13: 87531 | D13: =VLOOKUP(C13,'Comp SINAPI BA 07-2025 Onerado'!$B$11:$F$9696,2,FALSE) -> EMBOÇO, EM ARGAMASSA TRAÇO 1:2:8, PREPARO MECÂNICO, APLICADO MANUALMENTE EM PAREDES INTERNAS DE AMBIENTES COM ÁREA ENTRE 5M² E 10M², E = 17,5MM, COM TALISCAS. AF_03/2024 | E13: REVE - REVESTIMENTO E TRATAMENTO DE SUPERFÍCIES | F13: m² | G13: =VLOOKUP(C13,'Comp SINAPI BA 07-2025 Onerado'!$B$11:$F$9696,4,FALSE) -> 43.58 | H13: 0.154 | I13: =ROUND(G13*H13,2) -> 6.71
A14: C | B14: SINAPI | C14: 87527 | D14: =VLOOKUP(C14,'Comp SINAPI BA 07-2025 Onerado'!$B$11:$F$9696,2,FALSE) -> EMBOÇO, EM ARGAMASSA TRAÇO 1:2:8, PREPARO MECÂNICO, APLICADO MANUALMENTE EM PAREDES INTERNAS DE AMBIENTES COM ÁREA MENOR QUE 5M², E =17,5MM, COM TALISCAS. AF_03/2024 | E14: REVE - REVESTIMENTO E TRATAMENTO DE SUPERFÍCIES | F14: m² | G14: =VLOOKUP(C14,'Comp SINAPI BA 07-2025 Onerado'!$B$11:$F$9696,4,FALSE) -> 48.66 | H14: 0.1121 | I14: =ROUND(G14*H14,2) -> 5.45
A15: C | B15: SINAPI | C15: 87529 | D15: =VLOOKUP(C15,'Comp SINAPI BA 07-2025 Onerado'!$B$11:$F$9696,2,FALSE) -> MASSA ÚNICA, EM ARGAMASSA TRAÇO 1:2:8, PREPARO MECÂNICO, APLICADA MANUALMENTE EM PAREDES INTERNAS DE AMBIENTES COM ÁREA ENTRE 5M² E 10M², E = 17,5MM, COM TALISCAS. AF_03/2024 | E15: REVE - REVESTIMENTO E TRATAMENTO DE SUPERFÍCIES | F15: m² | G15: =VLOOKUP(C15,'Comp SINAPI BA 07-2025 Onerado'!$B$11:$F$9696,4,FALSE) -> 45.05 | H15: 0.7339 | I15: 33.06
A16: C | B16: SINAPI | C16: 89171 | D16: (COMPOSIÇÃO REPRESENTATIVA) DO SERVIÇO DE REVESTIMENTO CERÂMICO PARA PISO COM PLACAS TIPO ESMALTADA EXTRA DE DIMENSÕES 35X35 CM, PARA EDIFICAÇÃO HABITACIONAL UNIFAMILIAR (CASA) E EDIFICAÇÃO PÚBLICA PADRÃO. AF_11/2014 - ADAPTADO | E16: PISO - PISOS | F16: m² | G16: =SUM(I17:I19) -> 50.14 | H16: 0.4628 | I16: 23.2
A17: C | B17: SINAPI | C17: 87247 | D17: =VLOOKUP(C17,'Comp SINAPI BA 07-2025 Onerado'!$B$11:$F$9696,2,FALSE) -> REVESTIMENTO CERÂMICO PARA PISO COM PLACAS TIPO ESMALTADA DE DIMENSÕES 35X35 CM APLICADA EM AMBIENTES DE ÁREA ENTRE 5 M2 E 10 M2. AF_02/2023_PE | E17: PISO - PISOS | F17: m² | G17: =VLOOKUP(C17,'Comp SINAPI BA 07-2025 Onerado'!$B$11:$F$9696,4,FALSE) -> 54.97 | H17: 0.3365 | I17: =ROUND(G17*H17,2) -> 18.5
A18: C | B18: SINAPI | C18: 87248 | D18: =VLOOKUP(C18,'Comp SINAPI BA 07-2025 Onerado'!$B$11:$F$9696,2,FALSE) -> REVESTIMENTO CERÂMICO PARA PISO COM PLACAS TIPO ESMALTADA DE DIMENSÕES 35X35 CM APLICADA EM AMBIENTES DE ÁREA MAIOR QUE 10 M2. AF_02/2023_PE | E18: PISO - PISOS | F18: m² | G18: =VLOOKUP(C18,'Comp SINAPI BA 07-2025 Onerado'!$B$11:$F$9696,4,FALSE) -> 46.31 | H18: 0.6087 | I18: =ROUND(G18*H18,2) -> 28.19
A19: C | B19: SINAPI | C19: 87246 | D19: =VLOOKUP(C19,'Comp SINAPI BA 07-2025 Onerado'!$B$11:$F$9696,2,FALSE) -> REVESTIMENTO CERÂMICO PARA PISO COM PLACAS TIPO ESMALTADA DE DIMENSÕES 35X35 CM APLICADA EM AMBIENTES DE ÁREA MENOR QUE 5 M2. AF_02/2023_PE | E19: PISO - PISOS | F19: m² | G19: =VLOOKUP(C19,'Comp SINAPI BA 07-2025 Onerado'!$B$11:$F$9696,4,FALSE) -> 63.01 | H19: 0.0548 | I19: 3.45
A20: C | B20: SINAPI | C20: 101165 | D20: =VLOOKUP(C20,'Comp SINAPI BA 07-2025 Onerado'!$B$11:$F$9696,2,FALSE) -> ALVENARIA DE EMBASAMENTO COM BLOCO ESTRUTURAL DE CONCRETO, DE 14X19X29CM E ARGAMASSA DE ASSENTAMENTO COM PREPARO EM BETONEIRA. AF_05/2020 | E20: FUES - FUNDAÇÕES E ESTRUTURAS | F20: m³ | G20: =VLOOKUP(C20,'Comp SINAPI BA 07-2025 Onerado'!$B$11:$F$9696,4,FALSE) -> 975.38 | H20: 0.0286 | I20: 27.9
A21: C | B21: SINAPI | C21: 103328 | D21: =VLOOKUP(C21,'Comp SINAPI BA 07-2025 Onerado'!$B$11:$F$9696,2,FALSE) -> ALVENARIA DE VEDAÇÃO DE BLOCOS CERÂMICOS FURADOS NA HORIZONTAL DE 9X19X19 CM (ESPESSURA 9 CM) E ARGAMASSA DE ASSENTAMENTO COM PREPARO EM BETONEIRA. AF_12/2021 | E21: PARE - PAREDES/PAINEIS | F21: m² | G21: =VLOOKUP(C21,'Comp SINAPI BA 07-2025 Onerado'!$B$11:$F$9696,4,FALSE) -> 106.93 | H21: 0.4675 | I21: 49.99
A22: C | B22: SINAPI | C22: 91924 | D22: =VLOOKUP(C22,'Comp SINAPI BA 07-2025 Onerado'!$B$11:$F$9696,2,FALSE) -> CABO DE COBRE FLEXÍVEL ISOLADO, 1,5 MM², ANTI-CHAMA 450/750 V, PARA CIRCUITOS TERMINAIS - FORNECIMENTO E INSTALAÇÃO. AF_03/2023 | E22: INEL - INSTALAÇÃO ELÉTRICA/ELETRIFICAÇÃO E ILUMINAÇÃO EXTERNA | F22: M | G22: =VLOOKUP(C22,'Comp SINAPI BA 07-2025 Onerado'!$B$11:$F$9696,4,FALSE) -> 3.26 | H22: 1.253 | I22: 4.08
A23: C | B23: SINAPI | C23: 101561 | D23: =VLOOKUP(C23,'Comp SINAPI BA 07-2025 Onerado'!$B$11:$F$9696,2,FALSE) -> CABO DE COBRE FLEXÍVEL ISOLADO, 16 MM², 0,6/1,0 KV, PARA REDE AÉREA DE DISTRIBUIÇÃO DE ENERGIA ELÉTRICA DE BAIXA TENSÃO - FORNECIMENTO E INSTALAÇÃO. AF_07/2020 | E23: INEL - INSTALAÇÃO ELÉTRICA/ELETRIFICAÇÃO E ILUMINAÇÃO EXTERNA | F23: M | G23: =VLOOKUP(C23,'Comp SINAPI BA 07-2025 Onerado'!$B$11:$F$9696,4,FALSE) -> 17.31 | H23: 0.2611 | I23: 4.52
A24: C | B24: SINAPI | C24: 91926 | D24: =VLOOKUP(C24,'Comp SINAPI BA 07-2025 Onerado'!$B$11:$F$9696,2,FALSE) -> CABO DE COBRE FLEXÍVEL ISOLADO, 2,5 MM², ANTI-CHAMA 450/750 V, PARA CIRCUITOS TERMINAIS - FORNECIMENTO E INSTALAÇÃO. AF_03/2023 | E24: INEL - INSTALAÇÃO ELÉTRICA/ELETRIFICAÇÃO E ILUMINAÇÃO EXTERNA | F24: M | G24: =VLOOKUP(C24,'Comp SINAPI BA 07-2025 Onerado'!$B$11:$F$9696,4,FALSE) -> 4.72 | H24: 0.4699 | I24: 2.22
A25: C | B25: SINAPI | C25: 91928 | D25: =VLOOKUP(C25,'Comp SINAPI BA 07-2025 Onerado'!$B$11:$F$9696,2,FALSE) -> CABO DE COBRE FLEXÍVEL ISOLADO, 4 MM², ANTI-CHAMA 450/750 V, PARA CIRCUITOS TERMINAIS - FORNECIMENTO E INSTALAÇÃO. AF_03/2023 | E25: INEL - INSTALAÇÃO ELÉTRICA/ELETRIFICAÇÃO E ILUMINAÇÃO EXTERNA | F25: M | G25: =VLOOKUP(C25,'Comp SINAPI BA 07-2025 Onerado'!$B$11:$F$9696,4,FALSE) -> 7.27 | H25: 1.0442 | I25: 7.59
A26: C | B26: SINAPI | C26: 97886 | D26: =VLOOKUP(C26,'Comp SINAPI BA 07-2025 Onerado'!$B$11:$F$9696,2,FALSE) -> CAIXA ENTERRADA ELÉTRICA RETANGULAR, EM ALVENARIA COM TIJOLOS CERÂMICOS MACIÇOS, FUNDO COM BRITA, DIMENSÕES INTERNAS: 0,3X0,3X0,3 M. AF_12/2020 | E26: INEL - INSTALAÇÃO ELÉTRICA/ELETRIFICAÇÃO E ILUMINAÇÃO EXTERNA | F26: UN | G26: =VLOOKUP(C26,'Comp SINAPI BA 07-2025 Onerado'!$B$11:$F$9696,4,FALSE) -> 186.01 | H26: 0.0522 | I26: 9.71
A27: C | B27: SINAPI | C27: 97906 | D27: =VLOOKUP(C27,'Comp SINAPI BA 07-2025 Onerado'!$B$11:$F$9696,2,FALSE) -> CAIXA ENTERRADA HIDRÁULICA RETANGULAR, EM ALVENARIA COM BLOCOS DE CONCRETO, DIMENSÕES INTERNAS: 0,6X0,6X0,6 M PARA REDE DE ESGOTO. AF_12/2020 | E27: INHI - INSTALAÇÕES HIDROS SANITÁRIAS | F27: UN | G27: =VLOOKUP(C27,'Comp SINAPI BA 07-2025 Onerado'!$B$11:$F$9696,4,FALSE) -> 489.18 | H27: 0.0348 | I27: 17.02
A28: C | B28: SINAPI | C28: 91937 | D28: =VLOOKUP(C28,'Comp SINAPI BA 07-2025 Onerado'!$B$11:$F$9696,2,FALSE) -> CAIXA OCTOGONAL 3" X 3", PVC, INSTALADA EM LAJE - FORNECIMENTO E INSTALAÇÃO. AF_03/2023 | E28: INEL - INSTALAÇÃO ELÉTRICA/ELETRIFICAÇÃO E ILUMINAÇÃO EXTERNA | F28: UN | G28: =VLOOKUP(C28,'Comp SINAPI BA 07-2025 Onerado'!$B$11:$F$9696,4,FALSE) -> 16.98 | H28: 0.1392 | I28: 2.36
A29: C | B29: SINAPI | C29: 87903 | D29: =VLOOKUP(C29,'Comp SINAPI BA 07-2025 Onerado'!$B$11:$F$9696,2,FALSE) -> CHAPISCO APLICADO EM ALVENARIA (COM PRESENÇA DE VÃOS) E ESTRUTURAS DE CONCRETO DE FACHADA, COM ROLO PARA TEXTURA ACRÍLICA. ARGAMASSA INDUSTRIALIZADA COM PREPARO EM MISTURADOR 300 KG. AF_10/2022 | E29: REVE - REVESTIMENTO E TRATAMENTO DE SUPERFÍCIES | F29: m² | G29: =VLOOKUP(C29,'Comp SINAPI BA 07-2025 Onerado'!$B$11:$F$9696,4,FALSE) -> 13.06 | H29: 0.1681 | I29: 2.2
A30: C | B30: SINAPI | C30: 87885 | D30: =VLOOKUP(C30,'Comp SINAPI BA 07-2025 Onerado'!$B$11:$F$9696,2,FALSE) -> CHAPISCO APLICADO NO TETO OU EM ALVENARIA E ESTRUTURA, COM ROLO PARA TEXTURA ACRÍLICA. ARGAMASSA INDUSTRIALIZADA COM PREPARO EM MISTURADOR 300 KG. AF_10/2022 | E30: REVE - REVESTIMENTO E TRATAMENTO DE SUPERFÍCIES | F30: m² | G30: =VLOOKUP(C30,'Comp SINAPI BA 07-2025 Onerado'!$B$11:$F$9696,4,FALSE) -> 10.24 | H30: 0.7679 | I30: 7.86
A31: C | B31: SINAPI | C31: 90466 | D31: =VLOOKUP(C31,'Comp SINAPI BA 07-2025 Onerado'!$B$11:$F$9696,2,FALSE) -> CHUMBAMENTO LINEAR EM ALVENARIA PARA RAMAIS/DISTRIBUIÇÃO DE INSTALAÇÕES HIDRÁULICAS COM DIÂMETROS MENORES OU IGUAIS A 40 MM. AF_09/2023 | E31: INHI - INSTALAÇÕES HIDROS SANITÁRIAS | F31: M | G31: =VLOOKUP(C31,'Comp SINAPI BA 07-2025 Onerado'!$B$11:$F$9696,4,FALSE) -> 17.79 | H31: 0.0722 | I31: 1.28
A32: C | B32: SINAPI | C32: 100860 | D32: =VLOOKUP(C32,'Comp SINAPI BA 07-2025 Onerado'!$B$11:$F$9696,2,FALSE) -> CHUVEIRO ELÉTRICO COMUM CORPO PLÁSTICO, TIPO DUCHA - FORNECIMENTO E INSTALAÇÃO. AF_01/2020 | E32: INHI - INSTALAÇÕES HIDROS SANITÁRIAS | F32: UN | G32: =VLOOKUP(C32,'Comp SINAPI BA 07-2025 Onerado'!$B$11:$F$9696,4,FALSE) -> 114.64 | H32: 0.0696 | I32: 7.98
A33: C | B33: SINAPI | C33: 95805 | D33: =VLOOKUP(C33,'Comp SINAPI BA 07-2025 Onerado'!$B$11:$F$9696,2,FALSE) -> CONDULETE DE PVC, TIPO B, PARA ELETRODUTO DE PVC SOLDÁVEL DN 25 MM (3/4''), APARENTE - FORNECIMENTO E INSTALAÇÃO. AF_10/2022 | E33: INEL - INSTALAÇÃO ELÉTRICA/ELETRIFICAÇÃO E ILUMINAÇÃO EXTERNA | F33: UN | G33: =VLOOKUP(C33,'Comp SINAPI BA 07-2025 Onerado'!$B$11:$F$9696,4,FALSE) -> 23.54 | H33: 0.0174 | I33: 0.41
A34: C | B34: SINAPI | C34: 95811 | D34: =VLOOKUP(C34,'Comp SINAPI BA 07-2025 Onerado'!$B$11:$F$9696,2,FALSE) -> CONDULETE DE PVC, TIPO LB, PARA ELETRODUTO DE PVC SOLDÁVEL DN 25 MM (3/4''), APARENTE - FORNECIMENTO E INSTALAÇÃO. AF_10/2022 | E34: INEL - INSTALAÇÃO ELÉTRICA/ELETRIFICAÇÃO E ILUMINAÇÃO EXTERNA | F34: UN | G34: =VLOOKUP(C34,'Comp SINAPI BA 07-2025 Onerado'!$B$11:$F$9696,4,FALSE) -> 19.12 | H34: 0.0522 | I34: 1
A35: C | B35: SINAPI | C35: 91911 | D35: =VLOOKUP(C35,'Comp SINAPI BA 07-2025 Onerado'!$B$11:$F$9696,2,FALSE) -> CURVA 90 GRAUS PARA ELETRODUTO, PVC, ROSCÁVEL, DN 20 MM (1/2"), PARA CIRCUITOS TERMINAIS, INSTALADA EM PAREDE - FORNECIMENTO E INSTALAÇÃO. AF_03/2023 | E35: INEL - INSTALAÇÃO ELÉTRICA/ELETRIFICAÇÃO E ILUMINAÇÃO EXTERNA | F35: UN | G35: =VLOOKUP(C35,'Comp SINAPI BA 07-2025 Onerado'!$B$11:$F$9696,4,FALSE) -> 18.6 | H35: 0.0696 | I35: 1.29
A36: C | B36: SINAPI | C36: 91890 | D36: =VLOOKUP(C36,'Comp SINAPI BA 07-2025 Onerado'!$B$11:$F$9696,2,FALSE) -> CURVA 90 GRAUS PARA ELETRODUTO, PVC, ROSCÁVEL, DN 25 MM (3/4"), PARA CIRCUITOS TERMINAIS, INSTALADA EM FORRO - FORNECIMENTO E INSTALAÇÃO. AF_03/2023 | E36: INEL - INSTALAÇÃO ELÉTRICA/ELETRIFICAÇÃO E ILUMINAÇÃO EXTERNA | F36: UN | G36: =VLOOKUP(C36,'Comp SINAPI BA 07-2025 Onerado'!$B$11:$F$9696,4,FALSE) -> 14.7 | H36: 0.0174 | I36: 0.26
A37: C | B37: SINAPI | C37: 89748 | D37: =VLOOKUP(C37,'Comp SINAPI BA 07-2025 Onerado'!$B$11:$F$9696,2,FALSE) -> CURVA CURTA 90 GRAUS, PVC, SERIE NORMAL, ESGOTO PREDIAL, DN 100 MM, JUNTA ELÁSTICA, FORNECIDO E INSTALADO EM RAMAL DE DESCARGA OU RAMAL DE ESGOTO SANITÁRIO. AF_08/2022 | E37: INHI - INSTALAÇÕES HIDROS SANITÁRIAS | F37: UN | G37: =VLOOKUP(C37,'Comp SINAPI BA 07-2025 Onerado'!$B$11:$F$9696,4,FALSE) -> 40.3 | H37: 0.0522 | I37: 2.1
A38: C | B38: SINAPI | C38: 101891 | D38: =VLOOKUP(C38,'Comp SINAPI BA 07-2025 Onerado'!$B$11:$F$9696,2,FALSE) -> DISJUNTOR MONOPOLAR TIPO NEMA, CORRENTE NOMINAL DE 35 ATÉ 50A - FORNECIMENTO E INSTALAÇÃO. AF_10/2020 | E38: INEL - INSTALAÇÃO ELÉTRICA/ELETRIFICAÇÃO E ILUMINAÇÃO EXTERNA | F38: UN | G38: =VLOOKUP(C38,'Comp SINAPI BA 07-2025 Onerado'!$B$11:$F$9696,4,FALSE) -> 27.5 | H38: 0.1044 | I38: 2.87
A39: C | B39: SINAPI | C39: 91862 | D39: =VLOOKUP(C39,'Comp SINAPI BA 07-2025 Onerado'!$B$11:$F$9696,2,FALSE) -> ELETRODUTO RÍGIDO ROSCÁVEL, PVC, DN 20 MM (1/2"), PARA CIRCUITOS TERMINAIS, INSTALADO EM FORRO - FORNECIMENTO E INSTALAÇÃO. AF_03/2023 | E39: INEL - INSTALAÇÃO ELÉTRICA/ELETRIFICAÇÃO E ILUMINAÇÃO EXTERNA | F39: M | G39: =VLOOKUP(C39,'Comp SINAPI BA 07-2025 Onerado'!$B$11:$F$9696,4,FALSE) -> 9.77 | H39: 0.3307 | I39: 3.23
A40: C | B40: SINAPI | C40: 91870 | D40: =VLOOKUP(C40,'Comp SINAPI BA 07-2025 Onerado'!$B$11:$F$9696,2,FALSE) -> ELETRODUTO RÍGIDO ROSCÁVEL, PVC, DN 20 MM (1/2"), PARA CIRCUITOS TERMINAIS, INSTALADO EM PAREDE - FORNECIMENTO E INSTALAÇÃO. AF_03/2023 | E40: INEL - INSTALAÇÃO ELÉTRICA/ELETRIFICAÇÃO E ILUMINAÇÃO EXTERNA | F40: M | G40: =VLOOKUP(C40,'Comp SINAPI BA 07-2025 Onerado'!$B$11:$F$9696,4,FALSE) -> 13.22 | H40: 0.1566 | I40: 2.07
A41: C | B41: SINAPI | C41: 91863 | D41: =VLOOKUP(C41,'Comp SINAPI BA 07-2025 Onerado'!$B$11:$F$9696,2,FALSE) -> ELETRODUTO RÍGIDO ROSCÁVEL, PVC, DN 25 MM (3/4"), PARA CIRCUITOS TERMINAIS, INSTALADO EM FORRO - FORNECIMENTO E INSTALAÇÃO. AF_03/2023 | E41: INEL - INSTALAÇÃO ELÉTRICA/ELETRIFICAÇÃO E ILUMINAÇÃO EXTERNA | F41: M | G41: =VLOOKUP(C41,'Comp SINAPI BA 07-2025 Onerado'!$B$11:$F$9696,4,FALSE) -> 11.47 | H41: 0.1305 | I41: 1.5
A42: C | B42: SINAPI | C42: 91871 | D42: =VLOOKUP(C42,'Comp SINAPI BA 07-2025 Onerado'!$B$11:$F$9696,2,FALSE) -> ELETRODUTO RÍGIDO ROSCÁVEL, PVC, DN 25 MM (3/4"), PARA CIRCUITOS TERMINAIS, INSTALADO EM PAREDE - FORNECIMENTO E INSTALAÇÃO. AF_03/2023 | E42: INEL - INSTALAÇÃO ELÉTRICA/ELETRIFICAÇÃO E ILUMINAÇÃO EXTERNA | F42: M | G42: =VLOOKUP(C42,'Comp SINAPI BA 07-2025 Onerado'!$B$11:$F$9696,4,FALSE) -> 14.92 | H42: 0.0261 | I42: 0.39
A43: C | B43: SINAPI | C43: 87777 | D43: =VLOOKUP(C43,'Comp SINAPI BA 07-2025 Onerado'!$B$11:$F$9696,2,FALSE) -> EMBOÇO OU MASSA ÚNICA EM ARGAMASSA TRAÇO 1:2:8, PREPARO MANUAL, APLICADA MANUALMENTE EM PANOS DE FACHADA COM PRESENÇA DE VÃOS, ESPESSURA DE 25 MM. AF_08/2022 | E43: REVE - REVESTIMENTO E TRATAMENTO DE SUPERFÍCIES | F43: m² | G43: =VLOOKUP(C43,'Comp SINAPI BA 07-2025 Onerado'!$B$11:$F$9696,4,FALSE) -> 67.9 | H43: 0.1681 | I43: 11.41
A44: C | B44: SINAPI | C44: 93358 | D44: =VLOOKUP(C44,'Comp SINAPI BA 07-2025 Onerado'!$B$11:$F$9696,2,FALSE) -> ESCAVAÇÃO MANUAL DE VALA. AF_09/2024 | E44: MOVT - MOVIMENTO DE TERRA | F44: m³ | G44: =VLOOKUP(C44,'Comp SINAPI BA 07-2025 Onerado'!$B$11:$F$9696,4,FALSE) -> 96.4 | H44: 0.0279 | I44: 2.69
A45: C | B45: SINAPI | C45: 91305 | D45: =VLOOKUP(C45,'Comp SINAPI BA 07-2025 Onerado'!$B$11:$F$9696,2,FALSE) -> FECHADURA DE EMBUTIR PARA PORTA DE BANHEIRO, COMPLETA, ACABAMENTO PADRÃO POPULAR, INCLUSO EXECUÇÃO DE FURO - FORNECIMENTO E INSTALAÇÃO. AF_12/2019 | E45: ESQV - ESQUADRIAS/FERRAGENS/VIDROS | F45: UN | G45: =VLOOKUP(C45,'Comp SINAPI BA 07-2025 Onerado'!$B$11:$F$9696,4,FALSE) -> 121.43 | H45: 0.0522 | I45: 6.34
A46: C | B46: SINAPI | C46: 91170 | D46: =VLOOKUP(C46,'Comp SINAPI BA 07-2025 Onerado'!$B$11:$F$9696,2,FALSE) -> FIXAÇÃO DE TUBOS HORIZONTAIS DE PVC ÁGUA, PVC ESGOTO, PVC ÁGUA PLUVIAL, CPVC, PPR, COBRE OU AÇO, DIÂMETROS MENORES OU IGUAIS A 40 MM, COM ABRAÇADEIRA METÁLICA RÍGIDA TIPO U PERFIL 1 1/4", FIXADA EM PERFILADO EM LAJE. AF_09/2023_PS | E46: INHI - INSTALAÇÕES HIDROS SANITÁRIAS | F46: M | G46: =VLOOKUP(C46,'Comp SINAPI BA 07-2025 Onerado'!$B$11:$F$9696,4,FALSE) -> 11.49 | H46: 0.4612 | I46: 5.3
A47: C | B47: SINAPI | C47: 91173 | D47: =VLOOKUP(C47,'Comp SINAPI BA 07-2025 Onerado'!$B$11:$F$9696,2,FALSE) -> FIXAÇÃO DE TUBOS VERTICAIS DE PVC ÁGUA, PVC ESGOTO, PVC ÁGUA PLUVIAL, CPVC, PPR, COBRE OU AÇO, DIÂMETROS MENORES OU IGUAIS A 40 MM, COM ABRAÇADEIRA METÁLICA RÍGIDA TIPO U PERFIL 1 1/4", FIXADA EM PERFILADO EM PAREDE. AF_09/2023_PS | E47: INHI - INSTALAÇÕES HIDROS SANITÁRIAS | F47: M | G47: =VLOOKUP(C47,'Comp SINAPI BA 07-2025 Onerado'!$B$11:$F$9696,4,FALSE) -> 4.27 | H47: 0.1827 | I47: 0.78
A48: C | B48: SINAPI | C48: 96985 | D48: =VLOOKUP(C48,'Comp SINAPI BA 07-2025 Onerado'!$B$11:$F$9696,2,FALSE) -> HASTE DE ATERRAMENTO, DIÂMETRO 5/8", COM 3 METROS - FORNECIMENTO E INSTALAÇÃO. AF_08/2023 | E48: INEL - INSTALAÇÃO ELÉTRICA/ELETRIFICAÇÃO E ILUMINAÇÃO EXTERNA | G48: =VLOOKUP(C48,'Comp SINAPI BA 07-2025 Onerado'!$B$11:$F$9696,4,FALSE) -> 89.11 | H48: 0.0522 | I48: 4.65
A49: C | B49: SINAPI | C49: 91959 | D49: =VLOOKUP(C49,'Comp SINAPI BA 07-2025 Onerado'!$B$11:$F$9696,2,FALSE) -> INTERRUPTOR SIMPLES (2 MÓDULOS), 10A/250V, INCLUINDO SUPORTE E PLACA - FORNECIMENTO E INSTALAÇÃO. AF_03/2023 | E49: INEL - INSTALAÇÃO ELÉTRICA/ELETRIFICAÇÃO E ILUMINAÇÃO EXTERNA | F49: UN | G49: =VLOOKUP(C49,'Comp SINAPI BA 07-2025 Onerado'!$B$11:$F$9696,4,FALSE) -> 44.37 | H49: 0.0174 | I49: 0.77
A50: C | B50: SINAPI | C50: 91967 | D50: =VLOOKUP(C50,'Comp SINAPI BA 07-2025 Onerado'!$B$11:$F$9696,2,FALSE) -> INTERRUPTOR SIMPLES (3 MÓDULOS), 10A/250V, INCLUINDO SUPORTE E PLACA - FORNECIMENTO E INSTALAÇÃO. AF_03/2023 | E50: INEL - INSTALAÇÃO ELÉTRICA/ELETRIFICAÇÃO E ILUMINAÇÃO EXTERNA | F50: UN | G50: =VLOOKUP(C50,'Comp SINAPI BA 07-2025 Onerado'!$B$11:$F$9696,4,FALSE) -> 59.35 | H50: 0.0174 | I50: 1.03
A51: C | B51: SINAPI | C51: 94559 | D51: =VLOOKUP(C51,'Comp SINAPI BA 07-2025 Onerado'!$B$11:$F$9696,2,FALSE) -> JANELA DE AÇO TIPO BASCULANTE, PARA VIDROS (VIDROS NÃO INCLUSOS), BATENTE/ REQUADRO INCLUSO (6,5 A 14 CM), DIMENSÕES 60X60 CM, COM COM PINTURA ANTICORROSIVA, SEM ACABAMENTO, COM FERRAGENS, FIXAÇÃO COM ARGAMASSA, EXCLUSIVE CONTRAMARCO - FORNECIMENTO E INSTALAÇÃO. AF_11/2024 | E51: ESQV - ESQUADRIAS/FERRAGENS/VIDROS | F51: m² | G51: =VLOOKUP(C51,'Comp SINAPI BA 07-2025 Onerado'!$B$11:$F$9696,4,FALSE) -> 761.69 | H51: 0.0905 | I51: 68.93
A52: C | B52: SINAPI | C52: 89724 | D52: =VLOOKUP(C52,'Comp SINAPI BA 07-2025 Onerado'!$B$11:$F$9696,2,FALSE) -> JOELHO 90 GRAUS, PVC, SERIE NORMAL, ESGOTO PREDIAL, DN 40 MM, JUNTA SOLDÁVEL, FORNECIDO E INSTALADO EM RAMAL DE DESCARGA OU RAMAL DE ESGOTO SANITÁRIO. AF_08/2022 | E52: INHI - INSTALAÇÕES HIDROS SANITÁRIAS | F52: UN | G52: =VLOOKUP(C52,'Comp SINAPI BA 07-2025 Onerado'!$B$11:$F$9696,4,FALSE) -> 10.74 | H52: 0.174 | I52: 1.87
A53: C | B53: SINAPI | C53: 89731 | D53: =VLOOKUP(C53,'Comp SINAPI BA 07-2025 Onerado'!$B$11:$F$9696,2,FALSE) -> JOELHO 90 GRAUS, PVC, SERIE NORMAL, ESGOTO PREDIAL, DN 50 MM, JUNTA ELÁSTICA, FORNECIDO E INSTALADO EM RAMAL DE DESCARGA OU RAMAL DE ESGOTO SANITÁRIO. AF_08/2022 | E53: INHI - INSTALAÇÕES HIDROS SANITÁRIAS | F53: UN | G53: =VLOOKUP(C53,'Comp SINAPI BA 07-2025 Onerado'!$B$11:$F$9696,4,FALSE) -> 15.46 | H53: 0.0174 | I53: 0.27
A54: C | B54: SINAPI | C54: 89970 | D54: KIT DE REGISTRO DE PRESSÃO BRUTO DE LATÃO ¾", INCLUSIVE CONEXÕES, ROSCÁVEL, INSTALADO EM RAMAL DE ÁGUA FRIA - FORNECIMENTO E INSTALAÇÃO. AF_12/2014 | E54: INHI - INSTALAÇÕES HIDROS SANITÁRIAS | F54: UN | G54: =SUM(I55:I57) -> 50.12 | H54: 0.0696 | I54: 3.49
A55: C | B55: SINAPI | C55: 89383 | D55: =VLOOKUP(C55,'Comp SINAPI BA 07-2025 Onerado'!$B$11:$F$9696,2,FALSE) -> ADAPTADOR CURTO COM BOLSA E ROSCA PARA REGISTRO, PVC, SOLDÁVEL, DN 25MM X 3/4, INSTALADO EM RAMAL OU SUB-RAMAL DE ÁGUA - FORNECIMENTO E INSTALAÇÃO. AF_06/2022 | E55: INHI - INSTALAÇÕES HIDROS SANITÁRIAS | F55: UN | G55: =VLOOKUP(C55,'Comp SINAPI BA 07-2025 Onerado'!$B$11:$F$9696,4,FALSE) -> 7.08 | H55: 1 | I55: =ROUND(G55*H55,2) -> 7.08
A56: C | B56: SINAPI | C56: 89385 | D56: =VLOOKUP(C56,'Comp SINAPI BA 07-2025 Onerado'!$B$11:$F$9696,2,FALSE) -> LUVA SOLDÁVEL E COM ROSCA, PVC, SOLDÁVEL, DN 25MM X 3/4, INSTALADO EM RAMAL OU SUB-RAMAL DE ÁGUA - FORNECIMENTO E INSTALAÇÃO. AF_06/2022 | E56: INHI - INSTALAÇÕES HIDROS SANITÁRIAS | F56: UN | G56: =VLOOKUP(C56,'Comp SINAPI BA 07-2025 Onerado'!$B$11:$F$9696,4,FALSE) -> 7.63 | H56: 1 | I56: =ROUND(G56*H56,2) -> 7.63
A57: C | B57: SINAPI | C57: 89351 | D57: =VLOOKUP(C57,'Comp SINAPI BA 07-2025 Onerado'!$B$11:$F$9696,2,FALSE) -> REGISTRO DE PRESSÃO BRUTO, LATÃO, ROSCÁVEL, 3/4'' - FORNECIMENTO E INSTALAÇÃO. AF_08/2021 | E57: INHI - INSTALAÇÕES HIDROS SANITÁRIAS | F57: UN | G57: =VLOOKUP(C57,'Comp SINAPI BA 07-2025 Onerado'!$B$11:$F$9696,4,FALSE) -> 35.41 | H57: 1 | I57: 35.41
A58: C | B58: SINAPI | C58: 95240 | D58: =VLOOKUP(C58,'Comp SINAPI BA 07-2025 Onerado'!$B$11:$F$9696,2,FALSE) -> LASTRO DE CONCRETO MAGRO, APLICADO EM PISOS, LAJES SOBRE SOLO OU RADIERS, ESPESSURA DE 3 CM. AF_01/2024 | E58: FUES - FUNDAÇÕES E ESTRUTURAS | F58: m² | G58: =VLOOKUP(C58,'Comp SINAPI BA 07-2025 Onerado'!$B$11:$F$9696,4,FALSE) -> 22.32 | H58: 0.0064 | I58: 0.14
A59: C | B59: SINAPI | C59: 95241 | D59: =VLOOKUP(C59,'Comp SINAPI BA 07-2025 Onerado'!$B$11:$F$9696,2,FALSE) -> LASTRO DE CONCRETO MAGRO, APLICADO EM PISOS, LAJES SOBRE SOLO OU RADIERS, ESPESSURA DE 5 CM. AF_01/2024 | E59: FUES - FUNDAÇÕES E ESTRUTURAS | F59: m² | G59: =VLOOKUP(C59,'Comp SINAPI BA 07-2025 Onerado'!$B$11:$F$9696,4,FALSE) -> 42.86 | H59: 1.3328 | I59: 57.12
A60: C | B60: SINAPI | C60: 86943 | D60: =VLOOKUP(C60,'Comp SINAPI BA 07-2025 Onerado'!$B$11:$F$9696,2,FALSE) -> LAVATÓRIO LOUÇA BRANCA SUSPENSO, 29,5 X 39CM OU EQUIVALENTE, PADRÃO POPULAR, INCLUSO SIFÃO FLEXÍVEL EM PVC, VÁLVULA E ENGATE FLEXÍVEL 30CM EM PLÁSTICO E TORNEIRA CROMADA DE MESA, PADRÃO POPULAR - FORNECIMENTO E INSTALAÇÃO. AF_01/2020 | E60: INHI - INSTALAÇÕES HIDROS SANITÁRIAS | F60: UN | G60: =VLOOKUP(C60,'Comp SINAPI BA 07-2025 Onerado'!$B$11:$F$9696,4,FALSE) -> 278.77 | H60: 0.0522 | I60: 14.55
A61: C | B61: SINAPI | C61: 97586 | D61: LUMINÁRIA TIPO CALHA, DE SOBREPOR, COM 2 LÂMPADAS TUBULARES FLUORESCENTES DE 36 W, COM REATOR DE PARTIDA RÁPIDA - FORNECIMENTO E INSTALAÇÃO. AF_02/2020 | E61: INEL - INSTALAÇÃO ELÉTRICA/ELETRIFICAÇÃO E ILUMINAÇÃO EXTERNA | F61: UN | G61: =SUM(I62:I64) -> 224.27 | H61: 0.1392 | I61: 31.22
A62: C | B62: SINAPI | C62: 88247 | D62: =VLOOKUP(C62,'Comp SINAPI BA 07-2025 Onerado'!$B$11:$F$9696,2,FALSE) -> AUXILIAR DE ELETRICISTA COM ENCARGOS COMPLEMENTARES | E62: SEDI - SERVIÇOS DIVERSOS | F62: H | G62: =VLOOKUP(C62,'Comp SINAPI BA 07-2025 Onerado'!$B$11:$F$9696,4,FALSE) -> 25.56 | H62: 0.1727 | I62: =ROUND(G62*H62,2) -> 4.41
A63: C | B63: SINAPI | C63: 88264 | D63: =VLOOKUP(C63,'Comp SINAPI BA 07-2025 Onerado'!$B$11:$F$9696,2,FALSE) -> ELETRICISTA COM ENCARGOS COMPLEMENTARES | E63: SEDI - SERVIÇOS DIVERSOS | F63: H | G63: =VLOOKUP(C63,'Comp SINAPI BA 07-2025 Onerado'!$B$11:$F$9696,4,FALSE) -> 33.94 | H63: 0.4144 | I63: =ROUND(G63*H63,2) -> 14.06
A64: I | B64: SINAPI | C64: 3780 | D64: =VLOOKUP(C64,'Ins SINAPI BA 07-2025 Onerado'!$B$11:$F$9696,2,FALSE) -> LUMINARIA DE SOBREPOR EM CHAPA DE ACO PARA 1 LAMPADA FLUORESCENTE DE *36* W, ALETADA, COMPLETA (LAMPADA E REATOR INCLUSOS) | E64: Material | F64: UN | G64: 102.9 | H64: 2 | I64: =ROUND(G64*H64,2) -> 205.8
A65: C | B65: SINAPI | C65: 91882 | D65: =VLOOKUP(C65,'Comp SINAPI BA 07-2025 Onerado'!$B$11:$F$9696,2,FALSE) -> LUVA PARA ELETRODUTO, PVC, ROSCÁVEL, DN 20 MM (1/2"), PARA CIRCUITOS TERMINAIS, INSTALADA EM PAREDE - FORNECIMENTO E INSTALAÇÃO. AF_03/2023 | E65: INEL - INSTALAÇÃO ELÉTRICA/ELETRIFICAÇÃO E ILUMINAÇÃO EXTERNA | F65: UN | G65: =VLOOKUP(C65,'Comp SINAPI BA 07-2025 Onerado'!$B$11:$F$9696,4,FALSE) -> 11.48 | H65: 0.0348 | I65: 0.4
A66: C | B66: SINAPI | C66: 91875 | D66: =VLOOKUP(C66,'Comp SINAPI BA 07-2025 Onerado'!$B$11:$F$9696,2,FALSE) -> LUVA PARA ELETRODUTO, PVC, ROSCÁVEL, DN 25 MM (3/4"), PARA CIRCUITOS TERMINAIS, INSTALADA EM FORRO - FORNECIMENTO E INSTALAÇÃO. AF_03/2023 | E66: INEL - INSTALAÇÃO ELÉTRICA/ELETRIFICAÇÃO E ILUMINAÇÃO EXTERNA | F66: UN | G66: =VLOOKUP(C66,'Comp SINAPI BA 07-2025 Onerado'!$B$11:$F$9696,4,FALSE) -> 9.2 | H66: 0.0348 | I66: 0.32
A67: C | B67: SINAPI | C67: 87548 | D67: =VLOOKUP(C67,'Comp SINAPI BA 07-2025 Onerado'!$B$11:$F$9696,2,FALSE) -> MASSA ÚNICA, EM ARGAMASSA TRAÇO 1:2:8, PREPARO MANUAL, APLICADA MANUALMENTE EM PAREDES INTERNAS DE AMBIENTES COM ÁREA ENTRE 5M² E 10M², E = 10MM, COM TALISCAS. AF_03/2024 | E67: REVE - REVESTIMENTO E TRATAMENTO DE SUPERFÍCIES | F67: m² | G67: =VLOOKUP(C67,'Comp SINAPI BA 07-2025 Onerado'!$B$11:$F$9696,4,FALSE) -> 33.71 | H67: 0.1894 | I67: 6.38
A68: C | B68: SINAPI | C68: 98445 | D68: =VLOOKUP(C68,'Comp SINAPI BA 07-2025 Onerado'!$B$11:$F$9696,2,FALSE) -> PAREDE DE MADEIRA COMPENSADA PARA CONSTRUÇÃO TEMPORÁRIA EM CHAPA SIMPLES, EXTERNA, COM ÁREA LÍQUIDA MAIOR OU IGUAL A 6 M², COM VÃO. AF_03/2024 | E68: CANT - CANTEIRO DE OBRAS | F68: m² | G68: =VLOOKUP(C68,'Comp SINAPI BA 07-2025 Onerado'!$B$11:$F$9696,4,FALSE) -> 118.79 | H68: 0.4081 | I68: 48.48
A69: C | B69: SINAPI | C69: 98441 | D69: =VLOOKUP(C69,'Comp SINAPI BA 07-2025 Onerado'!$B$11:$F$9696,2,FALSE) -> PAREDE DE MADEIRA COMPENSADA PARA CONSTRUÇÃO TEMPORÁRIA EM CHAPA SIMPLES, EXTERNA, SEM VÃO. AF_03/2024 | E69: CANT - CANTEIRO DE OBRAS | F69: m² | G69: =VLOOKUP(C69,'Comp SINAPI BA 07-2025 Onerado'!$B$11:$F$9696,4,FALSE) -> 100.01 | H69: 0.2612 | I69: 26.12
A70: C | B70: SINAPI | C70: 98446 | D70: =VLOOKUP(C70,'Comp SINAPI BA 07-2025 Onerado'!$B$11:$F$9696,2,FALSE) -> PAREDE DE MADEIRA COMPENSADA PARA CONSTRUÇÃO TEMPORÁRIA EM CHAPA SIMPLES, EXTERNA, COM ÁREA LÍQUIDA MENOR QUE 6 M², COM VÃO. AF_03/2024 | E70: CANT - CANTEIRO DE OBRAS | F70: m² | G70: =VLOOKUP(C70,'Comp SINAPI BA 07-2025 Onerado'!$B$11:$F$9696,4,FALSE) -> 153.47 | H70: 0.3182 | I70: 48.83
A71: C | B71: SINAPI | C71: 98441 | D71: =VLOOKUP(C71,'Comp SINAPI BA 07-2025 Onerado'!$B$11:$F$9696,2,FALSE) -> PAREDE DE MADEIRA COMPENSADA PARA CONSTRUÇÃO TEMPORÁRIA EM CHAPA SIMPLES, EXTERNA, SEM VÃO. AF_03/2024 | E71: CANT - CANTEIRO DE OBRAS | F71: m² | G71: =VLOOKUP(C71,'Comp SINAPI BA 07-2025 Onerado'!$B$11:$F$9696,4,FALSE) -> 100.01 | H71: 0.3007 | I71: 30.07
A72: C | B72: SINAPI | C72: 98447 | D72: =VLOOKUP(C72,'Comp SINAPI BA 07-2025 Onerado'!$B$11:$F$9696,2,FALSE) -> PAREDE DE MADEIRA COMPENSADA PARA CONSTRUÇÃO TEMPORÁRIA EM CHAPA SIMPLES, INTERNA, COM ÁREA LÍQUIDA MAIOR OU IGUAL A 6 M², COM VÃO. AF_03/2024 | E72: CANT - CANTEIRO DE OBRAS | F72: m² | G72: =VLOOKUP(C72,'Comp SINAPI BA 07-2025 Onerado'!$B$11:$F$9696,4,FALSE) -> 91.46 | H72: 0.1297 | I72: 11.86
A73: C | B73: SINAPI | C73: 98443 | D73: =VLOOKUP(C73,'Comp SINAPI BA 07-2025 Onerado'!$B$11:$F$9696,2,FALSE) -> PAREDE DE MADEIRA COMPENSADA PARA CONSTRUÇÃO TEMPORÁRIA EM CHAPA SIMPLES, INTERNA, SEM VÃO. AF_03/2024 | E73: CANT - CANTEIRO DE OBRAS | F73: m² | G73: =VLOOKUP(C73,'Comp SINAPI BA 07-2025 Onerado'!$B$11:$F$9696,4,FALSE) -> 76.54 | H73: 0.083 | I73: 6.35
A74: C | B74: SINAPI | C74: 98448 | D74: =VLOOKUP(C74,'Comp SINAPI BA 07-2025 Onerado'!$B$11:$F$9696,2,FALSE) -> PAREDE DE MADEIRA COMPENSADA PARA CONSTRUÇÃO TEMPORÁRIA EM CHAPA SIMPLES, INTERNA, COM ÁREA LÍQUIDA MENOR QUE 6 M², COM VÃO. AF_03/2024 | E74: CANT - CANTEIRO DE OBRAS | F74: m² | G74: =VLOOKUP(C74,'Comp SINAPI BA 07-2025 Onerado'!$B$11:$F$9696,4,FALSE) -> 119.3 | H74: 0.1011 | I74: 12.06
A75: C | B75: SINAPI | C75: 98443 | D75: =VLOOKUP(C75,'Comp SINAPI BA 07-2025 Onerado'!$B$11:$F$9696,2,FALSE) -> PAREDE DE MADEIRA COMPENSADA PARA CONSTRUÇÃO TEMPORÁRIA EM CHAPA SIMPLES, INTERNA, SEM VÃO. AF_03/2024 | E75: CANT - CANTEIRO DE OBRAS | F75: m² | G75: =VLOOKUP(C75,'Comp SINAPI BA 07-2025 Onerado'!$B$11:$F$9696,4,FALSE) -> 76.54 | H75: 0.0956 | I75: 7.32
A76: C | B76: SINAPI | C76: 88489 | D76: =VLOOKUP(C76,'Comp SINAPI BA 07-2025 Onerado'!$B$11:$F$9696,2,FALSE) -> PINTURA LÁTEX ACRÍLICA PREMIUM, APLICAÇÃO MANUAL EM PAREDES, DUAS DEMÃOS. AF_04/2023 | E76: PINT - PINTURAS | F76: m² | G76: =VLOOKUP(C76,'Comp SINAPI BA 07-2025 Onerado'!$B$11:$F$9696,4,FALSE) -> 13.96 | H76: 2.4442 | I76: =ROUND(G76*H76,2) -> 34.12
A77: C | B77: SINAPI | C77: 98679 | D77: =VLOOKUP(C77,'Comp SINAPI BA 07-2025 Onerado'!$B$11:$F$9696,2,FALSE) -> PISO CIMENTADO, TRAÇO 1:3 (CIMENTO E AREIA), ACABAMENTO LISO, ESPESSURA 2,0 CM, PREPARO MECÂNICO DA ARGAMASSA. AF_09/2020 | E77: PISO - PISOS | F77: m² | G77: =VLOOKUP(C77,'Comp SINAPI BA 07-2025 Onerado'!$B$11:$F$9696,4,FALSE) -> 44.82 | H77: 0.5134 | I77: 23.01
A78: C | B78: SINAPI | C78: 89957 | D78: PONTO DE CONSUMO TERMINAL DE ÁGUA FRIA (SUBRAMAL) COM TUBULAÇÃO DE PVC, DN 25 MM, INSTALADO EM RAMAL DE ÁGUA, INCLUSOS RASGO E CHUMBAMENTO EM ALVENARIA. AF_12/2014 (ADAPTADO) | E78: INHI - INSTALAÇÕES HIDROS SANITÁRIAS | F78: UN | G78: =SUM(I79:I84) -> 154.23 | H78: 0.174 | I78: 26.84
A79: C | B79: SINAPI | C79: 90466 | D79: =VLOOKUP(C79,'Comp SINAPI BA 07-2025 Onerado'!$B$11:$F$9696,2,FALSE) -> CHUMBAMENTO LINEAR EM ALVENARIA PARA RAMAIS/DISTRIBUIÇÃO DE INSTALAÇÕES HIDRÁULICAS COM DIÂMETROS MENORES OU IGUAIS A 40 MM. AF_09/2023 | E79: Material | F79: M | G79: =VLOOKUP(C79,'Comp SINAPI BA 07-2025 Onerado'!$B$11:$F$9696,4,FALSE) -> 17.79 | H79: 2.14 | I79: 38.07
A80: C | B80: SINAPI | C80: 89366 | D80: =VLOOKUP(C80,'Comp SINAPI BA 07-2025 Onerado'!$B$11:$F$9696,2,FALSE) -> JOELHO 90 GRAUS COM BUCHA DE LATÃO, PVC, SOLDÁVEL, DN 25MM, X 3/4 INSTALADO EM RAMAL OU SUB-RAMAL DE ÁGUA - FORNECIMENTO E INSTALAÇÃO. AF_06/2022 | E80: Material | F80: UN | G80: =VLOOKUP(C80,'Comp SINAPI BA 07-2025 Onerado'!$B$11:$F$9696,4,FALSE) -> 16.1 | H80: 1 | I80: 16.1
A81: C | B81: SINAPI | C81: 89362 | D81: =VLOOKUP(C81,'Comp SINAPI BA 07-2025 Onerado'!$B$11:$F$9696,2,FALSE) -> JOELHO 90 GRAUS, PVC, SOLDÁVEL, DN 25MM, INSTALADO EM RAMAL OU SUB-RAMAL DE ÁGUA - FORNECIMENTO E INSTALAÇÃO. AF_06/2022 | E81: Material | F81: UN | G81: =VLOOKUP(C81,'Comp SINAPI BA 07-2025 Onerado'!$B$11:$F$9696,4,FALSE) -> 10.41 | H81: 1.18 | I81: 12.28
A82: C | B82: SINAPI | C82: 90443 | D82: =VLOOKUP(C82,'Comp SINAPI BA 07-2025 Onerado'!$B$11:$F$9696,2,FALSE) -> RASGO LINEAR MANUAL EM ALVENARIA, PARA RAMAIS/ DISTRIBUIÇÃO DE INSTALAÇÕES HIDRÁULICAS, DIÂMETROS MENORES OU IGUAIS A 40 MM. AF_09/2023 | E82: Material | F82: M | G82: =VLOOKUP(C82,'Comp SINAPI BA 07-2025 Onerado'!$B$11:$F$9696,4,FALSE) -> 9.32 | H82: 2.14 | I82: 19.94
A83: C | B83: SINAPI | C83: 89395 | D83: =VLOOKUP(C83,'Comp SINAPI BA 07-2025 Onerado'!$B$11:$F$9696,2,FALSE) -> TE, PVC, SOLDÁVEL, DN 25MM, INSTALADO EM RAMAL OU SUB-RAMAL DE ÁGUA - FORNECIMENTO E INSTALAÇÃO. AF_06/2022 | E83: Material | F83: UN | G83: =VLOOKUP(C83,'Comp SINAPI BA 07-2025 Onerado'!$B$11:$F$9696,4,FALSE) -> 14.26 | H83: 0.89 | I83: 12.69
A84: C | B84: SINAPI | C84: 89356 | D84: =VLOOKUP(C84,'Comp SINAPI BA 07-2025 Onerado'!$B$11:$F$9696,2,FALSE) -> TUBO, PVC, SOLDÁVEL, DE 25MM, INSTALADO EM RAMAL OU SUB-RAMAL DE ÁGUA - FORNECIMENTO E INSTALAÇÃO. AF_06/2022 | E84: Material | F84: M | G84: =VLOOKUP(C84,'Comp SINAPI BA 07-2025 Onerado'!$B$11:$F$9696,4,FALSE) -> 25.77 | H84: 2.14 | I84: 55.15
A85: C | B85: SINAPI | C85: 90822 | D85: =VLOOKUP(C85,'Comp SINAPI BA 07-2025 Onerado'!$B$11:$F$9696,2,FALSE) -> PORTA DE MADEIRA PARA PINTURA, SEMI-OCA (LEVE OU MÉDIA), 80X210CM, ESPESSURA DE 3,5CM, INCLUSO DOBRADIÇAS - FORNECIMENTO E INSTALAÇÃO. AF_12/2019 | E85: ESQV - ESQUADRIAS/FERRAGENS/VIDROS | F85: UN | G85: =VLOOKUP(C85,'Comp SINAPI BA 07-2025 Onerado'!$B$11:$F$9696,4,FALSE) -> 401.47 | H85: 0.0348 | I85: 13.97
A86: C | B86: SINAPI | C86: 101876 | D86: =VLOOKUP(C86,'Comp SINAPI BA 07-2025 Onerado'!$B$11:$F$9696,2,FALSE) -> QUADRO DE DISTRIBUIÇÃO DE ENERGIA EM PVC, DE EMBUTIR, SEM BARRAMENTO, PARA 6 DISJUNTORES - FORNECIMENTO E INSTALAÇÃO. AF_10/2020 | E86: INEL - INSTALAÇÃO ELÉTRICA/ELETRIFICAÇÃO E ILUMINAÇÃO EXTERNA | F86: UN | G86: =VLOOKUP(C86,'Comp SINAPI BA 07-2025 Onerado'!$B$11:$F$9696,4,FALSE) -> 114.71 | H86: 0.0174 | I86: 2
A87: C | B87: SINAPI | C87: 89709 | D87: =VLOOKUP(C87,'Comp SINAPI BA 07-2025 Onerado'!$B$11:$F$9696,2,FALSE) -> RALO SIFONADO, PVC, DN 100 X 40 MM, JUNTA SOLDÁVEL, FORNECIDO E INSTALADO EM RAMAL DE DESCARGA OU EM RAMAL DE ESGOTO SANITÁRIO. AF_08/2022 | E87: INHI - INSTALAÇÕES HIDROS SANITÁRIAS | F87: UN | G87: =VLOOKUP(C87,'Comp SINAPI BA 07-2025 Onerado'!$B$11:$F$9696,4,FALSE) -> 20.04 | H87: 0.0696 | I87: 1.39
A88: C | B88: SINAPI | C88: 90443 | D88: =VLOOKUP(C88,'Comp SINAPI BA 07-2025 Onerado'!$B$11:$F$9696,2,FALSE) -> RASGO LINEAR MANUAL EM ALVENARIA, PARA RAMAIS/ DISTRIBUIÇÃO DE INSTALAÇÕES HIDRÁULICAS, DIÂMETROS MENORES OU IGUAIS A 40 MM. AF_09/2023 | E88: INHI - INSTALAÇÕES HIDROS SANITÁRIAS | F88: M | G88: =VLOOKUP(C88,'Comp SINAPI BA 07-2025 Onerado'!$B$11:$F$9696,4,FALSE) -> 9.32 | H88: 0.0722 | I88: 0.67
A89: C | B89: SINAPI | C89: 93382 | D89: =VLOOKUP(C89,'Comp SINAPI BA 07-2025 Onerado'!$B$11:$F$9696,2,FALSE) -> REATERRO MANUAL DE VALAS, COM COMPACTADOR DE SOLOS DE PERCUSSÃO. AF_08/2023 | E89: MOVT - MOVIMENTO DE TERRA | F89: m³ | G89: =VLOOKUP(C89,'Comp SINAPI BA 07-2025 Onerado'!$B$11:$F$9696,4,FALSE) -> 30.54 | H89: 0.0072 | I89: 0.22
A90: C | B90: SINAPI | C90: 89784 | D90: =VLOOKUP(C90,'Comp SINAPI BA 07-2025 Onerado'!$B$11:$F$9696,2,FALSE) -> TE, PVC, SERIE NORMAL, ESGOTO PREDIAL, DN 50 X 50 MM, JUNTA ELÁSTICA, FORNECIDO E INSTALADO EM RAMAL DE DESCARGA OU RAMAL DE ESGOTO SANITÁRIO. AF_08/2022 | E90: INHI - INSTALAÇÕES HIDROS SANITÁRIAS | F90: UN | G90: =VLOOKUP(C90,'Comp SINAPI BA 07-2025 Onerado'!$B$11:$F$9696,4,FALSE) -> 24.36 | H90: 0.0174 | I90: 0.42
A91: C | B91: SINAPI | C91: 94210 | D91: =VLOOKUP(C91,'Comp SINAPI BA 07-2025 Onerado'!$B$11:$F$9696,2,FALSE) -> TELHAMENTO COM TELHA ONDULADA DE FIBROCIMENTO E = 6 MM, COM RECOBRIMENTO LATERAL DE 1 1/4 DE ONDA PARA TELHADO COM INCLINAÇÃO MÁXIMA DE 10°, COM ATÉ 2 ÁGUAS, INCLUSO IÇAMENTO. AF_07/2019 | E91: COBE - COBERTURA | F91: m² | G91: =VLOOKUP(C91,'Comp SINAPI BA 07-2025 Onerado'!$B$11:$F$9696,4,FALSE) -> 51.17 | H91: 1.3566 | I91: 69.42
A92: C | B92: SINAPI | C92: 92000 | D92: =VLOOKUP(C92,'Comp SINAPI BA 07-2025 Onerado'!$B$11:$F$9696,2,FALSE) -> TOMADA BAIXA DE EMBUTIR (1 MÓDULO), 2P+T 10 A, INCLUINDO SUPORTE E PLACA - FORNECIMENTO E INSTALAÇÃO. AF_03/2023 | E92: INEL - INSTALAÇÃO ELÉTRICA/ELETRIFICAÇÃO E ILUMINAÇÃO EXTERNA | F92: UN | G92: =VLOOKUP(C92,'Comp SINAPI BA 07-2025 Onerado'!$B$11:$F$9696,4,FALSE) -> 30.66 | H92: 0.0348 | I92: 1.07
A93: C | B93: SINAPI | C93: 92543 | D93: =VLOOKUP(C93,'Comp SINAPI BA 07-2025 Onerado'!$B$11:$F$9696,2,FALSE) -> TRAMA DE MADEIRA COMPOSTA POR TERÇAS PARA TELHADOS DE ATÉ 2 ÁGUAS PARA TELHA ONDULADA DE FIBROCIMENTO, METÁLICA, PLÁSTICA OU TERMOACÚSTICA, INCLUSO TRANSPORTE VERTICAL. AF_07/2019 | E93: COBE - COBERTURA | F93: m² | G93: =VLOOKUP(C93,'Comp SINAPI BA 07-2025 Onerado'!$B$11:$F$9696,4,FALSE) -> 24.29 | H93: 1.3566 | I93: 32.95
A94: C | B94: SINAPI | C94: 89714 | D94: =VLOOKUP(C94,'Comp SINAPI BA 07-2025 Onerado'!$B$11:$F$9696,2,FALSE) -> TUBO PVC, SERIE NORMAL, ESGOTO PREDIAL, DN 100 MM, FORNECIDO E INSTALADO EM RAMAL DE DESCARGA OU RAMAL DE ESGOTO SANITÁRIO. AF_08/2022 | E94: INHI - INSTALAÇÕES HIDROS SANITÁRIAS | F94: M | G94: =VLOOKUP(C94,'Comp SINAPI BA 07-2025 Onerado'!$B$11:$F$9696,4,FALSE) -> 38.86 | H94: 0.047 | I94: 1.83
A95: C | B95: SINAPI | C95: 89711 | D95: =VLOOKUP(C95,'Comp SINAPI BA 07-2025 Onerado'!$B$11:$F$9696,2,FALSE) -> TUBO PVC, SERIE NORMAL, ESGOTO PREDIAL, DN 40 MM, FORNECIDO E INSTALADO EM RAMAL DE DESCARGA OU RAMAL DE ESGOTO SANITÁRIO. AF_08/2022 | E95: INHI - INSTALAÇÕES HIDROS SANITÁRIAS | F95: M | G95: =VLOOKUP(C95,'Comp SINAPI BA 07-2025 Onerado'!$B$11:$F$9696,4,FALSE) -> 22.65 | H95: 0.1631 | I95: 3.69
A96: C | B96: SINAPI | C96: 89712 | D96: =VLOOKUP(C96,'Comp SINAPI BA 07-2025 Onerado'!$B$11:$F$9696,2,FALSE) -> TUBO PVC, SERIE NORMAL, ESGOTO PREDIAL, DN 50 MM, FORNECIDO E INSTALADO EM RAMAL DE DESCARGA OU RAMAL DE ESGOTO SANITÁRIO. AF_08/2022 | E96: INHI - INSTALAÇÕES HIDROS SANITÁRIAS | F96: M | G96: =VLOOKUP(C96,'Comp SINAPI BA 07-2025 Onerado'!$B$11:$F$9696,4,FALSE) -> 27.9 | H96: 0.2235 | I96: 6.24
A97: C | B97: SINAPI | C97: 86888 | D97: =VLOOKUP(C97,'Comp SINAPI BA 07-2025 Onerado'!$B$11:$F$9696,2,FALSE) -> VASO SANITÁRIO SIFONADO COM CAIXA ACOPLADA LOUÇA BRANCA - FORNECIMENTO E INSTALAÇÃO. AF_01/2020 | E97: INHI - INSTALAÇÕES HIDROS SANITÁRIAS | F97: UN | G97: =VLOOKUP(C97,'Comp SINAPI BA 07-2025 Onerado'!$B$11:$F$9696,4,FALSE) -> 510.32 | H97: 0.0522 | I97: 26.64
A98: I | B98: SINAPI | C98: 11712 | D98: =VLOOKUP(C98,'Ins SINAPI BA 07-2025 Onerado'!$B$11:$F$9696,2,FALSE) -> CAIXA SIFONADA, PVC, 150 X 150 X 50 MM, COM GRELHA QUADRADA, BRANCA (NBR 5688) | E98: Material | F98: UN | G98: =VLOOKUP(C98,'Ins SINAPI BA 07-2025 Onerado'!$B$11:$F$9696,5,FALSE) -> 36.2 | H98: 0.0348 | I98: 1.26
A99: I | B99: SINAPI | C99: 3080 | D99: =VLOOKUP(C99,'Ins SINAPI BA 07-2025 Onerado'!$B$11:$F$9696,2,FALSE) -> FECHADURA ESPELHO PARA PORTA EXTERNA, EM ACO INOX (MAQUINA, TESTA E CONTRA-TESTA) E EM ZAMAC (MACANETA, LINGUETA E TRINCOS) COM ACABAMENTO CROMADO, MAQUINA DE 40 MM, INCLUINDO CHAVE TIPO CILINDRO | E99: Material | F99: CJ | G99: =VLOOKUP(C99,'Ins SINAPI BA 07-2025 Onerado'!$B$11:$F$9696,5,FALSE) -> 78.2 | H99: 0.0348 | I99: 2.72
A100: I | B100: SINAPI | C100: 11587 | D100: =VLOOKUP(C100,'Ins SINAPI BA 07-2025 Onerado'!$B$11:$F$9696,2,FALSE) -> FORRO DE PVC LISO, BRANCO, REGUA DE 10 CM, ESPESSURA APROXIMADA DE 8 MM (COM COLOCACAO / SEM ESTRUTURA METALICA) | E100: Material | F100: m² | G100: =VLOOKUP(C100,'Ins SINAPI BA 07-2025 Onerado'!$B$11:$F$9696,5,FALSE) -> 78.6 | H100: 0.9762 | I100: 76.73
A101: I | B101: SINAPI | C101: 3659 | D101: =VLOOKUP(C101,'Ins SINAPI BA 07-2025 Onerado'!$B$11:$F$9696,2,FALSE) -> JUNCAO SIMPLES DE REDUCAO, PVC, DN 100 X 50 MM, SERIE NORMAL PARA ESGOTO PREDIAL | E101: Material | F101: UN | G101: =VLOOKUP(C101,'Ins SINAPI BA 07-2025 Onerado'!$B$11:$F$9696,5,FALSE) -> 15.88 | H101: 0.0174 | I101: 0.28
A102: I | B102: SINAPI | C102: 3670 | D102: =VLOOKUP(C102,'Ins SINAPI BA 07-2025 Onerado'!$B$11:$F$9696,2,FALSE) -> JUNCAO SIMPLES, PVC, 45 GRAUS, DN 100 X 100 MM, SERIE NORMAL PARA ESGOTO PREDIAL | E102: Material | F102: UN | G102: =VLOOKUP(C102,'Ins SINAPI BA 07-2025 Onerado'!$B$11:$F$9696,5,FALSE) -> 20.39 | H102: 0.0348 | I102: 0.71
A103: I | B103: SINAPI | C103: 11697 | D103: =VLOOKUP(C103,'Ins SINAPI BA 07-2025 Onerado'!$B$11:$F$9696,2,FALSE) -> MICTORIO COLETIVO ACO INOX (AISI 304), E = 0,8 MM, DE *100 X 40 X 30* CM (C X A X P) | E103: Material | F103: UN | G103: =VLOOKUP(C103,'Ins SINAPI BA 07-2025 Onerado'!$B$11:$F$9696,5,FALSE) -> 616.71 | H103: 0.0174 | I103: 10.73
A104: I | B104: SINAPI | C104: 43777 | D104: =VLOOKUP(C104,'Ins SINAPI BA 07-2025 Onerado'!$B$11:$F$9696,2,FALSE) -> PORTA DE MADEIRA, FOLHA LEVE (NBR 15930), DE 600 X 2100 MM, E = 35 MM, NUCLEO COLMEIA, CAPA LISA EM HDF, ACABAMENTO MELAMINICO EM PADRAO MADEIRA | E104: Material | F104: UN | G104: =VLOOKUP(C104,'Ins SINAPI BA 07-2025 Onerado'!$B$11:$F$9696,5,FALSE) -> 247.81 | H104: 0.0447618 | I104: 11.09
A105: I | B105: SINAPI | C105: 21112 | D105: =VLOOKUP(C105,'Ins SINAPI BA 07-2025 Onerado'!$B$11:$F$9696,2,FALSE) -> VALVULA DE DESCARGA EM METAL CROMADO PARA MICTORIO COM ACIONAMENTO POR PRESSAO E FECHAMENTO AUTOMATICO | E105: Material | F105: UN | G105: =VLOOKUP(C105,'Ins SINAPI BA 07-2025 Onerado'!$B$11:$F$9696,5,FALSE) -> 320.3 | H105: 0.0174 | I105: 5.57
A108: Código | D108: 93583 ADAPTADO
A109: Descrição | D109: EXECUÇÃO DE CENTRAL DE FÔRMAS, PRODUÇÃO DE ARGAMASSA OU CONCRETO EM CANTEIRO DE OBRA, NÃO INCLUSO MOBILIÁRIO E EQUIPAMENTOS. AF_04/2016
A110: Data | D110: 2025-06-01
A111: Estado | D111: Bahia
A112: Tipo | D112: CANT - CANTEIRO DE OBRAS
A113: Unidade | D113: m²
A114: Valor sem Desoneração | D114: =SUM(I117:I131,I135:I145) -> 502.313164
A116: Natureza | B116: Fonte | C116: codigo | D116: Descrição | E116: Tipo | F116: Unidade | G116: Valor sem Desoneração | H116: Coeficiente | I116: Valor sem Desoneração
A117: C | B117: SINAPI | C117: 91924 | D117: =VLOOKUP(C117,'Comp SINAPI BA 07-2025 Onerado'!$B$11:$F$9696,2,FALSE) -> CABO DE COBRE FLEXÍVEL ISOLADO, 1,5 MM², ANTI-CHAMA 450/750 V, PARA CIRCUITOS TERMINAIS - FORNECIMENTO E INSTALAÇÃO. AF_03/2023 | E117: INEL - INSTALAÇÃO ELÉTRICA/ELETRIFICAÇÃO E ILUMINAÇÃO EXTERNA | F117: M | G117: =VLOOKUP(C117,'Comp SINAPI BA 07-2025 Onerado'!$B$11:$F$9696,4,FALSE) -> 3.26 | H117: 1,0821 | I117: =G117*H117 -> 3.527646
A118: C | B118: SINAPI | C118: 101561 | D118: =VLOOKUP(C118,'Comp SINAPI BA 07-2025 Onerado'!$B$11:$F$9696,2,FALSE) -> CABO DE COBRE FLEXÍVEL ISOLADO, 16 MM², 0,6/1,0 KV, PARA REDE AÉREA DE DISTRIBUIÇÃO DE ENERGIA ELÉTRICA DE BAIXA TENSÃO - FORNECIMENTO E INSTALAÇÃO. AF_07/2020 | E118: INEL - INSTALAÇÃO ELÉTRICA/ELETRIFICAÇÃO E ILUMINAÇÃO EXTERNA | F118: M | G118: =VLOOKUP(C118,'Comp SINAPI BA 07-2025 Onerado'!$B$11:$F$9696,4,FALSE) -> 17.31 | H118: 0,4831 | I118: =G118*H118 -> 8.362461
A119: C | B119: SINAPI | C119: 91926 | D119: =VLOOKUP(C119,'Comp SINAPI BA 07-2025 Onerado'!$B$11:$F$9696,2,FALSE) -> CABO DE COBRE FLEXÍVEL ISOLADO, 2,5 MM², ANTI-CHAMA 450/750 V, PARA CIRCUITOS TERMINAIS - FORNECIMENTO E INSTALAÇÃO. AF_03/2023 | E119: INEL - INSTALAÇÃO ELÉTRICA/ELETRIFICAÇÃO E ILUMINAÇÃO EXTERNA | F119: M | G119: =VLOOKUP(C119,'Comp SINAPI BA 07-2025 Onerado'!$B$11:$F$9696,4,FALSE) -> 4.72 | H119: 2,087 | I119: 9.85064
A120: C | B120: SINAPI | C120: 97886 | D120: =VLOOKUP(C120,'Comp SINAPI BA 07-2025 Onerado'!$B$11:$F$9696,2,FALSE) -> CAIXA ENTERRADA ELÉTRICA RETANGULAR, EM ALVENARIA COM TIJOLOS CERÂMICOS MACIÇOS, FUNDO COM BRITA, DIMENSÕES INTERNAS: 0,3X0,3X0,3 M. AF_12/2020 | E120: INEL - INSTALAÇÃO ELÉTRICA/ELETRIFICAÇÃO E ILUMINAÇÃO EXTERNA | F120: UN | G120: =VLOOKUP(C120,'Comp SINAPI BA 07-2025 Onerado'!$B$11:$F$9696,4,FALSE) -> 186.01 | H120: 0,0966 | I120: 17.968566
A121: C | B121: SINAPI | C121: 95805 | D121: =VLOOKUP(C121,'Comp SINAPI BA 07-2025 Onerado'!$B$11:$F$9696,2,FALSE) -> CONDULETE DE PVC, TIPO B, PARA ELETRODUTO DE PVC SOLDÁVEL DN 25 MM (3/4''), APARENTE - FORNECIMENTO E INSTALAÇÃO. AF_10/2022 | E121: INEL - INSTALAÇÃO ELÉTRICA/ELETRIFICAÇÃO E ILUMINAÇÃO EXTERNA | F121: UN | G121: =VLOOKUP(C121,'Comp SINAPI BA 07-2025 Onerado'!$B$11:$F$9696,4,FALSE) -> 23.54 | H121: 0,3865 | I121: 9.09821
A122: C | B122: SINAPI | C122: 101891 | D122: =VLOOKUP(C122,'Comp SINAPI BA 07-2025 Onerado'!$B$11:$F$9696,2,FALSE) -> DISJUNTOR MONOPOLAR TIPO NEMA, CORRENTE NOMINAL DE 35 ATÉ 50A - FORNECIMENTO E INSTALAÇÃO. AF_10/2020 | E122: INEL - INSTALAÇÃO ELÉTRICA/ELETRIFICAÇÃO E ILUMINAÇÃO EXTERNA | F122: UN | G122: =VLOOKUP(C122,'Comp SINAPI BA 07-2025 Onerado'!$B$11:$F$9696,4,FALSE) -> 27.5 | H122: 0,2899 | I122: 7.97225
A123: C | B123: SINAPI | C123: 91862 | D123: =VLOOKUP(C123,'Comp SINAPI BA 07-2025 Onerado'!$B$11:$F$9696,2,FALSE) -> ELETRODUTO RÍGIDO ROSCÁVEL, PVC, DN 20 MM (1/2"), PARA CIRCUITOS TERMINAIS, INSTALADO EM FORRO - FORNECIMENTO E INSTALAÇÃO. AF_03/2023 | E123: INEL - INSTALAÇÃO ELÉTRICA/ELETRIFICAÇÃO E ILUMINAÇÃO EXTERNA | F123: M | G123: =VLOOKUP(C123,'Comp SINAPI BA 07-2025 Onerado'!$B$11:$F$9696,4,FALSE) -> 9.77 | H123: 0,4251 | I123: 4.153227
A124: C | B124: SINAPI | C124: 91870 | D124: =VLOOKUP(C124,'Comp SINAPI BA 07-2025 Onerado'!$B$11:$F$9696,2,FALSE) -> ELETRODUTO RÍGIDO ROSCÁVEL, PVC, DN 20 MM (1/2"), PARA CIRCUITOS TERMINAIS, INSTALADO EM PAREDE - FORNECIMENTO E INSTALAÇÃO. AF_03/2023 | E124: INEL - INSTALAÇÃO ELÉTRICA/ELETRIFICAÇÃO E ILUMINAÇÃO EXTERNA | F124: M | G124: =VLOOKUP(C124,'Comp SINAPI BA 07-2025 Onerado'!$B$11:$F$9696,4,FALSE) -> 13.22 | H124: 0,4638 | I124: 6.131436
A125: C | B125: SINAPI | C125: 93358 | D125: =VLOOKUP(C125,'Comp SINAPI BA 07-2025 Onerado'!$B$11:$F$9696,2,FALSE) -> ESCAVAÇÃO MANUAL DE VALA. AF_09/2024 | E125: MOVT - MOVIMENTO DE TERRA | F125: m³ | G125: =VLOOKUP(C125,'Comp SINAPI BA 07-2025 Onerado'!$B$11:$F$9696,4,FALSE) -> 96.4 | H125: 0,0078 | I125: 0.75192
A126: C | B126: SINAPI | C126: 91170 | D126: =VLOOKUP(C126,'Comp SINAPI BA 07-2025 Onerado'!$B$11:$F$9696,2,FALSE) -> FIXAÇÃO DE TUBOS HORIZONTAIS DE PVC ÁGUA, PVC ESGOTO, PVC ÁGUA PLUVIAL, CPVC, PPR, COBRE OU AÇO, DIÂMETROS MENORES OU IGUAIS A 40 MM, COM ABRAÇADEIRA METÁLICA RÍGIDA TIPO U PERFIL 1 1/4", FIXADA EM PERFILADO EM LAJE. AF_09/2023_PS | E126: INHI - INSTALAÇÕES HIDROS SANITÁRIAS | F126: M | G126: =VLOOKUP(C126,'Comp SINAPI BA 07-2025 Onerado'!$B$11:$F$9696,4,FALSE) -> 11.49 | H126: 0,4251 | I126: 4.884399
A127: C | B127: SINAPI | C127: 91173 | D127: =VLOOKUP(C127,'Comp SINAPI BA 07-2025 Onerado'!$B$11:$F$9696,2,FALSE) -> FIXAÇÃO DE TUBOS VERTICAIS DE PVC ÁGUA, PVC ESGOTO, PVC ÁGUA PLUVIAL, CPVC, PPR, COBRE OU AÇO, DIÂMETROS MENORES OU IGUAIS A 40 MM, COM ABRAÇADEIRA METÁLICA RÍGIDA TIPO U PERFIL 1 1/4", FIXADA EM PERFILADO EM PAREDE. AF_09/2023_PS | E127: INHI - INSTALAÇÕES HIDROS SANITÁRIAS | F127: M | G127: =VLOOKUP(C127,'Comp SINAPI BA 07-2025 Onerado'!$B$11:$F$9696,4,FALSE) -> 4.27 | H127: 0,4638 | I127: 1.980426
A128: C | B128: SINAPI | C128: 96985 | D128: =VLOOKUP(C128,'Comp SINAPI BA 07-2025 Onerado'!$B$11:$F$9696,2,FALSE) -> HASTE DE ATERRAMENTO, DIÂMETRO 5/8", COM 3 METROS - FORNECIMENTO E INSTALAÇÃO. AF_08/2023 | E128: INEL - INSTALAÇÃO ELÉTRICA/ELETRIFICAÇÃO E ILUMINAÇÃO EXTERNA | F128: UN | G128: =VLOOKUP(C128,'Comp SINAPI BA 07-2025 Onerado'!$B$11:$F$9696,4,FALSE) -> 89.11 | H128: 0,0966 | I128: 8.608026
A129: C | B129: SINAPI | C129: 92023 | D129: =VLOOKUP(C129,'Comp SINAPI BA 07-2025 Onerado'!$B$11:$F$9696,2,FALSE) -> INTERRUPTOR SIMPLES (1 MÓDULO) COM 1 TOMADA DE EMBUTIR 2P+T 10 A, INCLUINDO SUPORTE E PLACA - FORNECIMENTO E INSTALAÇÃO. AF_03/2023 | E129: INEL - INSTALAÇÃO ELÉTRICA/ELETRIFICAÇÃO E ILUMINAÇÃO EXTERNA | F129: UN | G129: =VLOOKUP(C129,'Comp SINAPI BA 07-2025 Onerado'!$B$11:$F$9696,4,FALSE) -> 50.04 | H129: 0,0966 | I129: 4.833864
A130: C | B130: SINAPI | C130: 95241 | D130: =VLOOKUP(C130,'Comp SINAPI BA 07-2025 Onerado'!$B$11:$F$9696,2,FALSE) -> LASTRO DE CONCRETO MAGRO, APLICADO EM PISOS, LAJES SOBRE SOLO OU RADIERS, ESPESSURA DE 5 CM. AF_01/2024 | E130: FUES - FUNDAÇÕES E ESTRUTURAS | F130: m² | G130: =VLOOKUP(C130,'Comp SINAPI BA 07-2025 Onerado'!$B$11:$F$9696,4,FALSE) -> 42.86 | H130: 1,9256 | I130: 82.531216
A131: C | B131: SINAPI | C131: 97586 | D131: LUMINÁRIA TIPO CALHA, DE SOBREPOR, COM 2 LÂMPADAS TUBULARES FLUORESCENTES DE 36 W, COM REATOR DE PARTIDA RÁPIDA - FORNECIMENTO E INSTALAÇÃO. AF_02/2020 | E131: INEL - INSTALAÇÃO ELÉTRICA/ELETRIFICAÇÃO E ILUMINAÇÃO EXTERNA | F131: UN | G131: =SUM(I132:I134) -> 224.27 | H131: 0.1392 | I131: 31.218384
A132: C | B132: SINAPI | C132: 88247 | D132: =VLOOKUP(C132,'Comp SINAPI BA 07-2025 Onerado'!$B$11:$F$9696,2,FALSE) -> AUXILIAR DE ELETRICISTA COM ENCARGOS COMPLEMENTARES | E132: SEDI - SERVIÇOS DIVERSOS | F132: H | G132: =VLOOKUP(C132,'Comp SINAPI BA 07-2025 Onerado'!$B$11:$F$9696,4,FALSE) -> 25.56 | H132: 0.1727 | I132: =ROUND(G132*H132,2) -> 4.41
A133: C | B133: SINAPI | C133: 88264 | D133: =VLOOKUP(C133,'Comp SINAPI BA 07-2025 Onerado'!$B$11:$F$9696,2,FALSE) -> ELETRICISTA COM ENCARGOS COMPLEMENTARES | E133: SEDI - SERVIÇOS DIVERSOS | F133: H | G133: =VLOOKUP(C133,'Comp SINAPI BA 07-2025 Onerado'!$B$11:$F$9696,4,FALSE) -> 33.94 | H133: 0.4144 | I133: =ROUND(G133*H133,2) -> 14.06
A134: C | B134: SINAPI | C134: 3780 | D134: =VLOOKUP(C134,'Ins SINAPI BA 07-2025 Onerado'!$B$11:$F$9696,2,FALSE) -> LUMINARIA DE SOBREPOR EM CHAPA DE ACO PARA 1 LAMPADA FLUORESCENTE DE *36* W, ALETADA, COMPLETA (LAMPADA E REATOR INCLUSOS) | E134: Material | F134: UN | G134: =G64 -> 102.9 | H134: 2 | I134: =ROUND(G134*H134,2) -> 205.8
A135: C | B135: SINAPI | C135: 98445 | D135: =VLOOKUP(C135,'Comp SINAPI BA 07-2025 Onerado'!$B$11:$F$9696,2,FALSE) -> PAREDE DE MADEIRA COMPENSADA PARA CONSTRUÇÃO TEMPORÁRIA EM CHAPA SIMPLES, EXTERNA, COM ÁREA LÍQUIDA MAIOR OU IGUAL A 6 M², COM VÃO. AF_03/2024 | E135: CANT - CANTEIRO DE OBRAS | F135: m² | G135: =VLOOKUP(C135,'Comp SINAPI BA 07-2025 Onerado'!$B$11:$F$9696,4,FALSE) -> 118.79 | H135: 0,1508 | I135: =G135*H135 -> 17.913532
A136: C | B136: SINAPI | C136: 98441 | D136: =VLOOKUP(C136,'Comp SINAPI BA 07-2025 Onerado'!$B$11:$F$9696,2,FALSE) -> PAREDE DE MADEIRA COMPENSADA PARA CONSTRUÇÃO TEMPORÁRIA EM CHAPA SIMPLES, EXTERNA, SEM VÃO. AF_03/2024 | E136: CANT - CANTEIRO DE OBRAS | F136: m² | G136: =VLOOKUP(C136,'Comp SINAPI BA 07-2025 Onerado'!$B$11:$F$9696,4,FALSE) -> 100.01 | H136: 0,0966 | I136: 9.660966
A137: C | B137: SINAPI | C137: 98446 | D137: =VLOOKUP(C137,'Comp SINAPI BA 07-2025 Onerado'!$B$11:$F$9696,2,FALSE) -> PAREDE DE MADEIRA COMPENSADA PARA CONSTRUÇÃO TEMPORÁRIA EM CHAPA SIMPLES, EXTERNA, COM ÁREA LÍQUIDA MENOR QUE 6 M², COM VÃO. AF_03/2024 | E137: CANT - CANTEIRO DE OBRAS | F137: m² | G137: =VLOOKUP(C137,'Comp SINAPI BA 07-2025 Onerado'!$B$11:$F$9696,4,FALSE) -> 153.47 | H137: 0,1176 | I137: 18.048072
A138: C | B138: SINAPI | C138: 98441 | D138: =VLOOKUP(C138,'Comp SINAPI BA 07-2025 Onerado'!$B$11:$F$9696,2,FALSE) -> PAREDE DE MADEIRA COMPENSADA PARA CONSTRUÇÃO TEMPORÁRIA EM CHAPA SIMPLES, EXTERNA, SEM VÃO. AF_03/2024 | E138: CANT - CANTEIRO DE OBRAS | F138: m² | G138: =VLOOKUP(C138,'Comp SINAPI BA 07-2025 Onerado'!$B$11:$F$9696,4,FALSE) -> 100.01 | H138: 0.3007 | I138: 30.073007
A139: C | B139: SINAPI | C139: 88489 | D139: =VLOOKUP(C139,'Comp SINAPI BA 07-2025 Onerado'!$B$11:$F$9696,2,FALSE) -> PINTURA LÁTEX ACRÍLICA PREMIUM, APLICAÇÃO MANUAL EM PAREDES, DUAS DEMÃOS. AF_04/2023 | E139: PINT - PINTURAS | F139: m² | G139: =VLOOKUP(C139,'Comp SINAPI BA 07-2025 Onerado'!$B$11:$F$9696,4,FALSE) -> 13.96 | H139: 0,4761 | I139: 6.646356
A140: C | B140: SINAPI | C140: 101876 | D140: =VLOOKUP(C140,'Comp SINAPI BA 07-2025 Onerado'!$B$11:$F$9696,2,FALSE) -> QUADRO DE DISTRIBUIÇÃO DE ENERGIA EM PVC, DE EMBUTIR, SEM BARRAMENTO, PARA 6 DISJUNTORES - FORNECIMENTO E INSTALAÇÃO. AF_10/2020 | E140: INEL - INSTALAÇÃO ELÉTRICA/ELETRIFICAÇÃO E ILUMINAÇÃO EXTERNA | F140: UN | G140: =VLOOKUP(C140,'Comp SINAPI BA 07-2025 Onerado'!$B$11:$F$9696,4,FALSE) -> 114.71 | H140: 0,0966 | I140: 11.080986
A141: C | B141: SINAPI | C141: 94210 | D141: =VLOOKUP(C141,'Comp SINAPI BA 07-2025 Onerado'!$B$11:$F$9696,2,FALSE) -> TELHAMENTO COM TELHA ONDULADA DE FIBROCIMENTO E = 6 MM, COM RECOBRIMENTO LATERAL DE 1 1/4 DE ONDA PARA TELHADO COM INCLINAÇÃO MÁXIMA DE 10°, COM ATÉ 2 ÁGUAS, INCLUSO IÇAMENTO. AF_07/2019 | E141: COBE - COBERTURA | F141: m² | G141: =VLOOKUP(C141,'Comp SINAPI BA 07-2025 Onerado'!$B$11:$F$9696,4,FALSE) -> 51.17 | H141: 1,9256 | I141: 98.532952
A142: C | B142: SINAPI | C142: 92008 | D142: =VLOOKUP(C142,'Comp SINAPI BA 07-2025 Onerado'!$B$11:$F$9696,2,FALSE) -> TOMADA BAIXA DE EMBUTIR (2 MÓDULOS), 2P+T 10 A, INCLUINDO SUPORTE E PLACA - FORNECIMENTO E INSTALAÇÃO. AF_03/2023 | E142: INEL - INSTALAÇÃO ELÉTRICA/ELETRIFICAÇÃO E ILUMINAÇÃO EXTERNA | F142: UN | G142: =VLOOKUP(C142,'Comp SINAPI BA 07-2025 Onerado'!$B$11:$F$9696,4,FALSE) -> 46.84 | H142: 0,2899 | I142: 13.578916
A143: C | B143: SINAPI | C143: 92543 | D143: =VLOOKUP(C143,'Comp SINAPI BA 07-2025 Onerado'!$B$11:$F$9696,2,FALSE) -> TRAMA DE MADEIRA COMPOSTA POR TERÇAS PARA TELHADOS DE ATÉ 2 ÁGUAS PARA TELHA ONDULADA DE FIBROCIMENTO, METÁLICA, PLÁSTICA OU TERMOACÚSTICA, INCLUSO TRANSPORTE VERTICAL. AF_07/2019 | E143: COBE - COBERTURA | F143: m² | G143: =VLOOKUP(C143,'Comp SINAPI BA 07-2025 Onerado'!$B$11:$F$9696,4,FALSE) -> 24.29 | H143: 1,9256 | I143: 46.772824
A144: I | B144: SINAPI | C144: 10886 | D144: =VLOOKUP(C144,'Ins SINAPI BA 07-2025 Onerado'!$B$11:$F$9696,2,FALSE) -> EXTINTOR DE INCENDIO PORTATIL COM CARGA DE AGUA PRESSURIZADA DE 10 L, CLASSE A | E144: Material | F144: UN | G144: =VLOOKUP(C144,'Ins SINAPI BA 07-2025 Onerado'!$B$11:$F$9696,5,FALSE) -> 253.31 | H144: 0,0966 | I144: 24.469746
A145: I | B145: SINAPI | C145: 10891 | D145: =VLOOKUP(C145,'Ins SINAPI BA 07-2025 Onerado'!$B$11:$F$9696,2,FALSE) -> EXTINTOR DE INCENDIO PORTATIL COM CARGA DE PO QUIMICO SECO (PQS) DE 4 KG, CLASSE BC | E145: Material | F145: UN | G145: =VLOOKUP(C145,'Ins SINAPI BA 07-2025 Onerado'!$B$11:$F$9696,5,FALSE) -> 244.96 | H145: 0,0966 | I145: 23.663136
A148: Código | D148: 93210 ADAPTADO
A149: Descrição | D149: EXECUÇÃO DE REFEITÓRIO EM CANTEIRO DE OBRA EM CHAPA DE MADEIRA COMPENSADA, NÃO INCLUSO MOBILIÁRIO E EQUIPAMENTOS. AF_02/2016
A150: Data | D150: 2025-06-01
A151: Estado | D151: Bahia
A152: Tipo | D152: CANT - CANTEIRO DE OBRAS
A153: Unidade | D153: m²
A154: Valor sem Desoneração | D154: =SUM(I157:I179,I183:I188,I195:I208) -> 593.4355726
A156: Natureza | B156: Fonte | C156: codigo | D156: Descrição | E156: Tipo | F156: Unidade | G156: Valor sem Desoneração | H156: Coeficiente | I156: Valor sem Desoneração
A157: C | B157: SINAPI | C157: 101165 | D157: =VLOOKUP(C157,'Comp SINAPI BA 07-2025 Onerado'!$B$11:$F$9696,2,FALSE) -> ALVENARIA DE EMBASAMENTO COM BLOCO ESTRUTURAL DE CONCRETO, DE 14X19X29CM E ARGAMASSA DE ASSENTAMENTO COM PREPARO EM BETONEIRA. AF_05/2020 | E157: FUES - FUNDAÇÕES E ESTRUTURAS | F157: m³ | G157: =VLOOKUP(C157,'Comp SINAPI BA 07-2025 Onerado'!$B$11:$F$9696,4,FALSE) -> 975.38 | H157: 0.04 | I157: =G157*H157 -> 39.0152
A158: C | B158: SINAPI | C158: 86934 | D158: =VLOOKUP(C158,'Comp SINAPI BA 07-2025 Onerado'!$B$11:$F$9696,2,FALSE) -> BANCADA DE MÁRMORE SINTÉTICO 120 X 60CM, COM CUBA INTEGRADA, INCLUSO SIFÃO TIPO FLEXÍVEL EM PVC, VÁLVULA EM PLÁSTICO CROMADO TIPO AMERICANA E TORNEIRA CROMADA LONGA, DE PAREDE, PADRÃO POPULAR - FORNECIMENTO E INSTALAÇÃO. AF_01/2020 | E158: INHI - INSTALAÇÕES HIDROS SANITÁRIAS | F158: UN | G158: =VLOOKUP(C158,'Comp SINAPI BA 07-2025 Onerado'!$B$11:$F$9696,4,FALSE) -> 431.28 | H158: 0.0268 | I158: =G158*H158 -> 11.558304
A159: C | B159: SINAPI | C159: 91924 | D159: =VLOOKUP(C159,'Comp SINAPI BA 07-2025 Onerado'!$B$11:$F$9696,2,FALSE) -> CABO DE COBRE FLEXÍVEL ISOLADO, 1,5 MM², ANTI-CHAMA 450/750 V, PARA CIRCUITOS TERMINAIS - FORNECIMENTO E INSTALAÇÃO. AF_03/2023 | E159: INEL - INSTALAÇÃO ELÉTRICA/ELETRIFICAÇÃO E ILUMINAÇÃO EXTERNA | F159: M | G159: =VLOOKUP(C159,'Comp SINAPI BA 07-2025 Onerado'!$B$11:$F$9696,4,FALSE) -> 3.26 | H159: 0.8591 | I159: 2.800666
A160: C | B160: SINAPI | C160: 91926 | D160: =VLOOKUP(C160,'Comp SINAPI BA 07-2025 Onerado'!$B$11:$F$9696,2,FALSE) -> CABO DE COBRE FLEXÍVEL ISOLADO, 2,5 MM², ANTI-CHAMA 450/750 V, PARA CIRCUITOS TERMINAIS - FORNECIMENTO E INSTALAÇÃO. AF_03/2023 | E160: INEL - INSTALAÇÃO ELÉTRICA/ELETRIFICAÇÃO E ILUMINAÇÃO EXTERNA | F160: M | G160: =VLOOKUP(C160,'Comp SINAPI BA 07-2025 Onerado'!$B$11:$F$9696,4,FALSE) -> 4.72 | H160: 2.5503 | I160: 12.037416
A161: C | B161: SINAPI | C161: 98102 | D161: =VLOOKUP(C161,'Comp SINAPI BA 07-2025 Onerado'!$B$11:$F$9696,2,FALSE) -> CAIXA DE GORDURA SIMPLES, CIRCULAR, EM CONCRETO PRÉ-MOLDADO, DIÂMETRO INTERNO = 0,4 M, ALTURA INTERNA = 0,4 M. AF_12/2020 | E161: INHI - INSTALAÇÕES HIDROS SANITÁRIAS | F161: UN | G161: =VLOOKUP(C161,'Comp SINAPI BA 07-2025 Onerado'!$B$11:$F$9696,4,FALSE) -> 181.56 | H161: 0.0268 | I161: 4.865808
A162: C | B162: SINAPI | C162: 97906 | D162: =VLOOKUP(C162,'Comp SINAPI BA 07-2025 Onerado'!$B$11:$F$9696,2,FALSE) -> CAIXA ENTERRADA HIDRÁULICA RETANGULAR, EM ALVENARIA COM BLOCOS DE CONCRETO, DIMENSÕES INTERNAS: 0,6X0,6X0,6 M PARA REDE DE ESGOTO. AF_12/2020 | E162: INHI - INSTALAÇÕES HIDROS SANITÁRIAS | F162: UN | G162: =VLOOKUP(C162,'Comp SINAPI BA 07-2025 Onerado'!$B$11:$F$9696,4,FALSE) -> 489.18 | H162: 0.0268 | I162: 13.110024
A163: C | B163: SINAPI | C163: 91937 | D163: =VLOOKUP(C163,'Comp SINAPI BA 07-2025 Onerado'!$B$11:$F$9696,2,FALSE) -> CAIXA OCTOGONAL 3" X 3", PVC, INSTALADA EM LAJE - FORNECIMENTO E INSTALAÇÃO. AF_03/2023 | E163: INEL - INSTALAÇÃO ELÉTRICA/ELETRIFICAÇÃO E ILUMINAÇÃO EXTERNA | F163: UN | G163: =VLOOKUP(C163,'Comp SINAPI BA 07-2025 Onerado'!$B$11:$F$9696,4,FALSE) -> 16.98 | H163: 0.1611 | I163: 2.735478
A164: C | B164: SINAPI | C164: 88262 | D164: =VLOOKUP(C164,'Comp SINAPI BA 07-2025 Onerado'!$B$11:$F$9696,2,FALSE) -> CARPINTEIRO DE FORMAS COM ENCARGOS COMPLEMENTARES | E164: SEDI - SERVIÇOS DIVERSOS | F164: H | G164: =VLOOKUP(C164,'Comp SINAPI BA 07-2025 Onerado'!$B$11:$F$9696,4,FALSE) -> 33.07 | H164: 1.1155 | I164: 36.889585
A165: C | B165: SINAPI | C165: 95805 | D165: =VLOOKUP(C165,'Comp SINAPI BA 07-2025 Onerado'!$B$11:$F$9696,2,FALSE) -> CONDULETE DE PVC, TIPO B, PARA ELETRODUTO DE PVC SOLDÁVEL DN 25 MM (3/4''), APARENTE - FORNECIMENTO E INSTALAÇÃO. AF_10/2022 | E165: INEL - INSTALAÇÃO ELÉTRICA/ELETRIFICAÇÃO E ILUMINAÇÃO EXTERNA | F165: UN | G165: =VLOOKUP(C165,'Comp SINAPI BA 07-2025 Onerado'!$B$11:$F$9696,4,FALSE) -> 23.54 | H165: 0.1879 | I165: 4.423166
A166: C | B166: SINAPI | C166: 95811 | D166: =VLOOKUP(C166,'Comp SINAPI BA 07-2025 Onerado'!$B$11:$F$9696,2,FALSE) -> CONDULETE DE PVC, TIPO LB, PARA ELETRODUTO DE PVC SOLDÁVEL DN 25 MM (3/4''), APARENTE - FORNECIMENTO E INSTALAÇÃO. AF_10/2022 | E166: INEL - INSTALAÇÃO ELÉTRICA/ELETRIFICAÇÃO E ILUMINAÇÃO EXTERNA | F166: UN | G166: =VLOOKUP(C166,'Comp SINAPI BA 07-2025 Onerado'!$B$11:$F$9696,4,FALSE) -> 19.12 | H166: 0.0268 | I166: 0.512416
A167: C | B167: SINAPI | C167: 91911 | D167: =VLOOKUP(C167,'Comp SINAPI BA 07-2025 Onerado'!$B$11:$F$9696,2,FALSE) -> CURVA 90 GRAUS PARA ELETRODUTO, PVC, ROSCÁVEL, DN 20 MM (1/2"), PARA CIRCUITOS TERMINAIS, INSTALADA EM PAREDE - FORNECIMENTO E INSTALAÇÃO. AF_03/2023 | E167: INEL - INSTALAÇÃO ELÉTRICA/ELETRIFICAÇÃO E ILUMINAÇÃO EXTERNA | F167: UN | G167: =VLOOKUP(C167,'Comp SINAPI BA 07-2025 Onerado'!$B$11:$F$9696,4,FALSE) -> 18.6 | H167: 0.1074 | I167: 1.99764
A168: C | B168: SINAPI | C168: 101891 | D168: =VLOOKUP(C168,'Comp SINAPI BA 07-2025 Onerado'!$B$11:$F$9696,2,FALSE) -> DISJUNTOR MONOPOLAR TIPO NEMA, CORRENTE NOMINAL DE 35 ATÉ 50A - FORNECIMENTO E INSTALAÇÃO. AF_10/2020 | E168: INEL - INSTALAÇÃO ELÉTRICA/ELETRIFICAÇÃO E ILUMINAÇÃO EXTERNA | F168: UN | G168: =VLOOKUP(C168,'Comp SINAPI BA 07-2025 Onerado'!$B$11:$F$9696,4,FALSE) -> 27.5 | H168: 0.1074 | I168: 2.9535
A169: C | B169: SINAPI | C169: 91862 | D169: =VLOOKUP(C169,'Comp SINAPI BA 07-2025 Onerado'!$B$11:$F$9696,2,FALSE) -> ELETRODUTO RÍGIDO ROSCÁVEL, PVC, DN 20 MM (1/2"), PARA CIRCUITOS TERMINAIS, INSTALADO EM FORRO - FORNECIMENTO E INSTALAÇÃO. AF_03/2023 | E169: INEL - INSTALAÇÃO ELÉTRICA/ELETRIFICAÇÃO E ILUMINAÇÃO EXTERNA | F169: M | G169: =VLOOKUP(C169,'Comp SINAPI BA 07-2025 Onerado'!$B$11:$F$9696,4,FALSE) -> 9.77 | H169: 0.3221 | I169: 3.146917
A170: C | B170: SINAPI | C170: 91870 | D170: =VLOOKUP(C170,'Comp SINAPI BA 07-2025 Onerado'!$B$11:$F$9696,2,FALSE) -> ELETRODUTO RÍGIDO ROSCÁVEL, PVC, DN 20 MM (1/2"), PARA CIRCUITOS TERMINAIS, INSTALADO EM PAREDE - FORNECIMENTO E INSTALAÇÃO. AF_03/2023 | E170: INEL - INSTALAÇÃO ELÉTRICA/ELETRIFICAÇÃO E ILUMINAÇÃO EXTERNA | F170: M | G170: =VLOOKUP(C170,'Comp SINAPI BA 07-2025 Onerado'!$B$11:$F$9696,4,FALSE) -> 13.22 | H170: 0.5369 | I170: 7.097818
A171: C | B171: SINAPI | C171: 93358 | D171: =VLOOKUP(C171,'Comp SINAPI BA 07-2025 Onerado'!$B$11:$F$9696,2,FALSE) -> ESCAVAÇÃO MANUAL DE VALA. AF_09/2024 | E171: MOVT - MOVIMENTO DE TERRA | F171: m³ | G171: =VLOOKUP(C171,'Comp SINAPI BA 07-2025 Onerado'!$B$11:$F$9696,4,FALSE) -> 96.4 | H171: 0.039 | I171: 3.7596
A172: C | B172: SINAPI | C172: 91170 | D172: =VLOOKUP(C172,'Comp SINAPI BA 07-2025 Onerado'!$B$11:$F$9696,2,FALSE) -> FIXAÇÃO DE TUBOS HORIZONTAIS DE PVC ÁGUA, PVC ESGOTO, PVC ÁGUA PLUVIAL, CPVC, PPR, COBRE OU AÇO, DIÂMETROS MENORES OU IGUAIS A 40 MM, COM ABRAÇADEIRA METÁLICA RÍGIDA TIPO U PERFIL 1 1/4", FIXADA EM PERFILADO EM LAJE. AF_09/2023_PS | E172: INHI - INSTALAÇÕES HIDROS SANITÁRIAS | F172: M | G172: =VLOOKUP(C172,'Comp SINAPI BA 07-2025 Onerado'!$B$11:$F$9696,4,FALSE) -> 11.49 | H172: 0.3221 | I172: 3.700929
A173: C | B173: SINAPI | C173: 91173 | D173: =VLOOKUP(C173,'Comp SINAPI BA 07-2025 Onerado'!$B$11:$F$9696,2,FALSE) -> FIXAÇÃO DE TUBOS VERTICAIS DE PVC ÁGUA, PVC ESGOTO, PVC ÁGUA PLUVIAL, CPVC, PPR, COBRE OU AÇO, DIÂMETROS MENORES OU IGUAIS A 40 MM, COM ABRAÇADEIRA METÁLICA RÍGIDA TIPO U PERFIL 1 1/4", FIXADA EM PERFILADO EM PAREDE. AF_09/2023_PS | E173: INHI - INSTALAÇÕES HIDROS SANITÁRIAS | F173: M | G173: =VLOOKUP(C173,'Comp SINAPI BA 07-2025 Onerado'!$B$11:$F$9696,4,FALSE) -> 4.27 | H173: 0.5369 | I173: 2.292563
A174: C | B174: SINAPI | C174: 92023 | D174: =VLOOKUP(C174,'Comp SINAPI BA 07-2025 Onerado'!$B$11:$F$9696,2,FALSE) -> INTERRUPTOR SIMPLES (1 MÓDULO) COM 1 TOMADA DE EMBUTIR 2P+T 10 A, INCLUINDO SUPORTE E PLACA - FORNECIMENTO E INSTALAÇÃO. AF_03/2023 | E174: INEL - INSTALAÇÃO ELÉTRICA/ELETRIFICAÇÃO E ILUMINAÇÃO EXTERNA | F174: UN | G174: =VLOOKUP(C174,'Comp SINAPI BA 07-2025 Onerado'!$B$11:$F$9696,4,FALSE) -> 50.04 | H174: 0.0268 | I174: 1.341072
A175: C | B175: SINAPI | C175: 89724 | D175: =VLOOKUP(C175,'Comp SINAPI BA 07-2025 Onerado'!$B$11:$F$9696,2,FALSE) -> JOELHO 90 GRAUS, PVC, SERIE NORMAL, ESGOTO PREDIAL, DN 40 MM, JUNTA SOLDÁVEL, FORNECIDO E INSTALADO EM RAMAL DE DESCARGA OU RAMAL DE ESGOTO SANITÁRIO. AF_08/2022 | E175: INHI - INSTALAÇÕES HIDROS SANITÁRIAS | F175: UN | G175: =VLOOKUP(C175,'Comp SINAPI BA 07-2025 Onerado'!$B$11:$F$9696,4,FALSE) -> 10.74 | H175: 0.0537 | I175: 0.576738
A176: C | B176: SINAPI | C176: 95240 | D176: =VLOOKUP(C176,'Comp SINAPI BA 07-2025 Onerado'!$B$11:$F$9696,2,FALSE) -> LASTRO DE CONCRETO MAGRO, APLICADO EM PISOS, LAJES SOBRE SOLO OU RADIERS, ESPESSURA DE 3 CM. AF_01/2024 | E176: FUES - FUNDAÇÕES E ESTRUTURAS | F176: m² | G176: =VLOOKUP(C176,'Comp SINAPI BA 07-2025 Onerado'!$B$11:$F$9696,4,FALSE) -> 22.32 | H176: 0.009 | I176: 0.20088
A177: C | B177: SINAPI | C177: 95241 | D177: =VLOOKUP(C177,'Comp SINAPI BA 07-2025 Onerado'!$B$11:$F$9696,2,FALSE) -> LASTRO DE CONCRETO MAGRO, APLICADO EM PISOS, LAJES SOBRE SOLO OU RADIERS, ESPESSURA DE 5 CM. AF_01/2024 | E177: FUES - FUNDAÇÕES E ESTRUTURAS | F177: m² | G177: =VLOOKUP(C177,'Comp SINAPI BA 07-2025 Onerado'!$B$11:$F$9696,4,FALSE) -> 42.86 | H177: 1.451 | I177: 62.18986
A178: C | B178: SINAPI | C178: 86943 | D178: =VLOOKUP(C178,'Comp SINAPI BA 07-2025 Onerado'!$B$11:$F$9696,2,FALSE) -> LAVATÓRIO LOUÇA BRANCA SUSPENSO, 29,5 X 39CM OU EQUIVALENTE, PADRÃO POPULAR, INCLUSO SIFÃO FLEXÍVEL EM PVC, VÁLVULA E ENGATE FLEXÍVEL 30CM EM PLÁSTICO E TORNEIRA CROMADA DE MESA, PADRÃO POPULAR - FORNECIMENTO E INSTALAÇÃO. AF_01/2020 | E178: INHI - INSTALAÇÕES HIDROS SANITÁRIAS | F178: UN | G178: =VLOOKUP(C178,'Comp SINAPI BA 07-2025 Onerado'!$B$11:$F$9696,4,FALSE) -> 278.77 | H178: 0.0268 | I178: 7.471036
A179: C | B179: SINAPI | C179: 97586 | D179: LUMINÁRIA TIPO CALHA, DE SOBREPOR, COM 2 LÂMPADAS TUBULARES FLUORESCENTES DE 36 W, COM REATOR DE PARTIDA RÁPIDA - FORNECIMENTO E INSTALAÇÃO. AF_02/2020 ADAPTADA | E179: INEL - INSTALAÇÃO ELÉTRICA/ELETRIFICAÇÃO E ILUMINAÇÃO EXTERNA | F179: UN | G179: =SUM(I180:I182) -> 121.378948 | H179: 0.1611 | I179: 19.55414852
A180: C | B180: SINAPI | C180: 88247 | D180: =VLOOKUP(C180,'Comp SINAPI BA 07-2025 Onerado'!$B$11:$F$9696,2,FALSE) -> AUXILIAR DE ELETRICISTA COM ENCARGOS COMPLEMENTARES | E180: SEDI - SERVIÇOS DIVERSOS | F180: H | G180: =VLOOKUP(C180,'Comp SINAPI BA 07-2025 Onerado'!$B$11:$F$9696,4,FALSE) -> 25.56 | H180: 0.1727 | I180: 4.414212
A181: C | B181: SINAPI | C181: 88264 | D181: =VLOOKUP(C181,'Comp SINAPI BA 07-2025 Onerado'!$B$11:$F$9696,2,FALSE) -> ELETRICISTA COM ENCARGOS COMPLEMENTARES | E181: SEDI - SERVIÇOS DIVERSOS | F181: H | G181: =VLOOKUP(C181,'Comp SINAPI BA 07-2025 Onerado'!$B$11:$F$9696,4,FALSE) -> 33.94 | H181: 0.4144 | I181: 14.064736
A182: C | B182: SINAPI | C182: 3780 | D182: =VLOOKUP(C182,'Ins SINAPI BA 07-2025 Onerado'!$B$11:$F$9696,2,FALSE) -> LUMINARIA DE SOBREPOR EM CHAPA DE ACO PARA 1 LAMPADA FLUORESCENTE DE *36* W, ALETADA, COMPLETA (LAMPADA E REATOR INCLUSOS) | E182: Material | F182: UN | G182: =G134 -> 102.9 | H182: 1 | I182: 102.9
A183: C | B183: SINAPI | C183: 98445 | D183: =VLOOKUP(C183,'Comp SINAPI BA 07-2025 Onerado'!$B$11:$F$9696,2,FALSE) -> PAREDE DE MADEIRA COMPENSADA PARA CONSTRUÇÃO TEMPORÁRIA EM CHAPA SIMPLES, EXTERNA, COM ÁREA LÍQUIDA MAIOR OU IGUAL A 6 M², COM VÃO. AF_03/2024 | E183: CANT - CANTEIRO DE OBRAS | F183: m² | G183: =VLOOKUP(C183,'Comp SINAPI BA 07-2025 Onerado'!$B$11:$F$9696,4,FALSE) -> 118.79 | H183: 0.2264 | I183: 26.894056
A184: C | B184: SINAPI | C184: 98441 | D184: =VLOOKUP(C184,'Comp SINAPI BA 07-2025 Onerado'!$B$11:$F$9696,2,FALSE) -> PAREDE DE MADEIRA COMPENSADA PARA CONSTRUÇÃO TEMPORÁRIA EM CHAPA SIMPLES, EXTERNA, SEM VÃO. AF_03/2024 | E184: CANT - CANTEIRO DE OBRAS | F184: m² | G184: =VLOOKUP(C184,'Comp SINAPI BA 07-2025 Onerado'!$B$11:$F$9696,4,FALSE) -> 100.01 | H184: 0.1449 | I184: 14.491449
A185: C | B185: SINAPI | C185: 98446 | D185: =VLOOKUP(C185,'Comp SINAPI BA 07-2025 Onerado'!$B$11:$F$9696,2,FALSE) -> PAREDE DE MADEIRA COMPENSADA PARA CONSTRUÇÃO TEMPORÁRIA EM CHAPA SIMPLES, EXTERNA, COM ÁREA LÍQUIDA MENOR QUE 6 M², COM VÃO. AF_03/2024 | E185: CANT - CANTEIRO DE OBRAS | F185: m² | G185: =VLOOKUP(C185,'Comp SINAPI BA 07-2025 Onerado'!$B$11:$F$9696,4,FALSE) -> 153.47 | H185: 0.1765 | I185: 27.087455
A186: C | B186: SINAPI | C186: 98441 | D186: =VLOOKUP(C186,'Comp SINAPI BA 07-2025 Onerado'!$B$11:$F$9696,2,FALSE) -> PAREDE DE MADEIRA COMPENSADA PARA CONSTRUÇÃO TEMPORÁRIA EM CHAPA SIMPLES, EXTERNA, SEM VÃO. AF_03/2024 | E186: CANT - CANTEIRO DE OBRAS | F186: m² | G186: =VLOOKUP(C186,'Comp SINAPI BA 07-2025 Onerado'!$B$11:$F$9696,4,FALSE) -> 100.01 | H186: 0.1668 | I186: 16.681668
A187: C | B187: SINAPI | C187: 88489 | D187: =VLOOKUP(C187,'Comp SINAPI BA 07-2025 Onerado'!$B$11:$F$9696,2,FALSE) -> PINTURA LÁTEX ACRÍLICA PREMIUM, APLICAÇÃO MANUAL EM PAREDES, DUAS DEMÃOS. AF_04/2023 | E187: PINT - PINTURAS | F187: m² | G187: =VLOOKUP(C187,'Comp SINAPI BA 07-2025 Onerado'!$B$11:$F$9696,4,FALSE) -> 13.96 | H187: 1.4293 | I187: 19.953028
A188: C | B188: SINAPI | C188: 89957 | D188: PONTO DE CONSUMO TERMINAL DE ÁGUA FRIA (SUBRAMAL) COM TUBULAÇÃO DE PVC, DN 25 MM, INSTALADO EM RAMAL DE ÁGUA, INCLUSOS RASGO E CHUMBAMENTO EM ALVENARIA. AF_12/2014 ATUALIZADA | E188: INHI - INSTALAÇÕES HIDROS SANITÁRIAS | F188: UN | G188: =SUM(I189:I194) -> 154.2384 | H188: 0.0537 | I188: 8.28260208
A189: C | B189: SINAPI | C189: 90466 | D189: =VLOOKUP(C189,'Comp SINAPI BA 07-2025 Onerado'!$B$11:$F$9696,2,FALSE) -> CHUMBAMENTO LINEAR EM ALVENARIA PARA RAMAIS/DISTRIBUIÇÃO DE INSTALAÇÕES HIDRÁULICAS COM DIÂMETROS MENORES OU IGUAIS A 40 MM. AF_09/2023 | E189: INHI - INSTALAÇÕES HIDROS SANITÁRIAS | F189: M | G189: =VLOOKUP(C189,'Comp SINAPI BA 07-2025 Onerado'!$B$11:$F$9696,4,FALSE) -> 17.79 | H189: 2.14 | I189: 38.0706
A190: C | B190: SINAPI | C190: 89366 | D190: =VLOOKUP(C190,'Comp SINAPI BA 07-2025 Onerado'!$B$11:$F$9696,2,FALSE) -> JOELHO 90 GRAUS COM BUCHA DE LATÃO, PVC, SOLDÁVEL, DN 25MM, X 3/4 INSTALADO EM RAMAL OU SUB-RAMAL DE ÁGUA - FORNECIMENTO E INSTALAÇÃO. AF_06/2022 | E190: INHI - INSTALAÇÕES HIDROS SANITÁRIAS | F190: UN | G190: =VLOOKUP(C190,'Comp SINAPI BA 07-2025 Onerado'!$B$11:$F$9696,4,FALSE) -> 16.1 | H190: 1 | I190: 16.1
A191: C | B191: SINAPI | C191: 89362 | D191: =VLOOKUP(C191,'Comp SINAPI BA 07-2025 Onerado'!$B$11:$F$9696,2,FALSE) -> JOELHO 90 GRAUS, PVC, SOLDÁVEL, DN 25MM, INSTALADO EM RAMAL OU SUB-RAMAL DE ÁGUA - FORNECIMENTO E INSTALAÇÃO. AF_06/2022 | E191: INHI - INSTALAÇÕES HIDROS SANITÁRIAS | F191: UN | G191: =VLOOKUP(C191,'Comp SINAPI BA 07-2025 Onerado'!$B$11:$F$9696,4,FALSE) -> 10.41 | H191: 1.18 | I191: 12.2838
A192: C | B192: SINAPI | C192: 90443 | D192: =VLOOKUP(C192,'Comp SINAPI BA 07-2025 Onerado'!$B$11:$F$9696,2,FALSE) -> RASGO LINEAR MANUAL EM ALVENARIA, PARA RAMAIS/ DISTRIBUIÇÃO DE INSTALAÇÕES HIDRÁULICAS, DIÂMETROS MENORES OU IGUAIS A 40 MM. AF_09/2023 | E192: INHI - INSTALAÇÕES HIDROS SANITÁRIAS | F192: M | G192: =VLOOKUP(C192,'Comp SINAPI BA 07-2025 Onerado'!$B$11:$F$9696,4,FALSE) -> 9.32 | H192: 2.14 | I192: 19.9448
A193: C | B193: SINAPI | C193: 89395 | D193: =VLOOKUP(C193,'Comp SINAPI BA 07-2025 Onerado'!$B$11:$F$9696,2,FALSE) -> TE, PVC, SOLDÁVEL, DN 25MM, INSTALADO EM RAMAL OU SUB-RAMAL DE ÁGUA - FORNECIMENTO E INSTALAÇÃO. AF_06/2022 | E193: INHI - INSTALAÇÕES HIDROS SANITÁRIAS | F193: UN | G193: =VLOOKUP(C193,'Comp SINAPI BA 07-2025 Onerado'!$B$11:$F$9696,4,FALSE) -> 14.26 | H193: 0.89 | I193: 12.6914
A194: C | B194: SINAPI | C194: 89356 | D194: =VLOOKUP(C194,'Comp SINAPI BA 07-2025 Onerado'!$B$11:$F$9696,2,FALSE) -> TUBO, PVC, SOLDÁVEL, DE 25MM, INSTALADO EM RAMAL OU SUB-RAMAL DE ÁGUA - FORNECIMENTO E INSTALAÇÃO. AF_06/2022 | E194: INHI - INSTALAÇÕES HIDROS SANITÁRIAS | F194: M | G194: =VLOOKUP(C194,'Comp SINAPI BA 07-2025 Onerado'!$B$11:$F$9696,4,FALSE) -> 25.77 | H194: 2.14 | I194: 55.1478
A195: C | B195: SINAPI | C195: 90822 | D195: =VLOOKUP(C195,'Comp SINAPI BA 07-2025 Onerado'!$B$11:$F$9696,2,FALSE) -> PORTA DE MADEIRA PARA PINTURA, SEMI-OCA (LEVE OU MÉDIA), 80X210CM, ESPESSURA DE 3,5CM, INCLUSO DOBRADIÇAS - FORNECIMENTO E INSTALAÇÃO. AF_12/2019 | E195: ESQV - ESQUADRIAS/FERRAGENS/VIDROS | F195: UN | G195: =VLOOKUP(C195,'Comp SINAPI BA 07-2025 Onerado'!$B$11:$F$9696,4,FALSE) -> 401.47 | H195: 0.0268 | I195: 10.759396
A196: C | B196: SINAPI | C196: 101876 | D196: =VLOOKUP(C196,'Comp SINAPI BA 07-2025 Onerado'!$B$11:$F$9696,2,FALSE) -> QUADRO DE DISTRIBUIÇÃO DE ENERGIA EM PVC, DE EMBUTIR, SEM BARRAMENTO, PARA 6 DISJUNTORES - FORNECIMENTO E INSTALAÇÃO. AF_10/2020 | E196: INEL - INSTALAÇÃO ELÉTRICA/ELETRIFICAÇÃO E ILUMINAÇÃO EXTERNA | F196: UN | G196: =VLOOKUP(C196,'Comp SINAPI BA 07-2025 Onerado'!$B$11:$F$9696,4,FALSE) -> 114.71 | H196: 0.0268 | I196: 3.074228
A197: C | B197: SINAPI | C197: 93382 | D197: =VLOOKUP(C197,'Comp SINAPI BA 07-2025 Onerado'!$B$11:$F$9696,2,FALSE) -> REATERRO MANUAL DE VALAS, COM COMPACTADOR DE SOLOS DE PERCUSSÃO. AF_08/2023 | E197: MOVT - MOVIMENTO DE TERRA | F197: m³ | G197: =VLOOKUP(C197,'Comp SINAPI BA 07-2025 Onerado'!$B$11:$F$9696,4,FALSE) -> 30.54 | H197: 0.01 | I197: 0.3054
A198: C | B198: SINAPI | C198: 94210 | D198: =VLOOKUP(C198,'Comp SINAPI BA 07-2025 Onerado'!$B$11:$F$9696,2,FALSE) -> TELHAMENTO COM TELHA ONDULADA DE FIBROCIMENTO E = 6 MM, COM RECOBRIMENTO LATERAL DE 1 1/4 DE ONDA PARA TELHADO COM INCLINAÇÃO MÁXIMA DE 10°, COM ATÉ 2 ÁGUAS, INCLUSO IÇAMENTO. AF_07/2019 | E198: COBE - COBERTURA | F198: m² | G198: =VLOOKUP(C198,'Comp SINAPI BA 07-2025 Onerado'!$B$11:$F$9696,4,FALSE) -> 51.17 | H198: 1.451 | I198: 74.24767
A199: C | B199: SINAPI | C199: 92000 | D199: =VLOOKUP(C199,'Comp SINAPI BA 07-2025 Onerado'!$B$11:$F$9696,2,FALSE) -> TOMADA BAIXA DE EMBUTIR (1 MÓDULO), 2P+T 10 A, INCLUINDO SUPORTE E PLACA - FORNECIMENTO E INSTALAÇÃO. AF_03/2023 | E199: INEL - INSTALAÇÃO ELÉTRICA/ELETRIFICAÇÃO E ILUMINAÇÃO EXTERNA | F199: UN | G199: =VLOOKUP(C199,'Comp SINAPI BA 07-2025 Onerado'!$B$11:$F$9696,4,FALSE) -> 30.66 | H199: 0.0268 | I199: 0.821688
A200: C | B200: SINAPI | C200: 92008 | D200: =VLOOKUP(C200,'Comp SINAPI BA 07-2025 Onerado'!$B$11:$F$9696,2,FALSE) -> TOMADA BAIXA DE EMBUTIR (2 MÓDULOS), 2P+T 10 A, INCLUINDO SUPORTE E PLACA - FORNECIMENTO E INSTALAÇÃO. AF_03/2023 | E200: INEL - INSTALAÇÃO ELÉTRICA/ELETRIFICAÇÃO E ILUMINAÇÃO EXTERNA | F200: UN | G200: =VLOOKUP(C200,'Comp SINAPI BA 07-2025 Onerado'!$B$11:$F$9696,4,FALSE) -> 46.84 | H200: 0.1342 | I200: 6.285928
A201: C | B201: SINAPI | C201: 92543 | D201: =VLOOKUP(C201,'Comp SINAPI BA 07-2025 Onerado'!$B$11:$F$9696,2,FALSE) -> TRAMA DE MADEIRA COMPOSTA POR TERÇAS PARA TELHADOS DE ATÉ 2 ÁGUAS PARA TELHA ONDULADA DE FIBROCIMENTO, METÁLICA, PLÁSTICA OU TERMOACÚSTICA, INCLUSO TRANSPORTE VERTICAL. AF_07/2019 | E201: COBE - COBERTURA | F201: m² | G201: =VLOOKUP(C201,'Comp SINAPI BA 07-2025 Onerado'!$B$11:$F$9696,4,FALSE) -> 24.29 | H201: 1.451 | I201: 35.24479
A202: C | B202: SINAPI | C202: 89714 | D202: =VLOOKUP(C202,'Comp SINAPI BA 07-2025 Onerado'!$B$11:$F$9696,2,FALSE) -> TUBO PVC, SERIE NORMAL, ESGOTO PREDIAL, DN 100 MM, FORNECIDO E INSTALADO EM RAMAL DE DESCARGA OU RAMAL DE ESGOTO SANITÁRIO. AF_08/2022 | E202: INHI - INSTALAÇÕES HIDROS SANITÁRIAS | F202: M | G202: =VLOOKUP(C202,'Comp SINAPI BA 07-2025 Onerado'!$B$11:$F$9696,4,FALSE) -> 38.86 | H202: 0.1423 | I202: 5.529778
A203: C | B203: SINAPI | C203: 89711 | D203: =VLOOKUP(C203,'Comp SINAPI BA 07-2025 Onerado'!$B$11:$F$9696,2,FALSE) -> TUBO PVC, SERIE NORMAL, ESGOTO PREDIAL, DN 40 MM, FORNECIDO E INSTALADO EM RAMAL DE DESCARGA OU RAMAL DE ESGOTO SANITÁRIO. AF_08/2022 | E203: INHI - INSTALAÇÕES HIDROS SANITÁRIAS | F203: M | G203: =VLOOKUP(C203,'Comp SINAPI BA 07-2025 Onerado'!$B$11:$F$9696,4,FALSE) -> 22.65 | H203: 0.0886 | I203: 2.00679
A204: I | B204: SINAPI | C204: 10886 | D204: =VLOOKUP(C204,'Ins SINAPI BA 07-2025 Onerado'!$B$11:$F$9696,2,FALSE) -> EXTINTOR DE INCENDIO PORTATIL COM CARGA DE AGUA PRESSURIZADA DE 10 L, CLASSE A | E204: Material | F204: UN | G204: =VLOOKUP(C204,'Ins SINAPI BA 07-2025 Onerado'!$B$11:$F$9696,5,FALSE) -> 253.31 | H204: 0.0268 | I204: 6.788708
A205: I | B205: SINAPI | C205: 10891 | D205: =VLOOKUP(C205,'Ins SINAPI BA 07-2025 Onerado'!$B$11:$F$9696,2,FALSE) -> EXTINTOR DE INCENDIO PORTATIL COM CARGA DE PO QUIMICO SECO (PQS) DE 4 KG, CLASSE BC | E205: Material | F205: UN | G205: =VLOOKUP(C205,'Ins SINAPI BA 07-2025 Onerado'!$B$11:$F$9696,5,FALSE) -> 244.96 | H205: 0.0268 | I205: 6.564928
A206: I | B206: SINAPI | C206: 3080 | D206: =VLOOKUP(C206,'Ins SINAPI BA 07-2025 Onerado'!$B$11:$F$9696,2,FALSE) -> FECHADURA ESPELHO PARA PORTA EXTERNA, EM ACO INOX (MAQUINA, TESTA E CONTRA-TESTA) E EM ZAMAC (MACANETA, LINGUETA E TRINCOS) COM ACABAMENTO CROMADO, MAQUINA DE 40 MM, INCLUINDO CHAVE TIPO CILINDRO | E206: Material | F206: CJ | G206: =VLOOKUP(C206,'Ins SINAPI BA 07-2025 Onerado'!$B$11:$F$9696,5,FALSE) -> 78.2 | H206: 0.0268 | I206: 2.09576
A207: I | B207: SINAPI | C207: 11587 | D207: =VLOOKUP(C207,'Ins SINAPI BA 07-2025 Onerado'!$B$11:$F$9696,2,FALSE) -> FORRO DE PVC LISO, BRANCO, REGUA DE 10 CM, ESPESSURA APROXIMADA DE 8 MM (COM COLOCACAO / SEM ESTRUTURA METALICA) | E207: Material | F207: m² | G207: =VLOOKUP(C207,'Ins SINAPI BA 07-2025 Onerado'!$B$11:$F$9696,5,FALSE) -> 78.6 | H207: 1 | I207: 78.6
A208: I | B208: SINAPI | C208: 37525 | D208: =VLOOKUP(C208,'Ins SINAPI BA 07-2025 Onerado'!$B$11:$F$9696,2,FALSE) -> TELA PLASTICA TECIDA LISTRADA BRANCA E LARANJA, TIPO GUARDA CORPO, EM POLIETILENO MONOFILADO, ROLO 1,20 X 50 M (L X C) | E208: Equipamento | F208: M | G208: =VLOOKUP(C208,'Ins SINAPI BA 07-2025 Onerado'!$B$11:$F$9696,5,FALSE) -> 2.73 | H208: 1.2782 | I208: 3.489486

Sheet Cotação
A1: Ministério da Integração e do Desenvolvimento Regional
A2: Companhia de Desenvolvimento dos Vales do São Francisco e do Parnaíba
A4: ITEM | B4: EMPRESA | G4: ORÇADO POR | H4: DESCRIÇÃO / OBSERVAÇÃO | I4: UNID | J4: QUANT | K4: LINK OU LOCAL DO ARQUIVO | L4: VALOR
B5: DATA | C5: EMPRESA / CNPJ | D5: RESPONSÁVEL | E5: ENDEREÇO | F5: CONTATO | L5: MAT | M5: MDO | N5: TRANSPORTE | O5: TOTAL
A6: 1 | B6: 2025-07-31 | C6: POLIMEDIÇÃO COMERCIAL | D6: Preço na loja online | E6: R. Arlete, 151 - Jardim Penha - São Paulo - SP | F6: Tel: (11) 4328-3003 WhatsApp: (11) 98575-6343 polimedicao@gmail.com | G6: Murilo | H6: Régua Fluviométrica-linimétrica/alumínio 2x70x1000 Mm ( Ana) | I6: un | J6: 1 | K6: https://produto.mercadolivre.com.br/MLB-2779894267-regua-fluviometrica-linimetricaaluminio-2x70x1000-mm-ana-_JM?searchVariation=179904169563#polycard_client=search-nordic&searchVariation=179904169563&position=14&search_layout=stack&type=item&tracking_id=fc659489-e61e-4c1e-9f07-18621b543351 | L6: 134.96 | O6: =SUM(L6:N6) -> 134.96
A7: 2 | B7: 2025-07-31 | C7: Gravametal | D7: Preço na loja online | E7: Rua Uniflor, 1012 - Emiliano Perneta Pinhais - Paraná - CEP: 83324-227 | F7: ☎ (41) 3403-0144 ✆ (41) 99672-9692 ✉ gravametal@gmail.com | G7: Murilo | H7: Régua linimétrica em alumínio 2 X 70 X 1000MM | I7: un | J7: 1 | K7: https://www.gravametal.com.br/product-page/r%C3%A9gua-linim%C3%A9trica-fluviom%C3%A9trica-1000x70x2mm | L7: 209.9 | O7: =SUM(L7:N7) -> 209.9
A8: 3 | B8: 2025-05-16 | C8: Dualbase | D8: Consulta via email | E8: Av. Gentil Reinaldo Cordioli, 157 - CEP 88133-500 - Palhoça/SC | F8: Tel: (48) 3342 5202 adriano@dualbase.com.br | G8: Murilo | H8: Régua linimétrica em alumínio 2 X 70 X 1000MM | I8: un | J8: 1 | K8: www.dualbase.com.br | L8: 185 | O8: =SUM(L8:N8) -> 185
N9: Média | O9: =AVERAGE(O6:O8) -> 176.62
N10: Mediana | O10: =MEDIAN(O6:O8) -> 185
N11: Menor | O11: =SMALL(O9:O10,1) -> 176.62

Sheet CPU HOSPEDAGEM
B2: Engenharia Consultiva da Codevasf
B3: CPU - HOSPEDAGEM EQUIPE DE CAMPO (4 PESSOAS/MÊS) | D3: Código/Referencia
B4: ALUGUEL | C4: 3074.56 | D4: F020003334/EMBASA insumo
B5: Aquisição de Mobiliário | C5: =41.81*C16 -> 167.24 | D5: B8954/DNIT
B6: Material de limpeza e diarista | C6: =131.08+(123*8) -> 1115.08 | D6: 10563/ORSE - E200300131/EMBASA
B7: manutenção da casa alugada - Serviços Gerais/Vigia | C7: 2771.31 | D7: 41096/SINAPI
B8: Energia | C8: 180 | D8: 10555/ORSE
B9: Água | C9: 394.99 | D9: 10554/ORSE
B10: telefone/Internet | C10: =154.99+89 -> 243.99 | D10: 10557/10558/ORSE
B11: IPTU (mês) | C11: =(C4*0.5)/12 -> 128.1066667
B13: Custo Mensal: | C13: =SUM(C4:C12) -> 8075.276667
B14: Custo Mensal por pessoa: | C14: =C13/C16 -> 2018.819167
B15: Custo diário por pessoa: | C15: =C14/22 -> 91.76450758
B16: número de pessoas: | C16: 4
B17: Alimentação: | C17: 0 | D17: Tabela Diária Codevasf 2025
B19: Diária Total (alimentação + hospedagem): | C19: =C15+C17 -> 91.76450758

Sheet CPU-VEICULO_Serviços
A5: Composição de Preços de Locação de Veículo tipo pick-up | D5: Composição de Preços de Locação de Veículo tipo pick-up | J5: Composição de Preços de Locação de Veículo tipo pick-up | U5: Composição de Preços de Locação de Veículo tipo pick-up | AF5: Composição de Preços de Locação de Veículo tipo pick-up
B6: Data de atualização: | C6: 2025-01-22 | E6: CV | F6: Média | G6: Mediana | K6: CV | L6: Média | M6: Mediana | V6: CV | W6: Média | X6: Mediana
A7: CODEVASF | E7: =_xlfn.STDEV.S(E10:H10)/AVERAGE(E10:H10) -> 0.09461804749 | F7: =AVERAGE(E10:H10) -> 200477 | G7: =MEDIAN(E10:H10) -> 205565.5 | K7: =_xlfn.STDEV.S(L9:S9)/AVERAGE(L9:S9) -> 0.2049193683 | L7: =AVERAGE(L9:S9) -> 34.54857143 | M7: =MEDIAN(L9:S9) -> 30.91 | V7: =_xlfn.STDEV.S(W9:AD9)/AVERAGE(W9:AD9) -> 0.1241023561 | W7: =AVERAGE(W9:AD9) -> 499.0190625 | X7: =MEDIAN(W9:AD9) -> 499.45
A8: OBS: Preço sem BDI e sem motorista BDI= | E8: Preço FIPE | J8: PRODUTO | K8: MENOR (MÉDIA, MEDIANA) | L8: COT. 1 | M8: COT. 2 | N8: COT. 3 | O8: COT. 4 | P8: COT. 5 | Q8: COT. 6 | R8: COT. 7 | S8: COT. 8 | U8: PRODUTO | V8: MENOR (MÉDIA, MEDIANA) | W8: COT. 1 | X8: COT. 2 | Y8: COT. 3 | Z8: COT. 4 | AA8: COT. 5 | AB8: COT. 6 | AC8: COT. 7 | AD8: COT. 8
A9: Veículo para serviço tipo pick-up, cabine dupla - 2.0 16V 4x4 diesel Aut. | E9: Toro Ultra 2.0 16V 4x4 TB Diesel Aut. | F9: Toro Freedom 2.0 16V 4x4 TB Diesel Aut. | G9: Toro Volcano 2.0 16V 4x4 TB Diesel Aut. | H9: Toro Ranch 2.0 16V 4x4 TB Diesel Aut. | J9: LUBRIFICANTE 5W30 | K9: =SMALL(L7:M7,1) -> 30.91 | L9: 33.33 | M9: 26.9 | N9: 30.9 | O9: 30.9 | P9: 30.91 | Q9: 46 | R9: 42.9 | U9: Pneu 225/65 R17 | V9: =SMALL(W7:X7,1) -> 499.0190625 | W9: 499 | X9: 479.9 | Y9: 565.25 | Z9: 393.38 | AA9: 449.9 | AB9: =2059.44/4 -> 514.86 | AC9: =2359.85/4 -> 589.9625 | AD9: 499.9
B10: Custo Mensal (R$): | C10: =C51 -> 4771.246758 | E10: 215525 | F10: 175252 | G10: 196485 | H10: 214646
B11: Custo Diária (R$): | C11: =C10/22 -> 216.8748526
B12: Custo Horário (R$): | C12: =C10/176 -> 27.10935658
A13: A | B13: Depreciação mensal do equipamento
A14: A1 | B14: Preço de Aquisição | C14: =SMALL(F7:G7,1) -> 200477
A15: A2 | B15: Tempo previsto de vida útil (meses) | C15: 36
A16: A3 | B16: Previsão de recup. Na venda do bem usado | C16: 0.7
A17: A4 | B17: Custo mensal [A1-(A3xA1)]/A2 | C17: =(C14-(C16*C14))/C15 -> 1670.641667
A18: B | B18: Juros pelo Capital empregado
A19: B1 | B19: Taxa mensal de Juros * | C19: =POWER(1+C56,1/12)-1 -> 0.01153145236
A20: B2 | B20: Juros s/depreciação/aluguel (B1xA4) | C20: =C19*C17 -> 19.26492479
A21: C | B21: Conservação e manutenção ** | C21: 0.75
A22: C1 | B22: Taxa de gastos s/a deprec. Inc. seguros (%) | C22: =C21 -> 0.75
A23: C2 | B23: Incidência mensal (C1xA4) | C23: =C22*C17 -> 1252.98125
A24: D | B24: Combustível | AF24: PREÇO DO DIESEL | AG24: 5.9
A25: D1 | B25: Média mensal de quilômetro por veículo | C25: ='Memorial de cálculo'!H6*2*22 -> 2770.533333 | AF25: https://precos.petrobras.com.br/w/diesel/mg
A26: D2 | B26: Preço do litro de combustível | C26: =AG24 -> 5.9
A27: D3 | B27: Quilômetros rodados com um litro combustivel | C27: 10
A28: D4 | B28: Combustivel (D1/D3)*D2 | C28: =(C25/C27)*C26 -> 1634.614667
A29: E | B29: Lubrificantes
A30: E1 | B30: Quilometragem do Contrato (D1*12) | C30: =C25*36 -> 99739.2
A31: E2 | B31: Franquia por troca de óleo (km) | C31: 10000
A32: E3 | B32: Preço do litro de óleo | C32: =K9 -> 30.91
A33: E4 | B33: Quantidade de litros de óleo por troca | C33: 5
A34: E5 | B34: Quantidade de dias do Contrato | C34: =365*3 -> 1095
A35: E6 | B35: Lubrificantes E = (E1*E3*E4*30)/E2*E5 | C35: =(C30*C32*C33*30)/(C31*C34) -> 42.2320366
A36: F | B36: Pneus
A37: F1 | B37: Quilometragem do Contrato | C37: =C30 -> 99739.2
A38: F2 | B38: Vida do Pneu em quilômetros | C38: 45000
A39: F3 | B39: Quantidade de pneus | C39: 5
A40: F4 | B40: Preço do Pneu | C40: =V9 -> 499.0190625
A41: F5 | B41: Quantidade de dias do contrato | C41: =C34 -> 1095
A42: F6 | B42: Pneus = (F1*F3*F4*30)/(F2*F5) | C42: =(C37*C39*C40*30)/(C38*C41) -> 151.5122133
A43: G | B43: Motorista
A44: G1 | B44: Salário com encargos sociais | C44: 0
A45: H | B45: Custo Mensal
B46: Sem Motorista (A4+B2+C2+D4+E6+F6) | C46: =C17+C20+C23+C28+C35+C42 -> 4771.246758
B47: Com Motorista (A4+B2+C2+D4+E6+F6+G1) | C47: =C17+C20+C23+C28+C35+C42+C44 -> 4771.246758
A48: I | B48: Custo Direto p/ km Rodado
B49: Sem Motorista | C49: =C46/C25 -> 1.722140174 | J49: https://www.google.com/search?q=lubrificante+5w30+1l&sa=X&sca_esv=c77f5342bf7e367a&tbm=shop&ei=e0uKZ-DcDNKp5OUPkOKj6QY&ved=0ahUKEwighoOy3_yKAxXSFLkGHRDxKG0Q4dUDCAg&uact=5&oq=lubrificante+5w30+1l&gs_lp=Egtwcm9kdWN0cy1jYyIUbHVicmlmaWNhbnRlIDV3MzAgMWxIgQ9Q4AlY8Q1wAHgAkAEAmAFroAGgA6oBAzEuM7gBA8gBAPgBAZgCAqAC0gHCAgUQABiABMICBhAAGAcYHsICBhAAGAgYHsICBhAAGBYYHpgDAIgGAZIHAzEuMaAHxQU&sclient=products-cc
B50: Com Motorista | C50: =C47/C25 -> 1.722140174
A51: J | B51: Preço cobrado sem BDI | C51: =C46*(1+C8) -> 4771.246758 | V51: https://www.google.com/search?q=pneu+225%2F65+R17&sa=X&biw=1600&bih=757&tbm=shop&sxsrf=AJOqlzWsb-d4PS1_OUOEhKmRc2RbtSg3RQ%3A1677092596279&ei=9Gb2Y9K5ENTa5OUPvLykGA&ved=0ahUKEwjSg9Pj6Kn9AhVULbkGHTweCQMQ4dUDCAg&uact=5&oq=pneu+225%2F65+R17&gs_lcp=Cgtwcm9kdWN0cy1jYxADMgsIABCABBCxAxCDATIFCAAQgAQyBwgAEIAEEAoyBwgAEIAEEAoyBwgAEIAEEAoyBwgAEIAEEAoyBwgAEIAEEAoyBQgAEIAEMgcIABCABBAKMgcIABCABBAKOgQIIxAnOgQIABBDSgQIQRgAUABYoTJgqUBoAHAAeACAAdIFiAGUKZIBDTAuMi42LjIuMi4yLjGYAQCgAQHAAQE&sclient=products-cc
A52: J1 | B52: Sem Motorista | C52: =C51 -> 4771.246758
A53: J2 | B53: Com Motorista | C53: =C47 -> 4771.246758
B55: OBSERVAÇÕES:
A56: * | B56: Calculado com base na taxa SELIC JANEIRO/2025: | C56: 0.1475
B57: Taxa de Juros Selic — Português (Brasil) (www.gov.br)
A58: ** | B58: Conservação e manutenção - é calculado com o uso de um coeficiente multiplicador "k", conforme tabela abaixo, sobre a
B59: depreciação mensal do equipamento (Item A da planilha de composição de preços). Os valores de K são fornecidos por
B60: fabricantes.
B61: Metodologia conforme a bibliografia "Como Preparar Orçamentos de Obras", 3 edição, Aldo Dórea Mattos, 2019.

Sheet CPU-VEICULO_Fiscalização
A5: Composição de Preços de Locação de Veículo tipo pick-up | D5: Composição de Preços de Locação de Veículo tipo pick-up | J5: Composição de Preços de Locação de Veículo tipo pick-up | U5: Composição de Preços de Locação de Veículo tipo pick-up | AF5: Composição de Preços de Locação de Veículo tipo pick-up
B6: Data de atualização: | C6: 2025-01-22 | E6: CV | F6: Média | G6: Mediana | K6: CV | L6: Média | M6: Mediana | V6: CV | W6: Média | X6: Mediana
A7: CODEVASF | E7: =_xlfn.STDEV.S(E10:H10)/AVERAGE(E10:H10) -> 0.09461804749 | F7: =AVERAGE(E10:H10) -> 200477 | G7: =MEDIAN(E10:H10) -> 205565.5 | K7: =_xlfn.STDEV.S(L9:S9)/AVERAGE(L9:S9) -> 0.2049193683 | L7: =AVERAGE(L9:S9) -> 34.54857143 | M7: =MEDIAN(L9:S9) -> 30.91 | V7: =_xlfn.STDEV.S(W9:AD9)/AVERAGE(W9:AD9) -> 0.1241023561 | W7: =AVERAGE(W9:AD9) -> 499.0190625 | X7: =MEDIAN(W9:AD9) -> 499.45
A8: OBS: Preço sem BDI e sem motorista BDI= | E8: Preço FIPE | J8: PRODUTO | K8: MENOR (MÉDIA, MEDIANA) | L8: COT. 1 | M8: COT. 2 | N8: COT. 3 | O8: COT. 4 | P8: COT. 5 | Q8: COT. 6 | R8: COT. 7 | S8: COT. 8 | U8: PRODUTO | V8: MENOR (MÉDIA, MEDIANA) | W8: COT. 1 | X8: COT. 2 | Y8: COT. 3 | Z8: COT. 4 | AA8: COT. 5 | AB8: COT. 6 | AC8: COT. 7 | AD8: COT. 8
A9: Veículo para fiscalização tipo pick-up, cabine dupla - 2.0 16V 4x4 diesel Aut. | E9: Toro Ultra 2.0 16V 4x4 TB Diesel Aut. | F9: Toro Freedom 2.0 16V 4x4 TB Diesel Aut. | G9: Toro Volcano 2.0 16V 4x4 TB Diesel Aut. | H9: Toro Ranch 2.0 16V 4x4 TB Diesel Aut. | J9: LUBRIFICANTE 5W30 | K9: =SMALL(L7:M7,1) -> 30.91 | L9: 33.33 | M9: 26.9 | N9: 30.9 | O9: 30.9 | P9: 30.91 | Q9: 46 | R9: 42.9 | U9: Pneu 225/65 R17 | V9: =SMALL(W7:X7,1) -> 499.0190625 | W9: 499 | X9: 479.9 | Y9: 565.25 | Z9: 393.38 | AA9: 449.9 | AB9: =2059.44/4 -> 514.86 | AC9: =2359.85/4 -> 589.9625 | AD9: 499.9
B10: Custo Mensal (R$): | C10: =C51 -> 3824.942129 | E10: 215525 | F10: 175252 | G10: 196485 | H10: 214646
B11: Custo Diária (R$): | C11: =C10/22 -> 173.8610059
B12: Custo Horário (R$): | C12: =C10/176 -> 21.73262573
A13: A | B13: Depreciação mensal do equipamento
A14: A1 | B14: Preço de Aquisição | C14: =SMALL(F7:G7,1) -> 200477
A15: A2 | B15: Tempo previsto de vida útil (meses) | C15: 36
A16: A3 | B16: Previsão de recup. Na venda do bem usado | C16: 0.7
A17: A4 | B17: Custo mensal [A1-(A3xA1)]/A2 | C17: =(C14-(C16*C14))/C15 -> 1670.641667
A18: B | B18: Juros pelo Capital empregado
A19: B1 | B19: Taxa mensal de Juros * | C19: =POWER(1+C56,1/12)-1 -> 0.01153145236
A20: B2 | B20: Juros s/depreciação/aluguel (B1xA4) | C20: =C19*C17 -> 19.26492479
A21: C | B21: Conservação e manutenção ** | C21: 0.75
A22: C1 | B22: Taxa de gastos s/a deprec. Inc. seguros (%) | C22: =C21 -> 0.75
A23: C2 | B23: Incidência mensal (C1xA4) | C23: =C22*C17 -> 1252.98125
A24: D | B24: Combustível | AF24: PREÇO DO DIESEL | AG24: 5.9
A25: D1 | B25: Média mensal de quilômetro por veículo | C25: ='Memorial de cálculo'!H5*2*22 -> 12613.33333 | AF25: https://precos.petrobras.com.br/w/diesel/mg
A26: D2 | B26: Preço do litro de combustível | C26: =AG22 -> 0
A27: D3 | B27: Quilômetros rodados com um litro combustivel | C27: 10
A28: D4 | B28: Combustivel (D1/D3)*D2 | C28: =(C25/C27)*C26 -> 0
A29: E | B29: Lubrificantes
A30: E1 | B30: Quilometragem do Contrato (D1*12) | C30: =C25*36 -> 454080
A31: E2 | B31: Franquia por troca de óleo (km) | C31: 10000
A32: E3 | B32: Preço do litro de óleo | C32: =K9 -> 30.91
A33: E4 | B33: Quantidade de litros de óleo por troca | C33: 5
A34: E5 | B34: Quantidade de dias do Contrato | C34: =365*3 -> 1095
A35: E6 | B35: Lubrificantes E = (E1*E3*E4*30)/E2*E5 | C35: =(C30*C32*C33*30)/(C31*C34) -> 192.2686685
A36: F | B36: Pneus
A37: F1 | B37: Quilometragem do Contrato | C37: =C30 -> 454080
A38: F2 | B38: Vida do Pneu em quilômetros | C38: 45000
A39: F3 | B39: Quantidade de pneus | C39: 5
A40: F4 | B40: Preço do Pneu | C40: =V9 -> 499.0190625
A41: F5 | B41: Quantidade de dias do contrato | C41: =C34 -> 1095
A42: F6 | B42: Pneus = (F1*F3*F4*30)/(F2*F5) | C42: =(C37*C39*C40*30)/(C38*C41) -> 689.7856192
A43: G | B43: Motorista
A44: G1 | B44: Salário com encargos sociais | C44: 0
A45: H | B45: Custo Mensal
B46: Sem Motorista (A4+B2+C2+D4+E6+F6) | C46: =C17+C20+C23+C28+C35+C42 -> 3824.942129
B47: Com Motorista (A4+B2+C2+D4+E6+F6+G1) | C47: =C17+C20+C23+C28+C35+C42+C44 -> 3824.942129
A48: I | B48: Custo Direto p/ km Rodado
B49: Sem Motorista | C49: =C46/C25 -> 0.3032459405
B50: Com Motorista | C50: =C47/C25 -> 0.3032459405
A51: J | B51: Preço cobrado sem BDI | C51: =C46*(1+C8) -> 3824.942129
A52: J1 | B52: Sem Motorista | C52: =C51 -> 3824.942129
A53: J2 | B53: Com Motorista | C53: =C47 -> 3824.942129 | I53: https://www.google.com/search?q=lubrificante+5w30+1l&sa=X&sca_esv=c77f5342bf7e367a&tbm=shop&ei=e0uKZ-DcDNKp5OUPkOKj6QY&ved=0ahUKEwighoOy3_yKAxXSFLkGHRDxKG0Q4dUDCAg&uact=5&oq=lubrificante+5w30+1l&gs_lp=Egtwcm9kdWN0cy1jYyIUbHVicmlmaWNhbnRlIDV3MzAgMWxIgQ9Q4AlY8Q1wAHgAkAEAmAFroAGgA6oBAzEuM7gBA8gBAPgBAZgCAqAC0gHCAgUQABiABMICBhAAGAcYHsICBhAAGAgYHsICBhAAGBYYHpgDAIgGAZIHAzEuMaAHxQU&sclient=products-cc | T53: https://www.google.com/search?q=pneu+225%2F65+R17&sa=X&biw=1600&bih=757&tbm=shop&sxsrf=AJOqlzWsb-d4PS1_OUOEhKmRc2RbtSg3RQ%3A1677092596279&ei=9Gb2Y9K5ENTa5OUPvLykGA&ved=0ahUKEwjSg9Pj6Kn9AhVULbkGHTweCQMQ4dUDCAg&uact=5&oq=pneu+225%2F65+R17&gs_lcp=Cgtwcm9kdWN0cy1jYxADMgsIABCABBCxAxCDATIFCAAQgAQyBwgAEIAEEAoyBwgAEIAEEAoyBwgAEIAEEAoyBwgAEIAEEAoyBwgAEIAEEAoyBQgAEIAEMgcIABCABBAKMgcIABCABBAKOgQIIxAnOgQIABBDSgQIQRgAUABYoTJgqUBoAHAAeACAAdIFiAGUKZIBDTAuMi42LjIuMi4yLjGYAQCgAQHAAQE&sclient=products-cc
B55: OBSERVAÇÕES:
A56: * | B56: Calculado com base na taxa SELIC JANEIRO/2025: | C56: 0.1475
B57: Taxa de Juros Selic — Português (Brasil) (www.gov.br)
A58: ** | B58: Conservação e manutenção - é calculado com o uso de um coeficiente multiplicador "k", conforme tabela abaixo, sobre a
B59: depreciação mensal do equipamento (Item A da planilha de composição de preços). Os valores de K são fornecidos por
B60: fabricantes.
B61: Metodologia conforme a bibliografia "Como Preparar Orçamentos de Obras", 3 edição, Aldo Dórea Mattos, 2019.

Sheet BDI serv
A1: =MACAÚBAS!A1:I1 -> Ministério da Integração e do Desenvolvimento Regional
A2: =MACAÚBAS!A2:I2 -> Companhia de Desenvolvimento dos Vales do São Francisco e do Parnaíba
A4: COMPOSIÇÃO DE BDI - SERVIÇOS - NÃO DESONERADO
A5: =MACAÚBAS!A5 -> OBRA: | B5: =Resumo!B5 -> Execução de manutenção e recuperação nas barragens de Macaúbas, Rio da Caixa e Baixão do Cecílio, localizadas no estado da Bahia. | D5: BDI (serv.): | E5: =D23 -> 0.2321
A6: =MACAÚBAS!A6 -> LOCAL: | B6: =Resumo!B6 -> Barragens da Bahia | D6: BDI (forn.): | E6: ='BDI forn'!E6 -> 0.1469
A7: =MACAÚBAS!A7 -> DATA BASE: | B7: =Resumo!B7 -> 2025-09-01
A8: =MACAÚBAS!A8 -> PRAZO: | B8: =Resumo!B8 -> 90 dias
A9: ITEM | B9: DESCRIÇÃO | C9: SIGLA | D9: % APLICADO | E9: REFERÊNCIA TCU (ACÓRDÃO Nº 2622/2013)
E10: 1º QUARTIL | F10: 2º QUARTIL | G10: 3º QUARTIL
A11: 1 | B11: ADMINISTRAÇÃO CENTRAL | C11: AC | D11: =E11 -> 0.04 | E11: 0.04 | F11: 0.0552 | G11: 0.0785
A12: 2 | B12: IMPOSTOS | C12: T | D12: =SUM(D13:D16) -> 0.0665
A13: 2.1 | B13: ISS (*) | D13: 0.03 | E13: - | F13: - | G13: -
A14: 2.2 | B14: PIS | D14: 0.0065 | E14: - | F14: - | G14: -
A15: 2.3 | B15: Cofins | D15: 0.03 | E15: - | F15: - | G15: -
A16: 2.4 | B16: Contribuição previdênciária sobre a receita bruta (CPRB) | E16: - | F16: - | G16: -
A17: 3 | B17: SEGURO, GARANTIA E RISCO | D17: =SUM(D18:D20) -> 0.0227
A18: 3.1 | B18: Seguro | C18: S | D18: =E18 -> 0.0081 | E18: 0.0081 | F18: 0.0122 | G18: 0.0199
A19: 3.2 | B19: Garantia | C19: G
A20: 3.3 | B20: Risco | C20: R | D20: =E20 -> 0.0146 | E20: 0.0146 | F20: 0.0232 | G20: 0.0316
A21: 4 | B21: DESPESAS FINANCEIRAS | C21: DF | D21: =F21 -> 0.0102 | E21: 0.0094 | F21: 0.0102 | G21: 0.01363
A22: 5 | B22: LUCRO | C22: L | D22: =E22 -> 0.0714 | E22: 0.0714 | F22: 0.084 | G22: 0.1043
B23: BDI ADOTADO: | D23: =ROUND(((((1+D11+D17)*(1+D21)*(1+D22))/(1-D12))-1),4) -> 0.2321
A24: Considerações: O BDI foi calculado através da seguinte fórmula, regulamentada pelo Acórdão Nº 2622/2013 – TCU.
H173: =SUM(H174:H177) -> 0
D177: mec | F177: 2 | G177: 128

Sheet BDI forn
A1: =MACAÚBAS!A1:I1 -> Ministério da Integração e do Desenvolvimento Regional
A2: =MACAÚBAS!A2:I2 -> Companhia de Desenvolvimento dos Vales do São Francisco e do Parnaíba
A4: COMPOSIÇÃO DE BDI - FORNECIMENTO - NÃO DESONERADO
A5: =MACAÚBAS!A5 -> OBRA: | B5: =Resumo!B5 -> Execução de manutenção e recuperação nas barragens de Macaúbas, Rio da Caixa e Baixão do Cecílio, localizadas no estado da Bahia. | D5: BDI (serv.): | E5: ='BDI serv'!E5 -> 0.2321
A6: =MACAÚBAS!A6 -> LOCAL: | B6: =Resumo!B6 -> Barragens da Bahia | D6: BDI (forn.): | E6: =D23 -> 0.1469
A7: =MACAÚBAS!A7 -> DATA BASE: | B7: =Resumo!B7 -> 2025-09-01
A8: =MACAÚBAS!A8 -> PRAZO: | B8: =Resumo!B8 -> 90 dias
A9: ITEM | B9: DESCRIÇÃO | C9: SIGLA | D9: % APLICADO | E9: REFERÊNCIA TCU (ACÓRDÃO Nº 2622/2013)
E10: 1º QUARTIL | F10: 2º QUARTIL | G10: 3º QUARTIL
A11: 1 | B11: ADMINISTRAÇÃO CENTRAL | C11: AC | D11: 0.03 | E11: 0.015 | F11: 0.0345 | G11: 0.0449
A12: 2 | B12: IMPOSTOS | C12: T | D12: =SUM(D13:D16) -> 0.0365
A13: 2.1 | B13: ISS (*) | E13: - | F13: - | G13: -
A14: 2.2 | B14: PIS | D14: 0.0065 | E14: - | F14: - | G14: -
A15: 2.3 | B15: Cofins | D15: 0.03 | E15: - | F15: - | G15: -
A16: 2.4 | B16: Contribuição previdênciária sobre a receita bruta (CPRB) | E16: - | F16: - | G16: -
A17: 3 | B17: SEGURO, GARANTIA E RISCO | D17: =SUM(D18:D20) -> 0.0086
A18: 3.1 | B18: Seguro | C18: S | D18: =E18 -> 0.003 | E18: 0.003 | F18: 0.0048 | G18: 0.0082
A19: 3.2 | B19: Garantia | C19: G
A20: 3.3 | B20: Risco | C20: R | D20: =E20 -> 0.0056 | E20: 0.0056 | F20: 0.0085 | G20: 0.0089
A21: 4 | B21: DESPESAS FINANCEIRAS | C21: DF | D21: =F21 -> 0.0085 | E21: 0.0085 | F21: 0.0085 | G21: 0.0111
A22: 5 | B22: LUCRO | C22: L | D22: 0.055 | E22: 0.035 | F22: 0.0511 | G22: 0.0622
B23: BDI ADOTADO: | D23: =ROUND(((((1+D11+D17)*(1+D21)*(1+D22))/(1-D12))-1),4) -> 0.1469
A24: Considerações: O BDI foi calculado através da seguinte fórmula, regulamentada pelo Acórdão Nº 2622/2013 – TCU.
H173: =SUM(H174:H177) -> 0
D177: mec | F177: 2 | G177: 128

Sheet Encargos Sociais
A1: Ministério da Integração e do Desenvolvimento Regional
A2: Companhia de Desenvolvimento dos Vales do São Francisco e do Parnaíba
A4: COMPOSIÇÃO DE ENCARGOS SOCIAIS SOBRE A MÃO DE OBRA
A5: =MACAÚBAS!A5 -> OBRA: | B5: =Resumo!B5 -> Execução de manutenção e recuperação nas barragens de Macaúbas, Rio da Caixa e Baixão do Cecílio, localizadas no estado da Bahia.
A6: =MACAÚBAS!A6 -> LOCAL: | B6: =Resumo!B6 -> Barragens da Bahia
A7: =MACAÚBAS!A7 -> DATA BASE: | B7: =Resumo!B7 -> 2025-09-01
A8: =MACAÚBAS!A8 -> PRAZO: | B8: =Resumo!B8 -> 90 dias
A11: Encargos Sociais – Bahia VIGÊNCIA A PARTIR DE 01/2025
A12: ENCARGOS SOCIAIS SOBRE A MÃO DE OBRA
A13: CÓDIGO | B13: DESCRIÇÃO | C13: COM DESONERAÇÃO | E13: SEM DESONERAÇÃO
C14: HORISTA % | D14: MENSALISTA % | E14: HORISTA % | F14: MENSALISTA %
A15: GRUPO A
A16: A1 | B16: INSS | C16: 0.05 | D16: 0.05 | E16: 0.2 | F16: 0.2
A17: A2 | B17: SESI | C17: 0.015 | D17: 0.015 | E17: 0.015 | F17: 0.015
A18: A3 | B18: SENAI | C18: 0.01 | D18: 0.01 | E18: 0.01 | F18: 0.01
A19: A4 | B19: INCRA | C19: 0.002 | D19: 0.002 | E19: 0.002 | F19: 0.002
A20: A5 | B20: SEBRAE | C20: 0.006 | D20: 0.006 | E20: 0.006 | F20: 0.006
A21: A6 | B21: Salário Educação | C21: 0.025 | D21: 0.025 | E21: 0.025 | F21: 0.025
A22: A7 | B22: Seguro Contra Acidentes de Trabalho | C22: 0.03 | D22: 0.03 | E22: 0.03 | F22: 0.03
A23: A8 | B23: FGTS | C23: 0.08 | D23: 0.08 | E23: 0.08 | F23: 0.08
A24: A9 | B24: SECONCI | C24: 0 | D24: 0 | E24: 0 | F24: 0
A25: A | B25: Total | C25: =SUM(C16:C24) -> 0.218 | D25: =SUM(D16:D24) -> 0.218 | E25: =SUM(E16:E24) -> 0.368 | F25: =SUM(F16:F24) -> 0.368
A26: GRUPO B
A27: B1 | B27: Repouso Semanal Remunerado | C27: 0.1798 | D27: Não incide | E27: 0.1798 | F27: Não incide
A28: B2 | B28: Feriados | C28: 0.0397 | D28: Não incide | E28: 0.0397 | F28: Não incide
A29: B3 | B29: Auxílio - Enfermidade | C29: 0.0086 | D29: 0.0065 | E29: 0.0086 | F29: 0.0065
A30: B4 | B30: 13º Salário | C30: 0.1107 | D30: 0.0833 | E30: 0.1107 | F30: 0.0833
A31: B5 | B31: Licença Paternidade | C31: 0.0007 | D31: 0.0005 | E31: 0.0007 | F31: 0.0005
A32: B6 | B32: Faltas Justificadas | C32: 0.0074 | D32: 0.0056 | E32: 0.0074 | F32: 0.0056
A33: B7 | B33: Dias de Chuvas | C33: 0.0214 | D33: Não incide | E33: 0.0214 | F33: Não incide
A34: B8 | B34: Auxílio Acidente de Trabalho | C34: 0.001 | D34: 0.0007 | E34: 0.001 | F34: 0.0007
A35: B9 | B35: Férias Gozadas | C35: 0.1192 | D35: 0.0897 | E35: 0.1192 | F35: 0.0897
A36: B10 | B36: Salário Maternidade | C36: 0.0003 | D36: 0.0003 | E36: 0.0003 | F36: 0.0003
A37: B | B37: Total | C37: =SUM(C27:C36) -> 0.4888 | D37: =SUM(D27:D36) -> 0.1866 | E37: =SUM(E27:E36) -> 0.4888 | F37: =SUM(F27:F36) -> 0.1866
A38: GRUPO C
A39: C1 | B39: Aviso Prévio Indenizado | C39: 0.0549 | D39: 0.0413 | E39: 0.0549 | F39: 0.0413
A40: C2 | B40: Aviso Prévio Trabalhado | C40: 0.0013 | D40: 0.001 | E40: 0.0013 | F40: 0.001
A41: C3 | B41: Férias Indenizadas | C41: 0.0236 | D41: 0.0177 | E41: 0.0236 | F41: 0.0177
A42: C4 | B42: Depósito Rescisão Sem Justa Causa | C42: 0.0297 | D42: 0.0224 | E42: 0.0297 | F42: 0.0224
A43: C5 | B43: Indenização Adicional | C43: 0.0046 | D43: 0.0035 | E43: 0.0046 | F43: 0.0035
A44: C | B44: Total | C44: =SUM(C39:C43) -> 0.1141 | D44: =SUM(D39:D43) -> 0.0859 | E44: =SUM(E39:E43) -> 0.1141 | F44: =SUM(F39:F43) -> 0.0859
A45: GRUPO D
A46: D1 | B46: Reincidência de Grupo A sobre Grupo B | C46: 0.101 | D46: 0.0365 | E46: 0.1799 | F46: 0.0687
A47: D2 | B47: Reincidência de Grupo A sobre Aviso Prévio Trabalhado e Reincidência do FGTS sobre Aviso Prévio Indenizado | C47: 0.0047 | D47: 0.0035 | E47: 0.0049 | F47: 0.0037
A48: D | B48: Total | C48: =SUM(C46:C47) -> 0.1057 | D48: =SUM(D46:D47) -> 0.04 | E48: =SUM(E46:E47) -> 0.1848 | F48: =F46+F47 -> 0.0724
A49: TOTAL(A+B+C+D) | C49: =C25+C37+C44+C48 -> 0.9266 | D49: =D25+D37+D44+D48 -> 0.5305 | E49: =E25+E37+E44+E48 -> 1.1557 | F49: =F25+F37+F44+F48 -> 0.7129
A50: Fonte: Informação Dias de Chuva – INMET

Sheet Comp SINAPI BA 07-2025 Onerado
A1: SINAPI - Sistema Nacional de Pesquisa de Custos e Índices da Construção Civil
A2: RELATÓRIO DE CUSTOS DE COMPOSIÇÕES - ENCARGOS SOCIAIS SEM DESONERAÇÃO
A3: Mês de Referência: | B3: 07/2025 | D3: Encargos sociais sobre a mão de obra:
A4: Data de emissão: | B4: 12/08/2025 | D4: (SEM DESONERAÇÃO) | E4: BA
D5: Localidade | E5: SALVADOR
A6: Observação: | B6: %AS (porcentagem Atribuído São Paulo) corresponde a porcentagem do custo total da | D6: Horista | E6: 1.1557
B7: composição que foi obtida utilizando preços de insumos de São Paulo por indisponibilidade | D7: Mensalista | E7: 0.7129
B8: dos preços de insumos necessários à composição no estado em questão. Custo zerado (hífen)
B9: indica que pelo menos um dos itens da composição não tem custo/preço. | E9: BA
A10: Grupo | B10: Código da Composição | C10: Descrição | D10: Unidade | E10: Custo (R$) | F10: %AS
A11: Acessibilidade | B11: 104658 | C11: PISO PODOTÁTIL DE ALERTA OU DIRECIONAL, DE CONCRETO, ASSENTADO SOBRE ARGAMASSA. AF_03/2024 | D11: M2 | E11: 163.93
A12: Acessibilidade | B12: 105002 | C12: RAMPA DE ACESSIBILIDADE EM CONCRETO MOLDADO IN LOCO, EM CALÇADA NOVA COM LARGURA MAIOR OU IGUAL À 3,00 M, FCK 25MPA, COM PISO PODOTÁTIL. AF_03/2024 | D12: UN | E12: 799.61
A13: Acessibilidade | B13: 105004 | C13: RAMPA DE ACESSIBILIDADE EM CONCRETO MOLDADO IN LOCO, EM CALÇADA NOVA COM LARGURA MENOR À 3,00 M, FCK 25MPA, COM PISO PODOTÁTIL. AF_03/2024 | D13: M2 | E13: 136.7
A14: Acessibilidade | B14: 105003 | C14: RAMPA DE ACESSIBILIDADE EM CONCRETO MOLDADO IN LOCO, EM CALÇADA PRÉ EXISTENTE COM LARGURA MAIOR OU IGUAL À 3,00 M, FCK 25MPA, COM PISO PODOTÁTIL. AF_03/2024 | D14: UN | E14: 1335.98
A15: Acessibilidade | B15: 105005 | C15: RAMPA DE ACESSIBILIDADE EM CONCRETO MOLDADO IN LOCO, EM CALÇADA PRÉ EXISTENTE COM LARGURA MENOR À 3,00 M, FCK 25MPA, COM PISO PODOTÁTIL. AF_03/2024 | D15: M2 | E15: 236.02
A16: Acessibilidade | B16: 105006 | C16: RAMPA DE ACESSIBILIDADE EM CONCRETO PRÉ MOLDADO, EM CALÇADA NOVA COM LARGURA MAIOR OU IGUAL À 3,00 M, FCK 25MPA, COM PISO PODOTÁTIL. AF_03/2024 | D16: UN | E16: 0
A17: Acessibilidade | B17: 104999 | C17: RAMPA DE ACESSIBILIDADE EM CONCRETO PRÉ MOLDADO, EM CALÇADA PRÉ EXISTENTE COM LARGURA MAIOR OU IGUAL À 3,00 M, FCK 25MPA, COM PISO PODOTÁTIL. AF_03/2024 | D17: UN | E17: 0
A18: Acessibilidade | B18: 105000 | C18: RAMPA DE ACESSIBILIDADE PARA ACESSO A EDIFICAÇÕES COM INCLINAÇÃO DE 8,33% EM CONCRETO MOLDADO IN LOCO, COM LARGURA DE 1,20M, FCK 25MPA, NÃO ARMADA, COM JUNTA A CADA 2M COM CORTE À SECO. AF_03/2024 | D18: M | E18: 1510.51
A19: Acessibilidade | B19: 105001 | C19: RAMPA DE ACESSIBILIDADE PARA ACESSO A EDIFICAÇÕES COM INCLINAÇÃO DE 8,33% EM CONCRETO MOLDADO IN LOCO, COM LARGURA DE 1,50M, FCK 25MPA, NÃO ARMADA, COM JUNTA A CADA 2M COM CORTE À SECO. AF_03/2024 | D19: M | E19: 1546.23
A20: Alvenaria Estrutural - Blocos Cerâmicos | B20: 89306 | C20: ALVENARIA ESTRUTURAL DE BLOCOS CERÂMICOS 14X19X29, (ESPESSURA DE 14 CM), UTILIZANDO COLHER DE PEDREIRO E ARGAMASSA DE ASSENTAMENTO COM PREPARO EM BETONEIRA. AF_03/2023 | D20: M2 | E20: 108.83
A21: Alvenaria Estrutural - Blocos Cerâmicos | B21: 89307 | C21: ALVENARIA ESTRUTURAL DE BLOCOS CERÂMICOS 14X19X29, (ESPESSURA DE 14 CM), UTILIZANDO COLHER DE PEDREIRO E ARGAMASSA DE ASSENTAMENTO COM PREPARO MANUAL. AF_03/2023 | D21: M2 | E21: 109.89
A22: Alvenaria Estrutural - Blocos Cerâmicos | B22: 89290 | C22: ALVENARIA ESTRUTURAL DE BLOCOS CERÂMICOS 14X19X29, (ESPESSURA DE 14 CM), UTILIZANDO PALHETA E ARGAMASSA DE ASSENTAMENTO COM PREPARO EM BETONEIRA. AF_03/2023 | D22: M2 | E22: 89.51
A23: Alvenaria Estrutural - Blocos Cerâmicos | B23: 89291 | C23: ALVENARIA ESTRUTURAL DE BLOCOS CERÂMICOS 14X19X29, (ESPESSURA DE 14 CM), UTILIZANDO PALHETA E ARGAMASSA DE ASSENTAMENTO COM PREPARO MANUAL. AF_03/2023 | D23: M2 | E23: 90.3
A24: Alvenaria Estrutural - Blocos Cerâmicos | B24: 89298 | C24: ALVENARIA ESTRUTURAL DE BLOCOS CERÂMICOS 14X19X39, (ESPESSURA DE 14 CM), UTILIZANDO COLHER DE PEDREIRO E ARGAMASSA DE ASSENTAMENTO COM PREPARO EM BETONEIRA. AF_03/2023 | D24: M2 | E24: 93.82
A25: Alvenaria Estrutural - Blocos Cerâmicos | B25: 89299 | C25: ALVENARIA ESTRUTURAL DE BLOCOS CERÂMICOS 14X19X39, (ESPESSURA DE 14 CM), UTILIZANDO COLHER DE PEDREIRO E ARGAMASSA DE ASSENTAMENTO COM PREPARO MANUAL. AF_03/2023 | D25: M2 | E25: 94.77
A26: Alvenaria Estrutural - Blocos Cerâmicos | B26: 89282 | C26: ALVENARIA ESTRUTURAL DE BLOCOS CERÂMICOS 14X19X39, (ESPESSURA DE 14 CM), UTILIZANDO PALHETA E ARGAMASSA DE ASSENTAMENTO COM PREPARO EM BETONEIRA. AF_03/2023 | D26: M2 | E26: 80.13
A27: Alvenaria Estrutural - Blocos Cerâmicos | B27: 89283 | C27: ALVENARIA ESTRUTURAL DE BLOCOS CERÂMICOS 14X19X39, (ESPESSURA DE 14 CM), UTILIZANDO PALHETA E ARGAMASSA DE ASSENTAMENTO COM PREPARO MANUAL. AF_03/2023 | D27: M2 | E27: 80.84
A28: Alvenaria Estrutural - Blocos de Concreto | B28: 89480 | C28: ALVENARIA DE BLOCOS DE CONCRETO ESTRUTURAL 14X19X29 CM (ESPESSURA 14 CM), FBK = 14 MPA, UTILIZANDO COLHER DE PEDREIRO. AF_10/2022 | D28: M2 | E28: 149.55
A29: Alvenaria Estrutural - Blocos de Concreto | B29: 89464 | C29: ALVENARIA DE BLOCOS DE CONCRETO ESTRUTURAL 14X19X29 CM (ESPESSURA 14 CM), FBK = 14,0 MPA, UTILIZANDO PALHETA. AF_10/2022 | D29: M2 | E29: 126.07
A30: Alvenaria Estrutural - Blocos de Concreto | B30: 89478 | C30: ALVENARIA DE BLOCOS DE CONCRETO ESTRUTURAL 14X19X29 CM (ESPESSURA 14 CM), FBK = 4,5 MPA, UTILIZANDO COLHER DE PEDREIRO. AF_10/2022 | D30: M2 | E30: 131.4
A31: Alvenaria Estrutural - Blocos de Concreto | B31: 89462 | C31: ALVENARIA DE BLOCOS DE CONCRETO ESTRUTURAL 14X19X29 CM (ESPESSURA 14 CM), FBK = 4,5 MPA, UTILIZANDO PALHETA. AF_10/2022 | D31: M2 | E31: 108.93
A32: Alvenaria Estrutural - Blocos de Concreto | B32: 104444 | C32: ALVENARIA DE BLOCOS DE CONCRETO ESTRUTURAL 14X19X29 CM (ESPESSURA 14 CM), FBK = 8 MPA, UTILIZANDO COLHER DE PEDREIRO. AF_10/2022 | D32: M2 | E32: 0
A33: Alvenaria Estrutural - Blocos de Concreto | B33: 104442 | C33: ALVENARIA DE BLOCOS DE CONCRETO ESTRUTURAL 14X19X29 CM (ESPESSURA 14 CM), FBK = 8 MPA, UTILIZANDO PALHETA. AF_10/2022 | D33: M2 | E33: 0
A34: Alvenaria Estrutural - Blocos de Concreto | B34: 89472 | C34: ALVENARIA DE BLOCOS DE CONCRETO ESTRUTURAL 14X19X39 CM (ESPESSURA 14 CM), FBK = 14 MPA, UTILIZANDO COLHER DE PEDREIRO. AF_10/2022 | D34: M2 | E34: 111.51
A35: Alvenaria Estrutural - Blocos de Concreto | B35: 89455 | C35: ALVENARIA DE BLOCOS DE CONCRETO ESTRUTURAL 14X19X39 CM (ESPESSURA 14 CM), FBK = 14 MPA, UTILIZANDO PALHETA. AF_10/2022 | D35: M2 | E35: 96.63
A36: Alvenaria Estrutural - Blocos de Concreto | B36: 89470 | C36: ALVENARIA DE BLOCOS DE CONCRETO ESTRUTURAL 14X19X39 CM (ESPESSURA 14 CM), FBK = 4,5 MPA, UTILIZANDO COLHER DE PEDREIRO. AF_10/2022 | D36: M2 | E36: 95.11
A37: Alvenaria Estrutural - Blocos de Concreto | B37: 89453 | C37: ALVENARIA DE BLOCOS DE CONCRETO ESTRUTURAL 14X19X39 CM (ESPESSURA 14 CM), FBK = 4,5 MPA, UTILIZANDO PALHETA. AF_10/2022 | D37: M2 | E37: 81.26
A38: Alvenaria Estrutural - Blocos de Concreto | B38: 104443 | C38: ALVENARIA DE BLOCOS DE CONCRETO ESTRUTURAL 14X19X39 CM (ESPESSURA 14 CM), FBK = 8 MPA, UTILIZANDO COLHER DE PEDREIRO. AF_10/2022 | D38: M2 | E38: 0
A39: Alvenaria Estrutural - Blocos de Concreto | B39: 104441 | C39: ALVENARIA DE BLOCOS DE CONCRETO ESTRUTURAL 14X19X39 CM (ESPESSURA 14 CM), FBK = 8 MPA, UTILIZANDO PALHETA. AF_10/2022 | D39: M2 | E39: 0
A40: Alvenaria de Vedação | B40: 103354 | C40: ALVENARIA DE VEDAÇÃO DE BLOCOS CERÂMICOS FURADOS NA HORIZONTAL DE 11,5X14X24 CM (ESPESSURA 11,5 CM) E ARGAMASSA DE ASSENTAMENTO COM PREPARO EM BETONEIRA. AF_12/2021 | D40: M2 | E40: 100.63
A41: Alvenaria de Vedação | B41: 103355 | C41: ALVENARIA DE VEDAÇÃO DE BLOCOS CERÂMICOS FURADOS NA HORIZONTAL DE 11,5X14X24 CM (ESPESSURA 11,5 CM) E ARGAMASSA DE ASSENTAMENTO COM PREPARO MANUAL. AF_12/2021 | D41: M2 | E41: 101.39
A42: Alvenaria de Vedação | B42: 103330 | C42: ALVENARIA DE VEDAÇÃO DE BLOCOS CERÂMICOS FURADOS NA HORIZONTAL DE 11,5X19X19 CM (ESPESSURA 11,5 CM) E ARGAMASSA DE ASSENTAMENTO COM PREPARO EM BETONEIRA. AF_12/2021 | D42: M2 | E42: 92.7
A43: Alvenaria de Vedação | B43: 103331 | C43: ALVENARIA DE VEDAÇÃO DE BLOCOS CERÂMICOS FURADOS NA HORIZONTAL DE 11,5X19X19 CM (ESPESSURA 11,5 CM) E ARGAMASSA DE ASSENTAMENTO COM PREPARO MANUAL. AF_12/2021 | D43: M2 | E43: 93.42
A44: Alvenaria de Vedação | B44: 103358 | C44: ALVENARIA DE VEDAÇÃO DE BLOCOS CERÂMICOS FURADOS NA HORIZONTAL DE 11,5X19X29 CM (ESPESSURA 11,5 CM) E ARGAMASSA DE ASSENTAMENTO COM PREPARO EM BETONEIRA. AF_12/2021 | D44: M2 | E44: 78.19
A45: Alvenaria de Vedação | B45: 103359 | C45: ALVENARIA DE VEDAÇÃO DE BLOCOS CERÂMICOS FURADOS NA HORIZONTAL DE 11,5X19X29 CM (ESPESSURA 11,5 CM) E ARGAMASSA DE ASSENTAMENTO COM PREPARO MANUAL. AF_12/2021 | D45: M2 | E45: 78.81
A46: Alvenaria de Vedação | B46: 103366 | C46: ALVENARIA DE VEDAÇÃO DE BLOCOS CERÂMICOS FURADOS NA HORIZONTAL DE 11,5X19X39 CM (ESPESSURA 11,5 CM) E ARGAMASSA DE ASSENTAMENTO COM PREPARO EM BETONEIRA. AF_12/2021 | D46: M2 | E46: 68.19
A47: Alvenaria de Vedação | B47: 103367 | C47: ALVENARIA DE VEDAÇÃO DE BLOCOS CERÂMICOS FURADOS NA HORIZONTAL DE 11,5X19X39 CM (ESPESSURA 11,5 CM) E ARGAMASSA DE ASSENTAMENTO COM PREPARO MANUAL. AF_12/2021 | D47: M2 | E47: 68.74
A48: Alvenaria de Vedação | B48: 103360 | C48: ALVENARIA DE VEDAÇÃO DE BLOCOS CERÂMICOS FURADOS NA HORIZONTAL DE 14X19X29 CM (ESPESSURA 14 CM) E ARGAMASSA DE ASSENTAMENTO COM PREPARO EM BETONEIRA. AF_12/2021 | D48: M2 | E48: 91.69
A49: Alvenaria de Vedação | B49: 103361 | C49: ALVENARIA DE VEDAÇÃO DE BLOCOS CERÂMICOS FURADOS NA HORIZONTAL DE 14X19X29 CM (ESPESSURA 14 CM) E ARGAMASSA DE ASSENTAMENTO COM PREPARO MANUAL. AF_12/2021 | D49: M2 | E49: 92.47
A50: Alvenaria de Vedação | B50: 103368 | C50: ALVENARIA DE VEDAÇÃO DE BLOCOS CERÂMICOS FURADOS NA HORIZONTAL DE 14X19X39 CM (ESPESSURA 14 CM) E ARGAMASSA DE ASSENTAMENTO COM PREPARO EM BETONEIRA. AF_12/2021 | D50: M2 | E50: 77.44
A51: Alvenaria de Vedação | B51: 103369 | C51: ALVENARIA DE VEDAÇÃO DE BLOCOS CERÂMICOS FURADOS NA HORIZONTAL DE 14X19X39 CM (ESPESSURA 14 CM) E ARGAMASSA DE ASSENTAMENTO COM PREPARO MANUAL. AF_12/2021 | D51: M2 | E51: 78.14
A52: Alvenaria de Vedação | B52: 103334 | C52: ALVENARIA DE VEDAÇÃO DE BLOCOS CERÂMICOS FURADOS NA HORIZONTAL DE 14X9X19 CM (ESPESSURA 14 CM, BLOCO DEITADO) E ARGAMASSA DE ASSENTAMENTO COM PREPARO EM BETONEIRA. AF_12/2021 | D52: M2 | E52: 163.55
A53: Alvenaria de Vedação | B53: 103335 | C53: ALVENARIA DE VEDAÇÃO DE BLOCOS CERÂMICOS FURADOS NA HORIZONTAL DE 14X9X19 CM (ESPESSURA 14 CM, BLOCO DEITADO) E ARGAMASSA DE ASSENTAMENTO COM PREPARO MANUAL. AF_12/2021 | D53: M2 | E53: 164.89
A54: Alvenaria de Vedação | B54: 103362 | C54: ALVENARIA DE VEDAÇÃO DE BLOCOS CERÂMICOS FURADOS NA HORIZONTAL DE 19X19X29 CM (ESPESSURA 19 CM) E ARGAMASSA DE ASSENTAMENTO COM PREPARO EM BETONEIRA. AF_12/2021 | D54: M2 | E54: 110.88
A55: Alvenaria de Vedação | B55: 103363 | C55: ALVENARIA DE VEDAÇÃO DE BLOCOS CERÂMICOS FURADOS NA HORIZONTAL DE 19X19X29 CM (ESPESSURA 19 CM) E ARGAMASSA DE ASSENTAMENTO COM PREPARO MANUAL. AF_12/2021 | D55: M2 | E55: 111.75
A56: Alvenaria de Vedação | B56: 103370 | C56: ALVENARIA DE VEDAÇÃO DE BLOCOS CERÂMICOS FURADOS NA HORIZONTAL DE 19X19X39 CM (ESPESSURA 19 CM) E ARGAMASSA DE ASSENTAMENTO COM PREPARO EM BETONEIRA. AF_12/2021 | D56: M2 | E56: 97.35
A57: Alvenaria de Vedação | B57: 103371 | C57: ALVENARIA DE VEDAÇÃO DE BLOCOS CERÂMICOS FURADOS NA HORIZONTAL DE 19X19X39 CM (ESPESSURA 19 CM) E ARGAMASSA DE ASSENTAMENTO COM PREPARO MANUAL. AF_12/2021 | D57: M2 | E57: 98.14
A58: Alvenaria de Vedação | B58: 103332 | C58: ALVENARIA DE VEDAÇÃO DE BLOCOS CERÂMICOS FURADOS NA HORIZONTAL DE 9X14X19 CM (ESPESSURA 9 CM) E ARGAMASSA DE ASSENTAMENTO COM PREPARO EM BETONEIRA. AF_12/2021 | D58: M2 | E58: 136.65
A59: Alvenaria de Vedação | B59: 103333 | C59: ALVENARIA DE VEDAÇÃO DE BLOCOS CERÂMICOS FURADOS NA HORIZONTAL DE 9X14X19 CM (ESPESSURA 9 CM) E ARGAMASSA DE ASSENTAMENTO COM PREPARO MANUAL. AF_12/2021 | D59: M2 | E59: 137.43
A60: Alvenaria de Vedação | B60: 103352 | C60: ALVENARIA DE VEDAÇÃO DE BLOCOS CERÂMICOS FURADOS NA HORIZONTAL DE 9X14X24 CM (ESPESSURA 9 CM) E ARGAMASSA DE ASSENTAMENTO COM PREPARO EM BETONEIRA. AF_12/2021 | D60: M2 | E60: 117.01
A61: Alvenaria de Vedação | B61: 103353 | C61: ALVENARIA DE VEDAÇÃO DE BLOCOS CERÂMICOS FURADOS NA HORIZONTAL DE 9X14X24 CM (ESPESSURA 9 CM) E ARGAMASSA DE ASSENTAMENTO COM PREPARO MANUAL. AF_12/2021 | D61: M2 | E61: 117.72
A62: Alvenaria de Vedação | B62: 103328 | C62: ALVENARIA DE VEDAÇÃO DE BLOCOS CERÂMICOS FURADOS NA HORIZONTAL DE 9X19X19 CM (ESPESSURA 9 CM) E ARGAMASSA DE ASSENTAMENTO COM PREPARO EM BETONEIRA. AF_12/2021 | D62: M2 | E62: 106.93
A63: Alvenaria de Vedação | B63: 103329 | C63: ALVENARIA DE VEDAÇÃO DE BLOCOS CERÂMICOS FURADOS NA HORIZONTAL DE 9X19X19 CM (ESPESSURA 9 CM) E ARGAMASSA DE ASSENTAMENTO COM PREPARO MANUAL. AF_12/2021 | D63: M2 | E63: 107.6
A64: Alvenaria de Vedação | B64: 103356 | C64: ALVENARIA DE VEDAÇÃO DE BLOCOS CERÂMICOS FURADOS NA HORIZONTAL DE 9X19X29 CM (ESPESSURA 9 CM) E ARGAMASSA DE ASSENTAMENTO COM PREPARO EM BETONEIRA. AF_12/2021 | D64: M2 | E64: 68.5
A65: Alvenaria de Vedação | B65: 103357 | C65: ALVENARIA DE VEDAÇÃO DE BLOCOS CERÂMICOS FURADOS NA HORIZONTAL DE 9X19X29 CM (ESPESSURA 9 CM) E ARGAMASSA DE ASSENTAMENTO COM PREPARO MANUAL. AF_12/2021 | D65: M2 | E65: 69.07
A66: Alvenaria de Vedação | B66: 103364 | C66: ALVENARIA DE VEDAÇÃO DE BLOCOS CERÂMICOS FURADOS NA HORIZONTAL DE 9X19X39 CM (ESPESSURA 9 CM) E ARGAMASSA DE ASSENTAMENTO COM PREPARO EM BETONEIRA. AF_12/2021 | D66: M2 | E66: 57.08
A67: Alvenaria de Vedação | B67: 103365 | C67: ALVENARIA DE VEDAÇÃO DE BLOCOS CERÂMICOS FURADOS NA HORIZONTAL DE 9X19X39 CM (ESPESSURA 9 CM) E ARGAMASSA DE ASSENTAMENTO COM PREPARO MANUAL. AF_12/2021 | D67: M2 | E67: 57.27
A68: Alvenaria de Vedação | B68: 103350 | C68: ALVENARIA DE VEDAÇÃO DE BLOCOS CERÂMICOS FURADOS NA HORIZONTAL DE 9X9X19 CM (ESPESSURA 9 CM) E ARGAMASSA DE ASSENTAMENTO COM PREPARO EM BETONEIRA. AF_12/2021 | D68: M2 | E68: 198.04
A69: Alvenaria de Vedação | B69: 103351 | C69: ALVENARIA DE VEDAÇÃO DE BLOCOS CERÂMICOS FURADOS NA HORIZONTAL DE 9X9X19 CM (ESPESSURA 9 CM) E ARGAMASSA DE ASSENTAMENTO COM PREPARO MANUAL. AF_12/2021 | D69: M2 | E69: 199.03
A70: Alvenaria de Vedação | B70: 103344 | C70: ALVENARIA DE VEDAÇÃO DE BLOCOS CERÂMICOS FURADOS NA VERTICAL DE 11,5X19X29 CM (ESPESSURA 11,5 CM) E ARGAMASSA DE ASSENTAMENTO COM PREPARO EM BETONEIRA. AF_12/2021 | D70: M2 | E70: 92.35
A71: Alvenaria de Vedação | B71: 103345 | C71: ALVENARIA DE VEDAÇÃO DE BLOCOS CERÂMICOS FURADOS NA VERTICAL DE 11,5X19X29 CM (ESPESSURA 11,5 CM) E ARGAMASSA DE ASSENTAMENTO COM PREPARO MANUAL. AF_12/2021 | D71: M2 | E71: 93.24
A72: Alvenaria de Vedação | B72: 103348 | C72: ALVENARIA DE VEDAÇÃO DE BLOCOS CERÂMICOS FURADOS NA VERTICAL DE 11,5X19X39 CM (ESPESSURA 11,5 CM) E ARGAMASSA DE ASSENTAMENTO COM PREPARO EM BETONEIRA. AF_12/2021 | D72: M2 | E72: 77.81
A73: Alvenaria de Vedação | B73: 103349 | C73: ALVENARIA DE VEDAÇÃO DE BLOCOS CERÂMICOS FURADOS NA VERTICAL DE 11,5X19X39 CM (ESPESSURA 11,5 CM) E ARGAMASSA DE ASSENTAMENTO COM PREPARO MANUAL. AF_12/2021 | D73: M2 | E73: 78.62
A74: Alvenaria de Vedação | B74: 103346 | C74: ALVENARIA DE VEDAÇÃO DE BLOCOS CERÂMICOS FURADOS NA VERTICAL DE 14X19X29 CM (ESPESSURA 14 CM) E ARGAMASSA DE ASSENTAMENTO COM PREPARO EM BETONEIRA. AF_12/2021 | D74: M2 | E74: 102.8
A75: Alvenaria de Vedação | B75: 103347 | C75: ALVENARIA DE VEDAÇÃO DE BLOCOS CERÂMICOS FURADOS NA VERTICAL DE 14X19X29 CM (ESPESSURA 14 CM) E ARGAMASSA DE ASSENTAMENTO COM PREPARO MANUAL. AF_12/2021 | D75: M2 | E75: 103.76
A76: Alvenaria de Vedação | B76: 103324 | C76: ALVENARIA DE VEDAÇÃO DE BLOCOS CERÂMICOS FURADOS NA VERTICAL DE 14X19X39 CM (ESPESSURA 14 CM) E ARGAMASSA DE ASSENTAMENTO COM PREPARO EM BETONEIRA. AF_12/2021 | D76: M2 | E76: 88.03
A77: Alvenaria de Vedação | B77: 103325 | C77: ALVENARIA DE VEDAÇÃO DE BLOCOS CERÂMICOS FURADOS NA VERTICAL DE 14X19X39 CM (ESPESSURA 14 CM) E ARGAMASSA DE ASSENTAMENTO COM PREPARO MANUAL. AF_12/2021 | D77: M2 | E77: 88.9
A78: Alvenaria de Vedação | B78: 103326 | C78: ALVENARIA DE VEDAÇÃO DE BLOCOS CERÂMICOS FURADOS NA VERTICAL DE 19X19X39 CM (ESPESSURA 19 CM) E ARGAMASSA DE ASSENTAMENTO COM PREPARO EM BETONEIRA. AF_12/2021 | D78: M2 | E78: 103.59
A79: Alvenaria de Vedação | B79: 103327 | C79: ALVENARIA DE VEDAÇÃO DE BLOCOS CERÂMICOS FURADOS NA VERTICAL DE 19X19X39 CM (ESPESSURA 19 CM) E ARGAMASSA DE ASSENTAMENTO COM PREPARO MANUAL. AF_12/2021 | D79: M2 | E79: 104.61
A80: Alvenaria de Vedação | B80: 103322 | C80: ALVENARIA DE VEDAÇÃO DE BLOCOS CERÂMICOS FURADOS NA VERTICAL DE 9X19X39 CM (ESPESSURA 9 CM) E ARGAMASSA DE ASSENTAMENTO COM PREPARO EM BETONEIRA. AF_12/2021 | D80: M2 | E80: 65.91
A81: Alvenaria de Vedação | B81: 103323 | C81: ALVENARIA DE VEDAÇÃO DE BLOCOS CERÂMICOS FURADOS NA VERTICAL DE 9X19X39 CM (ESPESSURA 9 CM) E ARGAMASSA DE ASSENTAMENTO COM PREPARO MANUAL. AF_12/2021 | D81: M2 | E81: 66.67
A82: Alvenaria de Vedação | B82: 103338 | C82: ALVENARIA DE VEDAÇÃO DE BLOCOS VAZADOS DE CONCRETO APARENTE DE 14X19X39 CM (ESPESSURA 14 CM) E ARGAMASSA DE ASSENTAMENTO COM PREPARO EM BETONEIRA. AF_12/2021 | D82: M2 | E82: 112.48
A83: Alvenaria de Vedação | B83: 103339 | C83: ALVENARIA DE VEDAÇÃO DE BLOCOS VAZADOS DE CONCRETO APARENTE DE 14X19X39 CM (ESPESSURA 14 CM) E ARGAMASSA DE ASSENTAMENTO COM PREPARO MANUAL. AF_12/2021 | D83: M2 | E83: 113.23
A84: Alvenaria de Vedação | B84: 103340 | C84: ALVENARIA DE VEDAÇÃO DE BLOCOS VAZADOS DE CONCRETO APARENTE DE 19X19X39 CM (ESPESSURA 19 CM) E ARGAMASSA DE ASSENTAMENTO COM PREPARO EM BETONEIRA. AF_12/2021 | D84: M2 | E84: 134.82
A85: Alvenaria de Vedação | B85: 103341 | C85: ALVENARIA DE VEDAÇÃO DE BLOCOS VAZADOS DE CONCRETO APARENTE DE 19X19X39 CM (ESPESSURA 19 CM) E ARGAMASSA DE ASSENTAMENTO COM PREPARO MANUAL. AF_12/2021 | D85: M2 | E85: 135.76
A86: Alvenaria de Vedação | B86: 103336 | C86: ALVENARIA DE VEDAÇÃO DE BLOCOS VAZADOS DE CONCRETO APARENTE DE 9X19X39 CM (ESPESSURA 9 CM) E ARGAMASSA DE ASSENTAMENTO COM PREPARO EM BETONEIRA. AF_12/2021 | D86: M2 | E86: 85.27
A87: Alvenaria de Vedação | B87: 103337 | C87: ALVENARIA DE VEDAÇÃO DE BLOCOS VAZADOS DE CONCRETO APARENTE DE 9X19X39 CM (ESPESSURA 9 CM) E ARGAMASSA DE ASSENTAMENTO COM PREPARO MANUAL. AF_12/2021 | D87: M2 | E87: 85.91
A88: Alvenaria de Vedação | B88: 103342 | C88: ALVENARIA DE VEDAÇÃO DE BLOCOS VAZADOS DE CONCRETO DE 14X19X29 CM (ESPESSURA 14 CM) E ARGAMASSA DE ASSENTAMENTO COM PREPARO EM BETONEIRA. AF_12/2021 | D88: M2 | E88: 112.73
A89: Alvenaria de Vedação | B89: 103343 | C89: ALVENARIA DE VEDAÇÃO DE BLOCOS VAZADOS DE CONCRETO DE 14X19X29 CM (ESPESSURA 14 CM) E ARGAMASSA DE ASSENTAMENTO COM PREPARO MANUAL. AF_12/2021 | D89: M2 | E89: 113.56
A90: Alvenaria de Vedação | B90: 103318 | C90: ALVENARIA DE VEDAÇÃO DE BLOCOS VAZADOS DE CONCRETO DE 14X19X39 CM (ESPESSURA 14 CM) E ARGAMASSA DE ASSENTAMENTO COM PREPARO EM BETONEIRA. AF_12/2021 | D90: M2 | E90: 97.14
A91: Alvenaria de Vedação | B91: 103319 | C91: ALVENARIA DE VEDAÇÃO DE BLOCOS VAZADOS DE CONCRETO DE 14X19X39 CM (ESPESSURA 14 CM) E ARGAMASSA DE ASSENTAMENTO COM PREPARO MANUAL. AF_12/2021 | D91: M2 | E91: 97.89
A92: Alvenaria de Vedação | B92: 103320 | C92: ALVENARIA DE VEDAÇÃO DE BLOCOS VAZADOS DE CONCRETO DE 19X19X39 CM (ESPESSURA 19 CM) E ARGAMASSA DE ASSENTAMENTO COM PREPARO EM BETONEIRA. AF_12/2021 | D92: M2 | E92: 115.87
A93: Alvenaria de Vedação | B93: 103321 | C93: ALVENARIA DE VEDAÇÃO DE BLOCOS VAZADOS DE CONCRETO DE 19X19X39 CM (ESPESSURA 19 CM) E ARGAMASSA DE ASSENTAMENTO COM PREPARO MANUAL. AF_12/2021 | D93: M2 | E93: 116.81
A94: Alvenaria de Vedação | B94: 103316 | C94: ALVENARIA DE VEDAÇÃO DE BLOCOS VAZADOS DE CONCRETO DE 9X19X39 CM (ESPESSURA 9 CM) E ARGAMASSA DE ASSENTAMENTO COM PREPARO EM BETONEIRA. AF_12/2021 | D94: M2 | E94: 74.53
A95: Alvenaria de Vedação | B95: 103317 | C95: ALVENARIA DE VEDAÇÃO DE BLOCOS VAZADOS DE CONCRETO DE 9X19X39 CM (ESPESSURA 9 CM) E ARGAMASSA DE ASSENTAMENTO COM PREPARO MANUAL. AF_12/2021 | D95: M2 | E95: 75.17
A96: Alvenarias Diversas | B96: 101166 | C96: ALVENARIA DE EMBASAMENTO COM BLOCO ESTRUTURAL DE CERÂMICA, DE 14X19X29CM E ARGAMASSA DE ASSENTAMENTO COM PREPARO EM BETONEIRA. AF_05/2020 | D96: M3 | E96: 749.51
A97: Alvenarias Diversas | B97: 101165 | C97: ALVENARIA DE EMBASAMENTO COM BLOCO ESTRUTURAL DE CONCRETO, DE 14X19X29CM E ARGAMASSA DE ASSENTAMENTO COM PREPARO EM BETONEIRA. AF_05/2020 | D97: M3 | E97: 975.38
A98: Alvenarias Diversas | B98: 101163 | C98: ALVENARIA DE VEDAÇÃO COM BLOCO DE VIDRO VAZADO, TIPO VENEZIANA, DE 6X20X20CM E ARGAMASSA DE ASSENTAMENTO COM PREPARO EM BETONEIRA. AF_05/2020 | D98: M2 | E98: 930.42
A99: Alvenarias Diversas | B99: 101164 | C99: ALVENARIA DE VEDAÇÃO COM BLOCO DE VIDRO, TIPO CANELADO, DE 8X19X19CM E ARGAMASSA DE ASSENTAMENTO COM PREPARO EM BETONEIRA. AF_05/2020 | D99: M2 | E99: 944.55
A100: Alvenarias Diversas | B100: 101162 | C100: ALVENARIA DE VEDAÇÃO COM ELEMENTO VAZADO DE CERÂMICA (COBOGÓ) DE 7X20X20CM E ARGAMASSA DE ASSENTAMENTO COM PREPARO EM BETONEIRA. AF_05/2020 | D100: M2 | E100: 174.18
A101: Alvenarias Diversas | B101: 101161 | C101: ALVENARIA DE VEDAÇÃO COM ELEMENTO VAZADO DE CONCRETO (COBOGÓ) DE 7X50X50CM E ARGAMASSA DE ASSENTAMENTO COM PREPARO EM BETONEIRA. AF_05/2020 | D101: M2 | E101: 214.1
A102: Alvenarias Diversas | B102: 101160 | C102: ALVENARIA DE VEDAÇÃO DE BLOCO DE SOLO-CIMENTO (TIJOLO ECOLÓGICO) DE 7X15X30CM (ESPESSURA 15CM). AF_05/2020 | D102: M2 | E102: 0
A103: Alvenarias Diversas | B103: 101159 | C103: ALVENARIA DE VEDAÇÃO DE BLOCOS CERÂMICOS MACIÇOS DE 5X10X20CM (ESPESSURA 10CM) E ARGAMASSA DE ASSENTAMENTO COM PREPARO EM BETONEIRA. AF_05/2020 | D103: M2 | E103: 155.06
A104: Alvenarias Diversas | B104: 101154 | C104: ALVENARIA DE VEDAÇÃO DE BLOCOS DE CONCRETO CELULAR DE 10X30X60CM (ESPESSURA 10CM) E ARGAMASSA DE ASSENTAMENTO COM PREPARO EM BETONEIRA. AF_05/2020 | D104: M2 | E104: 138.03
A105: Alvenarias Diversas | B105: 101155 | C105: ALVENARIA DE VEDAÇÃO DE BLOCOS DE CONCRETO CELULAR DE 15X30X60CM (ESPESSURA 15CM) E ARGAMASSA DE ASSENTAMENTO COM PREPARO EM BETONEIRA. AF_05/2020 | D105: M2 | E105: 192.3
A106: Alvenarias Diversas | B106: 101156 | C106: ALVENARIA DE VEDAÇÃO DE BLOCOS DE CONCRETO CELULAR DE 20X30X60CM (ESPESSURA 20CM) E ARGAMASSA DE ASSENTAMENTO COM PREPARO EM BETONEIRA. AF_05/2020 | D106: M2 | E106: 280.53
A107: Alvenarias Diversas | B107: 101158 | C107: ALVENARIA DE VEDAÇÃO DE BLOCOS DE GESSO DE 10X50X66CM (ESPESSURA 10CM). AF_05/2020 | D107: M2 | E107: 84.02
A108: Alvenarias Diversas | B108: 101157 | C108: ALVENARIA DE VEDAÇÃO DE BLOCOS DE GESSO DE 7X50X66CM (ESPESSURA 7CM). AF_05/2020 | D108: M2 | E108: 64.72
A109: Argamassas | B109: 87382 | C109: ARGAMASSA INDUSTRIALIZADA MULTIUSO PARA REVESTIMENTOS E ASSENTAMENTO DA ALVENARIA, PREPARO COM MISTURADOR DE EIXO HORIZONTAL DE 160 KG. AF_08/2019 | D109: M3 | E109: 1881.97
A110: Argamassas | B110: 87383 | C110: ARGAMASSA INDUSTRIALIZADA MULTIUSO PARA REVESTIMENTOS E ASSENTAMENTO DA ALVENARIA, PREPARO COM MISTURADOR DE EIXO HORIZONTAL DE 300 KG. AF_08/2019 | D110: M3 | E110: 1859.79
A111: Argamassas | B111: 87384 | C111: ARGAMASSA INDUSTRIALIZADA MULTIUSO PARA REVESTIMENTOS E ASSENTAMENTO DA ALVENARIA, PREPARO COM MISTURADOR DE EIXO HORIZONTAL DE 600 KG. AF_08/2019 | D111: M3 | E111: 1827.48
A112: Argamassas | B112: 87398 | C112: ARGAMASSA INDUSTRIALIZADA MULTIUSO PARA REVESTIMENTOS E ASSENTAMENTO DA ALVENARIA, PREPARO MANUAL. AF_08/2019 | D112: M3 | E112: 2045.61
A113: Argamassas | B113: 87395 | C113: ARGAMASSA INDUSTRIALIZADA PARA CHAPISCO COLANTE, PREPARO COM MISTURADOR DE EIXO HORIZONTAL DE 160 KG. AF_08/2019 | D113: M3 | E113: 3629.39
A114: Argamassas | B114: 87396 | C114: ARGAMASSA INDUSTRIALIZADA PARA CHAPISCO COLANTE, PREPARO COM MISTURADOR DE EIXO HORIZONTAL DE 300 KG. AF_08/2019 | D114: M3 | E114: 3629.99
A115: Argamassas | B115: 87397 | C115: ARGAMASSA INDUSTRIALIZADA PARA CHAPISCO COLANTE, PREPARO COM MISTURADOR DE EIXO HORIZONTAL DE 600 KG. AF_08/2019 | D115: M3 | E115: 3622.14
A116: Argamassas | B116: 87402 | C116: ARGAMASSA INDUSTRIALIZADA PARA CHAPISCO COLANTE, PREPARO MANUAL. AF_08/2019 | D116: M3 | E116: 3835.9
A117: Argamassas | B117: 87391 | C117: ARGAMASSA INDUSTRIALIZADA PARA CHAPISCO ROLADO, PREPARO COM MISTURADOR DE EIXO HORIZONTAL DE 160 KG. AF_08/2019 | D117: M3 | E117: 5701.66
A118: Argamassas | B118: 87393 | C118: ARGAMASSA INDUSTRIALIZADA PARA CHAPISCO ROLADO, PREPARO COM MISTURADOR DE EIXO HORIZONTAL DE 300 KG. AF_08/2019 | D118: M3 | E118: 5730.1
A119: Argamassas | B119: 87394 | C119: ARGAMASSA INDUSTRIALIZADA PARA CHAPISCO ROLADO, PREPARO COM MISTURADOR DE EIXO HORIZONTAL DE 600 KG. AF_08/2019 | D119: M3 | E119: 5748.83
A120: Argamassas | B120: 87401 | C120: ARGAMASSA INDUSTRIALIZADA PARA CHAPISCO ROLADO, PREPARO MANUAL. AF_08/2019 | D120: M3 | E120: 5950.6
A121: Argamassas | B121: 87407 | C121: ARGAMASSA INDUSTRIALIZADA PARA REVESTIMENTOS, MISTURA E PROJEÇÃO DE 1,5 M³/H DE ARGAMASSA. AF_08/2019 | D121: M3 | E121: 1917.18
A122: Argamassas | B122: 87408 | C122: ARGAMASSA INDUSTRIALIZADA PARA REVESTIMENTOS, MISTURA E PROJEÇÃO DE 2 M³/H DE ARGAMASSA. AF_08/2019 | D122: M3 | E122: 1884.38
A123: Argamassas | B123: 87404 | C123: ARGAMASSA PARA REVESTIMENTO DECORATIVO MONOCAMADA (MONOCAPA), MISTURA E PROJEÇÃO DE 1,5 M3/H DE ARGAMASSA. AF_08/2019 | D123: M3 | E123: 5343.65
A124: Argamassas | B124: 87405 | C124: ARGAMASSA PARA REVESTIMENTO DECORATIVO MONOCAMADA (MONOCAPA), MISTURA E PROJEÇÃO DE 2 M3/H DE ARGAMASSA. AF_08/2019 | D124: M3 | E124: 5325.48
A125: Argamassas | B125: 87388 | C125: ARGAMASSA PARA REVESTIMENTO DECORATIVO MONOCAMADA (MONOCAPA), PREPARO COM MISTURADOR DE EIXO HORIZONTAL DE 160 KG. AF_08/2019 | D125: M3 | E125: 5107.74
A126: Argamassas | B126: 87389 | C126: ARGAMASSA PARA REVESTIMENTO DECORATIVO MONOCAMADA (MONOCAPA), PREPARO COM MISTURADOR DE EIXO HORIZONTAL DE 300 KG. AF_08/2019 | D126: M3 | E126: 5107.35
A127: Argamassas | B127: 87390 | C127: ARGAMASSA PARA REVESTIMENTO DECORATIVO MONOCAMADA (MONOCAPA), PREPARO COM MISTURADOR DE EIXO HORIZONTAL DE 600 KG. AF_08/2019 | D127: M3 | E127: 5108.91
A128: Argamassas | B128: 87385 | C128: ARGAMASSA PRONTA PARA CONTRAPISO, PREPARO COM MISTURADOR DE EIXO HORIZONTAL DE 160 KG. AF_08/2019 | D128: M3 | E128: 2208.85
A129: Argamassas | B129: 87386 | C129: ARGAMASSA PRONTA PARA CONTRAPISO, PREPARO COM MISTURADOR DE EIXO HORIZONTAL DE 300 KG. AF_08/2019 | D129: M3 | E129: 2175.34
A130: Argamassas | B130: 87387 | C130: ARGAMASSA PRONTA PARA CONTRAPISO, PREPARO COM MISTURADOR DE EIXO HORIZONTAL DE 600 KG. AF_08/2019 | D130: M3 | E130: 2142.46
A131: Argamassas | B131: 87399 | C131: ARGAMASSA PRONTA PARA CONTRAPISO, PREPARO MANUAL. AF_08/2019 | D131: M3 | E131: 2362.52
A132: Argamassas | B132: 88627 | C132: ARGAMASSA TRAÇO 1:0,5:4,5 (EM VOLUME DE CIMENTO, CAL E AREIA MÉDIA ÚMIDA) PARA ASSENTAMENTO DE ALVENARIA, PREPARO MANUAL. AF_08/2019 | D132: M3 | E132: 759.2
A133: Argamassas | B133: 100463 | C133: ARGAMASSA TRAÇO 1:0,5:4,5 (EM VOLUME DE CIMENTO, CAL E AREIA MÉDIA ÚMIDA), PREPARO MECÂNICO COM BETONEIRA 250 L. AF_08/2019 | D133: M3 | E133: 0
A134: Argamassas | B134: 88626 | C134: ARGAMASSA TRAÇO 1:0,5:4,5 (EM VOLUME DE CIMENTO, CAL E AREIA MÉDIA ÚMIDA), PREPARO MECÂNICO COM BETONEIRA 400 L. AF_08/2019 | D134: M3 | E134: 706.32
A135: Argamassas | B135: 100488 | C135: ARGAMASSA TRAÇO 1:0,5:4,5 (EM VOLUME DE CIMENTO, CAL E AREIA MÉDIA ÚMIDA), PREPARO MECÂNICO COM BETONEIRA 600 L. AF_08/2019 | D135: M3 | E135: 674.71
A136: Argamassas | B136: 100464 | C136: ARGAMASSA TRAÇO 1:0,5:4,5 (EM VOLUME DE CIMENTO, CAL E AREIA MÉDIA ÚMIDA), PREPARO MECÂNICO COM MISTURADOR DE EIXO HORIZONTAL DE 160 KG. AF_08/2019 | D136: M3 | E136: 757.08
A137: Argamassas | B137: 100465 | C137: ARGAMASSA TRAÇO 1:0,5:4,5 (EM VOLUME DE CIMENTO, CAL E AREIA MÉDIA ÚMIDA), PREPARO MECÂNICO COM MISTURADOR DE EIXO HORIZONTAL DE 300 KG. AF_08/2019 | D137: M3 | E137: 685.69
A138: Argamassas | B138: 100466 | C138: ARGAMASSA TRAÇO 1:0,5:4,5 (EM VOLUME DE CIMENTO, CAL E AREIA MÉDIA ÚMIDA), PREPARO MECÂNICO COM MISTURADOR DE EIXO HORIZONTAL DE 600 KG. AF_08/2019 | D138: M3 | E138: 641.33
A139: Argamassas | B139: 87368 | C139: ARGAMASSA TRAÇO 1:1,5:7,5 (EM VOLUME DE CIMENTO, CAL E AREIA MÉDIA ÚMIDA) PARA EMBOÇO/MASSA ÚNICA/ASSENTAMENTO DE ALVENARIA DE VEDAÇÃO, PREPARO MANUAL. AF_08/2019 | D139: M3 | E139: 816.71
A140: Argamassas | B140: 100450 | C140: ARGAMASSA TRAÇO 1:1,5:7,5 (EM VOLUME DE CIMENTO, CAL E AREIA MÉDIA ÚMIDA) PARA EMBOÇO/MASSA ÚNICA/ASSENTAMENTO DE ALVENARIA DE VEDAÇÃO, PREPARO MECÂNICO COM BETONEIRA 250 L. AF_08/2019 | D140: M3 | E140: 0
A141: Argamassas | B141: 87289 | C141: ARGAMASSA TRAÇO 1:1,5:7,5 (EM VOLUME DE CIMENTO, CAL E AREIA MÉDIA ÚMIDA) PARA EMBOÇO/MASSA ÚNICA/ASSENTAMENTO DE ALVENARIA DE VEDAÇÃO, PREPARO MECÂNICO COM BETONEIRA 400 L. AF_08/2019 | D141: M3 | E141: 752.39
A142: Argamassas | B142: 87290 | C142: ARGAMASSA TRAÇO 1:1,5:7,5 (EM VOLUME DE CIMENTO, CAL E AREIA MÉDIA ÚMIDA) PARA EMBOÇO/MASSA ÚNICA/ASSENTAMENTO DE ALVENARIA DE VEDAÇÃO, PREPARO MECÂNICO COM BETONEIRA 600 L. AF_08/2019 | D142: M3 | E142: 718.77
A143: Argamassas | B143: 87333 | C143: ARGAMASSA TRAÇO 1:1,5:7,5 (EM VOLUME DE CIMENTO, CAL E AREIA MÉDIA ÚMIDA) PARA EMBOÇO/MASSA ÚNICA/ASSENTAMENTO DE ALVENARIA DE VEDAÇÃO, PREPARO MECÂNICO COM MISTURADOR DE EIXO HORIZONTAL DE 300 KG. AF_08/2019 | D143: M3 | E143: 763.51
A144: Argamassas | B144: 87334 | C144: ARGAMASSA TRAÇO 1:1,5:7,5 (EM VOLUME DE CIMENTO, CAL E AREIA MÉDIA ÚMIDA) PARA EMBOÇO/MASSA ÚNICA/ASSENTAMENTO DE ALVENARIA DE VEDAÇÃO, PREPARO MECÂNICO COM MISTURADOR DE EIXO HORIZONTAL DE 600 KG. AF_08/2019 | D144: M3 | E144: 685.53
A145: Argamassas | B145: 105515 | C145: ARGAMASSA TRAÇO 1:1,93 (EM VOLUME DE CIMENTO E AREIA MÉDIA ÚMIDA), FCK 20MPA, PREPARO MECÂNICO COM MISTURADOR DUPLO HORIZONTAL DE ALTA TURBULÊNCIA. AF_03/2020 | D145: M3 | E145: 956.43
A146: Argamassas | B146: 87367 | C146: ARGAMASSA TRAÇO 1:1:6 (EM VOLUME DE CIMENTO, CAL E AREIA MÉDIA ÚMIDA) PARA EMBOÇO/MASSA ÚNICA/ASSENTAMENTO DE ALVENARIA DE VEDAÇÃO, PREPARO MANUAL. AF_08/2019 | D146: M3 | E146: 823.56
A147: Argamassas | B147: 100449 | C147: ARGAMASSA TRAÇO 1:1:6 (EM VOLUME DE CIMENTO, CAL E AREIA MÉDIA ÚMIDA) PARA EMBOÇO/MASSA ÚNICA/ASSENTAMENTO DE ALVENARIA DE VEDAÇÃO, PREPARO MECÂNICO COM BETONEIRA 250 L. AF_08/2019 | D147: M3 | E147: 0
A148: Argamassas | B148: 87286 | C148: ARGAMASSA TRAÇO 1:1:6 (EM VOLUME DE CIMENTO, CAL E AREIA MÉDIA ÚMIDA) PARA EMBOÇO/MASSA ÚNICA/ASSENTAMENTO DE ALVENARIA DE VEDAÇÃO, PREPARO MECÂNICO COM BETONEIRA 400 L. AF_08/2019 | D148: M3 | E148: 768.26
A149: Argamassas | B149: 87287 | C149: ARGAMASSA TRAÇO 1:1:6 (EM VOLUME DE CIMENTO, CAL E AREIA MÉDIA ÚMIDA) PARA EMBOÇO/MASSA ÚNICA/ASSENTAMENTO DE ALVENARIA DE VEDAÇÃO, PREPARO MECÂNICO COM BETONEIRA 600 L. AF_08/2019 | D149: M3 | E149: 716.46
A150: Argamassas | B150: 87331 | C150: ARGAMASSA TRAÇO 1:1:6 (EM VOLUME DE CIMENTO, CAL E AREIA MÉDIA ÚMIDA) PARA EMBOÇO/MASSA ÚNICA/ASSENTAMENTO DE ALVENARIA DE VEDAÇÃO, PREPARO MECÂNICO COM MISTURADOR DE EIXO HORIZONTAL DE 300 KG. AF_08/2019 | D150: M3 | E150: 808.77
A151: Argamassas | B151: 87332 | C151: ARGAMASSA TRAÇO 1:1:6 (EM VOLUME DE CIMENTO, CAL E AREIA MÉDIA ÚMIDA) PARA EMBOÇO/MASSA ÚNICA/ASSENTAMENTO DE ALVENARIA DE VEDAÇÃO, PREPARO MECÂNICO COM MISTURADOR DE EIXO HORIZONTAL DE 600 KG. AF_08/2019 | D151: M3 | E151: 686.56
A152: Argamassas | B152: 87369 | C152: ARGAMASSA TRAÇO 1:2:8 (EM VOLUME DE CIMENTO, CAL E AREIA MÉDIA ÚMIDA) PARA EMBOÇO/MASSA ÚNICA/ASSENTAMENTO DE ALVENARIA DE VEDAÇÃO, PREPARO MANUAL. AF_08/2019 | D152: M3 | E152: 845.82
A153: Argamassas | B153: 100451 | C153: ARGAMASSA TRAÇO 1:2:8 (EM VOLUME DE CIMENTO, CAL E AREIA MÉDIA ÚMIDA) PARA EMBOÇO/MASSA ÚNICA/ASSENTAMENTO DE ALVENARIA DE VEDAÇÃO, PREPARO MECÂNICO COM BETONEIRA 250 L. AF_08/2019 | D153: M3 | E153: 0
A154: Argamassas | B154: 87292 | C154: ARGAMASSA TRAÇO 1:2:8 (EM VOLUME DE CIMENTO, CAL E AREIA MÉDIA ÚMIDA) PARA EMBOÇO/MASSA ÚNICA/ASSENTAMENTO DE ALVENARIA DE VEDAÇÃO, PREPARO MECÂNICO COM BETONEIRA 400 L. AF_08/2019 | D154: M3 | E154: 772.19
A155: Argamassas | B155: 87335 | C155: ARGAMASSA TRAÇO 1:2:8 (EM VOLUME DE CIMENTO, CAL E AREIA MÉDIA ÚMIDA) PARA EMBOÇO/MASSA ÚNICA/ASSENTAMENTO DE ALVENARIA DE VEDAÇÃO, PREPARO MECÂNICO COM MISTURADOR DE EIXO HORIZONTAL DE 300 KG. AF_08/2019 | D155: M3 | E155: 749.35
A156: Argamassas | B156: 87336 | C156: ARGAMASSA TRAÇO 1:2:8 (EM VOLUME DE CIMENTO, CAL E AREIA MÉDIA ÚMIDA) PARA EMBOÇO/MASSA ÚNICA/ASSENTAMENTO DE ALVENARIA DE VEDAÇÃO, PREPARO MECÂNICO COM MISTURADOR DE EIXO HORIZONTAL DE 600 KG. AF_08/2019 | D156: M3 | E156: 713.92
A157: Argamassas | B157: 87370 | C157: ARGAMASSA TRAÇO 1:2:9 (EM VOLUME DE CIMENTO, CAL E AREIA MÉDIA ÚMIDA) PARA EMBOÇO/MASSA ÚNICA/ASSENTAMENTO DE ALVENARIA DE VEDAÇÃO, PREPARO MANUAL. AF_08/2019 | D157: M3 | E157: 814.63
A158: Argamassas | B158: 100452 | C158: ARGAMASSA TRAÇO 1:2:9 (EM VOLUME DE CIMENTO, CAL E AREIA MÉDIA ÚMIDA) PARA EMBOÇO/MASSA ÚNICA/ASSENTAMENTO DE ALVENARIA DE VEDAÇÃO, PREPARO MECÂNICO COM BETONEIRA 250 L. AF_08/2019 | D158: M3 | E158: 0
A159: Argamassas | B159: 88715 | C159: ARGAMASSA TRAÇO 1:2:9 (EM VOLUME DE CIMENTO, CAL E AREIA MÉDIA ÚMIDA) PARA EMBOÇO/MASSA ÚNICA/ASSENTAMENTO DE ALVENARIA DE VEDAÇÃO, PREPARO MECÂNICO COM BETONEIRA 400 L. AF_08/2019 | D159: M3 | E159: 729.59
A160: Argamassas | B160: 87294 | C160: ARGAMASSA TRAÇO 1:2:9 (EM VOLUME DE CIMENTO, CAL E AREIA MÉDIA ÚMIDA) PARA EMBOÇO/MASSA ÚNICA/ASSENTAMENTO DE ALVENARIA DE VEDAÇÃO, PREPARO MECÂNICO COM BETONEIRA 600 L. AF_08/2019 | D160: M3 | E160: 725.62
A161: Argamassas | B161: 87337 | C161: ARGAMASSA TRAÇO 1:2:9 (EM VOLUME DE CIMENTO, CAL E AREIA MÉDIA ÚMIDA) PARA EMBOÇO/MASSA ÚNICA/ASSENTAMENTO DE ALVENARIA DE VEDAÇÃO, PREPARO MECÂNICO COM MISTURADOR DE EIXO HORIZONTAL DE 300 KG. AF_08/2019 | D161: M3 | E161: 746.97
A162: Argamassas | B162: 100487 | C162: ARGAMASSA TRAÇO 1:2:9 (EM VOLUME DE CIMENTO, CAL E AREIA MÉDIA ÚMIDA) PARA EMBOÇO/MASSA ÚNICA/ASSENTAMENTO DE ALVENARIA DE VEDAÇÃO, PREPARO MECÂNICO COM MISTURADOR DE EIXO HORIZONTAL DE 600 KG. AF_08/2019 | D162: M3 | E162: 676.34
A163: Argamassas | B163: 87380 | C163: ARGAMASSA TRAÇO 1:3 (EM VOLUME DE CIMENTO E AREIA GROSSA ÚMIDA) COM ADIÇÃO DE EMULSÃO POLIMÉRICA PARA CHAPISCO ROLADO, PREPARO MANUAL. AF_08/2019 | D163: M3 | E163: 3923.89
A164: Argamassas | B164: 100461 | C164: ARGAMASSA TRAÇO 1:3 (EM VOLUME DE CIMENTO E AREIA GROSSA ÚMIDA) COM ADIÇÃO DE EMULSÃO POLIMÉRICA PARA CHAPISCO ROLADO, PREPARO MECÂNICO COM BETONEIRA 250 L. AF_08/2019 | D164: M3 | E164: 0
A165: Argamassas | B165: 87322 | C165: ARGAMASSA TRAÇO 1:3 (EM VOLUME DE CIMENTO E AREIA GROSSA ÚMIDA) COM ADIÇÃO DE EMULSÃO POLIMÉRICA PARA CHAPISCO ROLADO, PREPARO MECÂNICO COM BETONEIRA 400 L. AF_08/2019 | D165: M3 | E165: 3886.66
A166: Argamassas | B166: 87323 | C166: ARGAMASSA TRAÇO 1:3 (EM VOLUME DE CIMENTO E AREIA GROSSA ÚMIDA) COM ADIÇÃO DE EMULSÃO POLIMÉRICA PARA CHAPISCO ROLADO, PREPARO MECÂNICO COM BETONEIRA 600 L. AF_08/2019 | D166: M3 | E166: 3858.12
A167: Argamassas | B167: 87360 | C167: ARGAMASSA TRAÇO 1:3 (EM VOLUME DE CIMENTO E AREIA GROSSA ÚMIDA) COM ADIÇÃO DE EMULSÃO POLIMÉRICA PARA CHAPISCO ROLADO, PREPARO MECÂNICO COM MISTURADOR DE EIXO HORIZONTAL DE 160 KG. AF_08/2019 | D167: M3 | E167: 3883.51
A168: Argamassas | B168: 87361 | C168: ARGAMASSA TRAÇO 1:3 (EM VOLUME DE CIMENTO E AREIA GROSSA ÚMIDA) COM ADIÇÃO DE EMULSÃO POLIMÉRICA PARA CHAPISCO ROLADO, PREPARO MECÂNICO COM MISTURADOR DE EIXO HORIZONTAL DE 300 KG. AF_08/2019 | D168: M3 | E168: 3789.33
A169: Argamassas | B169: 87362 | C169: ARGAMASSA TRAÇO 1:3 (EM VOLUME DE CIMENTO E AREIA GROSSA ÚMIDA) COM ADIÇÃO DE EMULSÃO POLIMÉRICA PARA CHAPISCO ROLADO, PREPARO MECÂNICO COM MISTURADOR DE EIXO HORIZONTAL DE 600 KG. AF_08/2019 | D169: M3 | E169: 3760.64
A170: Argamassas | B170: 87377 | C170: ARGAMASSA TRAÇO 1:3 (EM VOLUME DE CIMENTO E AREIA GROSSA ÚMIDA) PARA CHAPISCO CONVENCIONAL, PREPARO MANUAL. AF_08/2019 | D170: M3 | E170: 739.87
A171: Argamassas | B171: 100458 | C171: ARGAMASSA TRAÇO 1:3 (EM VOLUME DE CIMENTO E AREIA GROSSA ÚMIDA) PARA CHAPISCO CONVENCIONAL, PREPARO MECÂNICO COM BETONEIRA 250 L. AF_08/2019 | D171: M3 | E171: 0
A172: Argamassas | B172: 87313 | C172: ARGAMASSA TRAÇO 1:3 (EM VOLUME DE CIMENTO E AREIA GROSSA ÚMIDA) PARA CHAPISCO CONVENCIONAL, PREPARO MECÂNICO COM BETONEIRA 400 L. AF_08/2019 | D172: M3 | E172: 655.2
A173: Argamassas | B173: 87314 | C173: ARGAMASSA TRAÇO 1:3 (EM VOLUME DE CIMENTO E AREIA GROSSA ÚMIDA) PARA CHAPISCO CONVENCIONAL, PREPARO MECÂNICO COM BETONEIRA 600 L. AF_08/2019 | D173: M3 | E173: 625.2
A174: Argamassas | B174: 87352 | C174: ARGAMASSA TRAÇO 1:3 (EM VOLUME DE CIMENTO E AREIA GROSSA ÚMIDA) PARA CHAPISCO CONVENCIONAL, PREPARO MECÂNICO COM MISTURADOR DE EIXO HORIZONTAL DE 160 KG. AF_08/2019 | D174: M3 | E174: 806.9
A175: Argamassas | B175: 87353 | C175: ARGAMASSA TRAÇO 1:3 (EM VOLUME DE CIMENTO E AREIA GROSSA ÚMIDA) PARA CHAPISCO CONVENCIONAL, PREPARO MECÂNICO COM MISTURADOR DE EIXO HORIZONTAL DE 300 KG. AF_08/2019 | D175: M3 | E175: 667.15
A176: Argamassas | B176: 87354 | C176: ARGAMASSA TRAÇO 1:3 (EM VOLUME DE CIMENTO E AREIA GROSSA ÚMIDA) PARA CHAPISCO CONVENCIONAL, PREPARO MECÂNICO COM MISTURADOR DE EIXO HORIZONTAL DE 600 KG. AF_08/2019 | D176: M3 | E176: 593.91
A177: Argamassas | B177: 100480 | C177: ARGAMASSA TRAÇO 1:3 (EM VOLUME DE CIMENTO E AREIA MÉDIA ÚMIDA) COM ADIÇÃO DE IMPERMEABILIZANTE, PREPARO MANUAL. AF_08/2019 | D177: M3 | E177: 891.06
A178: Argamassas | B178: 100476 | C178: ARGAMASSA TRAÇO 1:3 (EM VOLUME DE CIMENTO E AREIA MÉDIA ÚMIDA) COM ADIÇÃO DE IMPERMEABILIZANTE, PREPARO MECÂNICO COM BETONEIRA 250 L. AF_08/2019 | D178: M3 | E178: 0
A179: Argamassas | B179: 100475 | C179: ARGAMASSA TRAÇO 1:3 (EM VOLUME DE CIMENTO E AREIA MÉDIA ÚMIDA) COM ADIÇÃO DE IMPERMEABILIZANTE, PREPARO MECÂNICO COM BETONEIRA 400 L. AF_08/2019 | D179: M3 | E179: 831.28
A180: Argamassas | B180: 100491 | C180: ARGAMASSA TRAÇO 1:3 (EM VOLUME DE CIMENTO E AREIA MÉDIA ÚMIDA) COM ADIÇÃO DE IMPERMEABILIZANTE, PREPARO MECÂNICO COM BETONEIRA 600 L. AF_08/2019 | D180: M3 | E180: 813.54
A181: Argamassas | B181: 100477 | C181: ARGAMASSA TRAÇO 1:3 (EM VOLUME DE CIMENTO E AREIA MÉDIA ÚMIDA) COM ADIÇÃO DE IMPERMEABILIZANTE, PREPARO MECÂNICO COM MISTURADOR DE EIXO HORIZONTAL DE 160 KG. AF_08/2019 | D181: M3 | E181: 955.07
A182: Argamassas | B182: 100478 | C182: ARGAMASSA TRAÇO 1:3 (EM VOLUME DE CIMENTO E AREIA MÉDIA ÚMIDA) COM ADIÇÃO DE IMPERMEABILIZANTE, PREPARO MECÂNICO COM MISTURADOR DE EIXO HORIZONTAL DE 300 KG. AF_08/2019 | D182: M3 | E182: 814.29
A183: Argamassas | B183: 100479 | C183: ARGAMASSA TRAÇO 1:3 (EM VOLUME DE CIMENTO E AREIA MÉDIA ÚMIDA) COM ADIÇÃO DE IMPERMEABILIZANTE, PREPARO MECÂNICO COM MISTURADOR DE EIXO HORIZONTAL DE 600 KG. AF_08/2019 | D183: M3 | E183: 773.23
A184: Argamassas | B184: 87372 | C184: ARGAMASSA TRAÇO 1:3 (EM VOLUME DE CIMENTO E AREIA MÉDIA ÚMIDA) PARA CONTRAPISO, PREPARO MANUAL. AF_08/2019 | D184: M3 | E184: 909.66
A185: Argamassas | B185: 100453 | C185: ARGAMASSA TRAÇO 1:3 (EM VOLUME DE CIMENTO E AREIA MÉDIA ÚMIDA) PARA CONTRAPISO, PREPARO MECÂNICO COM BETONEIRA 250 L. AF_08/2019 | D185: M3 | E185: 0
A186: Argamassas | B186: 87298 | C186: ARGAMASSA TRAÇO 1:3 (EM VOLUME DE CIMENTO E AREIA MÉDIA ÚMIDA) PARA CONTRAPISO, PREPARO MECÂNICO COM BETONEIRA 400 L. AF_08/2019 | D186: M3 | E186: 820.07
A187: Argamassas | B187: 87299 | C187: ARGAMASSA TRAÇO 1:3 (EM VOLUME DE CIMENTO E AREIA MÉDIA ÚMIDA) PARA CONTRAPISO, PREPARO MECÂNICO COM BETONEIRA 600 L. AF_08/2019 | D187: M3 | E187: 559.17
A188: Argamassas | B188: 87339 | C188: ARGAMASSA TRAÇO 1:3 (EM VOLUME DE CIMENTO E AREIA MÉDIA ÚMIDA) PARA CONTRAPISO, PREPARO MECÂNICO COM MISTURADOR DE EIXO HORIZONTAL DE 160 KG. AF_08/2019 | D188: M3 | E188: 1051.36
A189: Argamassas | B189: 87340 | C189: ARGAMASSA TRAÇO 1:3 (EM VOLUME DE CIMENTO E AREIA MÉDIA ÚMIDA) PARA CONTRAPISO, PREPARO MECÂNICO COM MISTURADOR DE EIXO HORIZONTAL DE 300 KG. AF_08/2019 | D189: M3 | E189: 823.92
A190: Argamassas | B190: 87341 | C190: ARGAMASSA TRAÇO 1:3 (EM VOLUME DE CIMENTO E AREIA MÉDIA ÚMIDA) PARA CONTRAPISO, PREPARO MECÂNICO COM MISTURADOR DE EIXO HORIZONTAL DE 600 KG. AF_08/2019 | D190: M3 | E190: 757.12
A191: Argamassas | B191: 88629 | C191: ARGAMASSA TRAÇO 1:3 (EM VOLUME DE CIMENTO E AREIA MÉDIA ÚMIDA), PREPARO MANUAL. AF_08/2019 | D191: M3 | E191: 744.91
A192: Argamassas | B192: 100467 | C192: ARGAMASSA TRAÇO 1:3 (EM VOLUME DE CIMENTO E AREIA MÉDIA ÚMIDA), PREPARO MECÂNICO COM BETONEIRA 250 L. AF_08/2019 | D192: M3 | E192: 0
A193: Argamassas | B193: 88628 | C193: ARGAMASSA TRAÇO 1:3 (EM VOLUME DE CIMENTO E AREIA MÉDIA ÚMIDA), PREPARO MECÂNICO COM BETONEIRA 400 L. AF_08/2019 | D193: M3 | E193: 678.66
A194: Argamassas | B194: 100489 | C194: ARGAMASSA TRAÇO 1:3 (EM VOLUME DE CIMENTO E AREIA MÉDIA ÚMIDA), PREPARO MECÂNICO COM BETONEIRA 600 L. AF_08/2019 | D194: M3 | E194: 661.03
A195: Argamassas | B195: 100468 | C195: ARGAMASSA TRAÇO 1:3 (EM VOLUME DE CIMENTO E AREIA MÉDIA ÚMIDA), PREPARO MECÂNICO COM MISTURADOR DE EIXO HORIZONTAL DE 160 KG. AF_08/2019 | D195: M3 | E195: 861.1
A196: Argamassas | B196: 100469 | C196: ARGAMASSA TRAÇO 1:3 (EM VOLUME DE CIMENTO E AREIA MÉDIA ÚMIDA), PREPARO MECÂNICO COM MISTURADOR DE EIXO HORIZONTAL DE 300 KG. AF_08/2019 | D196: M3 | E196: 665.13
A197: Argamassas | B197: 100470 | C197: ARGAMASSA TRAÇO 1:3 (EM VOLUME DE CIMENTO E AREIA MÉDIA ÚMIDA), PREPARO MECÂNICO COM MISTURADOR DE EIXO HORIZONTAL DE 600 KG. AF_08/2019 | D197: M3 | E197: 613.72
A198: Argamassas | B198: 87371 | C198: ARGAMASSA TRAÇO 1:3:12 (EM VOLUME DE CIMENTO, CAL E AREIA MÉDIA ÚMIDA) PARA EMBOÇO/MASSA ÚNICA/ASSENTAMENTO DE ALVENARIA DE VEDAÇÃO, PREPARO MANUAL. AF_08/2019 | D198: M3 | E198: 810.59
A199: Argamassas | B199: 87295 | C199: ARGAMASSA TRAÇO 1:3:12 (EM VOLUME DE CIMENTO, CAL E AREIA MÉDIA ÚMIDA) PARA EMBOÇO/MASSA ÚNICA/ASSENTAMENTO DE ALVENARIA DE VEDAÇÃO, PREPARO MECÂNICO COM BETONEIRA 400 L. AF_08/2019 | D199: M3 | E199: 780.23
A200: Argamassas | B200: 87296 | C200: ARGAMASSA TRAÇO 1:3:12 (EM VOLUME DE CIMENTO, CAL E AREIA MÉDIA ÚMIDA) PARA EMBOÇO/MASSA ÚNICA/ASSENTAMENTO DE ALVENARIA DE VEDAÇÃO, PREPARO MECÂNICO COM BETONEIRA 600 L. AF_08/2019 | D200: M3 | E200: 711.58
... 9533 more rows

Sheet Ins SINAPI BA 07-2025 Onerado
A1: SINAPI - Sistema Nacional de Pesquisa de Custos e Índices da Construção Civil
A2: RELATÓRIO DE PREÇOS DE INSUMOS - ENGARGOS SOCIAIS SEM DESONERAÇÃO
A3: Mês de Referência: | B3: 2025-07-01 | E3: Encargos sociais sobre a mão de obra:
A4: Data de emissão: | B4: 2025-08-12 | E4: (SEM DESONERAÇÃO) | F4: BA
E5: Localidade | F5: SALVADOR
A6: Origem de preço: | B6: C = COLETADO | C6: CR = COEFICIENTE DE REPRESENTATIVIDADE | E6: Horista | F6: 1.1557
A7: Preço em branco para determinado estado significa que não houve coleta mínima de preços no mês de referência | E7: Mensalista | F7: 0.7129
A9: Acessar Fichas de Especificação Técnico dos Insumos | E9: Preços Medianos (R$):
A10: Classificação | B10: Código do Insumo | C10: Descrição do Insumo | D10: Unidade | E10: Origem de Preço | F10: BA
A11: SERVIÇOS | B11: 45333 | C11: ABERTURA PARA ENCAIXE DE CUBA OU LAVATORIO EM BANCADA DE MARMORE/ GRANITO OU OUTRO TIPO DE PEDRA NATURAL | D11: UN | E11: CR | F11: 113.72
A12: MATERIAL | B12: 11270 | C12: ABRACADEIRA DE LATAO PARA FIXACAO DE CABO PARA-RAIO, DIMENSOES 32 X 24 X 24 MM | D12: UN | E12: CR | F12: 3
A13: MATERIAL | B13: 412 | C13: ABRACADEIRA DE NYLON PARA AMARRACAO DE CABOS, COMPRIMENTO DE *230* X *7,6* MM | D13: UN | E13: CR | F13: 1.08
A14: MATERIAL | B14: 414 | C14: ABRACADEIRA DE NYLON PARA AMARRACAO DE CABOS, COMPRIMENTO DE 100 X 2,5 MM | D14: UN | E14: CR | F14: 0.06
A15: MATERIAL | B15: 410 | C15: ABRACADEIRA DE NYLON PARA AMARRACAO DE CABOS, COMPRIMENTO DE 150 X *3,6* MM | D15: UN | E15: CR | F15: 0.16
A16: MATERIAL | B16: 411 | C16: ABRACADEIRA DE NYLON PARA AMARRACAO DE CABOS, COMPRIMENTO DE 200 X *4,6* MM | D16: UN | E16: C | F16: 0.21
A17: MATERIAL | B17: 408 | C17: ABRACADEIRA DE NYLON PARA AMARRACAO DE CABOS, COMPRIMENTO DE 390 X *4,6* MM | D17: UN | E17: CR | F17: 1.04
A18: MATERIAL | B18: 39131 | C18: ABRACADEIRA EM ACO PARA AMARRACAO DE ELETRODUTOS, TIPO D, COM 1 1/2" E CUNHA DE FIXACAO | D18: UN | E18: CR | F18: 3.86
A19: MATERIAL | B19: 394 | C19: ABRACADEIRA EM ACO PARA AMARRACAO DE ELETRODUTOS, TIPO D, COM 1 1/2" E PARAFUSO DE FIXACAO | D19: UN | E19: CR | F19: 3.91
A20: MATERIAL | B20: 39130 | C20: ABRACADEIRA EM ACO PARA AMARRACAO DE ELETRODUTOS, TIPO D, COM 1 1/4" E CUNHA DE FIXACAO | D20: UN | E20: CR | F20: 3.52
A21: MATERIAL | B21: 395 | C21: ABRACADEIRA EM ACO PARA AMARRACAO DE ELETRODUTOS, TIPO D, COM 1 1/4" E PARAFUSO DE FIXACAO | D21: UN | E21: CR | F21: 3.76
A22: MATERIAL | B22: 39129 | C22: ABRACADEIRA EM ACO PARA AMARRACAO DE ELETRODUTOS, TIPO D, COM 1" E CUNHA DE FIXACAO | D22: UN | E22: CR | F22: 2.17
A23: MATERIAL | B23: 393 | C23: ABRACADEIRA EM ACO PARA AMARRACAO DE ELETRODUTOS, TIPO D, COM 1" E PARAFUSO DE FIXACAO | D23: UN | E23: C | F23: 2.27
A24: MATERIAL | B24: 39127 | C24: ABRACADEIRA EM ACO PARA AMARRACAO DE ELETRODUTOS, TIPO D, COM 1/2" E CUNHA DE FIXACAO | D24: UN | E24: CR | F24: 1.85
A25: MATERIAL | B25: 392 | C25: ABRACADEIRA EM ACO PARA AMARRACAO DE ELETRODUTOS, TIPO D, COM 1/2" E PARAFUSO DE FIXACAO | D25: UN | E25: CR | F25: 1.9
A26: MATERIAL | B26: 39133 | C26: ABRACADEIRA EM ACO PARA AMARRACAO DE ELETRODUTOS, TIPO D, COM 2 1/2" E CUNHA DE FIXACAO | D26: UN | E26: CR | F26: 5.07
A27: MATERIAL | B27: 397 | C27: ABRACADEIRA EM ACO PARA AMARRACAO DE ELETRODUTOS, TIPO D, COM 2 1/2" E PARAFUSO DE FIXACAO | D27: UN | E27: CR | F27: 5.6
A28: MATERIAL | B28: 39132 | C28: ABRACADEIRA EM ACO PARA AMARRACAO DE ELETRODUTOS, TIPO D, COM 2" E CUNHA DE FIXACAO | D28: UN | E28: CR | F28: 4.05
A29: MATERIAL | B29: 396 | C29: ABRACADEIRA EM ACO PARA AMARRACAO DE ELETRODUTOS, TIPO D, COM 2" E PARAFUSO DE FIXACAO | D29: UN | E29: CR | F29: 4.34
A30: MATERIAL | B30: 39135 | C30: ABRACADEIRA EM ACO PARA AMARRACAO DE ELETRODUTOS, TIPO D, COM 3 1/2" E CUNHA DE FIXACAO | D30: UN | E30: CR | F30: 8.11
A31: MATERIAL | B31: 39134 | C31: ABRACADEIRA EM ACO PARA AMARRACAO DE ELETRODUTOS, TIPO D, COM 3" E CUNHA DE FIXACAO | D31: UN | E31: CR | F31: 6.76
A32: MATERIAL | B32: 398 | C32: ABRACADEIRA EM ACO PARA AMARRACAO DE ELETRODUTOS, TIPO D, COM 3" E PARAFUSO DE FIXACAO | D32: UN | E32: CR | F32: 6.23
A33: MATERIAL | B33: 39128 | C33: ABRACADEIRA EM ACO PARA AMARRACAO DE ELETRODUTOS, TIPO D, COM 3/4" E CUNHA DE FIXACAO | D33: UN | E33: CR | F33: 2.02
A34: MATERIAL | B34: 400 | C34: ABRACADEIRA EM ACO PARA AMARRACAO DE ELETRODUTOS, TIPO D, COM 3/4" E PARAFUSO DE FIXACAO | D34: UN | E34: CR | F34: 1.98
A35: MATERIAL | B35: 39125 | C35: ABRACADEIRA EM ACO PARA AMARRACAO DE ELETRODUTOS, TIPO D, COM 3/8" E PARAFUSO DE FIXACAO | D35: UN | E35: CR | F35: 2.02
A36: MATERIAL | B36: 39126 | C36: ABRACADEIRA EM ACO PARA AMARRACAO DE ELETRODUTOS, TIPO D, COM 4" E CUNHA DE FIXACAO | D36: UN | E36: CR | F36: 9.12
A37: MATERIAL | B37: 399 | C37: ABRACADEIRA EM ACO PARA AMARRACAO DE ELETRODUTOS, TIPO D, COM 4" E PARAFUSO DE FIXACAO | D37: UN | E37: CR | F37: 8.04
A38: MATERIAL | B38: 39158 | C38: ABRACADEIRA EM ACO PARA AMARRACAO DE ELETRODUTOS, TIPO ECONOMICA (GOTA), COM 8" | D38: UN | E38: CR | F38: 21.58
A39: MATERIAL | B39: 39141 | C39: ABRACADEIRA EM ACO PARA AMARRACAO DE ELETRODUTOS, TIPO U SIMPLES, COM 1 1/2" | D39: UN | E39: CR | F39: 1.56
A40: MATERIAL | B40: 39140 | C40: ABRACADEIRA EM ACO PARA AMARRACAO DE ELETRODUTOS, TIPO U SIMPLES, COM 1 1/4" | D40: UN | E40: CR | F40: 1.42
A41: MATERIAL | B41: 39139 | C41: ABRACADEIRA EM ACO PARA AMARRACAO DE ELETRODUTOS, TIPO U SIMPLES, COM 1" | D41: UN | E41: CR | F41: 1.18
A42: MATERIAL | B42: 39137 | C42: ABRACADEIRA EM ACO PARA AMARRACAO DE ELETRODUTOS, TIPO U SIMPLES, COM 1/2" | D42: UN | E42: CR | F42: 0.82
A43: MATERIAL | B43: 39143 | C43: ABRACADEIRA EM ACO PARA AMARRACAO DE ELETRODUTOS, TIPO U SIMPLES, COM 2 1/2" | D43: UN | E43: CR | F43: 3.23
A44: MATERIAL | B44: 39142 | C44: ABRACADEIRA EM ACO PARA AMARRACAO DE ELETRODUTOS, TIPO U SIMPLES, COM 2" | D44: UN | E44: CR | F44: 2.31
A45: MATERIAL | B45: 39144 | C45: ABRACADEIRA EM ACO PARA AMARRACAO DE ELETRODUTOS, TIPO U SIMPLES, COM 3" | D45: UN | E45: CR | F45: 3.76
A46: MATERIAL | B46: 39138 | C46: ABRACADEIRA EM ACO PARA AMARRACAO DE ELETRODUTOS, TIPO U SIMPLES, COM 3/4" | D46: UN | E46: CR | F46: 0.86
A47: MATERIAL | B47: 39136 | C47: ABRACADEIRA EM ACO PARA AMARRACAO DE ELETRODUTOS, TIPO U SIMPLES, COM 3/8" | D47: UN | E47: CR | F47: 0.57
A48: MATERIAL | B48: 39145 | C48: ABRACADEIRA EM ACO PARA AMARRACAO DE ELETRODUTOS, TIPO U SIMPLES, COM 4" | D48: UN | E48: CR | F48: 6.2
A49: MATERIAL | B49: 12615 | C49: ABRACADEIRA PVC, PARA CALHA PLUVIAL, DIAMETRO ENTRE *80 E 100* MM, PARA DRENAGEM PLUVIAL PREDIAL | D49: UN | E49: CR | F49: 10.62
A50: MATERIAL | B50: 11927 | C50: ABRACADEIRA, GALVANIZADA/ZINCADA, ROSCA SEM FIM, PARAFUSO INOX, LARGURA FITA *12,6 A *14 MM, D = 2" A 2 1/2" | D50: UN | E50: CR | F50: 8.95
A51: MATERIAL | B51: 11928 | C51: ABRACADEIRA, GALVANIZADA/ZINCADA, ROSCA SEM FIM, PARAFUSO INOX, LARGURA FITA *12,6 A *14 MM, D = 3" A 3 3/4" | D51: UN | E51: CR | F51: 10.26
A52: MATERIAL | B52: 11929 | C52: ABRACADEIRA, GALVANIZADA/ZINCADA, ROSCA SEM FIM, PARAFUSO INOX, LARGURA FITA *12,6 A *14 MM, D = 4" A 4 3/4" | D52: UN | E52: CR | F52: 15.86
A53: MATERIAL | B53: 36801 | C53: ACABAMENTO DE METAL CROMADO PARA REGISTRO PEQUENO, DE PAREDE, 1/2" OU 3/4" | D53: UN | E53: CR | F53: 41.78
A54: MATERIAL | B54: 36246 | C54: ACABAMENTO SIMPLES/CONVENCIONAL PARA FORRO PVC, TIPO "U" OU "C", COR BRANCA, COMPRIMENTO 6 M | D54: M | E54: CR | F54: 3.84
A55: MATERIAL | B55: 37600 | C55: ACESSORIO DE LIGACAO NAO ELETRICO PARA CARGAS EXPLOSIVAS, TUBO DE 6 M | D55: UN | E55: CR | F55: 0
A56: MATERIAL | B56: 37599 | C56: ACESSORIO INICIADOR NAO ELETRICO, TUBO DE 6 M, TEMPO DE RETARDO DE *160* MS | D56: UN | E56: CR | F56: 0
A57: MATERIAL | B57: 1 | C57: ACETILENO - RECARGA DE GAS PARA CILINDRO (NAO INCLUI TROCA/MANUTENCAO DO CILINDRO) | D57: KG | E57: C | F57: 152.5
A58: MATERIAL | B58: 3 | C58: ACIDO CLORIDRICO / ACIDO MURIATICO, DILUICAO 10% A 12% PARA USO EM LIMPEZA | D58: L | E58: CR | F58: 16.01
A59: MATERIAL | B59: 43054 | C59: ACO CA-25, 10,0 MM, OU 12,5 MM, OU 16,0 MM, OU 20,0 MM, OU 25,0 MM, VERGALHAO | D59: KG | E59: CR | F59: 7.37
A60: MATERIAL | B60: 42402 | C60: ACO CA-25, 16,0 MM, BARRA DE TRANSFERENCIA | D60: KG | E60: CR | F60: 7.04
A61: MATERIAL | B61: 42403 | C61: ACO CA-25, 20,0 MM, BARRA DE TRANSFERENCIA | D61: KG | E61: CR | F61: 9.03
A62: MATERIAL | B62: 42404 | C62: ACO CA-25, 25,0 MM, BARRA DE TRANSFERENCIA | D62: KG | E62: CR | F62: 8.98
A63: MATERIAL | B63: 42405 | C63: ACO CA-25, 32,0 MM, BARRA DE TRANSFERENCIA | D63: KG | E63: CR | F63: 9.57
A64: MATERIAL | B64: 34341 | C64: ACO CA-25, 32,0 MM, VERGALHAO | D64: KG | E64: CR | F64: 8.3
A65: MATERIAL | B65: 43053 | C65: ACO CA-25, 6,3 MM OU 8,0 MM, VERGALHAO | D65: KG | E65: CR | F65: 6.58
A66: MATERIAL | B66: 43058 | C66: ACO CA-50, 10,0 MM, OU 12,5 MM, OU 16,0 MM, OU 20,0 MM, DOBRADO E CORTADO | D66: KG | E66: CR | F66: 6.82
A67: MATERIAL | B67: 34 | C67: ACO CA-50, 10,0 MM, VERGALHAO | D67: KG | E67: CR | F67: 6.86
A68: MATERIAL | B68: 43055 | C68: ACO CA-50, 12,5 MM OU 16,0 MM, VERGALHAO | D68: KG | E68: C | F68: 5.94
A69: MATERIAL | B69: 43056 | C69: ACO CA-50, 20,0 MM OU 25,0 MM, VERGALHAO | D69: KG | E69: CR | F69: 6.85
A70: MATERIAL | B70: 43057 | C70: ACO CA-50, 32,0 MM, VERGALHAO | D70: KG | E70: CR | F70: 7.52
A71: MATERIAL | B71: 34449 | C71: ACO CA-50, 6,3 MM, DOBRADO E CORTADO | D71: KG | E71: CR | F71: 8.04
A72: MATERIAL | B72: 32 | C72: ACO CA-50, 6,3 MM, VERGALHAO | D72: KG | E72: CR | F72: 7.23
A73: MATERIAL | B73: 33 | C73: ACO CA-50, 8,0 MM, VERGALHAO | D73: KG | E73: CR | F73: 7.27
A74: MATERIAL | B74: 43061 | C74: ACO CA-60, 4,2 MM OU 5,0 MM, DOBRADO E CORTADO | D74: KG | E74: CR | F74: 6.8
A75: MATERIAL | B75: 43059 | C75: ACO CA-60, 4,2 MM, OU 5,0 MM, OU 6,0 MM, OU 7,0 MM, VERGALHAO | D75: KG | E75: CR | F75: 6.49
A76: MATERIAL | B76: 43062 | C76: ACO CA-60, 6,0 MM OU 7,0 MM, DOBRADO E CORTADO | D76: KG | E76: CR | F76: 7.19
A77: MATERIAL | B77: 43060 | C77: ACO CA-60, 8,0 MM OU 9,5 MM, VERGALHAO | D77: KG | E77: CR | F77: 5.65
A78: MATERIAL | B78: 40410 | C78: ACOPLAMENTO RIGIDO EM FERRO FUNDIDO PARA SISTEMA DE TUBULACAO RANHURADA, DN 50 MM (2") | D78: UN | E78: C | F78: 40
A79: MATERIAL | B79: 40411 | C79: ACOPLAMENTO RIGIDO EM FERRO FUNDIDO PARA SISTEMA DE TUBULACAO RANHURADA, DN 65 MM (2 1/2") | D79: UN | E79: CR | F79: 43.41
